Workbook

Sheet INTRO
B2: Formulaire de Rapport Commun v.3.1
B4: Le but de ce formulaire de rapport commun - disponible sous forme de fichier Excel - est de mettre à disposition des autorités sanitaires nationales et des gestionnaires de données un outil standardisé qui réponde aux défis, facilite l'intégration et par conséquent contribue à améliorer la gestion de programme. Ce formulaire tend à standardiser le rapport de résultats des programmes nationaux, améliore la disponibilité et la coordination des données de chimioprévention à travers les Bureaux des Régions de l'Organisation mondiale de la Santé. Les autorités nationales sont priées de compléter ce formulaire et de le soumettre à l'Organisation mondiale de la Santé avant le 15 août de l'année en cours pour rapporter les données des activités de chimioprévention mises en oeuvre l'année précédente.
B6: Structure de l'application (feuilles de travail) :
B8: INTRO | C8: Cette feuille contient des instructions pour compléter le formulaire de rapport commun et des informations sur le statut de la chimioprévention pour les maladies d'endémie du pays.
B9: COUNTRY_INFO | C9: Cette feuille contient des informations sur la structure administrative du pays, la population par groupe d'âge, le statut d'endémicité pour chaque maladie, la population devant être traitée par chimioprévention, les interventions prévues et les interventions mises en oeuvre.
B10: MDA1, MDA2, MDA3, T1, T2 et T3 | C10: Ces feuilles contiennent des informations sur l'endémicité des districts ciblés pour le traitement aux médicaments spécifiques pour la chimioprévention, les plans de traitement, et le nombre de personnes traitées par groupe d'âge.
B11: DISTRICT | C11: Cette feuille contient un résumé sur les personnes traitées, par maladie, au niveau de mise en oeuvre. Si les données par genre (sexe) sont disponibles, merci de les saisir.
B12: SUMMARY | C12: Cette feuille contient un résumé sur les personnes traitées, par maladie et par type d'intervention de chimioprévention. Avant de générer le rapport (exécuter macro), veuillez sélectionner la maladie pour laquelle vous souhaitez un rapport. Veuillez suivre le même processus pour générer les divers rapports. Cette feuille doit être imprimée et soumise comme formulaire de rapport commun (voir les instructions pour la soumission du formulaire sous la feuille SUMMARY).
B14: Instructions pour la saisie des données
B16: La plupart des cellules des feuilles de travail mentionnées ci-dessus contiennent des formules calculées automatiquement en fonction du protocole de traitement recommandé par l'OMS pour chaque maladie. Voir : http://www.who.int/neglected_diseases/preventive_chemotherapy/pct_manual/en/index.html
B18: Veuillez entrer vos données dans les cellules en fonction de leur code de couleur :
C20: Blanc - la cellule n'est pas protégée. Veuillez entrer la valeur de l'indicateur demandé.
C22: Jaune - la cellule est protégée et inclut le nom de l'indicateur. Aucune entrée de données requise.
C24: Orange - la cellule n'est pas protégée et contient un menu déroulant. Veuillez sélectionner la valeur dans le menu déroulant.
C27: Vert - la cellule n'est pas protégée et contient des formules. Veuillez changer la valeur indiquée uniquement si vos données sont différentes de celles calculées automatiquement.
C30: Bleu - la cellule est protégée et contient des formules. Aucune entrée de données requise.
B32: Données pays
B34: PAYS | E34: Burundi | G34: BI | H34: BDI
B36: Année de rapport des données | E36: 2022
B38: Le pays est-il endémique à la filariose lymphatique (FL) ? | E38: Non endémique
B40: Le pays est-il endémique à l'onchocercose (ONCHO) ? | E40: Endémique
B42: Le pays est-il endémique aux géohelminthiases (STH) ? | E42: Endémique
B44: Le pays est-il endémique à la schistosomiase (SCH) ? | E44: Endémique
B46: Combien d'unités administratives compte le pays ? | E46: 49
B47: Si les données démographiques par groupe d'âge ne sont pas disponibles au second niveau administratif, veuillez entrer la proportion (%) de population, par groupe d'âge, du pays. Si les données sont disponibles, veuillez laisser les cellules vierges.
B48: 1-4 ans | C48: Enfants d'âge pré-scolaire (EAPréS)
B49: 5-14 ans | C49: Enfants d'âge scolaire (EAS)
B50: 15 ans et plus | C50: Adultes

Sheet COUNTRY_INFO
A1: INFORMATIONS PAYS
A2: Structure administrative, population par groupe d'âge, statut d'endémicité, interventions planifiées et interventions mises en oeuvre | U2: 1.0262
A4: TOTAL | D4: =SUM(D$9:D$1000) -> 12837745 | E4: =SUM(E$9:E$1000) -> 1367295 | F4: =SUM(F$9:F$1000) -> 3434507 | G4: =SUM(G$9:G$1000) -> 7112112 | L4: =SUM(L$9:L$1000) -> 0 | M4: =SUM(M$9:M$1000) -> 2125963 | N4: =SUM(N$9:N$1000) -> 969250 | O4: =SUM(O$9:O$1000) -> 631781.21
A6: Structure administrative du pays | D6: Population | H6: Endémicité | L6: Population nécessitant la CP | P6: Nombre de tournées de traitement prévues pour l'année | T6: Mise en oeuvre de la chimioprévention | V6: Cliquer ci-dessous pour voir la stratégie recommandée | AB6: md3 | AC6: t3r1 | AD6: t3r2
A7: Pays | B7: Région/Département | C7: District | D7: Total | E7: EAPréS | F7: EAS | G7: Adultes | H7: FL | I7: Oncho | J7: STH | K7: SCH | L7: FL | M7: Oncho | N7: STH | O7: SCH | P7: FL | Q7: Oncho | R7: STH | S7: SCH | T7: TOURNEE 1 | U7: TOURNEE 2 | Y7: IU_ID | Z7: IU_Name | AD7: x | AE7: x | AF7: x | AG7: x | AH7: x | AI7: x | AJ7: x | AK7: x | AL7: xx | AM7: x | AN7: x | AO7: x | AP7: x | AQ7: x | AR7: x | AS7: x | AT7: x | AU7: x | AV7: x | AW7: x | AX7: x | AY7: x | AZ7: x | BA7: x | BB7: x | BC7: x | BD7: x | BE7: x | BF7: x
A9: =IF(INTRO!$E$34<>0,INTRO!$E$34,"") -> Burundi | B9: Bubanza | C9: Bubanza | D9: 264427 | E9: 31581 | F9: 66325 | G9: 146493 | H9: 0 | I9: 1 | J9: 1 | K9: 1 | L9: 0 | M9: 265574 | N9: =IF(INTRO!$E$42="Endémique", IF(AND($J9>1,$J9<5), IF($J9=4, "Inconnu", E9+F9), 0),"Non requis") -> 0 | O9: =IF(INTRO!$E$44="Endémique", IF(AND($K9>0,$K9<5), IF($K9=4,"Inconnu", IF($K9=1, $F9*0.33, IF($K9=2, $F9*0.5+$G9*0.2, SUM(F9:G9)))), 0),"Non requis") -> 21887.25 | P9: 0 | Q9: 1 | R9: 1 | S9: 0 | T9: MDA3 (IVM) | U9: T3 (ALB/MBD) | V9: MDA 3 | W9: T2 | Y9: 6375 | Z9: Bubanza | AB9: ='MDA3'!I9 -> 53293.467 | AC9: =T3_R1!L9 -> 66325 | AD9: =T3_R2!L9 -> 0 | AG9: =ROUND(G9,0) -> 146493 | AI9: =_xlfn.XLOOKUP($Y9,[1]COUNTRY_INFO!$Y$9:$Y$57,[1]COUNTRY_INFO!J$9:J$57) -> 1 | AJ9: =_xlfn.XLOOKUP($Y9,[1]COUNTRY_INFO!$Y$9:$Y$57,[1]COUNTRY_INFO!K$9:K$57) -> 1 | AK9: =AI9=J9 -> TRUE | AL9: =AJ9=K9 -> TRUE
A10: =IF(INTRO!$E$34<>0,INTRO!$E$34,"") -> Burundi | B10: Bubanza | C10: Mpanda | D10: 274396 | E10: 32985 | F10: 63075 | G10: 152015 | H10: 0 | I10: 1 | J10: 1 | K10: 1 | L10: 0 | M10: 229076 | N10: =IF(INTRO!$E$42="Endémique", IF(AND($J10>1,$J10<5), IF($J10=4, "Inconnu", E10+F10), 0),"Non requis") -> 0 | O10: =IF(INTRO!$E$44="Endémique", IF(AND($K10>0,$K10<5), IF($K10=4,"Inconnu", IF($K10=1, $F10*0.33, IF($K10=2, $F10*0.5+$G10*0.2, SUM(F10:G10)))), 0),"Non requis") -> 20814.75 | P10: 0 | Q10: 1 | R10: 1 | S10: 0 | T10: MDA3 (IVM) | U10: T3 (ALB/MBD) | V10: MDA 3 | W10: T2 | Y10: 6376 | Z10: Mpanda | AB10: ='MDA3'!I10 -> 50640.555 | AC10: =T3_R1!L10 -> 63075 | AD10: =T3_R2!L10 -> 0 | AG10: =ROUND(G10,0) -> 152015 | AI10: =_xlfn.XLOOKUP($Y10,[1]COUNTRY_INFO!$Y$9:$Y$57,[1]COUNTRY_INFO!J$9:J$57) -> 1 | AJ10: =_xlfn.XLOOKUP($Y10,[1]COUNTRY_INFO!$Y$9:$Y$57,[1]COUNTRY_INFO!K$9:K$57) -> 1 | AK10: =AI10=J10 -> TRUE | AL10: =AJ10=K10 -> TRUE
A11: =IF(INTRO!$E$34<>0,INTRO!$E$34,"") -> Burundi | B11: Bujumbura Mairie | C11: Zone Centre | D11: 196729 | E11: 12734 | F11: 36072 | G11: 108988 | H11: 0 | I11: 0 | J11: 0 | K11: 0 | L11: 0 | M11: 0 | N11: =IF(INTRO!$E$42="Endémique", IF(AND($J11>1,$J11<5), IF($J11=4, "Inconnu", E11+F11), 0),"Non requis") -> 0 | O11: =IF(INTRO!$E$44="Endémique", IF(AND($K11>0,$K11<5), IF($K11=4,"Inconnu", IF($K11=1, $F11*0.33, IF($K11=2, $F11*0.5+$G11*0.2, SUM(F11:G11)))), 0),"Non requis") -> 0 | P11: 0 | Q11: 0 | R11: 1 | S11: 0 | U11: T3 (ALB/MBD) | Y11: 6380 | Z11: Zone centre | AB11: ='MDA3'!I11 -> 0 | AC11: =T3_R1!L11 -> 28126 | AD11: =T3_R2!L11 -> 0 | AG11: 108988 | AI11: =_xlfn.XLOOKUP($Y11,[1]COUNTRY_INFO!$Y$9:$Y$57,[1]COUNTRY_INFO!J$9:J$57) -> 0 | AJ11: =_xlfn.XLOOKUP($Y11,[1]COUNTRY_INFO!$Y$9:$Y$57,[1]COUNTRY_INFO!K$9:K$57) -> 0 | AK11: TRUE | AL11: TRUE
A12: =IF(INTRO!$E$34<>0,INTRO!$E$34,"") -> Burundi | B12: Bujumbura Mairie | C12: Zone Nord | D12: 396781 | E12: 36960 | F12: 82386 | G12: 219817 | H12: 0 | I12: 0 | J12: 1 | K12: 1 | L12: 0 | M12: 0 | N12: =IF(INTRO!$E$42="Endémique", IF(AND($J12>1,$J12<5), IF($J12=4, "Inconnu", E12+F12), 0),"Non requis") -> 0 | O12: =IF(INTRO!$E$44="Endémique", IF(AND($K12>0,$K12<5), IF($K12=4,"Inconnu", IF($K12=1, $F12*0.33, IF($K12=2, $F12*0.5+$G12*0.2, SUM(F12:G12)))), 0),"Non requis") -> 27187.38 | P12: 0 | Q12: 0 | R12: 1 | S12: 0 | U12: T3 (ALB/MBD) | W12: T2 | Y12: 6381 | Z12: Zone Nord | AB12: ='MDA3'!I12 -> 0 | AC12: =T3_R1!L12 -> 8899 | AD12: =T3_R2!L12 -> 0 | AG12: 219817 | AI12: =_xlfn.XLOOKUP($Y12,[1]COUNTRY_INFO!$Y$9:$Y$57,[1]COUNTRY_INFO!J$9:J$57) -> 1 | AJ12: =_xlfn.XLOOKUP($Y12,[1]COUNTRY_INFO!$Y$9:$Y$57,[1]COUNTRY_INFO!K$9:K$57) -> 1 | AK12: TRUE | AL12: TRUE
A13: =IF(INTRO!$E$34<>0,INTRO!$E$34,"") -> Burundi | B13: Bujumbura Mairie | C13: Zone Sud | D13: 198994 | E13: 16716 | F13: 40910 | G13: 110243 | H13: 0 | I13: 0 | J13: 1 | K13: 0 | L13: 0 | M13: 0 | N13: =IF(INTRO!$E$42="Endémique", IF(AND($J13>1,$J13<5), IF($J13=4, "Inconnu", E13+F13), 0),"Non requis") -> 0 | O13: =IF(INTRO!$E$44="Endémique", IF(AND($K13>0,$K13<5), IF($K13=4,"Inconnu", IF($K13=1, $F13*0.33, IF($K13=2, $F13*0.5+$G13*0.2, SUM(F13:G13)))), 0),"Non requis") -> 0 | P13: 0 | Q13: 0 | R13: 1 | S13: 0 | U13: T3 (ALB/MBD) | Y13: 6382 | Z13: Zone Sud | AB13: ='MDA3'!I13 -> 0 | AC13: =T3_R1!L13 -> 11342 | AD13: =T3_R2!L13 -> 0 | AG13: 110243 | AI13: =_xlfn.XLOOKUP($Y13,[1]COUNTRY_INFO!$Y$9:$Y$57,[1]COUNTRY_INFO!J$9:J$57) -> 1 | AJ13: =_xlfn.XLOOKUP($Y13,[1]COUNTRY_INFO!$Y$9:$Y$57,[1]COUNTRY_INFO!K$9:K$57) -> 0 | AK13: TRUE | AL13: TRUE
A14: =IF(INTRO!$E$34<>0,INTRO!$E$34,"") -> Burundi | B14: Bujumbura Rural | C14: Isare | D14: 302795 | E14: 33360 | F14: 79814 | G14: 167748 | H14: 0 | I14: 0 | J14: 2 | K14: 1 | L14: 0 | M14: 0 | N14: =IF(INTRO!$E$42="Endémique", IF(AND($J14>1,$J14<5), IF($J14=4, "Inconnu", E14+F14), 0),"Non requis") -> 113174 | O14: =IF(INTRO!$E$44="Endémique", IF(AND($K14>0,$K14<5), IF($K14=4,"Inconnu", IF($K14=1, $F14*0.33, IF($K14=2, $F14*0.5+$G14*0.2, SUM(F14:G14)))), 0),"Non requis") -> 26338.62 | P14: 0 | Q14: 0 | R14: 1 | S14: 0 | U14: T3 (ALB/MBD) | W14: T1 | Y14: 6377 | Z14: Isale | AB14: ='MDA3'!I14 -> 0 | AC14: =T3_R1!L14 -> 102647 | AD14: =T3_R2!L14 -> 0 | AG14: 167748 | AI14: =_xlfn.XLOOKUP($Y14,[1]COUNTRY_INFO!$Y$9:$Y$57,[1]COUNTRY_INFO!J$9:J$57) -> 2 | AJ14: =_xlfn.XLOOKUP($Y14,[1]COUNTRY_INFO!$Y$9:$Y$57,[1]COUNTRY_INFO!K$9:K$57) -> 1 | AK14: TRUE | AL14: TRUE
A15: =IF(INTRO!$E$34<>0,INTRO!$E$34,"") -> Burundi | B15: Bujumbura Rural | C15: Kabezi | D15: 273641 | E15: 28480 | F15: 102909 | G15: 151597 | H15: 0 | I15: 0 | J15: 2 | K15: 1 | L15: 0 | M15: 0 | N15: =IF(INTRO!$E$42="Endémique", IF(AND($J15>1,$J15<5), IF($J15=4, "Inconnu", E15+F15), 0),"Non requis") -> 131389 | O15: =IF(INTRO!$E$44="Endémique", IF(AND($K15>0,$K15<5), IF($K15=4,"Inconnu", IF($K15=1, $F15*0.33, IF($K15=2, $F15*0.5+$G15*0.2, SUM(F15:G15)))), 0),"Non requis") -> 33959.97 | P15: 0 | Q15: 0 | R15: 1 | S15: 0 | U15: T3 (ALB/MBD) | W15: T1 | Y15: 6378 | Z15: Kabezi | AB15: ='MDA3'!I15 -> 0 | AC15: =T3_R1!L15 -> 92949 | AD15: =T3_R2!L15 -> 0 | AG15: 151597 | AI15: =_xlfn.XLOOKUP($Y15,[1]COUNTRY_INFO!$Y$9:$Y$57,[1]COUNTRY_INFO!J$9:J$57) -> 2 | AJ15: =_xlfn.XLOOKUP($Y15,[1]COUNTRY_INFO!$Y$9:$Y$57,[1]COUNTRY_INFO!K$9:K$57) -> 1 | AK15: TRUE | AL15: TRUE
A16: =IF(INTRO!$E$34<>0,INTRO!$E$34,"") -> Burundi | B16: Bujumbura Rural | C16: Rwibaga | D16: 164503 | E16: 15488 | F16: 42236 | G16: 91135 | H16: 0 | I16: 0 | J16: 2 | K16: 0 | L16: 0 | M16: 0 | N16: =IF(INTRO!$E$42="Endémique", IF(AND($J16>1,$J16<5), IF($J16=4, "Inconnu", E16+F16), 0),"Non requis") -> 57724 | O16: =IF(INTRO!$E$44="Endémique", IF(AND($K16>0,$K16<5), IF($K16=4,"Inconnu", IF($K16=1, $F16*0.33, IF($K16=2, $F16*0.5+$G16*0.2, SUM(F16:G16)))), 0),"Non requis") -> 0 | P16: 0 | Q16: 0 | R16: 1 | S16: 0 | U16: T3 (ALB/MBD) | W16: T3 | Y16: 6379 | Z16: Rwibaga | AB16: ='MDA3'!I16 -> 0 | AC16: =T3_R1!L16 -> 43204 | AD16: =T3_R2!L16 -> 0 | AG16: 91135 | AI16: =_xlfn.XLOOKUP($Y16,[1]COUNTRY_INFO!$Y$9:$Y$57,[1]COUNTRY_INFO!J$9:J$57) -> 2 | AJ16: =_xlfn.XLOOKUP($Y16,[1]COUNTRY_INFO!$Y$9:$Y$57,[1]COUNTRY_INFO!K$9:K$57) -> 0 | AK16: TRUE | AL16: TRUE
A17: =IF(INTRO!$E$34<>0,INTRO!$E$34,"") -> Burundi | B17: Bururi | C17: Bururi | D17: 180603 | E17: 17122 | F17: 50151 | G17: 100054 | H17: 0 | I17: 1 | J17: 1 | K17: 0 | L17: 0 | M17: 57328 | N17: =IF(INTRO!$E$42="Endémique", IF(AND($J17>1,$J17<5), IF($J17=4, "Inconnu", E17+F17), 0),"Non requis") -> 0 | O17: =IF(INTRO!$E$44="Endémique", IF(AND($K17>0,$K17<5), IF($K17=4,"Inconnu", IF($K17=1, $F17*0.33, IF($K17=2, $F17*0.5+$G17*0.2, SUM(F17:G17)))), 0),"Non requis") -> 0 | P17: 0 | Q17: 1 | R17: 1 | S17: 0 | T17: MDA3 (IVM) | U17: T3 (ALB/MBD) | V17: MDA 3 | Y17: 6383 | Z17: Bururi | AB17: ='MDA3'!I17 -> 12748.716 | AC17: =T3_R1!L17 -> 60018 | AD17: =T3_R2!L17 -> 0 | AG17: 100054 | AI17: =_xlfn.XLOOKUP($Y17,[1]COUNTRY_INFO!$Y$9:$Y$57,[1]COUNTRY_INFO!J$9:J$57) -> 1 | AJ17: =_xlfn.XLOOKUP($Y17,[1]COUNTRY_INFO!$Y$9:$Y$57,[1]COUNTRY_INFO!K$9:K$57) -> 0 | AK17: TRUE | AL17: TRUE
A18: =IF(INTRO!$E$34<>0,INTRO!$E$34,"") -> Burundi | B18: Bururi | C18: Matana | D18: 162370 | E18: 15113 | F18: 45961 | G18: 89953 | H18: 0 | I18: 0 | J18: 1 | K18: 0 | L18: 0 | M18: 0 | N18: =IF(INTRO!$E$42="Endémique", IF(AND($J18>1,$J18<5), IF($J18=4, "Inconnu", E18+F18), 0),"Non requis") -> 0 | O18: =IF(INTRO!$E$44="Endémique", IF(AND($K18>0,$K18<5), IF($K18=4,"Inconnu", IF($K18=1, $F18*0.33, IF($K18=2, $F18*0.5+$G18*0.2, SUM(F18:G18)))), 0),"Non requis") -> 0 | P18: 0 | Q18: 0 | R18: 1 | S18: 0 | U18: T3 (ALB/MBD) | Y18: 6384 | Z18: Matana | AB18: ='MDA3'!I18 -> 0 | AC18: =T3_R1!L18 -> 38564 | AD18: =T3_R2!L18 -> 0 | AG18: 89953 | AI18: =_xlfn.XLOOKUP($Y18,[1]COUNTRY_INFO!$Y$9:$Y$57,[1]COUNTRY_INFO!J$9:J$57) -> 1 | AJ18: =_xlfn.XLOOKUP($Y18,[1]COUNTRY_INFO!$Y$9:$Y$57,[1]COUNTRY_INFO!K$9:K$57) -> 0 | AK18: TRUE | AL18: TRUE
A19: =IF(INTRO!$E$34<>0,INTRO!$E$34,"") -> Burundi | B19: Bururi | C19: Rutovu | D19: 156124 | E19: 14741 | F19: 45827 | G19: 86493 | H19: 0 | I19: 1 | J19: 1 | K19: 0 | L19: 0 | M19: 24092 | N19: =IF(INTRO!$E$42="Endémique", IF(AND($J19>1,$J19<5), IF($J19=4, "Inconnu", E19+F19), 0),"Non requis") -> 0 | O19: =IF(INTRO!$E$44="Endémique", IF(AND($K19>0,$K19<5), IF($K19=4,"Inconnu", IF($K19=1, $F19*0.33, IF($K19=2, $F19*0.5+$G19*0.2, SUM(F19:G19)))), 0),"Non requis") -> 0 | P19: 0 | Q19: 1 | R19: 1 | S19: 0 | T19: MDA3 (IVM) | U19: T3 (ALB/MBD) | V19: MDA 3 | Y19: 6424 | Z19: Rutovu | AB19: ='MDA3'!I19 -> 5030.547 | AC19: =T3_R1!L19 -> 36309 | AD19: =T3_R2!L19 -> 0 | AG19: 86493 | AI19: =_xlfn.XLOOKUP($Y19,[1]COUNTRY_INFO!$Y$9:$Y$57,[1]COUNTRY_INFO!J$9:J$57) -> 1 | AJ19: =_xlfn.XLOOKUP($Y19,[1]COUNTRY_INFO!$Y$9:$Y$57,[1]COUNTRY_INFO!K$9:K$57) -> 0 | AK19: TRUE | AL19: TRUE
A20: =IF(INTRO!$E$34<>0,INTRO!$E$34,"") -> Burundi | B20: Cankuzo | C20: Cankuzo | D20: 193202 | E20: 20585 | F20: 52286 | G20: 107034 | H20: 0 | I20: 0 | J20: 1 | K20: 0 | L20: 0 | M20: 0 | N20: =IF(INTRO!$E$42="Endémique", IF(AND($J20>1,$J20<5), IF($J20=4, "Inconnu", E20+F20), 0),"Non requis") -> 0 | O20: =IF(INTRO!$E$44="Endémique", IF(AND($K20>0,$K20<5), IF($K20=4,"Inconnu", IF($K20=1, $F20*0.33, IF($K20=2, $F20*0.5+$G20*0.2, SUM(F20:G20)))), 0),"Non requis") -> 0 | P20: 0 | Q20: 0 | R20: 1 | S20: 0 | U20: T3 (ALB/MBD) | Y20: 6386 | Z20: Cankuzo | AB20: ='MDA3'!I20 -> 0 | AC20: =T3_R1!L20 -> 54522 | AD20: =T3_R2!L20 -> 0 | AG20: 107034 | AI20: =_xlfn.XLOOKUP($Y20,[1]COUNTRY_INFO!$Y$9:$Y$57,[1]COUNTRY_INFO!J$9:J$57) -> 1 | AJ20: =_xlfn.XLOOKUP($Y20,[1]COUNTRY_INFO!$Y$9:$Y$57,[1]COUNTRY_INFO!K$9:K$57) -> 0 | AK20: TRUE | AL20: TRUE
A21: =IF(INTRO!$E$34<>0,INTRO!$E$34,"") -> Burundi | B21: Cankuzo | C21: Murore | D21: 171631 | E21: 19469 | F21: 49108 | G21: 95084 | H21: 0 | I21: 0 | J21: 1 | K21: 1 | L21: 0 | M21: 0 | N21: =IF(INTRO!$E$42="Endémique", IF(AND($J21>1,$J21<5), IF($J21=4, "Inconnu", E21+F21), 0),"Non requis") -> 0 | O21: =IF(INTRO!$E$44="Endémique", IF(AND($K21>0,$K21<5), IF($K21=4,"Inconnu", IF($K21=1, $F21*0.33, IF($K21=2, $F21*0.5+$G21*0.2, SUM(F21:G21)))), 0),"Non requis") -> 16205.64 | P21: 0 | Q21: 0 | R21: 1 | S21: 0 | U21: T3 (ALB/MBD) | W21: T2 | Y21: 6387 | Z21: Murore | AB21: ='MDA3'!I21 -> 0 | AC21: =T3_R1!L21 -> 53153 | AD21: =T3_R2!L21 -> 0 | AG21: 95084 | AI21: =_xlfn.XLOOKUP($Y21,[1]COUNTRY_INFO!$Y$9:$Y$57,[1]COUNTRY_INFO!J$9:J$57) -> 1 | AJ21: =_xlfn.XLOOKUP($Y21,[1]COUNTRY_INFO!$Y$9:$Y$57,[1]COUNTRY_INFO!K$9:K$57) -> 1 | AK21: TRUE | AL21: TRUE
A22: =IF(INTRO!$E$34<>0,INTRO!$E$34,"") -> Burundi | B22: Cibitoke | C22: Bukinanyana | D22: 251835 | E22: 30912 | F22: 70387 | G22: 139517 | H22: 0 | I22: 1 | J22: 1 | K22: 1 | L22: 0 | M22: 238543 | N22: =IF(INTRO!$E$42="Endémique", IF(AND($J22>1,$J22<5), IF($J22=4, "Inconnu", E22+F22), 0),"Non requis") -> 0 | O22: =IF(INTRO!$E$44="Endémique", IF(AND($K22>0,$K22<5), IF($K22=4,"Inconnu", IF($K22=1, $F22*0.33, IF($K22=2, $F22*0.5+$G22*0.2, SUM(F22:G22)))), 0),"Non requis") -> 23227.71 | P22: 0 | Q22: 1 | R22: 1 | S22: 0 | T22: MDA3 (IVM) | U22: T3 (ALB/MBD) | V22: MDA 3 | W22: T2 | Y22: 6421 | Z22: Bukinanyana | AB22: ='MDA3'!I22 -> 53591.439 | AC22: =T3_R1!L22 -> 78388 | AD22: =T3_R2!L22 -> 0 | AG22: 139517 | AI22: =_xlfn.XLOOKUP($Y22,[1]COUNTRY_INFO!$Y$9:$Y$57,[1]COUNTRY_INFO!J$9:J$57) -> 1 | AJ22: =_xlfn.XLOOKUP($Y22,[1]COUNTRY_INFO!$Y$9:$Y$57,[1]COUNTRY_INFO!K$9:K$57) -> 1 | AK22: TRUE | AL22: TRUE
A23: =IF(INTRO!$E$34<>0,INTRO!$E$34,"") -> Burundi | B23: Cibitoke | C23: Cibitoke | D23: 235332 | E23: 28257 | F23: 59048 | G23: 130374 | H23: 0 | I23: 1 | J23: 1 | K23: 2 | L23: 0 | M23: 264125 | N23: =IF(INTRO!$E$42="Endémique", IF(AND($J23>1,$J23<5), IF($J23=4, "Inconnu", E23+F23), 0),"Non requis") -> 0 | O23: =IF(INTRO!$E$44="Endémique", IF(AND($K23>0,$K23<5), IF($K23=4,"Inconnu", IF($K23=1, $F23*0.33, IF($K23=2, $F23*0.5+$G23*0.2, SUM(F23:G23)))), 0),"Non requis") -> 55598.8 | P23: 0 | Q23: 1 | R23: 1 | S23: 0 | T23: MDA3 (IVM) | U23: T3 (ALB/MBD) | V23: MDA 3 | W23: T2 | Y23: 6422 | Z23: Cibitoke | AB23: ='MDA3'!I23 -> 63059.526 | AC23: =T3_R1!L23 -> 59048 | AD23: =T3_R2!L23 -> 0 | AG23: 130374 | AI23: =_xlfn.XLOOKUP($Y23,[1]COUNTRY_INFO!$Y$9:$Y$57,[1]COUNTRY_INFO!J$9:J$57) -> 1 | AJ23: =_xlfn.XLOOKUP($Y23,[1]COUNTRY_INFO!$Y$9:$Y$57,[1]COUNTRY_INFO!K$9:K$57) -> 2 | AK23: TRUE | AL23: TRUE
A24: =IF(INTRO!$E$34<>0,INTRO!$E$34,"") -> Burundi | B24: Cibitoke | C24: Mabayi | D24: 246787 | E24: 29707 | F24: 68977 | G24: 136720 | H24: 0 | I24: 1 | J24: 1 | K24: 1 | L24: 0 | M24: 232899 | N24: =IF(INTRO!$E$42="Endémique", IF(AND($J24>1,$J24<5), IF($J24=4, "Inconnu", E24+F24), 0),"Non requis") -> 0 | O24: =IF(INTRO!$E$44="Endémique", IF(AND($K24>0,$K24<5), IF($K24=4,"Inconnu", IF($K24=1, $F24*0.33, IF($K24=2, $F24*0.5+$G24*0.2, SUM(F24:G24)))), 0),"Non requis") -> 22762.41 | P24: 0 | Q24: 1 | R24: 1 | S24: 0 | T24: MDA3 (IVM) | U24: T3 (ALB/MBD) | V24: MDA 3 | W24: T2 | Y24: 6423 | Z24: Mabayi | AB24: ='MDA3'!I24 -> 52777.89 | AC24: =T3_R1!L24 -> 77803 | AD24: =T3_R2!L24 -> 0 | AG24: 136720 | AI24: =_xlfn.XLOOKUP($Y24,[1]COUNTRY_INFO!$Y$9:$Y$57,[1]COUNTRY_INFO!J$9:J$57) -> 1 | AJ24: =_xlfn.XLOOKUP($Y24,[1]COUNTRY_INFO!$Y$9:$Y$57,[1]COUNTRY_INFO!K$9:K$57) -> 1 | AK24: TRUE | AL24: TRUE
A25: =IF(INTRO!$E$34<>0,INTRO!$E$34,"") -> Burundi | B25: Gitega | C25: Gitega | D25: 363477 | E25: 34062 | F25: 87135 | G25: 201366 | H25: 0 | I25: 0 | J25: 1 | K25: 0 | L25: 0 | M25: 0 | N25: =IF(INTRO!$E$42="Endémique", IF(AND($J25>1,$J25<5), IF($J25=4, "Inconnu", E25+F25), 0),"Non requis") -> 0 | O25: =IF(INTRO!$E$44="Endémique", IF(AND($K25>0,$K25<5), IF($K25=4,"Inconnu", IF($K25=1, $F25*0.33, IF($K25=2, $F25*0.5+$G25*0.2, SUM(F25:G25)))), 0),"Non requis") -> 0 | P25: 0 | Q25: 0 | R25: 1 | S25: 0 | U25: T3 (ALB/MBD) | Y25: 6390 | Z25: Gitega | AB25: ='MDA3'!I25 -> 0 | AC25: =T3_R1!L25 -> 87135 | AD25: =T3_R2!L25 -> 0 | AG25: 201366 | AI25: =_xlfn.XLOOKUP($Y25,[1]COUNTRY_INFO!$Y$9:$Y$57,[1]COUNTRY_INFO!J$9:J$57) -> 1 | AJ25: =_xlfn.XLOOKUP($Y25,[1]COUNTRY_INFO!$Y$9:$Y$57,[1]COUNTRY_INFO!K$9:K$57) -> 0 | AK25: TRUE | AL25: TRUE
A26: =IF(INTRO!$E$34<>0,INTRO!$E$34,"") -> Burundi | B26: Gitega | C26: Kibuye | D26: 304134 | E26: 29340 | F26: 78880 | G26: 168490 | H26: 0 | I26: 0 | J26: 1 | K26: 0 | L26: 0 | M26: 0 | N26: =IF(INTRO!$E$42="Endémique", IF(AND($J26>1,$J26<5), IF($J26=4, "Inconnu", E26+F26), 0),"Non requis") -> 0 | O26: =IF(INTRO!$E$44="Endémique", IF(AND($K26>0,$K26<5), IF($K26=4,"Inconnu", IF($K26=1, $F26*0.33, IF($K26=2, $F26*0.5+$G26*0.2, SUM(F26:G26)))), 0),"Non requis") -> 0 | P26: 0 | Q26: 0 | R26: 1 | S26: 0 | U26: T3 (ALB/MBD) | Y26: 6391 | Z26: Kibuye | AB26: ='MDA3'!I26 -> 0 | AC26: =T3_R1!L26 -> 91189 | AD26: =T3_R2!L26 -> 0 | AG26: 168490 | AI26: =_xlfn.XLOOKUP($Y26,[1]COUNTRY_INFO!$Y$9:$Y$57,[1]COUNTRY_INFO!J$9:J$57) -> 1 | AJ26: =_xlfn.XLOOKUP($Y26,[1]COUNTRY_INFO!$Y$9:$Y$57,[1]COUNTRY_INFO!K$9:K$57) -> 0 | AK26: TRUE | AL26: TRUE
A27: =IF(INTRO!$E$34<>0,INTRO!$E$34,"") -> Burundi | B27: Gitega | C27: Mutaho | D27: 276951 | E27: 26775 | F27: 69354 | G27: 153431 | H27: 0 | I27: 0 | J27: 1 | K27: 0 | L27: 0 | M27: 0 | N27: =IF(INTRO!$E$42="Endémique", IF(AND($J27>1,$J27<5), IF($J27=4, "Inconnu", E27+F27), 0),"Non requis") -> 0 | O27: =IF(INTRO!$E$44="Endémique", IF(AND($K27>0,$K27<5), IF($K27=4,"Inconnu", IF($K27=1, $F27*0.33, IF($K27=2, $F27*0.5+$G27*0.2, SUM(F27:G27)))), 0),"Non requis") -> 0 | P27: 0 | Q27: 0 | R27: 1 | S27: 0 | U27: T3 (ALB/MBD) | Y27: 6392 | Z27: Mutaho | AB27: ='MDA3'!I27 -> 0 | AC27: =T3_R1!L27 -> 69354 | AD27: =T3_R2!L27 -> 0 | AG27: 153431 | AI27: =_xlfn.XLOOKUP($Y27,[1]COUNTRY_INFO!$Y$9:$Y$57,[1]COUNTRY_INFO!J$9:J$57) -> 1 | AJ27: =_xlfn.XLOOKUP($Y27,[1]COUNTRY_INFO!$Y$9:$Y$57,[1]COUNTRY_INFO!K$9:K$57) -> 0 | AK27: TRUE | AL27: TRUE
A28: =IF(INTRO!$E$34<>0,INTRO!$E$34,"") -> Burundi | B28: Gitega | C28: Ryansoro | D28: 211476 | E28: 19511 | F28: 57059 | G28: 117158 | H28: 0 | I28: 0 | J28: 1 | K28: 0 | L28: 0 | M28: 0 | N28: =IF(INTRO!$E$42="Endémique", IF(AND($J28>1,$J28<5), IF($J28=4, "Inconnu", E28+F28), 0),"Non requis") -> 0 | O28: =IF(INTRO!$E$44="Endémique", IF(AND($K28>0,$K28<5), IF($K28=4,"Inconnu", IF($K28=1, $F28*0.33, IF($K28=2, $F28*0.5+$G28*0.2, SUM(F28:G28)))), 0),"Non requis") -> 0 | P28: 0 | Q28: 0 | R28: 1 | S28: 0 | U28: T3 (ALB/MBD) | Y28: 6393 | Z28: Ryansoro | AB28: ='MDA3'!I28 -> 0 | AC28: =T3_R1!L28 -> 58983 | AD28: =T3_R2!L28 -> 0 | AG28: 117158 | AI28: =_xlfn.XLOOKUP($Y28,[1]COUNTRY_INFO!$Y$9:$Y$57,[1]COUNTRY_INFO!J$9:J$57) -> 1 | AJ28: =_xlfn.XLOOKUP($Y28,[1]COUNTRY_INFO!$Y$9:$Y$57,[1]COUNTRY_INFO!K$9:K$57) -> 0 | AK28: TRUE | AL28: TRUE
A29: =IF(INTRO!$E$34<>0,INTRO!$E$34,"") -> Burundi | B29: Karusi | C29: Buhiga | D29: 369073 | E29: 40901 | F29: 103751 | G29: 204466 | H29: 0 | I29: 0 | J29: 1 | K29: 0 | L29: 0 | M29: 0 | N29: =IF(INTRO!$E$42="Endémique", IF(AND($J29>1,$J29<5), IF($J29=4, "Inconnu", E29+F29), 0),"Non requis") -> 0 | O29: =IF(INTRO!$E$44="Endémique", IF(AND($K29>0,$K29<5), IF($K29=4,"Inconnu", IF($K29=1, $F29*0.33, IF($K29=2, $F29*0.5+$G29*0.2, SUM(F29:G29)))), 0),"Non requis") -> 0 | P29: 0 | Q29: 0 | R29: 1 | S29: 0 | U29: T3 (ALB/MBD) | Y29: 6394 | Z29: Buhiga | AB29: ='MDA3'!I29 -> 0 | AC29: =T3_R1!L29 -> 37005 | AD29: =T3_R2!L29 -> 0 | AG29: 204466 | AI29: =_xlfn.XLOOKUP($Y29,[1]COUNTRY_INFO!$Y$9:$Y$57,[1]COUNTRY_INFO!J$9:J$57) -> 1 | AJ29: =_xlfn.XLOOKUP($Y29,[1]COUNTRY_INFO!$Y$9:$Y$57,[1]COUNTRY_INFO!K$9:K$57) -> 0 | AK29: TRUE | AL29: TRUE
A30: =IF(INTRO!$E$34<>0,INTRO!$E$34,"") -> Burundi | B30: Karusi | C30: Nyabikere | D30: 326637 | E30: 36570 | F30: 91548 | G30: 180957 | H30: 0 | I30: 0 | J30: 1 | K30: 0 | L30: 0 | M30: 0 | N30: =IF(INTRO!$E$42="Endémique", IF(AND($J30>1,$J30<5), IF($J30=4, "Inconnu", E30+F30), 0),"Non requis") -> 0 | O30: =IF(INTRO!$E$44="Endémique", IF(AND($K30>0,$K30<5), IF($K30=4,"Inconnu", IF($K30=1, $F30*0.33, IF($K30=2, $F30*0.5+$G30*0.2, SUM(F30:G30)))), 0),"Non requis") -> 0 | P30: 0 | Q30: 0 | R30: 1 | S30: 0 | U30: T3 (ALB/MBD) | Y30: 6395 | Z30: Nyabikere | AB30: ='MDA3'!I30 -> 0 | AC30: =T3_R1!L30 -> 24561 | AD30: =T3_R2!L30 -> 0 | AG30: 180957 | AI30: =_xlfn.XLOOKUP($Y30,[1]COUNTRY_INFO!$Y$9:$Y$57,[1]COUNTRY_INFO!J$9:J$57) -> 1 | AJ30: =_xlfn.XLOOKUP($Y30,[1]COUNTRY_INFO!$Y$9:$Y$57,[1]COUNTRY_INFO!K$9:K$57) -> 0 | AK30: TRUE | AL30: TRUE
A31: =IF(INTRO!$E$34<>0,INTRO!$E$34,"") -> Burundi | B31: Kayanza | C31: Gahombo | D31: 268158 | E31: 26012 | F31: 75059 | G31: 148560 | H31: 0 | I31: 0 | J31: 2 | K31: 0 | L31: 0 | M31: 0 | N31: =IF(INTRO!$E$42="Endémique", IF(AND($J31>1,$J31<5), IF($J31=4, "Inconnu", E31+F31), 0),"Non requis") -> 101071 | O31: =IF(INTRO!$E$44="Endémique", IF(AND($K31>0,$K31<5), IF($K31=4,"Inconnu", IF($K31=1, $F31*0.33, IF($K31=2, $F31*0.5+$G31*0.2, SUM(F31:G31)))), 0),"Non requis") -> 0 | P31: 0 | Q31: 0 | R31: 1 | S31: 0 | U31: T3 (ALB/MBD) | W31: T3 | Y31: 6396 | Z31: Gahombo | AB31: ='MDA3'!I31 -> 0 | AC31: =T3_R1!L31 -> 69452 | AD31: =T3_R2!L31 -> 0 | AG31: 148560 | AI31: =_xlfn.XLOOKUP($Y31,[1]COUNTRY_INFO!$Y$9:$Y$57,[1]COUNTRY_INFO!J$9:J$57) -> 2 | AJ31: =_xlfn.XLOOKUP($Y31,[1]COUNTRY_INFO!$Y$9:$Y$57,[1]COUNTRY_INFO!K$9:K$57) -> 0 | AK31: TRUE | AL31: TRUE
A32: =IF(INTRO!$E$34<>0,INTRO!$E$34,"") -> Burundi | B32: Kayanza | C32: Kayanza | D32: 346614 | E32: 37748 | F32: 95870 | G32: 192024 | H32: 0 | I32: 0 | J32: 3 | K32: 0 | L32: 0 | M32: 0 | N32: =IF(INTRO!$E$42="Endémique", IF(AND($J32>1,$J32<5), IF($J32=4, "Inconnu", E32+F32), 0),"Non requis") -> 133618 | O32: =IF(INTRO!$E$44="Endémique", IF(AND($K32>0,$K32<5), IF($K32=4,"Inconnu", IF($K32=1, $F32*0.33, IF($K32=2, $F32*0.5+$G32*0.2, SUM(F32:G32)))), 0),"Non requis") -> 0 | P32: 0 | Q32: 0 | R32: 1 | S32: 0 | U32: T3 (ALB/MBD) | V32: T3 | W32: T3 | Y32: 6397 | Z32: Kayanza | AB32: ='MDA3'!I32 -> 0 | AC32: =T3_R1!L32 -> 100757 | AD32: =T3_R2!L32 -> 0 | AG32: 192024 | AI32: =_xlfn.XLOOKUP($Y32,[1]COUNTRY_INFO!$Y$9:$Y$57,[1]COUNTRY_INFO!J$9:J$57) -> 3 | AJ32: =_xlfn.XLOOKUP($Y32,[1]COUNTRY_INFO!$Y$9:$Y$57,[1]COUNTRY_INFO!K$9:K$57) -> 0 | AK32: TRUE | AL32: TRUE
A33: =IF(INTRO!$E$34<>0,INTRO!$E$34,"") -> Burundi | B33: Kayanza | C33: Musema | D33: 318400 | E33: 31673 | F33: 82467 | G33: 176394 | H33: 0 | I33: 0 | J33: 2 | K33: 0 | L33: 0 | M33: 0 | N33: =IF(INTRO!$E$42="Endémique", IF(AND($J33>1,$J33<5), IF($J33=4, "Inconnu", E33+F33), 0),"Non requis") -> 114140 | O33: =IF(INTRO!$E$44="Endémique", IF(AND($K33>0,$K33<5), IF($K33=4,"Inconnu", IF($K33=1, $F33*0.33, IF($K33=2, $F33*0.5+$G33*0.2, SUM(F33:G33)))), 0),"Non requis") -> 0 | P33: 0 | Q33: 0 | R33: 1 | S33: 0 | U33: T3 (ALB/MBD) | W33: T3 | Y33: 6398 | Z33: Musema | AB33: ='MDA3'!I33 -> 0 | AC33: =T3_R1!L33 -> 93552 | AD33: =T3_R2!L33 -> 0 | AG33: 176394 | AI33: =_xlfn.XLOOKUP($Y33,[1]COUNTRY_INFO!$Y$9:$Y$57,[1]COUNTRY_INFO!J$9:J$57) -> 2 | AJ33: =_xlfn.XLOOKUP($Y33,[1]COUNTRY_INFO!$Y$9:$Y$57,[1]COUNTRY_INFO!K$9:K$57) -> 0 | AK33: TRUE | AL33: TRUE
A34: =IF(INTRO!$E$34<>0,INTRO!$E$34,"") -> Burundi | B34: Kirundo | C34: Busoni | D34: 231812 | E34: 26489 | F34: 64516 | G34: 128424 | H34: 0 | I34: 0 | J34: 1 | K34: 1 | L34: 0 | M34: 0 | N34: =IF(INTRO!$E$42="Endémique", IF(AND($J34>1,$J34<5), IF($J34=4, "Inconnu", E34+F34), 0),"Non requis") -> 0 | O34: =IF(INTRO!$E$44="Endémique", IF(AND($K34>0,$K34<5), IF($K34=4,"Inconnu", IF($K34=1, $F34*0.33, IF($K34=2, $F34*0.5+$G34*0.2, SUM(F34:G34)))), 0),"Non requis") -> 21290.28 | P34: 0 | Q34: 0 | R34: 1 | S34: 0 | U34: T3 (ALB/MBD) | W34: T2 | Y34: 6399 | Z34: Busoni | AB34: ='MDA3'!I34 -> 0 | AC34: =T3_R1!L34 -> 7803 | AD34: =T3_R2!L34 -> 0 | AG34: 128424 | AI34: =_xlfn.XLOOKUP($Y34,[1]COUNTRY_INFO!$Y$9:$Y$57,[1]COUNTRY_INFO!J$9:J$57) -> 1 | AJ34: =_xlfn.XLOOKUP($Y34,[1]COUNTRY_INFO!$Y$9:$Y$57,[1]COUNTRY_INFO!K$9:K$57) -> 1 | AK34: TRUE | AL34: TRUE
A35: =IF(INTRO!$E$34<>0,INTRO!$E$34,"") -> Burundi | B35: Kirundo | C35: Kirundo | D35: 290704 | E35: 31950 | F35: 79139 | G35: 161050 | H35: 0 | I35: 0 | J35: 1 | K35: 1 | L35: 0 | M35: 0 | N35: =IF(INTRO!$E$42="Endémique", IF(AND($J35>1,$J35<5), IF($J35=4, "Inconnu", E35+F35), 0),"Non requis") -> 0 | O35: =IF(INTRO!$E$44="Endémique", IF(AND($K35>0,$K35<5), IF($K35=4,"Inconnu", IF($K35=1, $F35*0.33, IF($K35=2, $F35*0.5+$G35*0.2, SUM(F35:G35)))), 0),"Non requis") -> 26115.87 | P35: 0 | Q35: 0 | R35: 1 | S35: 0 | U35: T3 (ALB/MBD) | W35: T2 | Y35: 6400 | Z35: Kirundo | AB35: ='MDA3'!I35 -> 0 | AC35: =T3_R1!L35 -> 63802 | AD35: =T3_R2!L35 -> 0 | AG35: 161050 | AI35: =_xlfn.XLOOKUP($Y35,[1]COUNTRY_INFO!$Y$9:$Y$57,[1]COUNTRY_INFO!J$9:J$57) -> 1 | AJ35: =_xlfn.XLOOKUP($Y35,[1]COUNTRY_INFO!$Y$9:$Y$57,[1]COUNTRY_INFO!K$9:K$57) -> 1 | AK35: TRUE | AL35: TRUE
A36: =IF(INTRO!$E$34<>0,INTRO!$E$34,"") -> Burundi | B36: Kirundo | C36: Mukenke | D36: 197888 | E36: 23217 | F36: 51437 | G36: 109630 | H36: 0 | I36: 0 | J36: 1 | K36: 1 | L36: 0 | M36: 0 | N36: =IF(INTRO!$E$42="Endémique", IF(AND($J36>1,$J36<5), IF($J36=4, "Inconnu", E36+F36), 0),"Non requis") -> 0 | O36: =IF(INTRO!$E$44="Endémique", IF(AND($K36>0,$K36<5), IF($K36=4,"Inconnu", IF($K36=1, $F36*0.33, IF($K36=2, $F36*0.5+$G36*0.2, SUM(F36:G36)))), 0),"Non requis") -> 16974.21 | P36: 0 | Q36: 0 | R36: 1 | S36: 0 | U36: T3 (ALB/MBD) | W36: T2 | Y36: 6401 | Z36: Mukenke | AB36: ='MDA3'!I36 -> 0 | AC36: =T3_R1!L36 -> 9493 | AD36: =T3_R2!L36 -> 0 | AG36: 109630 | AI36: =_xlfn.XLOOKUP($Y36,[1]COUNTRY_INFO!$Y$9:$Y$57,[1]COUNTRY_INFO!J$9:J$57) -> 1 | AJ36: =_xlfn.XLOOKUP($Y36,[1]COUNTRY_INFO!$Y$9:$Y$57,[1]COUNTRY_INFO!K$9:K$57) -> 1 | AK36: TRUE | AL36: TRUE
A37: =IF(INTRO!$E$34<>0,INTRO!$E$34,"") -> Burundi | B37: Kirundo | C37: Vumbi | D37: 281063 | E37: 31159 | F37: 72945 | G37: 155709 | H37: 0 | I37: 0 | J37: 1 | K37: 1 | L37: 0 | M37: 0 | N37: =IF(INTRO!$E$42="Endémique", IF(AND($J37>1,$J37<5), IF($J37=4, "Inconnu", E37+F37), 0),"Non requis") -> 0 | O37: =IF(INTRO!$E$44="Endémique", IF(AND($K37>0,$K37<5), IF($K37=4,"Inconnu", IF($K37=1, $F37*0.33, IF($K37=2, $F37*0.5+$G37*0.2, SUM(F37:G37)))), 0),"Non requis") -> 24071.85 | P37: 0 | Q37: 0 | R37: 1 | S37: 0 | U37: T3 (ALB/MBD) | W37: T2 | Y37: 6402 | Z37: Vumbi | AB37: ='MDA3'!I37 -> 0 | AC37: =T3_R1!L37 -> 21279 | AD37: =T3_R2!L37 -> 0 | AG37: 155709 | AI37: =_xlfn.XLOOKUP($Y37,[1]COUNTRY_INFO!$Y$9:$Y$57,[1]COUNTRY_INFO!J$9:J$57) -> 1 | AJ37: =_xlfn.XLOOKUP($Y37,[1]COUNTRY_INFO!$Y$9:$Y$57,[1]COUNTRY_INFO!K$9:K$57) -> 1 | AK37: TRUE | AL37: TRUE
A38: =IF(INTRO!$E$34<>0,INTRO!$E$34,"") -> Burundi | B38: Makamba | C38: Makamba | D38: 361989 | E38: 41017 | F38: 103492 | G38: 200542 | H38: 0 | I38: 1 | J38: 1 | K38: 1 | L38: 0 | M38: 65729 | N38: =IF(INTRO!$E$42="Endémique", IF(AND($J38>1,$J38<5), IF($J38=4, "Inconnu", E38+F38), 0),"Non requis") -> 0 | O38: =IF(INTRO!$E$44="Endémique", IF(AND($K38>0,$K38<5), IF($K38=4,"Inconnu", IF($K38=1, $F38*0.33, IF($K38=2, $F38*0.5+$G38*0.2, SUM(F38:G38)))), 0),"Non requis") -> 34152.36 | P38: 0 | Q38: 1 | R38: 1 | S38: 0 | T38: MDA3 (IVM) | U38: T3 (ALB/MBD) | V38: MDA 3 | W38: T2 | Y38: 6403 | Z38: Makamba | AB38: ='MDA3'!I38 -> 15219.267 | AC38: =T3_R1!L38 -> 112672 | AD38: =T3_R2!L38 -> 0 | AG38: 200542 | AI38: =_xlfn.XLOOKUP($Y38,[1]COUNTRY_INFO!$Y$9:$Y$57,[1]COUNTRY_INFO!J$9:J$57) -> 1 | AJ38: =_xlfn.XLOOKUP($Y38,[1]COUNTRY_INFO!$Y$9:$Y$57,[1]COUNTRY_INFO!K$9:K$57) -> 1 | AK38: TRUE | AL38: TRUE
A39: =IF(INTRO!$E$34<>0,INTRO!$E$34,"") -> Burundi | B39: Makamba | C39: Nyanza-Lac | D39: 324884 | E39: 36774 | F39: 91270 | G39: 179986 | H39: 0 | I39: 0 | J39: 1 | K39: 2 | L39: 0 | M39: 0 | N39: =IF(INTRO!$E$42="Endémique", IF(AND($J39>1,$J39<5), IF($J39=4, "Inconnu", E39+F39), 0),"Non requis") -> 0 | O39: =IF(INTRO!$E$44="Endémique", IF(AND($K39>0,$K39<5), IF($K39=4,"Inconnu", IF($K39=1, $F39*0.33, IF($K39=2, $F39*0.5+$G39*0.2, SUM(F39:G39)))), 0),"Non requis") -> 81632.2 | P39: 0 | Q39: 0 | R39: 1 | S39: 0 | U39: T3 (ALB/MBD) | W39: T2 | Y39: 6404 | Z39: Nyanza Lac | AB39: ='MDA3'!I39 -> 0 | AC39: =T3_R1!L39 -> 91270 | AD39: =T3_R2!L39 -> 0 | AG39: 179986 | AI39: =_xlfn.XLOOKUP($Y39,[1]COUNTRY_INFO!$Y$9:$Y$57,[1]COUNTRY_INFO!J$9:J$57) -> 1 | AJ39: =_xlfn.XLOOKUP($Y39,[1]COUNTRY_INFO!$Y$9:$Y$57,[1]COUNTRY_INFO!K$9:K$57) -> 2 | AK39: TRUE | AL39: TRUE
A40: =IF(INTRO!$E$34<>0,INTRO!$E$34,"") -> Burundi | B40: Muramvya | C40: Kiganda | D40: 231522 | E40: 22393 | F40: 60957 | G40: 128263 | H40: 0 | I40: 0 | J40: 2 | K40: 0 | L40: 0 | M40: 0 | N40: =IF(INTRO!$E$42="Endémique", IF(AND($J40>1,$J40<5), IF($J40=4, "Inconnu", E40+F40), 0),"Non requis") -> 83350 | O40: =IF(INTRO!$E$44="Endémique", IF(AND($K40>0,$K40<5), IF($K40=4,"Inconnu", IF($K40=1, $F40*0.33, IF($K40=2, $F40*0.5+$G40*0.2, SUM(F40:G40)))), 0),"Non requis") -> 0 | P40: 0 | Q40: 0 | R40: 1 | S40: 0 | U40: T3 (ALB/MBD) | W40: T3 | Y40: 6405 | Z40: Kiganda | AB40: ='MDA3'!I40 -> 0 | AC40: =T3_R1!L40 -> 69284 | AD40: =T3_R2!L40 -> 0 | AG40: 128263 | AI40: =_xlfn.XLOOKUP($Y40,[1]COUNTRY_INFO!$Y$9:$Y$57,[1]COUNTRY_INFO!J$9:J$57) -> 2 | AJ40: =_xlfn.XLOOKUP($Y40,[1]COUNTRY_INFO!$Y$9:$Y$57,[1]COUNTRY_INFO!K$9:K$57) -> 0 | AK40: TRUE | AL40: TRUE
A41: =IF(INTRO!$E$34<>0,INTRO!$E$34,"") -> Burundi | B41: Muramvya | C41: Muramvya | D41: 234877 | E41: 23510 | F41: 60125 | G41: 130122 | H41: 0 | I41: 0 | J41: 1 | K41: 0 | L41: 0 | M41: 0 | N41: =IF(INTRO!$E$42="Endémique", IF(AND($J41>1,$J41<5), IF($J41=4, "Inconnu", E41+F41), 0),"Non requis") -> 0 | O41: =IF(INTRO!$E$44="Endémique", IF(AND($K41>0,$K41<5), IF($K41=4,"Inconnu", IF($K41=1, $F41*0.33, IF($K41=2, $F41*0.5+$G41*0.2, SUM(F41:G41)))), 0),"Non requis") -> 0 | P41: 0 | Q41: 0 | R41: 1 | S41: 0 | U41: T3 (ALB/MBD) | Y41: 6406 | Z41: Muramvya | AB41: ='MDA3'!I41 -> 0 | AC41: =T3_R1!L41 -> 60125 | AD41: =T3_R2!L41 -> 0 | AG41: 130122 | AI41: =_xlfn.XLOOKUP($Y41,[1]COUNTRY_INFO!$Y$9:$Y$57,[1]COUNTRY_INFO!J$9:J$57) -> 1 | AJ41: =_xlfn.XLOOKUP($Y41,[1]COUNTRY_INFO!$Y$9:$Y$57,[1]COUNTRY_INFO!K$9:K$57) -> 0 | AK41: TRUE | AL41: TRUE
A42: =IF(INTRO!$E$34<>0,INTRO!$E$34,"") -> Burundi | B42: Muyinga | C42: Gashoho | D42: 236085 | E42: 26472 | F42: 63333 | G42: 130791 | H42: 0 | I42: 0 | J42: 2 | K42: 0 | L42: 0 | M42: 0 | N42: =IF(INTRO!$E$42="Endémique", IF(AND($J42>1,$J42<5), IF($J42=4, "Inconnu", E42+F42), 0),"Non requis") -> 89805 | O42: =IF(INTRO!$E$44="Endémique", IF(AND($K42>0,$K42<5), IF($K42=4,"Inconnu", IF($K42=1, $F42*0.33, IF($K42=2, $F42*0.5+$G42*0.2, SUM(F42:G42)))), 0),"Non requis") -> 0 | P42: 0 | Q42: 0 | R42: 1 | S42: 0 | U42: T3 (ALB/MBD) | W42: T3 | Y42: 6407 | Z42: Gashoho | AB42: ='MDA3'!I42 -> 0 | AC42: =T3_R1!L42 -> 63333 | AD42: =T3_R2!L42 -> 0 | AG42: 130791 | AI42: =_xlfn.XLOOKUP($Y42,[1]COUNTRY_INFO!$Y$9:$Y$57,[1]COUNTRY_INFO!J$9:J$57) -> 2 | AJ42: =_xlfn.XLOOKUP($Y42,[1]COUNTRY_INFO!$Y$9:$Y$57,[1]COUNTRY_INFO!K$9:K$57) -> 0 | AK42: TRUE | AL42: TRUE
A43: =IF(INTRO!$E$34<>0,INTRO!$E$34,"") -> Burundi | B43: Muyinga | C43: Giteranyi | D43: 395514 | E43: 47030 | F43: 109797 | G43: 219115 | H43: 0 | I43: 0 | J43: 1 | K43: 0 | L43: 0 | M43: 0 | N43: =IF(INTRO!$E$42="Endémique", IF(AND($J43>1,$J43<5), IF($J43=4, "Inconnu", E43+F43), 0),"Non requis") -> 0 | O43: =IF(INTRO!$E$44="Endémique", IF(AND($K43>0,$K43<5), IF($K43=4,"Inconnu", IF($K43=1, $F43*0.33, IF($K43=2, $F43*0.5+$G43*0.2, SUM(F43:G43)))), 0),"Non requis") -> 0 | P43: 0 | Q43: 0 | R43: 1 | S43: 0 | U43: T3 (ALB/MBD) | Y43: 6408 | Z43: Giteranyi | AB43: ='MDA3'!I43 -> 0 | AC43: =T3_R1!L43 -> 115015 | AD43: =T3_R2!L43 -> 0 | AG43: 219115 | AI43: =_xlfn.XLOOKUP($Y43,[1]COUNTRY_INFO!$Y$9:$Y$57,[1]COUNTRY_INFO!J$9:J$57) -> 1 | AJ43: =_xlfn.XLOOKUP($Y43,[1]COUNTRY_INFO!$Y$9:$Y$57,[1]COUNTRY_INFO!K$9:K$57) -> 0 | AK43: TRUE | AL43: TRUE
A44: =IF(INTRO!$E$34<>0,INTRO!$E$34,"") -> Burundi | B44: Muyinga | C44: Muyinga | D44: 376488 | E44: 45478 | F44: 101847 | G44: 208574 | H44: 0 | I44: 0 | J44: 1 | K44: 1 | L44: 0 | M44: 0 | N44: =IF(INTRO!$E$42="Endémique", IF(AND($J44>1,$J44<5), IF($J44=4, "Inconnu", E44+F44), 0),"Non requis") -> 0 | O44: =IF(INTRO!$E$44="Endémique", IF(AND($K44>0,$K44<5), IF($K44=4,"Inconnu", IF($K44=1, $F44*0.33, IF($K44=2, $F44*0.5+$G44*0.2, SUM(F44:G44)))), 0),"Non requis") -> 33609.51 | P44: 0 | Q44: 0 | R44: 1 | S44: 0 | U44: T3 (ALB/MBD) | W44: T2 | Y44: 6409 | Z44: Muyinga | AB44: ='MDA3'!I44 -> 0 | AC44: =T3_R1!L44 -> 115355 | AD44: =T3_R2!L44 -> 0 | AG44: 208574 | AI44: =_xlfn.XLOOKUP($Y44,[1]COUNTRY_INFO!$Y$9:$Y$57,[1]COUNTRY_INFO!J$9:J$57) -> 1 | AJ44: =_xlfn.XLOOKUP($Y44,[1]COUNTRY_INFO!$Y$9:$Y$57,[1]COUNTRY_INFO!K$9:K$57) -> 1 | AK44: TRUE | AL44: TRUE
A45: =IF(INTRO!$E$34<>0,INTRO!$E$34,"") -> Burundi | B45: Mwaro | C45: Fota | D45: 206476 | E45: 18739 | F45: 54207 | G45: 114388 | H45: 0 | I45: 0 | J45: 1 | K45: 0 | L45: 0 | M45: 0 | N45: =IF(INTRO!$E$42="Endémique", IF(AND($J45>1,$J45<5), IF($J45=4, "Inconnu", E45+F45), 0),"Non requis") -> 0 | O45: =IF(INTRO!$E$44="Endémique", IF(AND($K45>0,$K45<5), IF($K45=4,"Inconnu", IF($K45=1, $F45*0.33, IF($K45=2, $F45*0.5+$G45*0.2, SUM(F45:G45)))), 0),"Non requis") -> 0 | P45: 0 | Q45: 0 | R45: 1 | S45: 0 | U45: T3 (ALB/MBD) | Y45: 6410 | Z45: Fota | AB45: ='MDA3'!I45 -> 0 | AC45: =T3_R1!L45 -> 49108 | AD45: =T3_R2!L45 -> 0 | AG45: 114388 | AI45: =_xlfn.XLOOKUP($Y45,[1]COUNTRY_INFO!$Y$9:$Y$57,[1]COUNTRY_INFO!J$9:J$57) -> 1 | AJ45: =_xlfn.XLOOKUP($Y45,[1]COUNTRY_INFO!$Y$9:$Y$57,[1]COUNTRY_INFO!K$9:K$57) -> 0 | AK45: TRUE | AL45: TRUE
A46: =IF(INTRO!$E$34<>0,INTRO!$E$34,"") -> Burundi | B46: Mwaro | C46: Kibumbu | D46: 228925 | E46: 20794 | F46: 59664 | G46: 126824 | H46: 0 | I46: 0 | J46: 1 | K46: 0 | L46: 0 | M46: 0 | N46: =IF(INTRO!$E$42="Endémique", IF(AND($J46>1,$J46<5), IF($J46=4, "Inconnu", E46+F46), 0),"Non requis") -> 0 | O46: =IF(INTRO!$E$44="Endémique", IF(AND($K46>0,$K46<5), IF($K46=4,"Inconnu", IF($K46=1, $F46*0.33, IF($K46=2, $F46*0.5+$G46*0.2, SUM(F46:G46)))), 0),"Non requis") -> 0 | P46: 0 | Q46: 0 | R46: 1 | S46: 0 | U46: T3 (ALB/MBD) | Y46: 6411 | Z46: Kibumbu | AB46: ='MDA3'!I46 -> 0 | AC46: =T3_R1!L46 -> 61228 | AD46: =T3_R2!L46 -> 0 | AG46: 126824 | AI46: =_xlfn.XLOOKUP($Y46,[1]COUNTRY_INFO!$Y$9:$Y$57,[1]COUNTRY_INFO!J$9:J$57) -> 1 | AJ46: =_xlfn.XLOOKUP($Y46,[1]COUNTRY_INFO!$Y$9:$Y$57,[1]COUNTRY_INFO!K$9:K$57) -> 0 | AK46: TRUE | AL46: TRUE
A47: =IF(INTRO!$E$34<>0,INTRO!$E$34,"") -> Burundi | B47: Ngozi | C47: Buye | D47: 280348 | E47: 30862 | F47: 76124 | G47: 155313 | H47: 0 | I47: 0 | J47: 1 | K47: 0 | L47: 0 | M47: 0 | N47: =IF(INTRO!$E$42="Endémique", IF(AND($J47>1,$J47<5), IF($J47=4, "Inconnu", E47+F47), 0),"Non requis") -> 0 | O47: =IF(INTRO!$E$44="Endémique", IF(AND($K47>0,$K47<5), IF($K47=4,"Inconnu", IF($K47=1, $F47*0.33, IF($K47=2, $F47*0.5+$G47*0.2, SUM(F47:G47)))), 0),"Non requis") -> 0 | P47: 0 | Q47: 0 | R47: 1 | S47: 0 | U47: T3 (ALB/MBD) | Y47: 6412 | Z47: Buye | AB47: ='MDA3'!I47 -> 0 | AC47: =T3_R1!L47 -> 77501 | AD47: =T3_R2!L47 -> 0 | AG47: 155313 | AI47: =_xlfn.XLOOKUP($Y47,[1]COUNTRY_INFO!$Y$9:$Y$57,[1]COUNTRY_INFO!J$9:J$57) -> 1 | AJ47: =_xlfn.XLOOKUP($Y47,[1]COUNTRY_INFO!$Y$9:$Y$57,[1]COUNTRY_INFO!K$9:K$57) -> 0 | AK47: TRUE | AL47: TRUE
A48: =IF(INTRO!$E$34<>0,INTRO!$E$34,"") -> Burundi | B48: Ngozi | C48: Kiremba | D48: 377482 | E48: 41263 | F48: 101451 | G48: 209125 | H48: 0 | I48: 0 | J48: 1 | K48: 0 | L48: 0 | M48: 0 | N48: =IF(INTRO!$E$42="Endémique", IF(AND($J48>1,$J48<5), IF($J48=4, "Inconnu", E48+F48), 0),"Non requis") -> 0 | O48: =IF(INTRO!$E$44="Endémique", IF(AND($K48>0,$K48<5), IF($K48=4,"Inconnu", IF($K48=1, $F48*0.33, IF($K48=2, $F48*0.5+$G48*0.2, SUM(F48:G48)))), 0),"Non requis") -> 0 | P48: 0 | Q48: 0 | R48: 1 | S48: 0 | U48: T3 (ALB/MBD) | Y48: 6413 | Z48: Kiremba | AB48: ='MDA3'!I48 -> 0 | AC48: =T3_R1!L48 -> 112821 | AD48: =T3_R2!L48 -> 0 | AG48: 209125 | AI48: =_xlfn.XLOOKUP($Y48,[1]COUNTRY_INFO!$Y$9:$Y$57,[1]COUNTRY_INFO!J$9:J$57) -> 1 | AJ48: =_xlfn.XLOOKUP($Y48,[1]COUNTRY_INFO!$Y$9:$Y$57,[1]COUNTRY_INFO!K$9:K$57) -> 0 | AK48: TRUE | AL48: TRUE
A49: =IF(INTRO!$E$34<>0,INTRO!$E$34,"") -> Burundi | B49: Ngozi | C49: Ngozi | D49: 395382 | E49: 39731 | F49: 105248 | G49: 219042 | H49: 0 | I49: 0 | J49: 2 | K49: 0 | L49: 0 | M49: 0 | N49: =IF(INTRO!$E$42="Endémique", IF(AND($J49>1,$J49<5), IF($J49=4, "Inconnu", E49+F49), 0),"Non requis") -> 144979 | O49: =IF(INTRO!$E$44="Endémique", IF(AND($K49>0,$K49<5), IF($K49=4,"Inconnu", IF($K49=1, $F49*0.33, IF($K49=2, $F49*0.5+$G49*0.2, SUM(F49:G49)))), 0),"Non requis") -> 0 | P49: 0 | Q49: 0 | R49: 1 | S49: 0 | U49: T3 (ALB/MBD) | W49: T3 | Y49: 6414 | Z49: Ngozi | AB49: ='MDA3'!I49 -> 0 | AC49: =T3_R1!L49 -> 114530 | AD49: =T3_R2!L49 -> 0 | AG49: 219042 | AI49: =_xlfn.XLOOKUP($Y49,[1]COUNTRY_INFO!$Y$9:$Y$57,[1]COUNTRY_INFO!J$9:J$57) -> 2 | AJ49: =_xlfn.XLOOKUP($Y49,[1]COUNTRY_INFO!$Y$9:$Y$57,[1]COUNTRY_INFO!K$9:K$57) -> 0 | AK49: TRUE | AL49: TRUE
A50: =IF(INTRO!$E$34<>0,INTRO!$E$34,"") -> Burundi | B50: Rumonge | C50: Bugarama | D50: 236369 | E50: 27026 | F50: 64195 | G50: 130948 | H50: 0 | I50: 1 | J50: 1 | K50: 1 | L50: 0 | M50: 86171 | N50: =IF(INTRO!$E$42="Endémique", IF(AND($J50>1,$J50<5), IF($J50=4, "Inconnu", E50+F50), 0),"Non requis") -> 0 | O50: =IF(INTRO!$E$44="Endémique", IF(AND($K50>0,$K50<5), IF($K50=4,"Inconnu", IF($K50=1, $F50*0.33, IF($K50=2, $F50*0.5+$G50*0.2, SUM(F50:G50)))), 0),"Non requis") -> 21184.35 | P50: 0 | Q50: 1 | R50: 1 | S50: 0 | T50: MDA3 (IVM) | U50: T3 (ALB/MBD) | V50: MDA 3 | W50: T2 | Y50: 6420 | Z50: Bugarama | AB50: ='MDA3'!I50 -> 18678.519 | AC50: =T3_R1!L50 -> 64195 | AD50: =T3_R2!L50 -> 0 | AG50: 130948 | AI50: =_xlfn.XLOOKUP($Y50,[1]COUNTRY_INFO!$Y$9:$Y$57,[1]COUNTRY_INFO!J$9:J$57) -> 1 | AJ50: =_xlfn.XLOOKUP($Y50,[1]COUNTRY_INFO!$Y$9:$Y$57,[1]COUNTRY_INFO!K$9:K$57) -> 1 | AK50: TRUE | AL50: TRUE
A51: =IF(INTRO!$E$34<>0,INTRO!$E$34,"") -> Burundi | B51: Rumonge | C51: Rumonge | D51: 324777 | E51: 36253 | F51: 87634 | G51: 179926 | H51: 0 | I51: 1 | J51: 1 | K51: 1 | L51: 0 | M51: 338125 | N51: =IF(INTRO!$E$42="Endémique", IF(AND($J51>1,$J51<5), IF($J51=4, "Inconnu", E51+F51), 0),"Non requis") -> 0 | O51: =IF(INTRO!$E$44="Endémique", IF(AND($K51>0,$K51<5), IF($K51=4,"Inconnu", IF($K51=1, $F51*0.33, IF($K51=2, $F51*0.5+$G51*0.2, SUM(F51:G51)))), 0),"Non requis") -> 28919.22 | P51: 0 | Q51: 1 | R51: 1 | S51: 0 | T51: MDA3 (IVM) | U51: T3 (ALB/MBD) | V51: MDA 3 | W51: T2 | Y51: 6385 | Z51: Rumonge | AB51: ='MDA3'!I51 -> 71652.921 | AC51: =T3_R1!L51 -> 104201 | AD51: =T3_R2!L51 -> 0 | AG51: 179926 | AI51: =_xlfn.XLOOKUP($Y51,[1]COUNTRY_INFO!$Y$9:$Y$57,[1]COUNTRY_INFO!J$9:J$57) -> 1 | AJ51: =_xlfn.XLOOKUP($Y51,[1]COUNTRY_INFO!$Y$9:$Y$57,[1]COUNTRY_INFO!K$9:K$57) -> 1 | AK51: TRUE | AL51: TRUE
A52: =IF(INTRO!$E$34<>0,INTRO!$E$34,"") -> Burundi | B52: Rutana | C52: Gihofi | D52: 275073 | E52: 32794 | F52: 79832 | G52: 152390 | H52: 0 | I52: 1 | J52: 1 | K52: 1 | L52: 0 | M52: 300394 | N52: =IF(INTRO!$E$42="Endémique", IF(AND($J52>1,$J52<5), IF($J52=4, "Inconnu", E52+F52), 0),"Non requis") -> 0 | O52: =IF(INTRO!$E$44="Endémique", IF(AND($K52>0,$K52<5), IF($K52=4,"Inconnu", IF($K52=1, $F52*0.33, IF($K52=2, $F52*0.5+$G52*0.2, SUM(F52:G52)))), 0),"Non requis") -> 26344.56 | P52: 0 | Q52: 1 | R52: 1 | S52: 0 | T52: MDA3 (IVM) | U52: T3 (ALB/MBD) | V52: MDA 3 | W52: T2 | Y52: 6415 | Z52: Gihofi | AB52: ='MDA3'!I52 -> 69633.333 | AC52: =T3_R1!L52 -> 81432 | AD52: =T3_R2!L52 -> 0 | AG52: 152390 | AI52: =_xlfn.XLOOKUP($Y52,[1]COUNTRY_INFO!$Y$9:$Y$57,[1]COUNTRY_INFO!J$9:J$57) -> 1 | AJ52: =_xlfn.XLOOKUP($Y52,[1]COUNTRY_INFO!$Y$9:$Y$57,[1]COUNTRY_INFO!K$9:K$57) -> 1 | AK52: TRUE | AL52: TRUE
A53: =IF(INTRO!$E$34<>0,INTRO!$E$34,"") -> Burundi | B53: Rutana | C53: Rutana | D53: 256556 | E53: 25411 | F53: 71296 | G53: 142132 | H53: 0 | I53: 1 | J53: 1 | K53: 1 | L53: 0 | M53: 23907 | N53: =IF(INTRO!$E$42="Endémique", IF(AND($J53>1,$J53<5), IF($J53=4, "Inconnu", E53+F53), 0),"Non requis") -> 0 | O53: =IF(INTRO!$E$44="Endémique", IF(AND($K53>0,$K53<5), IF($K53=4,"Inconnu", IF($K53=1, $F53*0.33, IF($K53=2, $F53*0.5+$G53*0.2, SUM(F53:G53)))), 0),"Non requis") -> 23527.68 | P53: 0 | Q53: 1 | R53: 1 | S53: 0 | T53: MDA3 (IVM) | U53: T3 (ALB/MBD) | V53: MDA 3 | W53: T2 | Y53: 6416 | Z53: Rutana | AB53: ='MDA3'!I53 -> 4900.251 | AC53: =T3_R1!L53 -> 71246 | AD53: =T3_R2!L53 -> 0 | AG53: 142132 | AI53: =_xlfn.XLOOKUP($Y53,[1]COUNTRY_INFO!$Y$9:$Y$57,[1]COUNTRY_INFO!J$9:J$57) -> 1 | AJ53: =_xlfn.XLOOKUP($Y53,[1]COUNTRY_INFO!$Y$9:$Y$57,[1]COUNTRY_INFO!K$9:K$57) -> 1 | AK53: TRUE | AL53: TRUE
A54: =IF(INTRO!$E$34<>0,INTRO!$E$34,"") -> Burundi | B54: Ruyigi | C54: Butezi | D54: 163172 | E54: 17898 | F54: 45697 | G54: 90397 | H54: 0 | I54: 0 | J54: 1 | K54: 1 | L54: 0 | M54: 0 | N54: =IF(INTRO!$E$42="Endémique", IF(AND($J54>1,$J54<5), IF($J54=4, "Inconnu", E54+F54), 0),"Non requis") -> 0 | O54: =IF(INTRO!$E$44="Endémique", IF(AND($K54>0,$K54<5), IF($K54=4,"Inconnu", IF($K54=1, $F54*0.33, IF($K54=2, $F54*0.5+$G54*0.2, SUM(F54:G54)))), 0),"Non requis") -> 15080.01 | P54: 0 | Q54: 0 | R54: 1 | S54: 0 | U54: T3 (ALB/MBD) | W54: T2 | Y54: 6417 | Z54: Butezi | AB54: ='MDA3'!I54 -> 0 | AC54: =T3_R1!L54 -> 45691 | AD54: =T3_R2!L54 -> 0 | AG54: 90397 | AI54: =_xlfn.XLOOKUP($Y54,[1]COUNTRY_INFO!$Y$9:$Y$57,[1]COUNTRY_INFO!J$9:J$57) -> 1 | AJ54: =_xlfn.XLOOKUP($Y54,[1]COUNTRY_INFO!$Y$9:$Y$57,[1]COUNTRY_INFO!K$9:K$57) -> 1 | AK54: TRUE | AL54: TRUE
A55: =IF(INTRO!$E$34<>0,INTRO!$E$34,"") -> Burundi | B55: Gisuru | C55: Gisuru | D55: 158545 | E55: 18930 | F55: 46457 | G55: 87834 | H55: 0 | I55: 0 | J55: 1 | K55: 1 | L55: 0 | M55: 0 | N55: =IF(INTRO!$E$42="Endémique", IF(AND($J55>1,$J55<5), IF($J55=4, "Inconnu", E55+F55), 0),"Non requis") -> 0 | O55: =IF(INTRO!$E$44="Endémique", IF(AND($K55>0,$K55<5), IF($K55=4,"Inconnu", IF($K55=1, $F55*0.33, IF($K55=2, $F55*0.5+$G55*0.2, SUM(F55:G55)))), 0),"Non requis") -> 15330.81 | P55: 0 | Q55: 0 | R55: 1 | S55: 0 | U55: T3 (ALB/MBD) | W55: T2 | Y55: 6425 | Z55: Gisuru | AB55: ='MDA3'!I55 -> 0 | AC55: =T3_R1!L55 -> 45317 | AD55: =T3_R2!L55 -> 0 | AG55: 87834 | AI55: =_xlfn.XLOOKUP($Y55,[1]COUNTRY_INFO!$Y$9:$Y$57,[1]COUNTRY_INFO!J$9:J$57) -> 1 | AJ55: =_xlfn.XLOOKUP($Y55,[1]COUNTRY_INFO!$Y$9:$Y$57,[1]COUNTRY_INFO!K$9:K$57) -> 1 | AK55: TRUE | AL55: TRUE
A56: =IF(INTRO!$E$34<>0,INTRO!$E$34,"") -> Burundi | B56: Ruyigi | C56: Kinyinya | D56: 166692 | E56: 19710 | F56: 47169 | G56: 92347 | H56: 0 | I56: 0 | J56: 1 | K56: 1 | L56: 0 | M56: 0 | N56: =IF(INTRO!$E$42="Endémique", IF(AND($J56>1,$J56<5), IF($J56=4, "Inconnu", E56+F56), 0),"Non requis") -> 0 | O56: =IF(INTRO!$E$44="Endémique", IF(AND($K56>0,$K56<5), IF($K56=4,"Inconnu", IF($K56=1, $F56*0.33, IF($K56=2, $F56*0.5+$G56*0.2, SUM(F56:G56)))), 0),"Non requis") -> 15565.77 | P56: 0 | Q56: 0 | R56: 1 | S56: 0 | U56: T3 (ALB/MBD) | W56: T2 | Y56: 6418 | Z56: Kinyinya | AB56: ='MDA3'!I56 -> 0 | AC56: =T3_R1!L56 -> 45575 | AD56: =T3_R2!L56 -> 0 | AG56: 92347 | AI56: =_xlfn.XLOOKUP($Y56,[1]COUNTRY_INFO!$Y$9:$Y$57,[1]COUNTRY_INFO!J$9:J$57) -> 1 | AJ56: =_xlfn.XLOOKUP($Y56,[1]COUNTRY_INFO!$Y$9:$Y$57,[1]COUNTRY_INFO!K$9:K$57) -> 1 | AK56: TRUE | AL56: TRUE
A57: =IF(INTRO!$E$34<>0,INTRO!$E$34,"") -> Burundi | B57: Ruyigi | C57: Ruyigi | D57: 150052 | E57: 15593 | F57: 40080 | G57: 83129 | H57: 0 | I57: 0 | J57: 1 | K57: 0 | L57: 0 | M57: 0 | N57: =IF(INTRO!$E$42="Endémique", IF(AND($J57>1,$J57<5), IF($J57=4, "Inconnu", E57+F57), 0),"Non requis") -> 0 | O57: =IF(INTRO!$E$44="Endémique", IF(AND($K57>0,$K57<5), IF($K57=4,"Inconnu", IF($K57=1, $F57*0.33, IF($K57=2, $F57*0.5+$G57*0.2, SUM(F57:G57)))), 0),"Non requis") -> 0 | P57: 0 | Q57: 0 | R57: 1 | S57: 0 | U57: T3 (ALB/MBD) | Y57: 6419 | Z57: Ruyigi | AB57: ='MDA3'!I57 -> 0 | AC57: =T3_R1!L57 -> 46971 | AD57: =T3_R2!L57 -> 0 | AG57: 83129 | AI57: =_xlfn.XLOOKUP($Y57,[1]COUNTRY_INFO!$Y$9:$Y$57,[1]COUNTRY_INFO!J$9:J$57) -> 1 | AJ57: =_xlfn.XLOOKUP($Y57,[1]COUNTRY_INFO!$Y$9:$Y$57,[1]COUNTRY_INFO!K$9:K$57) -> 0 | AK57: TRUE | AL57: TRUE

Sheet MDA1 (hidden)
A1: MDA 1 - Ivermectine (IVM) et Albendazole (ALB)
A2: Structure administrative, population nécessitant une chimioprévention par groupe d'âge, population traitée par groupe d'âge et couverture
A4: TOTAL | G4: =SUM(G$9:G$1000) -> 0 | H4: =SUM(H$9:H$1000) -> 0 | I4: =SUM(I$9:I$1000) -> 0 | K4: =SUM(K$9:K$1000) -> 0 | L4: =SUM(L$9:L$1000) -> 0 | M4: =SUM(M$9:M$1000) -> 0 | O4: =IF(G4<>0, IF(K4/G4*100=0, "-", K4/G4*100), " ") ->  | P4: =IF(H4<>0, IF(L4/H4*100=0, "-", L4/H4*100), " ") ->  | Q4: =IF(I4<>0, IF(M4/I4*100=0, "-", M4/I4*100), " ") -> 
A6: Structure administrative du pays | D6: Mise en oeuvre de la CP | E6: Date | F6: Population ciblée pour MDA 1 | J6: Population traitée | N6: Couverture du Programme (%)
A7: Pays | B7: Région/Département | C7: District | F7: EAPréS | G7: EAS | H7: Adultes | I7: Total | J7: EAPréS | K7: EAS | L7: Adultes | M7: Total | N7: EAPréS | O7: EAS | P7: Adultes | Q7: Total
A9: =IF(COUNTRY_INFO!A9=0," ",COUNTRY_INFO!A9) -> Burundi | B9: =IF(COUNTRY_INFO!B9=0," ",COUNTRY_INFO!B9) -> Bubanza | C9: =IF(COUNTRY_INFO!C9=0," ",COUNTRY_INFO!C9) -> Bubanza | D9: =IF(COUNTRY_INFO!$T$9:$T$1000="MDA1 (IVM+ALB)", COUNTRY_INFO!$T$9:$T$1000, " ") ->  | I9: =SUM(F9:H9) -> 0 | M9: =SUM(J9:L9) -> 0 | O9: =IF(G9<>0, IF(K9/G9*100=0, "-", K9/G9*100), " ") ->  | P9: =IF(H9<>0, IF(L9/H9*100=0, "-", L9/H9*100), " ") -> 
A10: =IF(COUNTRY_INFO!A10=0," ",COUNTRY_INFO!A10) -> Burundi | B10: =IF(COUNTRY_INFO!B10=0," ",COUNTRY_INFO!B10) -> Bubanza | C10: =IF(COUNTRY_INFO!C10=0," ",COUNTRY_INFO!C10) -> Mpanda | D10: =IF(COUNTRY_INFO!$T$9:$T$1000="MDA1 (IVM+ALB)", COUNTRY_INFO!$T$9:$T$1000, " ") ->  | I10: =SUM(F10:H10) -> 0 | M10: =SUM(J10:L10) -> 0 | O10: =IF(G10<>0, IF(K10/G10*100=0, "-", K10/G10*100), " ") ->  | P10: =IF(H10<>0, IF(L10/H10*100=0, "-", L10/H10*100), " ") ->  | Q10: =IF(I10<>0, IF(M10/I10*100=0, "-", M10/I10*100), " ") -> 
A11: =IF(COUNTRY_INFO!A11=0," ",COUNTRY_INFO!A11) -> Burundi | B11: =IF(COUNTRY_INFO!B11=0," ",COUNTRY_INFO!B11) -> Bujumbura Mairie | C11: =IF(COUNTRY_INFO!C11=0," ",COUNTRY_INFO!C11) -> Zone Centre | D11: =IF(COUNTRY_INFO!$T$9:$T$1000="MDA1 (IVM+ALB)", COUNTRY_INFO!$T$9:$T$1000, " ") ->  | I11: 0 | M11: 0
A12: =IF(COUNTRY_INFO!A12=0," ",COUNTRY_INFO!A12) -> Burundi | B12: =IF(COUNTRY_INFO!B12=0," ",COUNTRY_INFO!B12) -> Bujumbura Mairie | C12: =IF(COUNTRY_INFO!C12=0," ",COUNTRY_INFO!C12) -> Zone Nord | D12: =IF(COUNTRY_INFO!$T$9:$T$1000="MDA1 (IVM+ALB)", COUNTRY_INFO!$T$9:$T$1000, " ") ->  | I12: 0 | M12: 0
A13: =IF(COUNTRY_INFO!A13=0," ",COUNTRY_INFO!A13) -> Burundi | B13: =IF(COUNTRY_INFO!B13=0," ",COUNTRY_INFO!B13) -> Bujumbura Mairie | C13: =IF(COUNTRY_INFO!C13=0," ",COUNTRY_INFO!C13) -> Zone Sud | D13: =IF(COUNTRY_INFO!$T$9:$T$1000="MDA1 (IVM+ALB)", COUNTRY_INFO!$T$9:$T$1000, " ") ->  | I13: 0 | M13: 0
A14: =IF(COUNTRY_INFO!A14=0," ",COUNTRY_INFO!A14) -> Burundi | B14: =IF(COUNTRY_INFO!B14=0," ",COUNTRY_INFO!B14) -> Bujumbura Rural | C14: =IF(COUNTRY_INFO!C14=0," ",COUNTRY_INFO!C14) -> Isare | D14: =IF(COUNTRY_INFO!$T$9:$T$1000="MDA1 (IVM+ALB)", COUNTRY_INFO!$T$9:$T$1000, " ") ->  | I14: 0 | M14: 0
A15: =IF(COUNTRY_INFO!A15=0," ",COUNTRY_INFO!A15) -> Burundi | B15: =IF(COUNTRY_INFO!B15=0," ",COUNTRY_INFO!B15) -> Bujumbura Rural | C15: =IF(COUNTRY_INFO!C15=0," ",COUNTRY_INFO!C15) -> Kabezi | D15: =IF(COUNTRY_INFO!$T$9:$T$1000="MDA1 (IVM+ALB)", COUNTRY_INFO!$T$9:$T$1000, " ") ->  | I15: 0 | M15: 0
A16: =IF(COUNTRY_INFO!A16=0," ",COUNTRY_INFO!A16) -> Burundi | B16: =IF(COUNTRY_INFO!B16=0," ",COUNTRY_INFO!B16) -> Bujumbura Rural | C16: =IF(COUNTRY_INFO!C16=0," ",COUNTRY_INFO!C16) -> Rwibaga | D16: =IF(COUNTRY_INFO!$T$9:$T$1000="MDA1 (IVM+ALB)", COUNTRY_INFO!$T$9:$T$1000, " ") ->  | I16: 0 | M16: 0
A17: =IF(COUNTRY_INFO!A17=0," ",COUNTRY_INFO!A17) -> Burundi | B17: =IF(COUNTRY_INFO!B17=0," ",COUNTRY_INFO!B17) -> Bururi | C17: =IF(COUNTRY_INFO!C17=0," ",COUNTRY_INFO!C17) -> Bururi | D17: =IF(COUNTRY_INFO!$T$9:$T$1000="MDA1 (IVM+ALB)", COUNTRY_INFO!$T$9:$T$1000, " ") ->  | I17: 0 | M17: 0
A18: =IF(COUNTRY_INFO!A18=0," ",COUNTRY_INFO!A18) -> Burundi | B18: =IF(COUNTRY_INFO!B18=0," ",COUNTRY_INFO!B18) -> Bururi | C18: =IF(COUNTRY_INFO!C18=0," ",COUNTRY_INFO!C18) -> Matana | D18: =IF(COUNTRY_INFO!$T$9:$T$1000="MDA1 (IVM+ALB)", COUNTRY_INFO!$T$9:$T$1000, " ") ->  | I18: 0 | M18: 0
A19: =IF(COUNTRY_INFO!A19=0," ",COUNTRY_INFO!A19) -> Burundi | B19: =IF(COUNTRY_INFO!B19=0," ",COUNTRY_INFO!B19) -> Bururi | C19: =IF(COUNTRY_INFO!C19=0," ",COUNTRY_INFO!C19) -> Rutovu | D19: =IF(COUNTRY_INFO!$T$9:$T$1000="MDA1 (IVM+ALB)", COUNTRY_INFO!$T$9:$T$1000, " ") ->  | I19: 0 | M19: 0
A20: =IF(COUNTRY_INFO!A20=0," ",COUNTRY_INFO!A20) -> Burundi | B20: =IF(COUNTRY_INFO!B20=0," ",COUNTRY_INFO!B20) -> Cankuzo | C20: =IF(COUNTRY_INFO!C20=0," ",COUNTRY_INFO!C20) -> Cankuzo | D20: =IF(COUNTRY_INFO!$T$9:$T$1000="MDA1 (IVM+ALB)", COUNTRY_INFO!$T$9:$T$1000, " ") ->  | I20: 0 | M20: 0
A21: =IF(COUNTRY_INFO!A21=0," ",COUNTRY_INFO!A21) -> Burundi | B21: =IF(COUNTRY_INFO!B21=0," ",COUNTRY_INFO!B21) -> Cankuzo | C21: =IF(COUNTRY_INFO!C21=0," ",COUNTRY_INFO!C21) -> Murore | D21: =IF(COUNTRY_INFO!$T$9:$T$1000="MDA1 (IVM+ALB)", COUNTRY_INFO!$T$9:$T$1000, " ") ->  | I21: 0 | M21: 0
A22: =IF(COUNTRY_INFO!A22=0," ",COUNTRY_INFO!A22) -> Burundi | B22: =IF(COUNTRY_INFO!B22=0," ",COUNTRY_INFO!B22) -> Cibitoke | C22: =IF(COUNTRY_INFO!C22=0," ",COUNTRY_INFO!C22) -> Bukinanyana | D22: =IF(COUNTRY_INFO!$T$9:$T$1000="MDA1 (IVM+ALB)", COUNTRY_INFO!$T$9:$T$1000, " ") ->  | I22: 0 | M22: 0
A23: =IF(COUNTRY_INFO!A23=0," ",COUNTRY_INFO!A23) -> Burundi | B23: =IF(COUNTRY_INFO!B23=0," ",COUNTRY_INFO!B23) -> Cibitoke | C23: =IF(COUNTRY_INFO!C23=0," ",COUNTRY_INFO!C23) -> Cibitoke | D23: =IF(COUNTRY_INFO!$T$9:$T$1000="MDA1 (IVM+ALB)", COUNTRY_INFO!$T$9:$T$1000, " ") ->  | I23: 0 | M23: 0
A24: =IF(COUNTRY_INFO!A24=0," ",COUNTRY_INFO!A24) -> Burundi | B24: =IF(COUNTRY_INFO!B24=0," ",COUNTRY_INFO!B24) -> Cibitoke | C24: =IF(COUNTRY_INFO!C24=0," ",COUNTRY_INFO!C24) -> Mabayi | D24: =IF(COUNTRY_INFO!$T$9:$T$1000="MDA1 (IVM+ALB)", COUNTRY_INFO!$T$9:$T$1000, " ") ->  | I24: 0 | M24: 0
A25: =IF(COUNTRY_INFO!A25=0," ",COUNTRY_INFO!A25) -> Burundi | B25: =IF(COUNTRY_INFO!B25=0," ",COUNTRY_INFO!B25) -> Gitega | C25: =IF(COUNTRY_INFO!C25=0," ",COUNTRY_INFO!C25) -> Gitega | D25: =IF(COUNTRY_INFO!$T$9:$T$1000="MDA1 (IVM+ALB)", COUNTRY_INFO!$T$9:$T$1000, " ") ->  | I25: 0 | M25: 0
A26: =IF(COUNTRY_INFO!A26=0," ",COUNTRY_INFO!A26) -> Burundi | B26: =IF(COUNTRY_INFO!B26=0," ",COUNTRY_INFO!B26) -> Gitega | C26: =IF(COUNTRY_INFO!C26=0," ",COUNTRY_INFO!C26) -> Kibuye | D26: =IF(COUNTRY_INFO!$T$9:$T$1000="MDA1 (IVM+ALB)", COUNTRY_INFO!$T$9:$T$1000, " ") ->  | I26: 0 | M26: 0
A27: =IF(COUNTRY_INFO!A27=0," ",COUNTRY_INFO!A27) -> Burundi | B27: =IF(COUNTRY_INFO!B27=0," ",COUNTRY_INFO!B27) -> Gitega | C27: =IF(COUNTRY_INFO!C27=0," ",COUNTRY_INFO!C27) -> Mutaho | D27: =IF(COUNTRY_INFO!$T$9:$T$1000="MDA1 (IVM+ALB)", COUNTRY_INFO!$T$9:$T$1000, " ") ->  | I27: 0 | M27: 0
A28: =IF(COUNTRY_INFO!A28=0," ",COUNTRY_INFO!A28) -> Burundi | B28: =IF(COUNTRY_INFO!B28=0," ",COUNTRY_INFO!B28) -> Gitega | C28: =IF(COUNTRY_INFO!C28=0," ",COUNTRY_INFO!C28) -> Ryansoro | D28: =IF(COUNTRY_INFO!$T$9:$T$1000="MDA1 (IVM+ALB)", COUNTRY_INFO!$T$9:$T$1000, " ") ->  | I28: 0 | M28: 0
A29: =IF(COUNTRY_INFO!A29=0," ",COUNTRY_INFO!A29) -> Burundi | B29: =IF(COUNTRY_INFO!B29=0," ",COUNTRY_INFO!B29) -> Karusi | C29: =IF(COUNTRY_INFO!C29=0," ",COUNTRY_INFO!C29) -> Buhiga | D29: =IF(COUNTRY_INFO!$T$9:$T$1000="MDA1 (IVM+ALB)", COUNTRY_INFO!$T$9:$T$1000, " ") ->  | I29: 0 | M29: 0
A30: =IF(COUNTRY_INFO!A30=0," ",COUNTRY_INFO!A30) -> Burundi | B30: =IF(COUNTRY_INFO!B30=0," ",COUNTRY_INFO!B30) -> Karusi | C30: =IF(COUNTRY_INFO!C30=0," ",COUNTRY_INFO!C30) -> Nyabikere | D30: =IF(COUNTRY_INFO!$T$9:$T$1000="MDA1 (IVM+ALB)", COUNTRY_INFO!$T$9:$T$1000, " ") ->  | I30: 0 | M30: 0
A31: =IF(COUNTRY_INFO!A31=0," ",COUNTRY_INFO!A31) -> Burundi | B31: =IF(COUNTRY_INFO!B31=0," ",COUNTRY_INFO!B31) -> Kayanza | C31: =IF(COUNTRY_INFO!C31=0," ",COUNTRY_INFO!C31) -> Gahombo | D31: =IF(COUNTRY_INFO!$T$9:$T$1000="MDA1 (IVM+ALB)", COUNTRY_INFO!$T$9:$T$1000, " ") ->  | I31: 0 | M31: 0
A32: =IF(COUNTRY_INFO!A32=0," ",COUNTRY_INFO!A32) -> Burundi | B32: =IF(COUNTRY_INFO!B32=0," ",COUNTRY_INFO!B32) -> Kayanza | C32: =IF(COUNTRY_INFO!C32=0," ",COUNTRY_INFO!C32) -> Kayanza | D32: =IF(COUNTRY_INFO!$T$9:$T$1000="MDA1 (IVM+ALB)", COUNTRY_INFO!$T$9:$T$1000, " ") ->  | I32: 0 | M32: 0
A33: =IF(COUNTRY_INFO!A33=0," ",COUNTRY_INFO!A33) -> Burundi | B33: =IF(COUNTRY_INFO!B33=0," ",COUNTRY_INFO!B33) -> Kayanza | C33: =IF(COUNTRY_INFO!C33=0," ",COUNTRY_INFO!C33) -> Musema | D33: =IF(COUNTRY_INFO!$T$9:$T$1000="MDA1 (IVM+ALB)", COUNTRY_INFO!$T$9:$T$1000, " ") ->  | I33: 0 | M33: 0
A34: =IF(COUNTRY_INFO!A34=0," ",COUNTRY_INFO!A34) -> Burundi | B34: =IF(COUNTRY_INFO!B34=0," ",COUNTRY_INFO!B34) -> Kirundo | C34: =IF(COUNTRY_INFO!C34=0," ",COUNTRY_INFO!C34) -> Busoni | D34: =IF(COUNTRY_INFO!$T$9:$T$1000="MDA1 (IVM+ALB)", COUNTRY_INFO!$T$9:$T$1000, " ") ->  | I34: 0 | M34: 0
A35: =IF(COUNTRY_INFO!A35=0," ",COUNTRY_INFO!A35) -> Burundi | B35: =IF(COUNTRY_INFO!B35=0," ",COUNTRY_INFO!B35) -> Kirundo | C35: =IF(COUNTRY_INFO!C35=0," ",COUNTRY_INFO!C35) -> Kirundo | D35: =IF(COUNTRY_INFO!$T$9:$T$1000="MDA1 (IVM+ALB)", COUNTRY_INFO!$T$9:$T$1000, " ") ->  | I35: 0 | M35: 0
A36: =IF(COUNTRY_INFO!A36=0," ",COUNTRY_INFO!A36) -> Burundi | B36: =IF(COUNTRY_INFO!B36=0," ",COUNTRY_INFO!B36) -> Kirundo | C36: =IF(COUNTRY_INFO!C36=0," ",COUNTRY_INFO!C36) -> Mukenke | D36: =IF(COUNTRY_INFO!$T$9:$T$1000="MDA1 (IVM+ALB)", COUNTRY_INFO!$T$9:$T$1000, " ") ->  | I36: 0 | M36: 0
A37: =IF(COUNTRY_INFO!A37=0," ",COUNTRY_INFO!A37) -> Burundi | B37: =IF(COUNTRY_INFO!B37=0," ",COUNTRY_INFO!B37) -> Kirundo | C37: =IF(COUNTRY_INFO!C37=0," ",COUNTRY_INFO!C37) -> Vumbi | D37: =IF(COUNTRY_INFO!$T$9:$T$1000="MDA1 (IVM+ALB)", COUNTRY_INFO!$T$9:$T$1000, " ") ->  | I37: 0 | M37: 0
A38: =IF(COUNTRY_INFO!A38=0," ",COUNTRY_INFO!A38) -> Burundi | B38: =IF(COUNTRY_INFO!B38=0," ",COUNTRY_INFO!B38) -> Makamba | C38: =IF(COUNTRY_INFO!C38=0," ",COUNTRY_INFO!C38) -> Makamba | D38: =IF(COUNTRY_INFO!$T$9:$T$1000="MDA1 (IVM+ALB)", COUNTRY_INFO!$T$9:$T$1000, " ") ->  | I38: 0 | M38: 0
A39: =IF(COUNTRY_INFO!A39=0," ",COUNTRY_INFO!A39) -> Burundi | B39: =IF(COUNTRY_INFO!B39=0," ",COUNTRY_INFO!B39) -> Makamba | C39: =IF(COUNTRY_INFO!C39=0," ",COUNTRY_INFO!C39) -> Nyanza-Lac | D39: =IF(COUNTRY_INFO!$T$9:$T$1000="MDA1 (IVM+ALB)", COUNTRY_INFO!$T$9:$T$1000, " ") ->  | I39: 0 | M39: 0
A40: =IF(COUNTRY_INFO!A40=0," ",COUNTRY_INFO!A40) -> Burundi | B40: =IF(COUNTRY_INFO!B40=0," ",COUNTRY_INFO!B40) -> Muramvya | C40: =IF(COUNTRY_INFO!C40=0," ",COUNTRY_INFO!C40) -> Kiganda | D40: =IF(COUNTRY_INFO!$T$9:$T$1000="MDA1 (IVM+ALB)", COUNTRY_INFO!$T$9:$T$1000, " ") ->  | I40: 0 | M40: 0
A41: =IF(COUNTRY_INFO!A41=0," ",COUNTRY_INFO!A41) -> Burundi | B41: =IF(COUNTRY_INFO!B41=0," ",COUNTRY_INFO!B41) -> Muramvya | C41: =IF(COUNTRY_INFO!C41=0," ",COUNTRY_INFO!C41) -> Muramvya | D41: =IF(COUNTRY_INFO!$T$9:$T$1000="MDA1 (IVM+ALB)", COUNTRY_INFO!$T$9:$T$1000, " ") ->  | I41: 0 | M41: 0
A42: =IF(COUNTRY_INFO!A42=0," ",COUNTRY_INFO!A42) -> Burundi | B42: =IF(COUNTRY_INFO!B42=0," ",COUNTRY_INFO!B42) -> Muyinga | C42: =IF(COUNTRY_INFO!C42=0," ",COUNTRY_INFO!C42) -> Gashoho | D42: =IF(COUNTRY_INFO!$T$9:$T$1000="MDA1 (IVM+ALB)", COUNTRY_INFO!$T$9:$T$1000, " ") ->  | I42: 0 | M42: 0
A43: =IF(COUNTRY_INFO!A43=0," ",COUNTRY_INFO!A43) -> Burundi | B43: =IF(COUNTRY_INFO!B43=0," ",COUNTRY_INFO!B43) -> Muyinga | C43: =IF(COUNTRY_INFO!C43=0," ",COUNTRY_INFO!C43) -> Giteranyi | D43: =IF(COUNTRY_INFO!$T$9:$T$1000="MDA1 (IVM+ALB)", COUNTRY_INFO!$T$9:$T$1000, " ") ->  | I43: 0 | M43: 0
A44: =IF(COUNTRY_INFO!A44=0," ",COUNTRY_INFO!A44) -> Burundi | B44: =IF(COUNTRY_INFO!B44=0," ",COUNTRY_INFO!B44) -> Muyinga | C44: =IF(COUNTRY_INFO!C44=0," ",COUNTRY_INFO!C44) -> Muyinga | D44: =IF(COUNTRY_INFO!$T$9:$T$1000="MDA1 (IVM+ALB)", COUNTRY_INFO!$T$9:$T$1000, " ") ->  | I44: 0 | M44: 0
A45: =IF(COUNTRY_INFO!A45=0," ",COUNTRY_INFO!A45) -> Burundi | B45: =IF(COUNTRY_INFO!B45=0," ",COUNTRY_INFO!B45) -> Mwaro | C45: =IF(COUNTRY_INFO!C45=0," ",COUNTRY_INFO!C45) -> Fota | D45: =IF(COUNTRY_INFO!$T$9:$T$1000="MDA1 (IVM+ALB)", COUNTRY_INFO!$T$9:$T$1000, " ") ->  | I45: 0 | M45: 0
A46: =IF(COUNTRY_INFO!A46=0," ",COUNTRY_INFO!A46) -> Burundi | B46: =IF(COUNTRY_INFO!B46=0," ",COUNTRY_INFO!B46) -> Mwaro | C46: =IF(COUNTRY_INFO!C46=0," ",COUNTRY_INFO!C46) -> Kibumbu | D46: =IF(COUNTRY_INFO!$T$9:$T$1000="MDA1 (IVM+ALB)", COUNTRY_INFO!$T$9:$T$1000, " ") ->  | I46: 0 | M46: 0
A47: =IF(COUNTRY_INFO!A47=0," ",COUNTRY_INFO!A47) -> Burundi | B47: =IF(COUNTRY_INFO!B47=0," ",COUNTRY_INFO!B47) -> Ngozi | C47: =IF(COUNTRY_INFO!C47=0," ",COUNTRY_INFO!C47) -> Buye | D47: =IF(COUNTRY_INFO!$T$9:$T$1000="MDA1 (IVM+ALB)", COUNTRY_INFO!$T$9:$T$1000, " ") ->  | I47: 0 | M47: 0
A48: =IF(COUNTRY_INFO!A48=0," ",COUNTRY_INFO!A48) -> Burundi | B48: =IF(COUNTRY_INFO!B48=0," ",COUNTRY_INFO!B48) -> Ngozi | C48: =IF(COUNTRY_INFO!C48=0," ",COUNTRY_INFO!C48) -> Kiremba | D48: =IF(COUNTRY_INFO!$T$9:$T$1000="MDA1 (IVM+ALB)", COUNTRY_INFO!$T$9:$T$1000, " ") ->  | I48: 0 | M48: 0
A49: =IF(COUNTRY_INFO!A49=0," ",COUNTRY_INFO!A49) -> Burundi | B49: =IF(COUNTRY_INFO!B49=0," ",COUNTRY_INFO!B49) -> Ngozi | C49: =IF(COUNTRY_INFO!C49=0," ",COUNTRY_INFO!C49) -> Ngozi | D49: =IF(COUNTRY_INFO!$T$9:$T$1000="MDA1 (IVM+ALB)", COUNTRY_INFO!$T$9:$T$1000, " ") ->  | I49: 0 | M49: 0
A50: =IF(COUNTRY_INFO!A50=0," ",COUNTRY_INFO!A50) -> Burundi | B50: =IF(COUNTRY_INFO!B50=0," ",COUNTRY_INFO!B50) -> Rumonge | C50: =IF(COUNTRY_INFO!C50=0," ",COUNTRY_INFO!C50) -> Bugarama | D50: =IF(COUNTRY_INFO!$T$9:$T$1000="MDA1 (IVM+ALB)", COUNTRY_INFO!$T$9:$T$1000, " ") ->  | I50: 0 | M50: 0
A51: =IF(COUNTRY_INFO!A51=0," ",COUNTRY_INFO!A51) -> Burundi | B51: =IF(COUNTRY_INFO!B51=0," ",COUNTRY_INFO!B51) -> Rumonge | C51: =IF(COUNTRY_INFO!C51=0," ",COUNTRY_INFO!C51) -> Rumonge | D51: =IF(COUNTRY_INFO!$T$9:$T$1000="MDA1 (IVM+ALB)", COUNTRY_INFO!$T$9:$T$1000, " ") ->  | I51: 0 | M51: 0
A52: =IF(COUNTRY_INFO!A52=0," ",COUNTRY_INFO!A52) -> Burundi | B52: =IF(COUNTRY_INFO!B52=0," ",COUNTRY_INFO!B52) -> Rutana | C52: =IF(COUNTRY_INFO!C52=0," ",COUNTRY_INFO!C52) -> Gihofi | D52: =IF(COUNTRY_INFO!$T$9:$T$1000="MDA1 (IVM+ALB)", COUNTRY_INFO!$T$9:$T$1000, " ") ->  | I52: 0 | M52: 0
A53: =IF(COUNTRY_INFO!A53=0," ",COUNTRY_INFO!A53) -> Burundi | B53: =IF(COUNTRY_INFO!B53=0," ",COUNTRY_INFO!B53) -> Rutana | C53: =IF(COUNTRY_INFO!C53=0," ",COUNTRY_INFO!C53) -> Rutana | D53: =IF(COUNTRY_INFO!$T$9:$T$1000="MDA1 (IVM+ALB)", COUNTRY_INFO!$T$9:$T$1000, " ") ->  | I53: 0 | M53: 0
A54: =IF(COUNTRY_INFO!A54=0," ",COUNTRY_INFO!A54) -> Burundi | B54: =IF(COUNTRY_INFO!B54=0," ",COUNTRY_INFO!B54) -> Ruyigi | C54: =IF(COUNTRY_INFO!C54=0," ",COUNTRY_INFO!C54) -> Butezi | D54: =IF(COUNTRY_INFO!$T$9:$T$1000="MDA1 (IVM+ALB)", COUNTRY_INFO!$T$9:$T$1000, " ") ->  | I54: 0 | M54: 0
A55: =IF(COUNTRY_INFO!A55=0," ",COUNTRY_INFO!A55) -> Burundi | B55: =IF(COUNTRY_INFO!B55=0," ",COUNTRY_INFO!B55) -> Gisuru | C55: =IF(COUNTRY_INFO!C55=0," ",COUNTRY_INFO!C55) -> Gisuru | D55: =IF(COUNTRY_INFO!$T$9:$T$1000="MDA1 (IVM+ALB)", COUNTRY_INFO!$T$9:$T$1000, " ") ->  | I55: 0 | M55: 0
A56: =IF(COUNTRY_INFO!A56=0," ",COUNTRY_INFO!A56) -> Burundi | B56: =IF(COUNTRY_INFO!B56=0," ",COUNTRY_INFO!B56) -> Ruyigi | C56: =IF(COUNTRY_INFO!C56=0," ",COUNTRY_INFO!C56) -> Kinyinya | D56: =IF(COUNTRY_INFO!$T$9:$T$1000="MDA1 (IVM+ALB)", COUNTRY_INFO!$T$9:$T$1000, " ") ->  | I56: 0 | M56: 0
A57: =IF(COUNTRY_INFO!A57=0," ",COUNTRY_INFO!A57) -> Burundi | B57: =IF(COUNTRY_INFO!B57=0," ",COUNTRY_INFO!B57) -> Ruyigi | C57: =IF(COUNTRY_INFO!C57=0," ",COUNTRY_INFO!C57) -> Ruyigi | D57: =IF(COUNTRY_INFO!$T$9:$T$1000="MDA1 (IVM+ALB)", COUNTRY_INFO!$T$9:$T$1000, " ") ->  | I57: 0 | M57: 0

Sheet MDA2 (hidden)
A1: MDA 2 - Diethylcarbamazine (DEC) + Albendazole (ALB)
A2: Structure administrative, population nécessitant une chimioprévention par groupe d'âge, population traitée par groupe d'âge et couverture
A4: TOTAL | F4: =SUM(F$9:F$1000) -> 0 | G4: =SUM(G$9:G$1000) -> 0 | H4: 0 | I4: 0 | J4: 0 | K4: 0 | L4: 0 | M4: 0 | N4: =IF(F4<>0, IF(J4/F4*100=0, "-", J4/F4*100), " ") ->  | O4: =IF(G4<>0, IF(K4/G4*100=0, "-", K4/G4*100), " ") ->  | P4: =IF(H4<>0, IF(L4/H4*100=0, "-", L4/H4*100), " ") ->  | Q4: =IF(I4<>0, IF(M4/I4*100=0, "-", M4/I4*100), " ") -> 
A6: Structure administrative du pays | D6: Mise en oeuvre de la CP | E6: Date | F6: Population ciblée pour MDA 2 | J6: Population traitée | N6: Couverture du Programme (%)
A7: Pays | B7: Région/Département | C7: District | F7: EAPréS | G7: EAS | H7: Adultes | I7: Total | J7: EAPréS | K7: EAS | L7: Adultes | M7: Total | N7: EAPréS | O7: EAS | P7: Adultes | Q7: Total
A9: =IF(COUNTRY_INFO!A9=0," ",COUNTRY_INFO!A9) -> Burundi | B9: =IF(COUNTRY_INFO!B9=0," ",COUNTRY_INFO!B9) -> Bubanza | C9: =IF(COUNTRY_INFO!C9=0," ",COUNTRY_INFO!C9) -> Bubanza | D9: =IF(COUNTRY_INFO!$T$9:$T$1000="MDA2 (DEC+ALB)", COUNTRY_INFO!$T$9:$T$1000, " ") ->  | I9: =SUM(F9:H9) -> 0 | M9: =SUM(J9:L9) -> 0 | N9: =IF(F9<>0, IF(J9/F9*100=0, "-", J9/F9*100), " ") -> 
A10: =IF(COUNTRY_INFO!A10=0," ",COUNTRY_INFO!A10) -> Burundi | B10: =IF(COUNTRY_INFO!B10=0," ",COUNTRY_INFO!B10) -> Bubanza | C10: =IF(COUNTRY_INFO!C10=0," ",COUNTRY_INFO!C10) -> Mpanda | D10: =IF(COUNTRY_INFO!$T$9:$T$1000="MDA2 (DEC+ALB)", COUNTRY_INFO!$T$9:$T$1000, " ") ->  | I10: =SUM(F10:H10) -> 0 | M10: =SUM(J10:L10) -> 0 | N10: =IF(F10<>0, IF(J10/F10*100=0, "-", J10/F10*100), " ") ->  | O10: =IF(G10<>0, IF(K10/G10*100=0, "-", K10/G10*100), " ") ->  | P10: =IF(H10<>0, IF(L10/H10*100=0, "-", L10/H10*100), " ") ->  | Q10: =IF(I10<>0, IF(M10/I10*100=0, "-", M10/I10*100), " ") -> 
A11: =IF(COUNTRY_INFO!A11=0," ",COUNTRY_INFO!A11) -> Burundi | B11: =IF(COUNTRY_INFO!B11=0," ",COUNTRY_INFO!B11) -> Bujumbura Mairie | C11: =IF(COUNTRY_INFO!C11=0," ",COUNTRY_INFO!C11) -> Zone Centre | D11: =IF(COUNTRY_INFO!$T$9:$T$1000="MDA2 (DEC+ALB)", COUNTRY_INFO!$T$9:$T$1000, " ") ->  | I11: 0 | M11: 0
A12: =IF(COUNTRY_INFO!A12=0," ",COUNTRY_INFO!A12) -> Burundi | B12: =IF(COUNTRY_INFO!B12=0," ",COUNTRY_INFO!B12) -> Bujumbura Mairie | C12: =IF(COUNTRY_INFO!C12=0," ",COUNTRY_INFO!C12) -> Zone Nord | D12: =IF(COUNTRY_INFO!$T$9:$T$1000="MDA2 (DEC+ALB)", COUNTRY_INFO!$T$9:$T$1000, " ") ->  | I12: 0 | M12: 0
A13: =IF(COUNTRY_INFO!A13=0," ",COUNTRY_INFO!A13) -> Burundi | B13: =IF(COUNTRY_INFO!B13=0," ",COUNTRY_INFO!B13) -> Bujumbura Mairie | C13: =IF(COUNTRY_INFO!C13=0," ",COUNTRY_INFO!C13) -> Zone Sud | D13: =IF(COUNTRY_INFO!$T$9:$T$1000="MDA2 (DEC+ALB)", COUNTRY_INFO!$T$9:$T$1000, " ") ->  | I13: 0 | M13: 0
A14: =IF(COUNTRY_INFO!A14=0," ",COUNTRY_INFO!A14) -> Burundi | B14: =IF(COUNTRY_INFO!B14=0," ",COUNTRY_INFO!B14) -> Bujumbura Rural | C14: =IF(COUNTRY_INFO!C14=0," ",COUNTRY_INFO!C14) -> Isare | D14: =IF(COUNTRY_INFO!$T$9:$T$1000="MDA2 (DEC+ALB)", COUNTRY_INFO!$T$9:$T$1000, " ") ->  | I14: 0 | M14: 0
A15: =IF(COUNTRY_INFO!A15=0," ",COUNTRY_INFO!A15) -> Burundi | B15: =IF(COUNTRY_INFO!B15=0," ",COUNTRY_INFO!B15) -> Bujumbura Rural | C15: =IF(COUNTRY_INFO!C15=0," ",COUNTRY_INFO!C15) -> Kabezi | D15: =IF(COUNTRY_INFO!$T$9:$T$1000="MDA2 (DEC+ALB)", COUNTRY_INFO!$T$9:$T$1000, " ") ->  | I15: 0 | M15: 0
A16: =IF(COUNTRY_INFO!A16=0," ",COUNTRY_INFO!A16) -> Burundi | B16: =IF(COUNTRY_INFO!B16=0," ",COUNTRY_INFO!B16) -> Bujumbura Rural | C16: =IF(COUNTRY_INFO!C16=0," ",COUNTRY_INFO!C16) -> Rwibaga | D16: =IF(COUNTRY_INFO!$T$9:$T$1000="MDA2 (DEC+ALB)", COUNTRY_INFO!$T$9:$T$1000, " ") ->  | I16: 0 | M16: 0
A17: =IF(COUNTRY_INFO!A17=0," ",COUNTRY_INFO!A17) -> Burundi | B17: =IF(COUNTRY_INFO!B17=0," ",COUNTRY_INFO!B17) -> Bururi | C17: =IF(COUNTRY_INFO!C17=0," ",COUNTRY_INFO!C17) -> Bururi | D17: =IF(COUNTRY_INFO!$T$9:$T$1000="MDA2 (DEC+ALB)", COUNTRY_INFO!$T$9:$T$1000, " ") ->  | I17: 0 | M17: 0
A18: =IF(COUNTRY_INFO!A18=0," ",COUNTRY_INFO!A18) -> Burundi | B18: =IF(COUNTRY_INFO!B18=0," ",COUNTRY_INFO!B18) -> Bururi | C18: =IF(COUNTRY_INFO!C18=0," ",COUNTRY_INFO!C18) -> Matana | D18: =IF(COUNTRY_INFO!$T$9:$T$1000="MDA2 (DEC+ALB)", COUNTRY_INFO!$T$9:$T$1000, " ") ->  | I18: 0 | M18: 0
A19: =IF(COUNTRY_INFO!A19=0," ",COUNTRY_INFO!A19) -> Burundi | B19: =IF(COUNTRY_INFO!B19=0," ",COUNTRY_INFO!B19) -> Bururi | C19: =IF(COUNTRY_INFO!C19=0," ",COUNTRY_INFO!C19) -> Rutovu | D19: =IF(COUNTRY_INFO!$T$9:$T$1000="MDA2 (DEC+ALB)", COUNTRY_INFO!$T$9:$T$1000, " ") ->  | I19: 0 | M19: 0
A20: =IF(COUNTRY_INFO!A20=0," ",COUNTRY_INFO!A20) -> Burundi | B20: =IF(COUNTRY_INFO!B20=0," ",COUNTRY_INFO!B20) -> Cankuzo | C20: =IF(COUNTRY_INFO!C20=0," ",COUNTRY_INFO!C20) -> Cankuzo | D20: =IF(COUNTRY_INFO!$T$9:$T$1000="MDA2 (DEC+ALB)", COUNTRY_INFO!$T$9:$T$1000, " ") ->  | I20: 0 | M20: 0
A21: =IF(COUNTRY_INFO!A21=0," ",COUNTRY_INFO!A21) -> Burundi | B21: =IF(COUNTRY_INFO!B21=0," ",COUNTRY_INFO!B21) -> Cankuzo | C21: =IF(COUNTRY_INFO!C21=0," ",COUNTRY_INFO!C21) -> Murore | D21: =IF(COUNTRY_INFO!$T$9:$T$1000="MDA2 (DEC+ALB)", COUNTRY_INFO!$T$9:$T$1000, " ") ->  | I21: 0 | M21: 0
A22: =IF(COUNTRY_INFO!A22=0," ",COUNTRY_INFO!A22) -> Burundi | B22: =IF(COUNTRY_INFO!B22=0," ",COUNTRY_INFO!B22) -> Cibitoke | C22: =IF(COUNTRY_INFO!C22=0," ",COUNTRY_INFO!C22) -> Bukinanyana | D22: =IF(COUNTRY_INFO!$T$9:$T$1000="MDA2 (DEC+ALB)", COUNTRY_INFO!$T$9:$T$1000, " ") ->  | I22: 0 | M22: 0
A23: =IF(COUNTRY_INFO!A23=0," ",COUNTRY_INFO!A23) -> Burundi | B23: =IF(COUNTRY_INFO!B23=0," ",COUNTRY_INFO!B23) -> Cibitoke | C23: =IF(COUNTRY_INFO!C23=0," ",COUNTRY_INFO!C23) -> Cibitoke | D23: =IF(COUNTRY_INFO!$T$9:$T$1000="MDA2 (DEC+ALB)", COUNTRY_INFO!$T$9:$T$1000, " ") ->  | I23: 0 | M23: 0
A24: =IF(COUNTRY_INFO!A24=0," ",COUNTRY_INFO!A24) -> Burundi | B24: =IF(COUNTRY_INFO!B24=0," ",COUNTRY_INFO!B24) -> Cibitoke | C24: =IF(COUNTRY_INFO!C24=0," ",COUNTRY_INFO!C24) -> Mabayi | D24: =IF(COUNTRY_INFO!$T$9:$T$1000="MDA2 (DEC+ALB)", COUNTRY_INFO!$T$9:$T$1000, " ") ->  | I24: 0 | M24: 0
A25: =IF(COUNTRY_INFO!A25=0," ",COUNTRY_INFO!A25) -> Burundi | B25: =IF(COUNTRY_INFO!B25=0," ",COUNTRY_INFO!B25) -> Gitega | C25: =IF(COUNTRY_INFO!C25=0," ",COUNTRY_INFO!C25) -> Gitega | D25: =IF(COUNTRY_INFO!$T$9:$T$1000="MDA2 (DEC+ALB)", COUNTRY_INFO!$T$9:$T$1000, " ") ->  | I25: 0 | M25: 0
A26: =IF(COUNTRY_INFO!A26=0," ",COUNTRY_INFO!A26) -> Burundi | B26: =IF(COUNTRY_INFO!B26=0," ",COUNTRY_INFO!B26) -> Gitega | C26: =IF(COUNTRY_INFO!C26=0," ",COUNTRY_INFO!C26) -> Kibuye | D26: =IF(COUNTRY_INFO!$T$9:$T$1000="MDA2 (DEC+ALB)", COUNTRY_INFO!$T$9:$T$1000, " ") ->  | I26: 0 | M26: 0
A27: =IF(COUNTRY_INFO!A27=0," ",COUNTRY_INFO!A27) -> Burundi | B27: =IF(COUNTRY_INFO!B27=0," ",COUNTRY_INFO!B27) -> Gitega | C27: =IF(COUNTRY_INFO!C27=0," ",COUNTRY_INFO!C27) -> Mutaho | D27: =IF(COUNTRY_INFO!$T$9:$T$1000="MDA2 (DEC+ALB)", COUNTRY_INFO!$T$9:$T$1000, " ") ->  | I27: 0 | M27: 0
A28: =IF(COUNTRY_INFO!A28=0," ",COUNTRY_INFO!A28) -> Burundi | B28: =IF(COUNTRY_INFO!B28=0," ",COUNTRY_INFO!B28) -> Gitega | C28: =IF(COUNTRY_INFO!C28=0," ",COUNTRY_INFO!C28) -> Ryansoro | D28: =IF(COUNTRY_INFO!$T$9:$T$1000="MDA2 (DEC+ALB)", COUNTRY_INFO!$T$9:$T$1000, " ") ->  | I28: 0 | M28: 0
A29: =IF(COUNTRY_INFO!A29=0," ",COUNTRY_INFO!A29) -> Burundi | B29: =IF(COUNTRY_INFO!B29=0," ",COUNTRY_INFO!B29) -> Karusi | C29: =IF(COUNTRY_INFO!C29=0," ",COUNTRY_INFO!C29) -> Buhiga | D29: =IF(COUNTRY_INFO!$T$9:$T$1000="MDA2 (DEC+ALB)", COUNTRY_INFO!$T$9:$T$1000, " ") ->  | I29: 0 | M29: 0
A30: =IF(COUNTRY_INFO!A30=0," ",COUNTRY_INFO!A30) -> Burundi | B30: =IF(COUNTRY_INFO!B30=0," ",COUNTRY_INFO!B30) -> Karusi | C30: =IF(COUNTRY_INFO!C30=0," ",COUNTRY_INFO!C30) -> Nyabikere | D30: =IF(COUNTRY_INFO!$T$9:$T$1000="MDA2 (DEC+ALB)", COUNTRY_INFO!$T$9:$T$1000, " ") ->  | I30: 0 | M30: 0
A31: =IF(COUNTRY_INFO!A31=0," ",COUNTRY_INFO!A31) -> Burundi | B31: =IF(COUNTRY_INFO!B31=0," ",COUNTRY_INFO!B31) -> Kayanza | C31: =IF(COUNTRY_INFO!C31=0," ",COUNTRY_INFO!C31) -> Gahombo | D31: =IF(COUNTRY_INFO!$T$9:$T$1000="MDA2 (DEC+ALB)", COUNTRY_INFO!$T$9:$T$1000, " ") ->  | I31: 0 | M31: 0
A32: =IF(COUNTRY_INFO!A32=0," ",COUNTRY_INFO!A32) -> Burundi | B32: =IF(COUNTRY_INFO!B32=0," ",COUNTRY_INFO!B32) -> Kayanza | C32: =IF(COUNTRY_INFO!C32=0," ",COUNTRY_INFO!C32) -> Kayanza | D32: =IF(COUNTRY_INFO!$T$9:$T$1000="MDA2 (DEC+ALB)", COUNTRY_INFO!$T$9:$T$1000, " ") ->  | I32: 0 | M32: 0
A33: =IF(COUNTRY_INFO!A33=0," ",COUNTRY_INFO!A33) -> Burundi | B33: =IF(COUNTRY_INFO!B33=0," ",COUNTRY_INFO!B33) -> Kayanza | C33: =IF(COUNTRY_INFO!C33=0," ",COUNTRY_INFO!C33) -> Musema | D33: =IF(COUNTRY_INFO!$T$9:$T$1000="MDA2 (DEC+ALB)", COUNTRY_INFO!$T$9:$T$1000, " ") ->  | I33: 0 | M33: 0
A34: =IF(COUNTRY_INFO!A34=0," ",COUNTRY_INFO!A34) -> Burundi | B34: =IF(COUNTRY_INFO!B34=0," ",COUNTRY_INFO!B34) -> Kirundo | C34: =IF(COUNTRY_INFO!C34=0," ",COUNTRY_INFO!C34) -> Busoni | D34: =IF(COUNTRY_INFO!$T$9:$T$1000="MDA2 (DEC+ALB)", COUNTRY_INFO!$T$9:$T$1000, " ") ->  | I34: 0 | M34: 0
A35: =IF(COUNTRY_INFO!A35=0," ",COUNTRY_INFO!A35) -> Burundi | B35: =IF(COUNTRY_INFO!B35=0," ",COUNTRY_INFO!B35) -> Kirundo | C35: =IF(COUNTRY_INFO!C35=0," ",COUNTRY_INFO!C35) -> Kirundo | D35: =IF(COUNTRY_INFO!$T$9:$T$1000="MDA2 (DEC+ALB)", COUNTRY_INFO!$T$9:$T$1000, " ") ->  | I35: 0 | M35: 0
A36: =IF(COUNTRY_INFO!A36=0," ",COUNTRY_INFO!A36) -> Burundi | B36: =IF(COUNTRY_INFO!B36=0," ",COUNTRY_INFO!B36) -> Kirundo | C36: =IF(COUNTRY_INFO!C36=0," ",COUNTRY_INFO!C36) -> Mukenke | D36: =IF(COUNTRY_INFO!$T$9:$T$1000="MDA2 (DEC+ALB)", COUNTRY_INFO!$T$9:$T$1000, " ") ->  | I36: 0 | M36: 0
A37: =IF(COUNTRY_INFO!A37=0," ",COUNTRY_INFO!A37) -> Burundi | B37: =IF(COUNTRY_INFO!B37=0," ",COUNTRY_INFO!B37) -> Kirundo | C37: =IF(COUNTRY_INFO!C37=0," ",COUNTRY_INFO!C37) -> Vumbi | D37: =IF(COUNTRY_INFO!$T$9:$T$1000="MDA2 (DEC+ALB)", COUNTRY_INFO!$T$9:$T$1000, " ") ->  | I37: 0 | M37: 0
A38: =IF(COUNTRY_INFO!A38=0," ",COUNTRY_INFO!A38) -> Burundi | B38: =IF(COUNTRY_INFO!B38=0," ",COUNTRY_INFO!B38) -> Makamba | C38: =IF(COUNTRY_INFO!C38=0," ",COUNTRY_INFO!C38) -> Makamba | D38: =IF(COUNTRY_INFO!$T$9:$T$1000="MDA2 (DEC+ALB)", COUNTRY_INFO!$T$9:$T$1000, " ") ->  | I38: 0 | M38: 0
A39: =IF(COUNTRY_INFO!A39=0," ",COUNTRY_INFO!A39) -> Burundi | B39: =IF(COUNTRY_INFO!B39=0," ",COUNTRY_INFO!B39) -> Makamba | C39: =IF(COUNTRY_INFO!C39=0," ",COUNTRY_INFO!C39) -> Nyanza-Lac | D39: =IF(COUNTRY_INFO!$T$9:$T$1000="MDA2 (DEC+ALB)", COUNTRY_INFO!$T$9:$T$1000, " ") ->  | I39: 0 | M39: 0
A40: =IF(COUNTRY_INFO!A40=0," ",COUNTRY_INFO!A40) -> Burundi | B40: =IF(COUNTRY_INFO!B40=0," ",COUNTRY_INFO!B40) -> Muramvya | C40: =IF(COUNTRY_INFO!C40=0," ",COUNTRY_INFO!C40) -> Kiganda | D40: =IF(COUNTRY_INFO!$T$9:$T$1000="MDA2 (DEC+ALB)", COUNTRY_INFO!$T$9:$T$1000, " ") ->  | I40: 0 | M40: 0
A41: =IF(COUNTRY_INFO!A41=0," ",COUNTRY_INFO!A41) -> Burundi | B41: =IF(COUNTRY_INFO!B41=0," ",COUNTRY_INFO!B41) -> Muramvya | C41: =IF(COUNTRY_INFO!C41=0," ",COUNTRY_INFO!C41) -> Muramvya | D41: =IF(COUNTRY_INFO!$T$9:$T$1000="MDA2 (DEC+ALB)", COUNTRY_INFO!$T$9:$T$1000, " ") ->  | I41: 0 | M41: 0
A42: =IF(COUNTRY_INFO!A42=0," ",COUNTRY_INFO!A42) -> Burundi | B42: =IF(COUNTRY_INFO!B42=0," ",COUNTRY_INFO!B42) -> Muyinga | C42: =IF(COUNTRY_INFO!C42=0," ",COUNTRY_INFO!C42) -> Gashoho | D42: =IF(COUNTRY_INFO!$T$9:$T$1000="MDA2 (DEC+ALB)", COUNTRY_INFO!$T$9:$T$1000, " ") ->  | I42: 0 | M42: 0
A43: =IF(COUNTRY_INFO!A43=0," ",COUNTRY_INFO!A43) -> Burundi | B43: =IF(COUNTRY_INFO!B43=0," ",COUNTRY_INFO!B43) -> Muyinga | C43: =IF(COUNTRY_INFO!C43=0," ",COUNTRY_INFO!C43) -> Giteranyi | D43: =IF(COUNTRY_INFO!$T$9:$T$1000="MDA2 (DEC+ALB)", COUNTRY_INFO!$T$9:$T$1000, " ") ->  | I43: 0 | M43: 0
A44: =IF(COUNTRY_INFO!A44=0," ",COUNTRY_INFO!A44) -> Burundi | B44: =IF(COUNTRY_INFO!B44=0," ",COUNTRY_INFO!B44) -> Muyinga | C44: =IF(COUNTRY_INFO!C44=0," ",COUNTRY_INFO!C44) -> Muyinga | D44: =IF(COUNTRY_INFO!$T$9:$T$1000="MDA2 (DEC+ALB)", COUNTRY_INFO!$T$9:$T$1000, " ") ->  | I44: 0 | M44: 0
A45: =IF(COUNTRY_INFO!A45=0," ",COUNTRY_INFO!A45) -> Burundi | B45: =IF(COUNTRY_INFO!B45=0," ",COUNTRY_INFO!B45) -> Mwaro | C45: =IF(COUNTRY_INFO!C45=0," ",COUNTRY_INFO!C45) -> Fota | D45: =IF(COUNTRY_INFO!$T$9:$T$1000="MDA2 (DEC+ALB)", COUNTRY_INFO!$T$9:$T$1000, " ") ->  | I45: 0 | M45: 0
A46: =IF(COUNTRY_INFO!A46=0," ",COUNTRY_INFO!A46) -> Burundi | B46: =IF(COUNTRY_INFO!B46=0," ",COUNTRY_INFO!B46) -> Mwaro | C46: =IF(COUNTRY_INFO!C46=0," ",COUNTRY_INFO!C46) -> Kibumbu | D46: =IF(COUNTRY_INFO!$T$9:$T$1000="MDA2 (DEC+ALB)", COUNTRY_INFO!$T$9:$T$1000, " ") ->  | I46: 0 | M46: 0
A47: =IF(COUNTRY_INFO!A47=0," ",COUNTRY_INFO!A47) -> Burundi | B47: =IF(COUNTRY_INFO!B47=0," ",COUNTRY_INFO!B47) -> Ngozi | C47: =IF(COUNTRY_INFO!C47=0," ",COUNTRY_INFO!C47) -> Buye | D47: =IF(COUNTRY_INFO!$T$9:$T$1000="MDA2 (DEC+ALB)", COUNTRY_INFO!$T$9:$T$1000, " ") ->  | I47: 0 | M47: 0
A48: =IF(COUNTRY_INFO!A48=0," ",COUNTRY_INFO!A48) -> Burundi | B48: =IF(COUNTRY_INFO!B48=0," ",COUNTRY_INFO!B48) -> Ngozi | C48: =IF(COUNTRY_INFO!C48=0," ",COUNTRY_INFO!C48) -> Kiremba | D48: =IF(COUNTRY_INFO!$T$9:$T$1000="MDA2 (DEC+ALB)", COUNTRY_INFO!$T$9:$T$1000, " ") ->  | I48: 0 | M48: 0
A49: =IF(COUNTRY_INFO!A49=0," ",COUNTRY_INFO!A49) -> Burundi | B49: =IF(COUNTRY_INFO!B49=0," ",COUNTRY_INFO!B49) -> Ngozi | C49: =IF(COUNTRY_INFO!C49=0," ",COUNTRY_INFO!C49) -> Ngozi | D49: =IF(COUNTRY_INFO!$T$9:$T$1000="MDA2 (DEC+ALB)", COUNTRY_INFO!$T$9:$T$1000, " ") ->  | I49: 0 | M49: 0
A50: =IF(COUNTRY_INFO!A50=0," ",COUNTRY_INFO!A50) -> Burundi | B50: =IF(COUNTRY_INFO!B50=0," ",COUNTRY_INFO!B50) -> Rumonge | C50: =IF(COUNTRY_INFO!C50=0," ",COUNTRY_INFO!C50) -> Bugarama | D50: =IF(COUNTRY_INFO!$T$9:$T$1000="MDA2 (DEC+ALB)", COUNTRY_INFO!$T$9:$T$1000, " ") ->  | I50: 0 | M50: 0
A51: =IF(COUNTRY_INFO!A51=0," ",COUNTRY_INFO!A51) -> Burundi | B51: =IF(COUNTRY_INFO!B51=0," ",COUNTRY_INFO!B51) -> Rumonge | C51: =IF(COUNTRY_INFO!C51=0," ",COUNTRY_INFO!C51) -> Rumonge | D51: =IF(COUNTRY_INFO!$T$9:$T$1000="MDA2 (DEC+ALB)", COUNTRY_INFO!$T$9:$T$1000, " ") ->  | I51: 0 | M51: 0
A52: =IF(COUNTRY_INFO!A52=0," ",COUNTRY_INFO!A52) -> Burundi | B52: =IF(COUNTRY_INFO!B52=0," ",COUNTRY_INFO!B52) -> Rutana | C52: =IF(COUNTRY_INFO!C52=0," ",COUNTRY_INFO!C52) -> Gihofi | D52: =IF(COUNTRY_INFO!$T$9:$T$1000="MDA2 (DEC+ALB)", COUNTRY_INFO!$T$9:$T$1000, " ") ->  | I52: 0 | M52: 0
A53: =IF(COUNTRY_INFO!A53=0," ",COUNTRY_INFO!A53) -> Burundi | B53: =IF(COUNTRY_INFO!B53=0," ",COUNTRY_INFO!B53) -> Rutana | C53: =IF(COUNTRY_INFO!C53=0," ",COUNTRY_INFO!C53) -> Rutana | D53: =IF(COUNTRY_INFO!$T$9:$T$1000="MDA2 (DEC+ALB)", COUNTRY_INFO!$T$9:$T$1000, " ") ->  | I53: 0 | M53: 0
A54: =IF(COUNTRY_INFO!A54=0," ",COUNTRY_INFO!A54) -> Burundi | B54: =IF(COUNTRY_INFO!B54=0," ",COUNTRY_INFO!B54) -> Ruyigi | C54: =IF(COUNTRY_INFO!C54=0," ",COUNTRY_INFO!C54) -> Butezi | D54: =IF(COUNTRY_INFO!$T$9:$T$1000="MDA2 (DEC+ALB)", COUNTRY_INFO!$T$9:$T$1000, " ") ->  | I54: 0 | M54: 0
A55: =IF(COUNTRY_INFO!A55=0," ",COUNTRY_INFO!A55) -> Burundi | B55: =IF(COUNTRY_INFO!B55=0," ",COUNTRY_INFO!B55) -> Gisuru | C55: =IF(COUNTRY_INFO!C55=0," ",COUNTRY_INFO!C55) -> Gisuru | D55: =IF(COUNTRY_INFO!$T$9:$T$1000="MDA2 (DEC+ALB)", COUNTRY_INFO!$T$9:$T$1000, " ") ->  | I55: 0 | M55: 0
A56: =IF(COUNTRY_INFO!A56=0," ",COUNTRY_INFO!A56) -> Burundi | B56: =IF(COUNTRY_INFO!B56=0," ",COUNTRY_INFO!B56) -> Ruyigi | C56: =IF(COUNTRY_INFO!C56=0," ",COUNTRY_INFO!C56) -> Kinyinya | D56: =IF(COUNTRY_INFO!$T$9:$T$1000="MDA2 (DEC+ALB)", COUNTRY_INFO!$T$9:$T$1000, " ") ->  | I56: 0 | M56: 0
A57: =IF(COUNTRY_INFO!A57=0," ",COUNTRY_INFO!A57) -> Burundi | B57: =IF(COUNTRY_INFO!B57=0," ",COUNTRY_INFO!B57) -> Ruyigi | C57: =IF(COUNTRY_INFO!C57=0," ",COUNTRY_INFO!C57) -> Ruyigi | D57: =IF(COUNTRY_INFO!$T$9:$T$1000="MDA2 (DEC+ALB)", COUNTRY_INFO!$T$9:$T$1000, " ") ->  | I57: 0 | M57: 0

Sheet MDA3
A1: MDA 3 - Ivermectine (IVM)
A2: Structure administrative, population nécessitant une chimioprévention par groupe d'âge, population traitée par groupe d'âge et couverture
A4: TOTAL | F4: =SUM(F$9:F$1000) -> 580704.174 | G4: 1594217.826 | H4: 2174922 | I4: 471226.431 | J4: 1293666.569 | K4: 1764893 | L4: 0 | M4: 0 | N4: 0 | O4: 471226.431 | P4: 1293666.569 | Q4: 1764893 | R4: =IF(F4<>0, IF(O4/F4*100=0, "-", O4/F4*100), " ") -> 81.14741586 | S4: =IF(G4<>0, IF(P4/G4*100=0, "-", P4/G4*100), " ") -> 81.14741586 | T4: =IF(H4<>0, IF(Q4/H4*100=0, "-", Q4/H4*100), " ") -> 81.14741586
A6: Structure administrative du pays | D6: Mise en oeuvre de la CP | E6: Date | F6: Population ciblée pour MDA 3 | I6: Population traitée - tournée 1 | L6: Population traitée - tournée 2 | O6: Population traitée | R6: Couverture du Programme (%)
A7: Pays | B7: Région/Département | C7: District | F7: EAS | G7: Adultes | H7: Total | I7: EAS | J7: Adultes | K7: Total | L7: EAS | M7: Adultes | N7: Total | O7: EAS | P7: Adultes | Q7: Total | R7: EAS | S7: Adultes | T7: Total
A9: =IF(COUNTRY_INFO!A9=0," ",COUNTRY_INFO!A9) -> Burundi | B9: =IF(COUNTRY_INFO!B9=0," ",COUNTRY_INFO!B9) -> Bubanza | C9: =IF(COUNTRY_INFO!C9=0," ",COUNTRY_INFO!C9) -> Bubanza | D9: =IF(COUNTRY_INFO!$T$9:$T$1000="MDA3 (IVM)", COUNTRY_INFO!$T$9:$T$1000, " ") -> MDA3 (IVM) | E9: Septembre 2022 | F9: 66733.98 | G9: 183206.02 | H9: =SUM(F9:G9) -> 249940 | I9: 53293.467 | J9: 146307.533 | K9: =SUM(I9:J9) -> 199601 | N9: =SUM(L9:M9) -> 0 | O9: =MAX(I9,L9) -> 53293.467 | P9: 146307.533 | Q9: =SUM(O9:P9) -> 199601 | R9: =IF(F9<>0, IF(MAX(I9,L9)/F9*100=0, "-", MAX(I9,L9)/F9*100), " ") -> 79.8595663 | S9: 79.8595663 | T9: =IF(H9<>0, IF((MAX(I9,L9)+MAX(J9,M9))/H9*100=0, "-",(MAX(I9,L9)+MAX(J9,M9))/H9*100), " ") -> 79.8595663
A10: =IF(COUNTRY_INFO!A10=0," ",COUNTRY_INFO!A10) -> Burundi | B10: =IF(COUNTRY_INFO!B10=0," ",COUNTRY_INFO!B10) -> Bubanza | C10: =IF(COUNTRY_INFO!C10=0," ",COUNTRY_INFO!C10) -> Mpanda | D10: =IF(COUNTRY_INFO!$T$9:$T$1000="MDA3 (IVM)", COUNTRY_INFO!$T$9:$T$1000, " ") -> MDA3 (IVM) | E10: Septembre 2023 | F10: 63813.267 | G10: 175187.733 | H10: =SUM(F10:G10) -> 239001 | I10: 50640.555 | J10: 139024.445 | K10: =SUM(I10:J10) -> 189665 | N10: =SUM(L10:M10) -> 0 | O10: =MAX(I10,L10) -> 50640.555 | P10: =MAX(J10,M10) -> 139024.445 | Q10: =SUM(O10:P10) -> 189665 | R10: =IF(F10<>0, IF(MAX(I10,L10)/F10*100=0, "-", MAX(I10,L10)/F10*100), " ") -> 79.35740855 | S10: =IF(G10<>0, IF(MAX(J10,M10)/G10*100=0, "-", MAX(J10,M10)/G10*100), " ") -> 79.35740855 | T10: =IF(H10<>0, IF((MAX(I10,L10)+MAX(J10,M10))/H10*100=0, "-",(MAX(I10,L10)+MAX(J10,M10))/H10*100), " ") -> 79.35740855
A11: =IF(COUNTRY_INFO!A11=0," ",COUNTRY_INFO!A11) -> Burundi | B11: =IF(COUNTRY_INFO!B11=0," ",COUNTRY_INFO!B11) -> Bujumbura Mairie | C11: =IF(COUNTRY_INFO!C11=0," ",COUNTRY_INFO!C11) -> Zone Centre | D11: =IF(COUNTRY_INFO!$T$9:$T$1000="MDA3 (IVM)", COUNTRY_INFO!$T$9:$T$1000, " ") ->  | H11: 0 | K11: 0 | N11: 0 | O11: 0 | P11: 0 | Q11: 0
A12: =IF(COUNTRY_INFO!A12=0," ",COUNTRY_INFO!A12) -> Burundi | B12: =IF(COUNTRY_INFO!B12=0," ",COUNTRY_INFO!B12) -> Bujumbura Mairie | C12: =IF(COUNTRY_INFO!C12=0," ",COUNTRY_INFO!C12) -> Zone Nord | D12: =IF(COUNTRY_INFO!$T$9:$T$1000="MDA3 (IVM)", COUNTRY_INFO!$T$9:$T$1000, " ") ->  | H12: 0 | K12: 0 | N12: 0 | O12: 0 | P12: 0 | Q12: 0
A13: =IF(COUNTRY_INFO!A13=0," ",COUNTRY_INFO!A13) -> Burundi | B13: =IF(COUNTRY_INFO!B13=0," ",COUNTRY_INFO!B13) -> Bujumbura Mairie | C13: =IF(COUNTRY_INFO!C13=0," ",COUNTRY_INFO!C13) -> Zone Sud | D13: =IF(COUNTRY_INFO!$T$9:$T$1000="MDA3 (IVM)", COUNTRY_INFO!$T$9:$T$1000, " ") ->  | H13: 0 | K13: 0 | N13: 0 | O13: 0 | P13: 0 | Q13: 0
A14: =IF(COUNTRY_INFO!A14=0," ",COUNTRY_INFO!A14) -> Burundi | B14: =IF(COUNTRY_INFO!B14=0," ",COUNTRY_INFO!B14) -> Bujumbura Rural | C14: =IF(COUNTRY_INFO!C14=0," ",COUNTRY_INFO!C14) -> Isare | D14: =IF(COUNTRY_INFO!$T$9:$T$1000="MDA3 (IVM)", COUNTRY_INFO!$T$9:$T$1000, " ") ->  | H14: 0 | K14: 0 | N14: 0 | O14: 0 | P14: 0 | Q14: 0
A15: =IF(COUNTRY_INFO!A15=0," ",COUNTRY_INFO!A15) -> Burundi | B15: =IF(COUNTRY_INFO!B15=0," ",COUNTRY_INFO!B15) -> Bujumbura Rural | C15: =IF(COUNTRY_INFO!C15=0," ",COUNTRY_INFO!C15) -> Kabezi | D15: =IF(COUNTRY_INFO!$T$9:$T$1000="MDA3 (IVM)", COUNTRY_INFO!$T$9:$T$1000, " ") ->  | H15: 0 | K15: 0 | N15: 0 | O15: 0 | P15: 0 | Q15: 0
A16: =IF(COUNTRY_INFO!A16=0," ",COUNTRY_INFO!A16) -> Burundi | B16: =IF(COUNTRY_INFO!B16=0," ",COUNTRY_INFO!B16) -> Bujumbura Rural | C16: =IF(COUNTRY_INFO!C16=0," ",COUNTRY_INFO!C16) -> Rwibaga | D16: =IF(COUNTRY_INFO!$T$9:$T$1000="MDA3 (IVM)", COUNTRY_INFO!$T$9:$T$1000, " ") ->  | H16: 0 | K16: 0 | N16: 0 | O16: 0 | P16: 0 | Q16: 0
A17: =IF(COUNTRY_INFO!A17=0," ",COUNTRY_INFO!A17) -> Burundi | B17: =IF(COUNTRY_INFO!B17=0," ",COUNTRY_INFO!B17) -> Bururi | C17: =IF(COUNTRY_INFO!C17=0," ",COUNTRY_INFO!C17) -> Bururi | D17: =IF(COUNTRY_INFO!$T$9:$T$1000="MDA3 (IVM)", COUNTRY_INFO!$T$9:$T$1000, " ") -> MDA3 (IVM) | E17: Septembre 2022 | F17: 15753.534 | G17: 43248.466 | H17: 59002 | I17: 12748.716 | J17: 34999.284 | K17: 47748 | N17: 0 | O17: 12748.716 | P17: 34999.284 | Q17: 47748 | R17: 80.9260703 | S17: 80.9260703 | T17: 80.9260703
A18: =IF(COUNTRY_INFO!A18=0," ",COUNTRY_INFO!A18) -> Burundi | B18: =IF(COUNTRY_INFO!B18=0," ",COUNTRY_INFO!B18) -> Bururi | C18: =IF(COUNTRY_INFO!C18=0," ",COUNTRY_INFO!C18) -> Matana | D18: =IF(COUNTRY_INFO!$T$9:$T$1000="MDA3 (IVM)", COUNTRY_INFO!$T$9:$T$1000, " ") ->  | H18: 0 | K18: 0 | N18: 0 | O18: 0 | P18: 0 | Q18: 0
A19: =IF(COUNTRY_INFO!A19=0," ",COUNTRY_INFO!A19) -> Burundi | B19: =IF(COUNTRY_INFO!B19=0," ",COUNTRY_INFO!B19) -> Bururi | C19: =IF(COUNTRY_INFO!C19=0," ",COUNTRY_INFO!C19) -> Rutovu | D19: =IF(COUNTRY_INFO!$T$9:$T$1000="MDA3 (IVM)", COUNTRY_INFO!$T$9:$T$1000, " ") -> MDA3 (IVM) | E19: Septembre 2022 | F19: 6229.377 | G19: 17101.623 | H19: 23331 | I19: 5030.547 | J19: 13810.453 | K19: 18841 | N19: 0 | O19: 5030.547 | P19: 13810.453 | Q19: 18841 | R19: 80.75521838 | S19: 80.75521838 | T19: 80.75521838
A20: =IF(COUNTRY_INFO!A20=0," ",COUNTRY_INFO!A20) -> Burundi | B20: =IF(COUNTRY_INFO!B20=0," ",COUNTRY_INFO!B20) -> Cankuzo | C20: =IF(COUNTRY_INFO!C20=0," ",COUNTRY_INFO!C20) -> Cankuzo | D20: =IF(COUNTRY_INFO!$T$9:$T$1000="MDA3 (IVM)", COUNTRY_INFO!$T$9:$T$1000, " ") ->  | H20: 0 | K20: 0 | N20: 0 | O20: 0 | P20: 0 | Q20: 0
A21: =IF(COUNTRY_INFO!A21=0," ",COUNTRY_INFO!A21) -> Burundi | B21: =IF(COUNTRY_INFO!B21=0," ",COUNTRY_INFO!B21) -> Cankuzo | C21: =IF(COUNTRY_INFO!C21=0," ",COUNTRY_INFO!C21) -> Murore | D21: =IF(COUNTRY_INFO!$T$9:$T$1000="MDA3 (IVM)", COUNTRY_INFO!$T$9:$T$1000, " ") ->  | H21: 0 | K21: 0 | N21: 0 | O21: 0 | P21: 0 | Q21: 0
A22: =IF(COUNTRY_INFO!A22=0," ",COUNTRY_INFO!A22) -> Burundi | B22: =IF(COUNTRY_INFO!B22=0," ",COUNTRY_INFO!B22) -> Cibitoke | C22: =IF(COUNTRY_INFO!C22=0," ",COUNTRY_INFO!C22) -> Bukinanyana | D22: =IF(COUNTRY_INFO!$T$9:$T$1000="MDA3 (IVM)", COUNTRY_INFO!$T$9:$T$1000, " ") -> MDA3 (IVM) | E22: Septembre 2022 | F22: 65366.94 | G22: 179453.06 | H22: 244820 | I22: 53591.439 | J22: 147125.561 | K22: 200717 | N22: 0 | O22: 53591.439 | P22: 147125.561 | Q22: 200717 | R22: 81.9855404 | S22: 81.9855404 | T22: 81.9855404
A23: =IF(COUNTRY_INFO!A23=0," ",COUNTRY_INFO!A23) -> Burundi | B23: =IF(COUNTRY_INFO!B23=0," ",COUNTRY_INFO!B23) -> Cibitoke | C23: =IF(COUNTRY_INFO!C23=0," ",COUNTRY_INFO!C23) -> Cibitoke | D23: =IF(COUNTRY_INFO!$T$9:$T$1000="MDA3 (IVM)", COUNTRY_INFO!$T$9:$T$1000, " ") -> MDA3 (IVM) | E23: Septembre 2022 | F23: 76822.308 | G23: 210901.692 | H23: 287724 | I23: 63059.526 | J23: 173118.474 | K23: 236178 | N23: 0 | O23: 63059.526 | P23: 173118.474 | Q23: 236178 | R23: 82.08491471 | S23: 82.08491471 | T23: 82.08491471
A24: =IF(COUNTRY_INFO!A24=0," ",COUNTRY_INFO!A24) -> Burundi | B24: =IF(COUNTRY_INFO!B24=0," ",COUNTRY_INFO!B24) -> Cibitoke | C24: =IF(COUNTRY_INFO!C24=0," ",COUNTRY_INFO!C24) -> Mabayi | D24: =IF(COUNTRY_INFO!$T$9:$T$1000="MDA3 (IVM)", COUNTRY_INFO!$T$9:$T$1000, " ") -> MDA3 (IVM) | E24: Septembre 2022 | F24: 64380.375 | G24: 176744.625 | H24: 241125 | I24: 52777.89 | J24: 144892.11 | K24: 197670 | N24: 0 | O24: 52777.89 | P24: 144892.11 | Q24: 197670 | R24: 81.97822706 | S24: 81.97822706 | T24: 81.97822706
A25: =IF(COUNTRY_INFO!A25=0," ",COUNTRY_INFO!A25) -> Burundi | B25: =IF(COUNTRY_INFO!B25=0," ",COUNTRY_INFO!B25) -> Gitega | C25: =IF(COUNTRY_INFO!C25=0," ",COUNTRY_INFO!C25) -> Gitega | D25: =IF(COUNTRY_INFO!$T$9:$T$1000="MDA3 (IVM)", COUNTRY_INFO!$T$9:$T$1000, " ") ->  | H25: 0 | K25: 0 | N25: 0 | O25: 0 | P25: 0 | Q25: 0
A26: =IF(COUNTRY_INFO!A26=0," ",COUNTRY_INFO!A26) -> Burundi | B26: =IF(COUNTRY_INFO!B26=0," ",COUNTRY_INFO!B26) -> Gitega | C26: =IF(COUNTRY_INFO!C26=0," ",COUNTRY_INFO!C26) -> Kibuye | D26: =IF(COUNTRY_INFO!$T$9:$T$1000="MDA3 (IVM)", COUNTRY_INFO!$T$9:$T$1000, " ") ->  | H26: 0 | K26: 0 | N26: 0 | O26: 0 | P26: 0 | Q26: 0
A27: =IF(COUNTRY_INFO!A27=0," ",COUNTRY_INFO!A27) -> Burundi | B27: =IF(COUNTRY_INFO!B27=0," ",COUNTRY_INFO!B27) -> Gitega | C27: =IF(COUNTRY_INFO!C27=0," ",COUNTRY_INFO!C27) -> Mutaho | D27: =IF(COUNTRY_INFO!$T$9:$T$1000="MDA3 (IVM)", COUNTRY_INFO!$T$9:$T$1000, " ") ->  | H27: 0 | K27: 0 | N27: 0 | O27: 0 | P27: 0 | Q27: 0
A28: =IF(COUNTRY_INFO!A28=0," ",COUNTRY_INFO!A28) -> Burundi | B28: =IF(COUNTRY_INFO!B28=0," ",COUNTRY_INFO!B28) -> Gitega | C28: =IF(COUNTRY_INFO!C28=0," ",COUNTRY_INFO!C28) -> Ryansoro | D28: =IF(COUNTRY_INFO!$T$9:$T$1000="MDA3 (IVM)", COUNTRY_INFO!$T$9:$T$1000, " ") ->  | H28: 0 | K28: 0 | N28: 0 | O28: 0 | P28: 0 | Q28: 0
A29: =IF(COUNTRY_INFO!A29=0," ",COUNTRY_INFO!A29) -> Burundi | B29: =IF(COUNTRY_INFO!B29=0," ",COUNTRY_INFO!B29) -> Karusi | C29: =IF(COUNTRY_INFO!C29=0," ",COUNTRY_INFO!C29) -> Buhiga | D29: =IF(COUNTRY_INFO!$T$9:$T$1000="MDA3 (IVM)", COUNTRY_INFO!$T$9:$T$1000, " ") ->  | H29: 0 | K29: 0 | N29: 0 | O29: 0 | P29: 0 | Q29: 0
A30: =IF(COUNTRY_INFO!A30=0," ",COUNTRY_INFO!A30) -> Burundi | B30: =IF(COUNTRY_INFO!B30=0," ",COUNTRY_INFO!B30) -> Karusi | C30: =IF(COUNTRY_INFO!C30=0," ",COUNTRY_INFO!C30) -> Nyabikere | D30: =IF(COUNTRY_INFO!$T$9:$T$1000="MDA3 (IVM)", COUNTRY_INFO!$T$9:$T$1000, " ") ->  | H30: 0 | K30: 0 | N30: 0 | O30: 0 | P30: 0 | Q30: 0
A31: =IF(COUNTRY_INFO!A31=0," ",COUNTRY_INFO!A31) -> Burundi | B31: =IF(COUNTRY_INFO!B31=0," ",COUNTRY_INFO!B31) -> Kayanza | C31: =IF(COUNTRY_INFO!C31=0," ",COUNTRY_INFO!C31) -> Gahombo | D31: =IF(COUNTRY_INFO!$T$9:$T$1000="MDA3 (IVM)", COUNTRY_INFO!$T$9:$T$1000, " ") ->  | H31: 0 | K31: 0 | N31: 0 | O31: 0 | P31: 0 | Q31: 0
A32: =IF(COUNTRY_INFO!A32=0," ",COUNTRY_INFO!A32) -> Burundi | B32: =IF(COUNTRY_INFO!B32=0," ",COUNTRY_INFO!B32) -> Kayanza | C32: =IF(COUNTRY_INFO!C32=0," ",COUNTRY_INFO!C32) -> Kayanza | D32: =IF(COUNTRY_INFO!$T$9:$T$1000="MDA3 (IVM)", COUNTRY_INFO!$T$9:$T$1000, " ") ->  | H32: 0 | K32: 0 | N32: 0 | O32: 0 | P32: 0 | Q32: 0
A33: =IF(COUNTRY_INFO!A33=0," ",COUNTRY_INFO!A33) -> Burundi | B33: =IF(COUNTRY_INFO!B33=0," ",COUNTRY_INFO!B33) -> Kayanza | C33: =IF(COUNTRY_INFO!C33=0," ",COUNTRY_INFO!C33) -> Musema | D33: =IF(COUNTRY_INFO!$T$9:$T$1000="MDA3 (IVM)", COUNTRY_INFO!$T$9:$T$1000, " ") ->  | H33: 0 | K33: 0 | N33: 0 | O33: 0 | P33: 0 | Q33: 0
A34: =IF(COUNTRY_INFO!A34=0," ",COUNTRY_INFO!A34) -> Burundi | B34: =IF(COUNTRY_INFO!B34=0," ",COUNTRY_INFO!B34) -> Kirundo | C34: =IF(COUNTRY_INFO!C34=0," ",COUNTRY_INFO!C34) -> Busoni | D34: =IF(COUNTRY_INFO!$T$9:$T$1000="MDA3 (IVM)", COUNTRY_INFO!$T$9:$T$1000, " ") ->  | H34: 0 | K34: 0 | N34: 0 | O34: 0 | P34: 0 | Q34: 0
A35: =IF(COUNTRY_INFO!A35=0," ",COUNTRY_INFO!A35) -> Burundi | B35: =IF(COUNTRY_INFO!B35=0," ",COUNTRY_INFO!B35) -> Kirundo | C35: =IF(COUNTRY_INFO!C35=0," ",COUNTRY_INFO!C35) -> Kirundo | D35: =IF(COUNTRY_INFO!$T$9:$T$1000="MDA3 (IVM)", COUNTRY_INFO!$T$9:$T$1000, " ") ->  | H35: 0 | K35: 0 | N35: 0 | O35: 0 | P35: 0 | Q35: 0
A36: =IF(COUNTRY_INFO!A36=0," ",COUNTRY_INFO!A36) -> Burundi | B36: =IF(COUNTRY_INFO!B36=0," ",COUNTRY_INFO!B36) -> Kirundo | C36: =IF(COUNTRY_INFO!C36=0," ",COUNTRY_INFO!C36) -> Mukenke | D36: =IF(COUNTRY_INFO!$T$9:$T$1000="MDA3 (IVM)", COUNTRY_INFO!$T$9:$T$1000, " ") ->  | H36: 0 | K36: 0 | N36: 0 | O36: 0 | P36: 0 | Q36: 0
A37: =IF(COUNTRY_INFO!A37=0," ",COUNTRY_INFO!A37) -> Burundi | B37: =IF(COUNTRY_INFO!B37=0," ",COUNTRY_INFO!B37) -> Kirundo | C37: =IF(COUNTRY_INFO!C37=0," ",COUNTRY_INFO!C37) -> Vumbi | D37: =IF(COUNTRY_INFO!$T$9:$T$1000="MDA3 (IVM)", COUNTRY_INFO!$T$9:$T$1000, " ") ->  | H37: 0 | K37: 0 | N37: 0 | O37: 0 | P37: 0 | Q37: 0
A38: =IF(COUNTRY_INFO!A38=0," ",COUNTRY_INFO!A38) -> Burundi | B38: =IF(COUNTRY_INFO!B38=0," ",COUNTRY_INFO!B38) -> Makamba | C38: =IF(COUNTRY_INFO!C38=0," ",COUNTRY_INFO!C38) -> Makamba | D38: =IF(COUNTRY_INFO!$T$9:$T$1000="MDA3 (IVM)", COUNTRY_INFO!$T$9:$T$1000, " ") -> MDA3 (IVM) | E38: Septembre 2022 | F38: 18683.859 | G38: 51293.141 | H38: 69977 | I38: 15219.267 | J38: 41781.733 | K38: 57001 | N38: 0 | O38: 15219.267 | P38: 41781.733 | Q38: 57001 | R38: 81.45676437 | S38: 81.45676437 | T38: 81.45676437
A39: =IF(COUNTRY_INFO!A39=0," ",COUNTRY_INFO!A39) -> Burundi | B39: =IF(COUNTRY_INFO!B39=0," ",COUNTRY_INFO!B39) -> Makamba | C39: =IF(COUNTRY_INFO!C39=0," ",COUNTRY_INFO!C39) -> Nyanza-Lac | D39: =IF(COUNTRY_INFO!$T$9:$T$1000="MDA3 (IVM)", COUNTRY_INFO!$T$9:$T$1000, " ") ->  | H39: 0 | K39: 0 | N39: 0 | O39: 0 | P39: 0 | Q39: 0
A40: =IF(COUNTRY_INFO!A40=0," ",COUNTRY_INFO!A40) -> Burundi | B40: =IF(COUNTRY_INFO!B40=0," ",COUNTRY_INFO!B40) -> Muramvya | C40: =IF(COUNTRY_INFO!C40=0," ",COUNTRY_INFO!C40) -> Kiganda | D40: =IF(COUNTRY_INFO!$T$9:$T$1000="MDA3 (IVM)", COUNTRY_INFO!$T$9:$T$1000, " ") ->  | H40: 0 | K40: 0 | N40: 0 | O40: 0 | P40: 0 | Q40: 0
A41: =IF(COUNTRY_INFO!A41=0," ",COUNTRY_INFO!A41) -> Burundi | B41: =IF(COUNTRY_INFO!B41=0," ",COUNTRY_INFO!B41) -> Muramvya | C41: =IF(COUNTRY_INFO!C41=0," ",COUNTRY_INFO!C41) -> Muramvya | D41: =IF(COUNTRY_INFO!$T$9:$T$1000="MDA3 (IVM)", COUNTRY_INFO!$T$9:$T$1000, " ") ->  | H41: 0 | K41: 0 | N41: 0 | O41: 0 | P41: 0 | Q41: 0
A42: =IF(COUNTRY_INFO!A42=0," ",COUNTRY_INFO!A42) -> Burundi | B42: =IF(COUNTRY_INFO!B42=0," ",COUNTRY_INFO!B42) -> Muyinga | C42: =IF(COUNTRY_INFO!C42=0," ",COUNTRY_INFO!C42) -> Gashoho | D42: =IF(COUNTRY_INFO!$T$9:$T$1000="MDA3 (IVM)", COUNTRY_INFO!$T$9:$T$1000, " ") ->  | H42: 0 | K42: 0 | N42: 0 | O42: 0 | P42: 0 | Q42: 0
A43: =IF(COUNTRY_INFO!A43=0," ",COUNTRY_INFO!A43) -> Burundi | B43: =IF(COUNTRY_INFO!B43=0," ",COUNTRY_INFO!B43) -> Muyinga | C43: =IF(COUNTRY_INFO!C43=0," ",COUNTRY_INFO!C43) -> Giteranyi | D43: =IF(COUNTRY_INFO!$T$9:$T$1000="MDA3 (IVM)", COUNTRY_INFO!$T$9:$T$1000, " ") ->  | H43: 0 | K43: 0 | N43: 0 | O43: 0 | P43: 0 | Q43: 0
A44: =IF(COUNTRY_INFO!A44=0," ",COUNTRY_INFO!A44) -> Burundi | B44: =IF(COUNTRY_INFO!B44=0," ",COUNTRY_INFO!B44) -> Muyinga | C44: =IF(COUNTRY_INFO!C44=0," ",COUNTRY_INFO!C44) -> Muyinga | D44: =IF(COUNTRY_INFO!$T$9:$T$1000="MDA3 (IVM)", COUNTRY_INFO!$T$9:$T$1000, " ") ->  | H44: 0 | K44: 0 | N44: 0 | O44: 0 | P44: 0 | Q44: 0
A45: =IF(COUNTRY_INFO!A45=0," ",COUNTRY_INFO!A45) -> Burundi | B45: =IF(COUNTRY_INFO!B45=0," ",COUNTRY_INFO!B45) -> Mwaro | C45: =IF(COUNTRY_INFO!C45=0," ",COUNTRY_INFO!C45) -> Fota | D45: =IF(COUNTRY_INFO!$T$9:$T$1000="MDA3 (IVM)", COUNTRY_INFO!$T$9:$T$1000, " ") ->  | H45: 0 | K45: 0 | N45: 0 | O45: 0 | P45: 0 | Q45: 0
A46: =IF(COUNTRY_INFO!A46=0," ",COUNTRY_INFO!A46) -> Burundi | B46: =IF(COUNTRY_INFO!B46=0," ",COUNTRY_INFO!B46) -> Mwaro | C46: =IF(COUNTRY_INFO!C46=0," ",COUNTRY_INFO!C46) -> Kibumbu | D46: =IF(COUNTRY_INFO!$T$9:$T$1000="MDA3 (IVM)", COUNTRY_INFO!$T$9:$T$1000, " ") ->  | H46: 0 | K46: 0 | N46: 0 | O46: 0 | P46: 0 | Q46: 0
A47: =IF(COUNTRY_INFO!A47=0," ",COUNTRY_INFO!A47) -> Burundi | B47: =IF(COUNTRY_INFO!B47=0," ",COUNTRY_INFO!B47) -> Ngozi | C47: =IF(COUNTRY_INFO!C47=0," ",COUNTRY_INFO!C47) -> Buye | D47: =IF(COUNTRY_INFO!$T$9:$T$1000="MDA3 (IVM)", COUNTRY_INFO!$T$9:$T$1000, " ") ->  | H47: 0 | K47: 0 | N47: 0 | O47: 0 | P47: 0 | Q47: 0
A48: =IF(COUNTRY_INFO!A48=0," ",COUNTRY_INFO!A48) -> Burundi | B48: =IF(COUNTRY_INFO!B48=0," ",COUNTRY_INFO!B48) -> Ngozi | C48: =IF(COUNTRY_INFO!C48=0," ",COUNTRY_INFO!C48) -> Kiremba | D48: =IF(COUNTRY_INFO!$T$9:$T$1000="MDA3 (IVM)", COUNTRY_INFO!$T$9:$T$1000, " ") ->  | H48: 0 | K48: 0 | N48: 0 | O48: 0 | P48: 0 | Q48: 0
A49: =IF(COUNTRY_INFO!A49=0," ",COUNTRY_INFO!A49) -> Burundi | B49: =IF(COUNTRY_INFO!B49=0," ",COUNTRY_INFO!B49) -> Ngozi | C49: =IF(COUNTRY_INFO!C49=0," ",COUNTRY_INFO!C49) -> Ngozi | D49: =IF(COUNTRY_INFO!$T$9:$T$1000="MDA3 (IVM)", COUNTRY_INFO!$T$9:$T$1000, " ") ->  | H49: 0 | K49: 0 | N49: 0 | O49: 0 | P49: 0 | Q49: 0
A50: =IF(COUNTRY_INFO!A50=0," ",COUNTRY_INFO!A50) -> Burundi | B50: =IF(COUNTRY_INFO!B50=0," ",COUNTRY_INFO!B50) -> Rumonge | C50: =IF(COUNTRY_INFO!C50=0," ",COUNTRY_INFO!C50) -> Bugarama | D50: =IF(COUNTRY_INFO!$T$9:$T$1000="MDA3 (IVM)", COUNTRY_INFO!$T$9:$T$1000, " ") -> MDA3 (IVM) | E50: Septembre 2022 | F50: 23061.324 | G50: 63310.676 | H50: 86372 | I50: 18678.519 | J50: 51278.481 | K50: 69957 | N50: 0 | O50: 18678.519 | P50: 51278.481 | Q50: 69957 | R50: 80.99499838 | S50: 80.99499838 | T50: 80.99499838
A51: =IF(COUNTRY_INFO!A51=0," ",COUNTRY_INFO!A51) -> Burundi | B51: =IF(COUNTRY_INFO!B51=0," ",COUNTRY_INFO!B51) -> Rumonge | C51: =IF(COUNTRY_INFO!C51=0," ",COUNTRY_INFO!C51) -> Rumonge | D51: =IF(COUNTRY_INFO!$T$9:$T$1000="MDA3 (IVM)", COUNTRY_INFO!$T$9:$T$1000, " ") -> MDA3 (IVM) | E51: Septembre 2022 | F51: 88062.207 | G51: 241758.793 | H51: 329821 | I51: 71652.921 | J51: 196710.079 | K51: 268363 | N51: 0 | O51: 71652.921 | P51: 196710.079 | Q51: 268363 | R51: 81.36625624 | S51: 81.36625624 | T51: 81.36625624
A52: =IF(COUNTRY_INFO!A52=0," ",COUNTRY_INFO!A52) -> Burundi | B52: =IF(COUNTRY_INFO!B52=0," ",COUNTRY_INFO!B52) -> Rutana | C52: =IF(COUNTRY_INFO!C52=0," ",COUNTRY_INFO!C52) -> Gihofi | D52: =IF(COUNTRY_INFO!$T$9:$T$1000="MDA3 (IVM)", COUNTRY_INFO!$T$9:$T$1000, " ") -> MDA3 (IVM) | E52: Septembre 2022 | F52: 85802.853 | G52: 235556.147 | H52: 321359 | I52: 69633.333 | J52: 191165.667 | K52: 260799 | N52: 0 | O52: 69633.333 | P52: 191165.667 | Q52: 260799 | R52: 81.15503222 | S52: 81.15503222 | T52: 81.15503222
A53: =IF(COUNTRY_INFO!A53=0," ",COUNTRY_INFO!A53) -> Burundi | B53: =IF(COUNTRY_INFO!B53=0," ",COUNTRY_INFO!B53) -> Rutana | C53: =IF(COUNTRY_INFO!C53=0," ",COUNTRY_INFO!C53) -> Rutana | D53: =IF(COUNTRY_INFO!$T$9:$T$1000="MDA3 (IVM)", COUNTRY_INFO!$T$9:$T$1000, " ") -> MDA3 (IVM) | E53: Septembre 2022 | F53: 5994.15 | G53: 16455.85 | H53: 22450 | I53: 4900.251 | J53: 13452.749 | K53: 18353 | N53: 0 | O53: 4900.251 | P53: 13452.749 | Q53: 18353 | R53: 81.75055679 | S53: 81.75055679 | T53: 81.75055679
A54: =IF(COUNTRY_INFO!A54=0," ",COUNTRY_INFO!A54) -> Burundi | B54: =IF(COUNTRY_INFO!B54=0," ",COUNTRY_INFO!B54) -> Ruyigi | C54: =IF(COUNTRY_INFO!C54=0," ",COUNTRY_INFO!C54) -> Butezi | D54: =IF(COUNTRY_INFO!$T$9:$T$1000="MDA3 (IVM)", COUNTRY_INFO!$T$9:$T$1000, " ") ->  | H54: 0 | K54: 0 | N54: 0 | O54: 0 | P54: 0 | Q54: 0
A55: =IF(COUNTRY_INFO!A55=0," ",COUNTRY_INFO!A55) -> Burundi | B55: =IF(COUNTRY_INFO!B55=0," ",COUNTRY_INFO!B55) -> Gisuru | C55: =IF(COUNTRY_INFO!C55=0," ",COUNTRY_INFO!C55) -> Gisuru | D55: =IF(COUNTRY_INFO!$T$9:$T$1000="MDA3 (IVM)", COUNTRY_INFO!$T$9:$T$1000, " ") ->  | H55: 0 | K55: 0 | N55: 0 | O55: 0 | P55: 0 | Q55: 0
A56: =IF(COUNTRY_INFO!A56=0," ",COUNTRY_INFO!A56) -> Burundi | B56: =IF(COUNTRY_INFO!B56=0," ",COUNTRY_INFO!B56) -> Ruyigi | C56: =IF(COUNTRY_INFO!C56=0," ",COUNTRY_INFO!C56) -> Kinyinya | D56: =IF(COUNTRY_INFO!$T$9:$T$1000="MDA3 (IVM)", COUNTRY_INFO!$T$9:$T$1000, " ") ->  | H56: 0 | K56: 0 | N56: 0 | O56: 0 | P56: 0 | Q56: 0
A57: =IF(COUNTRY_INFO!A57=0," ",COUNTRY_INFO!A57) -> Burundi | B57: =IF(COUNTRY_INFO!B57=0," ",COUNTRY_INFO!B57) -> Ruyigi | C57: =IF(COUNTRY_INFO!C57=0," ",COUNTRY_INFO!C57) -> Ruyigi | D57: =IF(COUNTRY_INFO!$T$9:$T$1000="MDA3 (IVM)", COUNTRY_INFO!$T$9:$T$1000, " ") ->  | H57: 0 | K57: 0 | N57: 0 | O57: 0 | P57: 0 | Q57: 0

Sheet T1
A1: T 1 - Praziquantel (PZQ) et Albendazole (ALB) ou Mebendazole (MBD)
A2: Structure administrative, population nécessitant une chimioprévention par groupe d'âge, population traitée par groupe d'âge et couverture
A4: TOTAL | G4: =SUM(G$9:G$1000) -> 0 | H4: 0 | I4: 0 | J4: 0 | K4: =SUM(K$9:K$1000) -> 0 | L4: 0 | M4: 0 | N4: 0 | O4: 0 | P4: =IF(G4<>0, IF(L4/G4*100=0, "-", L4/G4*100), " ") ->  | Q4: =IF(OR(I4<>0,H4<>0), IF(M4/MAX(H4,I4)*100=0, "-", M4/MAX(H4,I4)*100), " ") ->  | R4: =IF(J4<>0, IF(N4/J4*100=0, "-", N4/J4*100), " ") ->  | S4: =IF(K4<>0, IF(O4/K4*100=0, "-", O4/K4*100), " ") -> 
A6: Structure administrative du pays | D6: Mise en oeuvre de la CP | E6: Médica-ment | F6: Date | G6: Population ciblée pour T1 | L6: Population traitée | P6: Couverture du Programme (%)
A7: Pays | B7: Région/Département | C7: District | G7: EAPréS (ALB) | H7: EAS (ALB) | I7: EAS (PZQ) | J7: Adultes (PZQ) | K7: Total | L7: EAPréS | M7: EAS | N7: Adultes | O7: Total | P7: EAPréS | Q7: EAS | R7: Adultes | S7: Total
A9: =IF(COUNTRY_INFO!A9=0," ",COUNTRY_INFO!A9) -> Burundi | B9: =IF(COUNTRY_INFO!B9=0," ",COUNTRY_INFO!B9) -> Bubanza | C9: =IF(COUNTRY_INFO!C9=0," ",COUNTRY_INFO!C9) -> Bubanza | D9: =IF(OR(COUNTRY_INFO!$T$9:$T$1000="T1 (PZQ+ALB/MBD)",COUNTRY_INFO!$U$9:$U$1000="T1 (PZQ+ALB/MBD)"), "T1 (PZQ+ALB/MBD)", " ") ->  | K9: =MAX(H9:I9)+G9+J9 -> 0 | O9: =SUM(L9:N9) -> 0 | P9: =IF(G9<>0, IF(L9/G9*100=0, "-", L9/G9*100), " ") ->  | Q9: =IF(OR(I9<>0,H9<>0), IF(M9/MAX(H9,I9)*100=0, "-", M9/MAX(H9,I9)*100), " ") ->  | R9: =IF(J9<>0, IF(N9/J9*100=0, "-", N9/J9*100), " ") -> 
A10: =IF(COUNTRY_INFO!A10=0," ",COUNTRY_INFO!A10) -> Burundi | B10: =IF(COUNTRY_INFO!B10=0," ",COUNTRY_INFO!B10) -> Bubanza | C10: =IF(COUNTRY_INFO!C10=0," ",COUNTRY_INFO!C10) -> Mpanda | D10: =IF(OR(COUNTRY_INFO!$T$9:$T$1000="T1 (PZQ+ALB/MBD)",COUNTRY_INFO!$U$9:$U$1000="T1 (PZQ+ALB/MBD)"), "T1 (PZQ+ALB/MBD)", " ") ->  | K10: =MAX(H10:I10)+G10+J10 -> 0 | O10: =SUM(L10:N10) -> 0 | P10: =IF(G10<>0, IF(L10/G10*100=0, "-", L10/G10*100), " ") ->  | Q10: =IF(OR(I10<>0,H10<>0), IF(M10/MAX(H10,I10)*100=0, "-", M10/MAX(H10,I10)*100), " ") ->  | R10: =IF(J10<>0, IF(N10/J10*100=0, "-", N10/J10*100), " ") ->  | S10: =IF(K10<>0, IF(O10/K10*100=0, "-", O10/K10*100), " ") -> 
A11: =IF(COUNTRY_INFO!A11=0," ",COUNTRY_INFO!A11) -> Burundi | B11: =IF(COUNTRY_INFO!B11=0," ",COUNTRY_INFO!B11) -> Bujumbura Mairie | C11: =IF(COUNTRY_INFO!C11=0," ",COUNTRY_INFO!C11) -> Zone Centre | D11: =IF(OR(COUNTRY_INFO!$T$9:$T$1000="T1 (PZQ+ALB/MBD)",COUNTRY_INFO!$U$9:$U$1000="T1 (PZQ+ALB/MBD)"), "T1 (PZQ+ALB/MBD)", " ") ->  | K11: 0 | O11: 0
A12: =IF(COUNTRY_INFO!A12=0," ",COUNTRY_INFO!A12) -> Burundi | B12: =IF(COUNTRY_INFO!B12=0," ",COUNTRY_INFO!B12) -> Bujumbura Mairie | C12: =IF(COUNTRY_INFO!C12=0," ",COUNTRY_INFO!C12) -> Zone Nord | D12: =IF(OR(COUNTRY_INFO!$T$9:$T$1000="T1 (PZQ+ALB/MBD)",COUNTRY_INFO!$U$9:$U$1000="T1 (PZQ+ALB/MBD)"), "T1 (PZQ+ALB/MBD)", " ") ->  | K12: 0 | O12: 0
A13: =IF(COUNTRY_INFO!A13=0," ",COUNTRY_INFO!A13) -> Burundi | B13: =IF(COUNTRY_INFO!B13=0," ",COUNTRY_INFO!B13) -> Bujumbura Mairie | C13: =IF(COUNTRY_INFO!C13=0," ",COUNTRY_INFO!C13) -> Zone Sud | D13: =IF(OR(COUNTRY_INFO!$T$9:$T$1000="T1 (PZQ+ALB/MBD)",COUNTRY_INFO!$U$9:$U$1000="T1 (PZQ+ALB/MBD)"), "T1 (PZQ+ALB/MBD)", " ") ->  | K13: 0 | O13: 0
A14: =IF(COUNTRY_INFO!A14=0," ",COUNTRY_INFO!A14) -> Burundi | B14: =IF(COUNTRY_INFO!B14=0," ",COUNTRY_INFO!B14) -> Bujumbura Rural | C14: =IF(COUNTRY_INFO!C14=0," ",COUNTRY_INFO!C14) -> Isare | D14: =IF(OR(COUNTRY_INFO!$T$9:$T$1000="T1 (PZQ+ALB/MBD)",COUNTRY_INFO!$U$9:$U$1000="T1 (PZQ+ALB/MBD)"), "T1 (PZQ+ALB/MBD)", " ") ->  | K14: 0 | O14: 0
A15: =IF(COUNTRY_INFO!A15=0," ",COUNTRY_INFO!A15) -> Burundi | B15: =IF(COUNTRY_INFO!B15=0," ",COUNTRY_INFO!B15) -> Bujumbura Rural | C15: =IF(COUNTRY_INFO!C15=0," ",COUNTRY_INFO!C15) -> Kabezi | D15: =IF(OR(COUNTRY_INFO!$T$9:$T$1000="T1 (PZQ+ALB/MBD)",COUNTRY_INFO!$U$9:$U$1000="T1 (PZQ+ALB/MBD)"), "T1 (PZQ+ALB/MBD)", " ") ->  | K15: 0 | O15: 0
A16: =IF(COUNTRY_INFO!A16=0," ",COUNTRY_INFO!A16) -> Burundi | B16: =IF(COUNTRY_INFO!B16=0," ",COUNTRY_INFO!B16) -> Bujumbura Rural | C16: =IF(COUNTRY_INFO!C16=0," ",COUNTRY_INFO!C16) -> Rwibaga | D16: =IF(OR(COUNTRY_INFO!$T$9:$T$1000="T1 (PZQ+ALB/MBD)",COUNTRY_INFO!$U$9:$U$1000="T1 (PZQ+ALB/MBD)"), "T1 (PZQ+ALB/MBD)", " ") ->  | K16: 0 | O16: 0
A17: =IF(COUNTRY_INFO!A17=0," ",COUNTRY_INFO!A17) -> Burundi | B17: =IF(COUNTRY_INFO!B17=0," ",COUNTRY_INFO!B17) -> Bururi | C17: =IF(COUNTRY_INFO!C17=0," ",COUNTRY_INFO!C17) -> Bururi | D17: =IF(OR(COUNTRY_INFO!$T$9:$T$1000="T1 (PZQ+ALB/MBD)",COUNTRY_INFO!$U$9:$U$1000="T1 (PZQ+ALB/MBD)"), "T1 (PZQ+ALB/MBD)", " ") ->  | K17: 0 | O17: 0
A18: =IF(COUNTRY_INFO!A18=0," ",COUNTRY_INFO!A18) -> Burundi | B18: =IF(COUNTRY_INFO!B18=0," ",COUNTRY_INFO!B18) -> Bururi | C18: =IF(COUNTRY_INFO!C18=0," ",COUNTRY_INFO!C18) -> Matana | D18: =IF(OR(COUNTRY_INFO!$T$9:$T$1000="T1 (PZQ+ALB/MBD)",COUNTRY_INFO!$U$9:$U$1000="T1 (PZQ+ALB/MBD)"), "T1 (PZQ+ALB/MBD)", " ") ->  | K18: 0 | O18: 0
A19: =IF(COUNTRY_INFO!A19=0," ",COUNTRY_INFO!A19) -> Burundi | B19: =IF(COUNTRY_INFO!B19=0," ",COUNTRY_INFO!B19) -> Bururi | C19: =IF(COUNTRY_INFO!C19=0," ",COUNTRY_INFO!C19) -> Rutovu | D19: =IF(OR(COUNTRY_INFO!$T$9:$T$1000="T1 (PZQ+ALB/MBD)",COUNTRY_INFO!$U$9:$U$1000="T1 (PZQ+ALB/MBD)"), "T1 (PZQ+ALB/MBD)", " ") ->  | K19: 0 | O19: 0
A20: =IF(COUNTRY_INFO!A20=0," ",COUNTRY_INFO!A20) -> Burundi | B20: =IF(COUNTRY_INFO!B20=0," ",COUNTRY_INFO!B20) -> Cankuzo | C20: =IF(COUNTRY_INFO!C20=0," ",COUNTRY_INFO!C20) -> Cankuzo | D20: =IF(OR(COUNTRY_INFO!$T$9:$T$1000="T1 (PZQ+ALB/MBD)",COUNTRY_INFO!$U$9:$U$1000="T1 (PZQ+ALB/MBD)"), "T1 (PZQ+ALB/MBD)", " ") ->  | K20: 0 | O20: 0
A21: =IF(COUNTRY_INFO!A21=0," ",COUNTRY_INFO!A21) -> Burundi | B21: =IF(COUNTRY_INFO!B21=0," ",COUNTRY_INFO!B21) -> Cankuzo | C21: =IF(COUNTRY_INFO!C21=0," ",COUNTRY_INFO!C21) -> Murore | D21: =IF(OR(COUNTRY_INFO!$T$9:$T$1000="T1 (PZQ+ALB/MBD)",COUNTRY_INFO!$U$9:$U$1000="T1 (PZQ+ALB/MBD)"), "T1 (PZQ+ALB/MBD)", " ") ->  | K21: 0 | O21: 0
A22: =IF(COUNTRY_INFO!A22=0," ",COUNTRY_INFO!A22) -> Burundi | B22: =IF(COUNTRY_INFO!B22=0," ",COUNTRY_INFO!B22) -> Cibitoke | C22: =IF(COUNTRY_INFO!C22=0," ",COUNTRY_INFO!C22) -> Bukinanyana | D22: =IF(OR(COUNTRY_INFO!$T$9:$T$1000="T1 (PZQ+ALB/MBD)",COUNTRY_INFO!$U$9:$U$1000="T1 (PZQ+ALB/MBD)"), "T1 (PZQ+ALB/MBD)", " ") ->  | K22: 0 | O22: 0
A23: =IF(COUNTRY_INFO!A23=0," ",COUNTRY_INFO!A23) -> Burundi | B23: =IF(COUNTRY_INFO!B23=0," ",COUNTRY_INFO!B23) -> Cibitoke | C23: =IF(COUNTRY_INFO!C23=0," ",COUNTRY_INFO!C23) -> Cibitoke | D23: =IF(OR(COUNTRY_INFO!$T$9:$T$1000="T1 (PZQ+ALB/MBD)",COUNTRY_INFO!$U$9:$U$1000="T1 (PZQ+ALB/MBD)"), "T1 (PZQ+ALB/MBD)", " ") ->  | K23: 0 | O23: 0
A24: =IF(COUNTRY_INFO!A24=0," ",COUNTRY_INFO!A24) -> Burundi | B24: =IF(COUNTRY_INFO!B24=0," ",COUNTRY_INFO!B24) -> Cibitoke | C24: =IF(COUNTRY_INFO!C24=0," ",COUNTRY_INFO!C24) -> Mabayi | D24: =IF(OR(COUNTRY_INFO!$T$9:$T$1000="T1 (PZQ+ALB/MBD)",COUNTRY_INFO!$U$9:$U$1000="T1 (PZQ+ALB/MBD)"), "T1 (PZQ+ALB/MBD)", " ") ->  | K24: 0 | O24: 0
A25: =IF(COUNTRY_INFO!A25=0," ",COUNTRY_INFO!A25) -> Burundi | B25: =IF(COUNTRY_INFO!B25=0," ",COUNTRY_INFO!B25) -> Gitega | C25: =IF(COUNTRY_INFO!C25=0," ",COUNTRY_INFO!C25) -> Gitega | D25: =IF(OR(COUNTRY_INFO!$T$9:$T$1000="T1 (PZQ+ALB/MBD)",COUNTRY_INFO!$U$9:$U$1000="T1 (PZQ+ALB/MBD)"), "T1 (PZQ+ALB/MBD)", " ") ->  | K25: 0 | O25: 0
A26: =IF(COUNTRY_INFO!A26=0," ",COUNTRY_INFO!A26) -> Burundi | B26: =IF(COUNTRY_INFO!B26=0," ",COUNTRY_INFO!B26) -> Gitega | C26: =IF(COUNTRY_INFO!C26=0," ",COUNTRY_INFO!C26) -> Kibuye | D26: =IF(OR(COUNTRY_INFO!$T$9:$T$1000="T1 (PZQ+ALB/MBD)",COUNTRY_INFO!$U$9:$U$1000="T1 (PZQ+ALB/MBD)"), "T1 (PZQ+ALB/MBD)", " ") ->  | K26: 0 | O26: 0
A27: =IF(COUNTRY_INFO!A27=0," ",COUNTRY_INFO!A27) -> Burundi | B27: =IF(COUNTRY_INFO!B27=0," ",COUNTRY_INFO!B27) -> Gitega | C27: =IF(COUNTRY_INFO!C27=0," ",COUNTRY_INFO!C27) -> Mutaho | D27: =IF(OR(COUNTRY_INFO!$T$9:$T$1000="T1 (PZQ+ALB/MBD)",COUNTRY_INFO!$U$9:$U$1000="T1 (PZQ+ALB/MBD)"), "T1 (PZQ+ALB/MBD)", " ") ->  | K27: 0 | O27: 0
A28: =IF(COUNTRY_INFO!A28=0," ",COUNTRY_INFO!A28) -> Burundi | B28: =IF(COUNTRY_INFO!B28=0," ",COUNTRY_INFO!B28) -> Gitega | C28: =IF(COUNTRY_INFO!C28=0," ",COUNTRY_INFO!C28) -> Ryansoro | D28: =IF(OR(COUNTRY_INFO!$T$9:$T$1000="T1 (PZQ+ALB/MBD)",COUNTRY_INFO!$U$9:$U$1000="T1 (PZQ+ALB/MBD)"), "T1 (PZQ+ALB/MBD)", " ") ->  | K28: 0 | O28: 0
A29: =IF(COUNTRY_INFO!A29=0," ",COUNTRY_INFO!A29) -> Burundi | B29: =IF(COUNTRY_INFO!B29=0," ",COUNTRY_INFO!B29) -> Karusi | C29: =IF(COUNTRY_INFO!C29=0," ",COUNTRY_INFO!C29) -> Buhiga | D29: =IF(OR(COUNTRY_INFO!$T$9:$T$1000="T1 (PZQ+ALB/MBD)",COUNTRY_INFO!$U$9:$U$1000="T1 (PZQ+ALB/MBD)"), "T1 (PZQ+ALB/MBD)", " ") ->  | K29: 0 | O29: 0
A30: =IF(COUNTRY_INFO!A30=0," ",COUNTRY_INFO!A30) -> Burundi | B30: =IF(COUNTRY_INFO!B30=0," ",COUNTRY_INFO!B30) -> Karusi | C30: =IF(COUNTRY_INFO!C30=0," ",COUNTRY_INFO!C30) -> Nyabikere | D30: =IF(OR(COUNTRY_INFO!$T$9:$T$1000="T1 (PZQ+ALB/MBD)",COUNTRY_INFO!$U$9:$U$1000="T1 (PZQ+ALB/MBD)"), "T1 (PZQ+ALB/MBD)", " ") ->  | K30: 0 | O30: 0
A31: =IF(COUNTRY_INFO!A31=0," ",COUNTRY_INFO!A31) -> Burundi | B31: =IF(COUNTRY_INFO!B31=0," ",COUNTRY_INFO!B31) -> Kayanza | C31: =IF(COUNTRY_INFO!C31=0," ",COUNTRY_INFO!C31) -> Gahombo | D31: =IF(OR(COUNTRY_INFO!$T$9:$T$1000="T1 (PZQ+ALB/MBD)",COUNTRY_INFO!$U$9:$U$1000="T1 (PZQ+ALB/MBD)"), "T1 (PZQ+ALB/MBD)", " ") ->  | K31: 0 | O31: 0
A32: =IF(COUNTRY_INFO!A32=0," ",COUNTRY_INFO!A32) -> Burundi | B32: =IF(COUNTRY_INFO!B32=0," ",COUNTRY_INFO!B32) -> Kayanza | C32: =IF(COUNTRY_INFO!C32=0," ",COUNTRY_INFO!C32) -> Kayanza | D32: =IF(OR(COUNTRY_INFO!$T$9:$T$1000="T1 (PZQ+ALB/MBD)",COUNTRY_INFO!$U$9:$U$1000="T1 (PZQ+ALB/MBD)"), "T1 (PZQ+ALB/MBD)", " ") ->  | K32: 0 | O32: 0
A33: =IF(COUNTRY_INFO!A33=0," ",COUNTRY_INFO!A33) -> Burundi | B33: =IF(COUNTRY_INFO!B33=0," ",COUNTRY_INFO!B33) -> Kayanza | C33: =IF(COUNTRY_INFO!C33=0," ",COUNTRY_INFO!C33) -> Musema | D33: =IF(OR(COUNTRY_INFO!$T$9:$T$1000="T1 (PZQ+ALB/MBD)",COUNTRY_INFO!$U$9:$U$1000="T1 (PZQ+ALB/MBD)"), "T1 (PZQ+ALB/MBD)", " ") ->  | K33: 0 | O33: 0
A34: =IF(COUNTRY_INFO!A34=0," ",COUNTRY_INFO!A34) -> Burundi | B34: =IF(COUNTRY_INFO!B34=0," ",COUNTRY_INFO!B34) -> Kirundo | C34: =IF(COUNTRY_INFO!C34=0," ",COUNTRY_INFO!C34) -> Busoni | D34: =IF(OR(COUNTRY_INFO!$T$9:$T$1000="T1 (PZQ+ALB/MBD)",COUNTRY_INFO!$U$9:$U$1000="T1 (PZQ+ALB/MBD)"), "T1 (PZQ+ALB/MBD)", " ") ->  | K34: 0 | O34: 0
A35: =IF(COUNTRY_INFO!A35=0," ",COUNTRY_INFO!A35) -> Burundi | B35: =IF(COUNTRY_INFO!B35=0," ",COUNTRY_INFO!B35) -> Kirundo | C35: =IF(COUNTRY_INFO!C35=0," ",COUNTRY_INFO!C35) -> Kirundo | D35: =IF(OR(COUNTRY_INFO!$T$9:$T$1000="T1 (PZQ+ALB/MBD)",COUNTRY_INFO!$U$9:$U$1000="T1 (PZQ+ALB/MBD)"), "T1 (PZQ+ALB/MBD)", " ") ->  | K35: 0 | O35: 0
A36: =IF(COUNTRY_INFO!A36=0," ",COUNTRY_INFO!A36) -> Burundi | B36: =IF(COUNTRY_INFO!B36=0," ",COUNTRY_INFO!B36) -> Kirundo | C36: =IF(COUNTRY_INFO!C36=0," ",COUNTRY_INFO!C36) -> Mukenke | D36: =IF(OR(COUNTRY_INFO!$T$9:$T$1000="T1 (PZQ+ALB/MBD)",COUNTRY_INFO!$U$9:$U$1000="T1 (PZQ+ALB/MBD)"), "T1 (PZQ+ALB/MBD)", " ") ->  | K36: 0 | O36: 0
A37: =IF(COUNTRY_INFO!A37=0," ",COUNTRY_INFO!A37) -> Burundi | B37: =IF(COUNTRY_INFO!B37=0," ",COUNTRY_INFO!B37) -> Kirundo | C37: =IF(COUNTRY_INFO!C37=0," ",COUNTRY_INFO!C37) -> Vumbi | D37: =IF(OR(COUNTRY_INFO!$T$9:$T$1000="T1 (PZQ+ALB/MBD)",COUNTRY_INFO!$U$9:$U$1000="T1 (PZQ+ALB/MBD)"), "T1 (PZQ+ALB/MBD)", " ") ->  | K37: 0 | O37: 0
A38: =IF(COUNTRY_INFO!A38=0," ",COUNTRY_INFO!A38) -> Burundi | B38: =IF(COUNTRY_INFO!B38=0," ",COUNTRY_INFO!B38) -> Makamba | C38: =IF(COUNTRY_INFO!C38=0," ",COUNTRY_INFO!C38) -> Makamba | D38: =IF(OR(COUNTRY_INFO!$T$9:$T$1000="T1 (PZQ+ALB/MBD)",COUNTRY_INFO!$U$9:$U$1000="T1 (PZQ+ALB/MBD)"), "T1 (PZQ+ALB/MBD)", " ") ->  | K38: 0 | O38: 0
A39: =IF(COUNTRY_INFO!A39=0," ",COUNTRY_INFO!A39) -> Burundi | B39: =IF(COUNTRY_INFO!B39=0," ",COUNTRY_INFO!B39) -> Makamba | C39: =IF(COUNTRY_INFO!C39=0," ",COUNTRY_INFO!C39) -> Nyanza-Lac | D39: =IF(OR(COUNTRY_INFO!$T$9:$T$1000="T1 (PZQ+ALB/MBD)",COUNTRY_INFO!$U$9:$U$1000="T1 (PZQ+ALB/MBD)"), "T1 (PZQ+ALB/MBD)", " ") ->  | K39: 0 | O39: 0
A40: =IF(COUNTRY_INFO!A40=0," ",COUNTRY_INFO!A40) -> Burundi | B40: =IF(COUNTRY_INFO!B40=0," ",COUNTRY_INFO!B40) -> Muramvya | C40: =IF(COUNTRY_INFO!C40=0," ",COUNTRY_INFO!C40) -> Kiganda | D40: =IF(OR(COUNTRY_INFO!$T$9:$T$1000="T1 (PZQ+ALB/MBD)",COUNTRY_INFO!$U$9:$U$1000="T1 (PZQ+ALB/MBD)"), "T1 (PZQ+ALB/MBD)", " ") ->  | K40: 0 | O40: 0
A41: =IF(COUNTRY_INFO!A41=0," ",COUNTRY_INFO!A41) -> Burundi | B41: =IF(COUNTRY_INFO!B41=0," ",COUNTRY_INFO!B41) -> Muramvya | C41: =IF(COUNTRY_INFO!C41=0," ",COUNTRY_INFO!C41) -> Muramvya | D41: =IF(OR(COUNTRY_INFO!$T$9:$T$1000="T1 (PZQ+ALB/MBD)",COUNTRY_INFO!$U$9:$U$1000="T1 (PZQ+ALB/MBD)"), "T1 (PZQ+ALB/MBD)", " ") ->  | K41: 0 | O41: 0
A42: =IF(COUNTRY_INFO!A42=0," ",COUNTRY_INFO!A42) -> Burundi | B42: =IF(COUNTRY_INFO!B42=0," ",COUNTRY_INFO!B42) -> Muyinga | C42: =IF(COUNTRY_INFO!C42=0," ",COUNTRY_INFO!C42) -> Gashoho | D42: =IF(OR(COUNTRY_INFO!$T$9:$T$1000="T1 (PZQ+ALB/MBD)",COUNTRY_INFO!$U$9:$U$1000="T1 (PZQ+ALB/MBD)"), "T1 (PZQ+ALB/MBD)", " ") ->  | K42: 0 | O42: 0
A43: =IF(COUNTRY_INFO!A43=0," ",COUNTRY_INFO!A43) -> Burundi | B43: =IF(COUNTRY_INFO!B43=0," ",COUNTRY_INFO!B43) -> Muyinga | C43: =IF(COUNTRY_INFO!C43=0," ",COUNTRY_INFO!C43) -> Giteranyi | D43: =IF(OR(COUNTRY_INFO!$T$9:$T$1000="T1 (PZQ+ALB/MBD)",COUNTRY_INFO!$U$9:$U$1000="T1 (PZQ+ALB/MBD)"), "T1 (PZQ+ALB/MBD)", " ") ->  | K43: 0 | O43: 0
A44: =IF(COUNTRY_INFO!A44=0," ",COUNTRY_INFO!A44) -> Burundi | B44: =IF(COUNTRY_INFO!B44=0," ",COUNTRY_INFO!B44) -> Muyinga | C44: =IF(COUNTRY_INFO!C44=0," ",COUNTRY_INFO!C44) -> Muyinga | D44: =IF(OR(COUNTRY_INFO!$T$9:$T$1000="T1 (PZQ+ALB/MBD)",COUNTRY_INFO!$U$9:$U$1000="T1 (PZQ+ALB/MBD)"), "T1 (PZQ+ALB/MBD)", " ") ->  | K44: 0 | O44: 0
A45: =IF(COUNTRY_INFO!A45=0," ",COUNTRY_INFO!A45) -> Burundi | B45: =IF(COUNTRY_INFO!B45=0," ",COUNTRY_INFO!B45) -> Mwaro | C45: =IF(COUNTRY_INFO!C45=0," ",COUNTRY_INFO!C45) -> Fota | D45: =IF(OR(COUNTRY_INFO!$T$9:$T$1000="T1 (PZQ+ALB/MBD)",COUNTRY_INFO!$U$9:$U$1000="T1 (PZQ+ALB/MBD)"), "T1 (PZQ+ALB/MBD)", " ") ->  | K45: 0 | O45: 0
A46: =IF(COUNTRY_INFO!A46=0," ",COUNTRY_INFO!A46) -> Burundi | B46: =IF(COUNTRY_INFO!B46=0," ",COUNTRY_INFO!B46) -> Mwaro | C46: =IF(COUNTRY_INFO!C46=0," ",COUNTRY_INFO!C46) -> Kibumbu | D46: =IF(OR(COUNTRY_INFO!$T$9:$T$1000="T1 (PZQ+ALB/MBD)",COUNTRY_INFO!$U$9:$U$1000="T1 (PZQ+ALB/MBD)"), "T1 (PZQ+ALB/MBD)", " ") ->  | K46: 0 | O46: 0
A47: =IF(COUNTRY_INFO!A47=0," ",COUNTRY_INFO!A47) -> Burundi | B47: =IF(COUNTRY_INFO!B47=0," ",COUNTRY_INFO!B47) -> Ngozi | C47: =IF(COUNTRY_INFO!C47=0," ",COUNTRY_INFO!C47) -> Buye | D47: =IF(OR(COUNTRY_INFO!$T$9:$T$1000="T1 (PZQ+ALB/MBD)",COUNTRY_INFO!$U$9:$U$1000="T1 (PZQ+ALB/MBD)"), "T1 (PZQ+ALB/MBD)", " ") ->  | K47: 0 | O47: 0
A48: =IF(COUNTRY_INFO!A48=0," ",COUNTRY_INFO!A48) -> Burundi | B48: =IF(COUNTRY_INFO!B48=0," ",COUNTRY_INFO!B48) -> Ngozi | C48: =IF(COUNTRY_INFO!C48=0," ",COUNTRY_INFO!C48) -> Kiremba | D48: =IF(OR(COUNTRY_INFO!$T$9:$T$1000="T1 (PZQ+ALB/MBD)",COUNTRY_INFO!$U$9:$U$1000="T1 (PZQ+ALB/MBD)"), "T1 (PZQ+ALB/MBD)", " ") ->  | K48: 0 | O48: 0
A49: =IF(COUNTRY_INFO!A49=0," ",COUNTRY_INFO!A49) -> Burundi | B49: =IF(COUNTRY_INFO!B49=0," ",COUNTRY_INFO!B49) -> Ngozi | C49: =IF(COUNTRY_INFO!C49=0," ",COUNTRY_INFO!C49) -> Ngozi | D49: =IF(OR(COUNTRY_INFO!$T$9:$T$1000="T1 (PZQ+ALB/MBD)",COUNTRY_INFO!$U$9:$U$1000="T1 (PZQ+ALB/MBD)"), "T1 (PZQ+ALB/MBD)", " ") ->  | K49: 0 | O49: 0
A50: =IF(COUNTRY_INFO!A50=0," ",COUNTRY_INFO!A50) -> Burundi | B50: =IF(COUNTRY_INFO!B50=0," ",COUNTRY_INFO!B50) -> Rumonge | C50: =IF(COUNTRY_INFO!C50=0," ",COUNTRY_INFO!C50) -> Bugarama | D50: =IF(OR(COUNTRY_INFO!$T$9:$T$1000="T1 (PZQ+ALB/MBD)",COUNTRY_INFO!$U$9:$U$1000="T1 (PZQ+ALB/MBD)"), "T1 (PZQ+ALB/MBD)", " ") ->  | K50: 0 | O50: 0
A51: =IF(COUNTRY_INFO!A51=0," ",COUNTRY_INFO!A51) -> Burundi | B51: =IF(COUNTRY_INFO!B51=0," ",COUNTRY_INFO!B51) -> Rumonge | C51: =IF(COUNTRY_INFO!C51=0," ",COUNTRY_INFO!C51) -> Rumonge | D51: =IF(OR(COUNTRY_INFO!$T$9:$T$1000="T1 (PZQ+ALB/MBD)",COUNTRY_INFO!$U$9:$U$1000="T1 (PZQ+ALB/MBD)"), "T1 (PZQ+ALB/MBD)", " ") ->  | K51: 0 | O51: 0
A52: =IF(COUNTRY_INFO!A52=0," ",COUNTRY_INFO!A52) -> Burundi | B52: =IF(COUNTRY_INFO!B52=0," ",COUNTRY_INFO!B52) -> Rutana | C52: =IF(COUNTRY_INFO!C52=0," ",COUNTRY_INFO!C52) -> Gihofi | D52: =IF(OR(COUNTRY_INFO!$T$9:$T$1000="T1 (PZQ+ALB/MBD)",COUNTRY_INFO!$U$9:$U$1000="T1 (PZQ+ALB/MBD)"), "T1 (PZQ+ALB/MBD)", " ") ->  | K52: 0 | O52: 0
A53: =IF(COUNTRY_INFO!A53=0," ",COUNTRY_INFO!A53) -> Burundi | B53: =IF(COUNTRY_INFO!B53=0," ",COUNTRY_INFO!B53) -> Rutana | C53: =IF(COUNTRY_INFO!C53=0," ",COUNTRY_INFO!C53) -> Rutana | D53: =IF(OR(COUNTRY_INFO!$T$9:$T$1000="T1 (PZQ+ALB/MBD)",COUNTRY_INFO!$U$9:$U$1000="T1 (PZQ+ALB/MBD)"), "T1 (PZQ+ALB/MBD)", " ") ->  | K53: 0 | O53: 0
A54: =IF(COUNTRY_INFO!A54=0," ",COUNTRY_INFO!A54) -> Burundi | B54: =IF(COUNTRY_INFO!B54=0," ",COUNTRY_INFO!B54) -> Ruyigi | C54: =IF(COUNTRY_INFO!C54=0," ",COUNTRY_INFO!C54) -> Butezi | D54: =IF(OR(COUNTRY_INFO!$T$9:$T$1000="T1 (PZQ+ALB/MBD)",COUNTRY_INFO!$U$9:$U$1000="T1 (PZQ+ALB/MBD)"), "T1 (PZQ+ALB/MBD)", " ") ->  | K54: 0 | O54: 0
A55: =IF(COUNTRY_INFO!A55=0," ",COUNTRY_INFO!A55) -> Burundi | B55: =IF(COUNTRY_INFO!B55=0," ",COUNTRY_INFO!B55) -> Gisuru | C55: =IF(COUNTRY_INFO!C55=0," ",COUNTRY_INFO!C55) -> Gisuru | D55: =IF(OR(COUNTRY_INFO!$T$9:$T$1000="T1 (PZQ+ALB/MBD)",COUNTRY_INFO!$U$9:$U$1000="T1 (PZQ+ALB/MBD)"), "T1 (PZQ+ALB/MBD)", " ") ->  | K55: 0 | O55: 0
A56: =IF(COUNTRY_INFO!A56=0," ",COUNTRY_INFO!A56) -> Burundi | B56: =IF(COUNTRY_INFO!B56=0," ",COUNTRY_INFO!B56) -> Ruyigi | C56: =IF(COUNTRY_INFO!C56=0," ",COUNTRY_INFO!C56) -> Kinyinya | D56: =IF(OR(COUNTRY_INFO!$T$9:$T$1000="T1 (PZQ+ALB/MBD)",COUNTRY_INFO!$U$9:$U$1000="T1 (PZQ+ALB/MBD)"), "T1 (PZQ+ALB/MBD)", " ") ->  | K56: 0 | O56: 0
A57: =IF(COUNTRY_INFO!A57=0," ",COUNTRY_INFO!A57) -> Burundi | B57: =IF(COUNTRY_INFO!B57=0," ",COUNTRY_INFO!B57) -> Ruyigi | C57: =IF(COUNTRY_INFO!C57=0," ",COUNTRY_INFO!C57) -> Ruyigi | D57: =IF(OR(COUNTRY_INFO!$T$9:$T$1000="T1 (PZQ+ALB/MBD)",COUNTRY_INFO!$U$9:$U$1000="T1 (PZQ+ALB/MBD)"), "T1 (PZQ+ALB/MBD)", " ") ->  | K57: 0 | O57: 0

Sheet T2
A1: T 2 - Praziquantel (PZQ)
A2: Structure administrative, population nécessitant une chimioprévention par groupe d'âge, population traitée par groupe d'âge et couverture
A4: TOTAL | F4: =SUM(F$9:F$1000) -> 0 | G4: 0 | H4: 0 | I4: 0 | J4: 0 | K4: 0 | L4: 0 | M4: 0 | N4: =IF(F4<>0, IF(J4/F4*100=0, "-", J4/F4*100), " ") ->  | O4: =IF(G4<>0, IF(K4/G4*100=0, "-", K4/G4*100), " ") ->  | P4: =IF(H4<>0, IF(L4/H4*100=0, "-", L4/H4*100), " ") ->  | Q4: =IF(I4<>0, IF(M4/I4*100=0, "-", M4/I4*100), " ") -> 
A6: Structure administrative du pays | D6: Mise en oeuvre de la CP | E6: Date | F6: Population ciblée pour T2 | J6: Population traitée | N6: Couverture du Programme (%)
A7: Pays | B7: Région/Département | C7: District | F7: EAPréS | G7: EAS | H7: Adultes | I7: Total | J7: EAPréS | K7: EAS | L7: Adultes | M7: Total | N7: EAPréS | O7: EAS | P7: Adultes | Q7: Total
A9: =IF(COUNTRY_INFO!A9=0," ",COUNTRY_INFO!A9) -> Burundi | B9: =IF(COUNTRY_INFO!B9=0," ",COUNTRY_INFO!B9) -> Bubanza | C9: =IF(COUNTRY_INFO!C9=0," ",COUNTRY_INFO!C9) -> Bubanza | D9: =IF(OR(COUNTRY_INFO!$T$9:$T$1000="T2 (PZQ)",COUNTRY_INFO!$U$9:$U$1000="T2 (PZQ)"), "T2 (PZQ)", " ") ->  | I9: =SUM(F9:H9) -> 0 | M9: =SUM(J9:L9) -> 0 | N9: =IF(F9<>0, IF(J9/F9*100=0, "-", J9/F9*100), " ") -> 
A10: =IF(COUNTRY_INFO!A10=0," ",COUNTRY_INFO!A10) -> Burundi | B10: =IF(COUNTRY_INFO!B10=0," ",COUNTRY_INFO!B10) -> Bubanza | C10: =IF(COUNTRY_INFO!C10=0," ",COUNTRY_INFO!C10) -> Mpanda | D10: =IF(OR(COUNTRY_INFO!$T$9:$T$1000="T2 (PZQ)",COUNTRY_INFO!$U$9:$U$1000="T2 (PZQ)"), "T2 (PZQ)", " ") ->  | I10: =SUM(F10:H10) -> 0 | M10: =SUM(J10:L10) -> 0 | N10: =IF(F10<>0, IF(J10/F10*100=0, "-", J10/F10*100), " ") ->  | O10: =IF(G10<>0, IF(K10/G10*100=0, "-", K10/G10*100), " ") ->  | P10: =IF(H10<>0, IF(L10/H10*100=0, "-", L10/H10*100), " ") ->  | Q10: =IF(I10<>0, IF(M10/I10*100=0, "-", M10/I10*100), " ") -> 
A11: =IF(COUNTRY_INFO!A11=0," ",COUNTRY_INFO!A11) -> Burundi | B11: =IF(COUNTRY_INFO!B11=0," ",COUNTRY_INFO!B11) -> Bujumbura Mairie | C11: =IF(COUNTRY_INFO!C11=0," ",COUNTRY_INFO!C11) -> Zone Centre | D11: =IF(OR(COUNTRY_INFO!$T$9:$T$1000="T2 (PZQ)",COUNTRY_INFO!$U$9:$U$1000="T2 (PZQ)"), "T2 (PZQ)", " ") ->  | I11: 0 | M11: 0
A12: =IF(COUNTRY_INFO!A12=0," ",COUNTRY_INFO!A12) -> Burundi | B12: =IF(COUNTRY_INFO!B12=0," ",COUNTRY_INFO!B12) -> Bujumbura Mairie | C12: =IF(COUNTRY_INFO!C12=0," ",COUNTRY_INFO!C12) -> Zone Nord | D12: =IF(OR(COUNTRY_INFO!$T$9:$T$1000="T2 (PZQ)",COUNTRY_INFO!$U$9:$U$1000="T2 (PZQ)"), "T2 (PZQ)", " ") ->  | I12: 0 | M12: 0
A13: =IF(COUNTRY_INFO!A13=0," ",COUNTRY_INFO!A13) -> Burundi | B13: =IF(COUNTRY_INFO!B13=0," ",COUNTRY_INFO!B13) -> Bujumbura Mairie | C13: =IF(COUNTRY_INFO!C13=0," ",COUNTRY_INFO!C13) -> Zone Sud | D13: =IF(OR(COUNTRY_INFO!$T$9:$T$1000="T2 (PZQ)",COUNTRY_INFO!$U$9:$U$1000="T2 (PZQ)"), "T2 (PZQ)", " ") ->  | I13: 0 | M13: 0
A14: =IF(COUNTRY_INFO!A14=0," ",COUNTRY_INFO!A14) -> Burundi | B14: =IF(COUNTRY_INFO!B14=0," ",COUNTRY_INFO!B14) -> Bujumbura Rural | C14: =IF(COUNTRY_INFO!C14=0," ",COUNTRY_INFO!C14) -> Isare | D14: =IF(OR(COUNTRY_INFO!$T$9:$T$1000="T2 (PZQ)",COUNTRY_INFO!$U$9:$U$1000="T2 (PZQ)"), "T2 (PZQ)", " ") ->  | I14: 0 | M14: 0
A15: =IF(COUNTRY_INFO!A15=0," ",COUNTRY_INFO!A15) -> Burundi | B15: =IF(COUNTRY_INFO!B15=0," ",COUNTRY_INFO!B15) -> Bujumbura Rural | C15: =IF(COUNTRY_INFO!C15=0," ",COUNTRY_INFO!C15) -> Kabezi | D15: =IF(OR(COUNTRY_INFO!$T$9:$T$1000="T2 (PZQ)",COUNTRY_INFO!$U$9:$U$1000="T2 (PZQ)"), "T2 (PZQ)", " ") ->  | I15: 0 | M15: 0
A16: =IF(COUNTRY_INFO!A16=0," ",COUNTRY_INFO!A16) -> Burundi | B16: =IF(COUNTRY_INFO!B16=0," ",COUNTRY_INFO!B16) -> Bujumbura Rural | C16: =IF(COUNTRY_INFO!C16=0," ",COUNTRY_INFO!C16) -> Rwibaga | D16: =IF(OR(COUNTRY_INFO!$T$9:$T$1000="T2 (PZQ)",COUNTRY_INFO!$U$9:$U$1000="T2 (PZQ)"), "T2 (PZQ)", " ") ->  | I16: 0 | M16: 0
A17: =IF(COUNTRY_INFO!A17=0," ",COUNTRY_INFO!A17) -> Burundi | B17: =IF(COUNTRY_INFO!B17=0," ",COUNTRY_INFO!B17) -> Bururi | C17: =IF(COUNTRY_INFO!C17=0," ",COUNTRY_INFO!C17) -> Bururi | D17: =IF(OR(COUNTRY_INFO!$T$9:$T$1000="T2 (PZQ)",COUNTRY_INFO!$U$9:$U$1000="T2 (PZQ)"), "T2 (PZQ)", " ") ->  | I17: 0 | M17: 0
A18: =IF(COUNTRY_INFO!A18=0," ",COUNTRY_INFO!A18) -> Burundi | B18: =IF(COUNTRY_INFO!B18=0," ",COUNTRY_INFO!B18) -> Bururi | C18: =IF(COUNTRY_INFO!C18=0," ",COUNTRY_INFO!C18) -> Matana | D18: =IF(OR(COUNTRY_INFO!$T$9:$T$1000="T2 (PZQ)",COUNTRY_INFO!$U$9:$U$1000="T2 (PZQ)"), "T2 (PZQ)", " ") ->  | I18: 0 | M18: 0
A19: =IF(COUNTRY_INFO!A19=0," ",COUNTRY_INFO!A19) -> Burundi | B19: =IF(COUNTRY_INFO!B19=0," ",COUNTRY_INFO!B19) -> Bururi | C19: =IF(COUNTRY_INFO!C19=0," ",COUNTRY_INFO!C19) -> Rutovu | D19: =IF(OR(COUNTRY_INFO!$T$9:$T$1000="T2 (PZQ)",COUNTRY_INFO!$U$9:$U$1000="T2 (PZQ)"), "T2 (PZQ)", " ") ->  | I19: 0 | M19: 0
A20: =IF(COUNTRY_INFO!A20=0," ",COUNTRY_INFO!A20) -> Burundi | B20: =IF(COUNTRY_INFO!B20=0," ",COUNTRY_INFO!B20) -> Cankuzo | C20: =IF(COUNTRY_INFO!C20=0," ",COUNTRY_INFO!C20) -> Cankuzo | D20: =IF(OR(COUNTRY_INFO!$T$9:$T$1000="T2 (PZQ)",COUNTRY_INFO!$U$9:$U$1000="T2 (PZQ)"), "T2 (PZQ)", " ") ->  | I20: 0 | M20: 0
A21: =IF(COUNTRY_INFO!A21=0," ",COUNTRY_INFO!A21) -> Burundi | B21: =IF(COUNTRY_INFO!B21=0," ",COUNTRY_INFO!B21) -> Cankuzo | C21: =IF(COUNTRY_INFO!C21=0," ",COUNTRY_INFO!C21) -> Murore | D21: =IF(OR(COUNTRY_INFO!$T$9:$T$1000="T2 (PZQ)",COUNTRY_INFO!$U$9:$U$1000="T2 (PZQ)"), "T2 (PZQ)", " ") ->  | I21: 0 | M21: 0
A22: =IF(COUNTRY_INFO!A22=0," ",COUNTRY_INFO!A22) -> Burundi | B22: =IF(COUNTRY_INFO!B22=0," ",COUNTRY_INFO!B22) -> Cibitoke | C22: =IF(COUNTRY_INFO!C22=0," ",COUNTRY_INFO!C22) -> Bukinanyana | D22: =IF(OR(COUNTRY_INFO!$T$9:$T$1000="T2 (PZQ)",COUNTRY_INFO!$U$9:$U$1000="T2 (PZQ)"), "T2 (PZQ)", " ") ->  | I22: 0 | M22: 0
A23: =IF(COUNTRY_INFO!A23=0," ",COUNTRY_INFO!A23) -> Burundi | B23: =IF(COUNTRY_INFO!B23=0," ",COUNTRY_INFO!B23) -> Cibitoke | C23: =IF(COUNTRY_INFO!C23=0," ",COUNTRY_INFO!C23) -> Cibitoke | D23: =IF(OR(COUNTRY_INFO!$T$9:$T$1000="T2 (PZQ)",COUNTRY_INFO!$U$9:$U$1000="T2 (PZQ)"), "T2 (PZQ)", " ") ->  | I23: 0 | M23: 0
A24: =IF(COUNTRY_INFO!A24=0," ",COUNTRY_INFO!A24) -> Burundi | B24: =IF(COUNTRY_INFO!B24=0," ",COUNTRY_INFO!B24) -> Cibitoke | C24: =IF(COUNTRY_INFO!C24=0," ",COUNTRY_INFO!C24) -> Mabayi | D24: =IF(OR(COUNTRY_INFO!$T$9:$T$1000="T2 (PZQ)",COUNTRY_INFO!$U$9:$U$1000="T2 (PZQ)"), "T2 (PZQ)", " ") ->  | I24: 0 | M24: 0
A25: =IF(COUNTRY_INFO!A25=0," ",COUNTRY_INFO!A25) -> Burundi | B25: =IF(COUNTRY_INFO!B25=0," ",COUNTRY_INFO!B25) -> Gitega | C25: =IF(COUNTRY_INFO!C25=0," ",COUNTRY_INFO!C25) -> Gitega | D25: =IF(OR(COUNTRY_INFO!$T$9:$T$1000="T2 (PZQ)",COUNTRY_INFO!$U$9:$U$1000="T2 (PZQ)"), "T2 (PZQ)", " ") ->  | I25: 0 | M25: 0
A26: =IF(COUNTRY_INFO!A26=0," ",COUNTRY_INFO!A26) -> Burundi | B26: =IF(COUNTRY_INFO!B26=0," ",COUNTRY_INFO!B26) -> Gitega | C26: =IF(COUNTRY_INFO!C26=0," ",COUNTRY_INFO!C26) -> Kibuye | D26: =IF(OR(COUNTRY_INFO!$T$9:$T$1000="T2 (PZQ)",COUNTRY_INFO!$U$9:$U$1000="T2 (PZQ)"), "T2 (PZQ)", " ") ->  | I26: 0 | M26: 0
A27: =IF(COUNTRY_INFO!A27=0," ",COUNTRY_INFO!A27) -> Burundi | B27: =IF(COUNTRY_INFO!B27=0," ",COUNTRY_INFO!B27) -> Gitega | C27: =IF(COUNTRY_INFO!C27=0," ",COUNTRY_INFO!C27) -> Mutaho | D27: =IF(OR(COUNTRY_INFO!$T$9:$T$1000="T2 (PZQ)",COUNTRY_INFO!$U$9:$U$1000="T2 (PZQ)"), "T2 (PZQ)", " ") ->  | I27: 0 | M27: 0
A28: =IF(COUNTRY_INFO!A28=0," ",COUNTRY_INFO!A28) -> Burundi | B28: =IF(COUNTRY_INFO!B28=0," ",COUNTRY_INFO!B28) -> Gitega | C28: =IF(COUNTRY_INFO!C28=0," ",COUNTRY_INFO!C28) -> Ryansoro | D28: =IF(OR(COUNTRY_INFO!$T$9:$T$1000="T2 (PZQ)",COUNTRY_INFO!$U$9:$U$1000="T2 (PZQ)"), "T2 (PZQ)", " ") ->  | I28: 0 | M28: 0
A29: =IF(COUNTRY_INFO!A29=0," ",COUNTRY_INFO!A29) -> Burundi | B29: =IF(COUNTRY_INFO!B29=0," ",COUNTRY_INFO!B29) -> Karusi | C29: =IF(COUNTRY_INFO!C29=0," ",COUNTRY_INFO!C29) -> Buhiga | D29: =IF(OR(COUNTRY_INFO!$T$9:$T$1000="T2 (PZQ)",COUNTRY_INFO!$U$9:$U$1000="T2 (PZQ)"), "T2 (PZQ)", " ") ->  | I29: 0 | M29: 0
A30: =IF(COUNTRY_INFO!A30=0," ",COUNTRY_INFO!A30) -> Burundi | B30: =IF(COUNTRY_INFO!B30=0," ",COUNTRY_INFO!B30) -> Karusi | C30: =IF(COUNTRY_INFO!C30=0," ",COUNTRY_INFO!C30) -> Nyabikere | D30: =IF(OR(COUNTRY_INFO!$T$9:$T$1000="T2 (PZQ)",COUNTRY_INFO!$U$9:$U$1000="T2 (PZQ)"), "T2 (PZQ)", " ") ->  | I30: 0 | M30: 0
A31: =IF(COUNTRY_INFO!A31=0," ",COUNTRY_INFO!A31) -> Burundi | B31: =IF(COUNTRY_INFO!B31=0," ",COUNTRY_INFO!B31) -> Kayanza | C31: =IF(COUNTRY_INFO!C31=0," ",COUNTRY_INFO!C31) -> Gahombo | D31: =IF(OR(COUNTRY_INFO!$T$9:$T$1000="T2 (PZQ)",COUNTRY_INFO!$U$9:$U$1000="T2 (PZQ)"), "T2 (PZQ)", " ") ->  | I31: 0 | M31: 0
A32: =IF(COUNTRY_INFO!A32=0," ",COUNTRY_INFO!A32) -> Burundi | B32: =IF(COUNTRY_INFO!B32=0," ",COUNTRY_INFO!B32) -> Kayanza | C32: =IF(COUNTRY_INFO!C32=0," ",COUNTRY_INFO!C32) -> Kayanza | D32: =IF(OR(COUNTRY_INFO!$T$9:$T$1000="T2 (PZQ)",COUNTRY_INFO!$U$9:$U$1000="T2 (PZQ)"), "T2 (PZQ)", " ") ->  | I32: 0 | M32: 0
A33: =IF(COUNTRY_INFO!A33=0," ",COUNTRY_INFO!A33) -> Burundi | B33: =IF(COUNTRY_INFO!B33=0," ",COUNTRY_INFO!B33) -> Kayanza | C33: =IF(COUNTRY_INFO!C33=0," ",COUNTRY_INFO!C33) -> Musema | D33: =IF(OR(COUNTRY_INFO!$T$9:$T$1000="T2 (PZQ)",COUNTRY_INFO!$U$9:$U$1000="T2 (PZQ)"), "T2 (PZQ)", " ") ->  | I33: 0 | M33: 0
A34: =IF(COUNTRY_INFO!A34=0," ",COUNTRY_INFO!A34) -> Burundi | B34: =IF(COUNTRY_INFO!B34=0," ",COUNTRY_INFO!B34) -> Kirundo | C34: =IF(COUNTRY_INFO!C34=0," ",COUNTRY_INFO!C34) -> Busoni | D34: =IF(OR(COUNTRY_INFO!$T$9:$T$1000="T2 (PZQ)",COUNTRY_INFO!$U$9:$U$1000="T2 (PZQ)"), "T2 (PZQ)", " ") ->  | I34: 0 | M34: 0
A35: =IF(COUNTRY_INFO!A35=0," ",COUNTRY_INFO!A35) -> Burundi | B35: =IF(COUNTRY_INFO!B35=0," ",COUNTRY_INFO!B35) -> Kirundo | C35: =IF(COUNTRY_INFO!C35=0," ",COUNTRY_INFO!C35) -> Kirundo | D35: =IF(OR(COUNTRY_INFO!$T$9:$T$1000="T2 (PZQ)",COUNTRY_INFO!$U$9:$U$1000="T2 (PZQ)"), "T2 (PZQ)", " ") ->  | I35: 0 | M35: 0
A36: =IF(COUNTRY_INFO!A36=0," ",COUNTRY_INFO!A36) -> Burundi | B36: =IF(COUNTRY_INFO!B36=0," ",COUNTRY_INFO!B36) -> Kirundo | C36: =IF(COUNTRY_INFO!C36=0," ",COUNTRY_INFO!C36) -> Mukenke | D36: =IF(OR(COUNTRY_INFO!$T$9:$T$1000="T2 (PZQ)",COUNTRY_INFO!$U$9:$U$1000="T2 (PZQ)"), "T2 (PZQ)", " ") ->  | I36: 0 | M36: 0
A37: =IF(COUNTRY_INFO!A37=0," ",COUNTRY_INFO!A37) -> Burundi | B37: =IF(COUNTRY_INFO!B37=0," ",COUNTRY_INFO!B37) -> Kirundo | C37: =IF(COUNTRY_INFO!C37=0," ",COUNTRY_INFO!C37) -> Vumbi | D37: =IF(OR(COUNTRY_INFO!$T$9:$T$1000="T2 (PZQ)",COUNTRY_INFO!$U$9:$U$1000="T2 (PZQ)"), "T2 (PZQ)", " ") ->  | I37: 0 | M37: 0
A38: =IF(COUNTRY_INFO!A38=0," ",COUNTRY_INFO!A38) -> Burundi | B38: =IF(COUNTRY_INFO!B38=0," ",COUNTRY_INFO!B38) -> Makamba | C38: =IF(COUNTRY_INFO!C38=0," ",COUNTRY_INFO!C38) -> Makamba | D38: =IF(OR(COUNTRY_INFO!$T$9:$T$1000="T2 (PZQ)",COUNTRY_INFO!$U$9:$U$1000="T2 (PZQ)"), "T2 (PZQ)", " ") ->  | I38: 0 | M38: 0
A39: =IF(COUNTRY_INFO!A39=0," ",COUNTRY_INFO!A39) -> Burundi | B39: =IF(COUNTRY_INFO!B39=0," ",COUNTRY_INFO!B39) -> Makamba | C39: =IF(COUNTRY_INFO!C39=0," ",COUNTRY_INFO!C39) -> Nyanza-Lac | D39: =IF(OR(COUNTRY_INFO!$T$9:$T$1000="T2 (PZQ)",COUNTRY_INFO!$U$9:$U$1000="T2 (PZQ)"), "T2 (PZQ)", " ") ->  | I39: 0 | M39: 0
A40: =IF(COUNTRY_INFO!A40=0," ",COUNTRY_INFO!A40) -> Burundi | B40: =IF(COUNTRY_INFO!B40=0," ",COUNTRY_INFO!B40) -> Muramvya | C40: =IF(COUNTRY_INFO!C40=0," ",COUNTRY_INFO!C40) -> Kiganda | D40: =IF(OR(COUNTRY_INFO!$T$9:$T$1000="T2 (PZQ)",COUNTRY_INFO!$U$9:$U$1000="T2 (PZQ)"), "T2 (PZQ)", " ") ->  | I40: 0 | M40: 0
A41: =IF(COUNTRY_INFO!A41=0," ",COUNTRY_INFO!A41) -> Burundi | B41: =IF(COUNTRY_INFO!B41=0," ",COUNTRY_INFO!B41) -> Muramvya | C41: =IF(COUNTRY_INFO!C41=0," ",COUNTRY_INFO!C41) -> Muramvya | D41: =IF(OR(COUNTRY_INFO!$T$9:$T$1000="T2 (PZQ)",COUNTRY_INFO!$U$9:$U$1000="T2 (PZQ)"), "T2 (PZQ)", " ") ->  | I41: 0 | M41: 0
A42: =IF(COUNTRY_INFO!A42=0," ",COUNTRY_INFO!A42) -> Burundi | B42: =IF(COUNTRY_INFO!B42=0," ",COUNTRY_INFO!B42) -> Muyinga | C42: =IF(COUNTRY_INFO!C42=0," ",COUNTRY_INFO!C42) -> Gashoho | D42: =IF(OR(COUNTRY_INFO!$T$9:$T$1000="T2 (PZQ)",COUNTRY_INFO!$U$9:$U$1000="T2 (PZQ)"), "T2 (PZQ)", " ") ->  | I42: 0 | M42: 0
A43: =IF(COUNTRY_INFO!A43=0," ",COUNTRY_INFO!A43) -> Burundi | B43: =IF(COUNTRY_INFO!B43=0," ",COUNTRY_INFO!B43) -> Muyinga | C43: =IF(COUNTRY_INFO!C43=0," ",COUNTRY_INFO!C43) -> Giteranyi | D43: =IF(OR(COUNTRY_INFO!$T$9:$T$1000="T2 (PZQ)",COUNTRY_INFO!$U$9:$U$1000="T2 (PZQ)"), "T2 (PZQ)", " ") ->  | I43: 0 | M43: 0
A44: =IF(COUNTRY_INFO!A44=0," ",COUNTRY_INFO!A44) -> Burundi | B44: =IF(COUNTRY_INFO!B44=0," ",COUNTRY_INFO!B44) -> Muyinga | C44: =IF(COUNTRY_INFO!C44=0," ",COUNTRY_INFO!C44) -> Muyinga | D44: =IF(OR(COUNTRY_INFO!$T$9:$T$1000="T2 (PZQ)",COUNTRY_INFO!$U$9:$U$1000="T2 (PZQ)"), "T2 (PZQ)", " ") ->  | I44: 0 | M44: 0
A45: =IF(COUNTRY_INFO!A45=0," ",COUNTRY_INFO!A45) -> Burundi | B45: =IF(COUNTRY_INFO!B45=0," ",COUNTRY_INFO!B45) -> Mwaro | C45: =IF(COUNTRY_INFO!C45=0," ",COUNTRY_INFO!C45) -> Fota | D45: =IF(OR(COUNTRY_INFO!$T$9:$T$1000="T2 (PZQ)",COUNTRY_INFO!$U$9:$U$1000="T2 (PZQ)"), "T2 (PZQ)", " ") ->  | I45: 0 | M45: 0
A46: =IF(COUNTRY_INFO!A46=0," ",COUNTRY_INFO!A46) -> Burundi | B46: =IF(COUNTRY_INFO!B46=0," ",COUNTRY_INFO!B46) -> Mwaro | C46: =IF(COUNTRY_INFO!C46=0," ",COUNTRY_INFO!C46) -> Kibumbu | D46: =IF(OR(COUNTRY_INFO!$T$9:$T$1000="T2 (PZQ)",COUNTRY_INFO!$U$9:$U$1000="T2 (PZQ)"), "T2 (PZQ)", " ") ->  | I46: 0 | M46: 0
A47: =IF(COUNTRY_INFO!A47=0," ",COUNTRY_INFO!A47) -> Burundi | B47: =IF(COUNTRY_INFO!B47=0," ",COUNTRY_INFO!B47) -> Ngozi | C47: =IF(COUNTRY_INFO!C47=0," ",COUNTRY_INFO!C47) -> Buye | D47: =IF(OR(COUNTRY_INFO!$T$9:$T$1000="T2 (PZQ)",COUNTRY_INFO!$U$9:$U$1000="T2 (PZQ)"), "T2 (PZQ)", " ") ->  | I47: 0 | M47: 0
A48: =IF(COUNTRY_INFO!A48=0," ",COUNTRY_INFO!A48) -> Burundi | B48: =IF(COUNTRY_INFO!B48=0," ",COUNTRY_INFO!B48) -> Ngozi | C48: =IF(COUNTRY_INFO!C48=0," ",COUNTRY_INFO!C48) -> Kiremba | D48: =IF(OR(COUNTRY_INFO!$T$9:$T$1000="T2 (PZQ)",COUNTRY_INFO!$U$9:$U$1000="T2 (PZQ)"), "T2 (PZQ)", " ") ->  | I48: 0 | M48: 0
A49: =IF(COUNTRY_INFO!A49=0," ",COUNTRY_INFO!A49) -> Burundi | B49: =IF(COUNTRY_INFO!B49=0," ",COUNTRY_INFO!B49) -> Ngozi | C49: =IF(COUNTRY_INFO!C49=0," ",COUNTRY_INFO!C49) -> Ngozi | D49: =IF(OR(COUNTRY_INFO!$T$9:$T$1000="T2 (PZQ)",COUNTRY_INFO!$U$9:$U$1000="T2 (PZQ)"), "T2 (PZQ)", " ") ->  | I49: 0 | M49: 0
A50: =IF(COUNTRY_INFO!A50=0," ",COUNTRY_INFO!A50) -> Burundi | B50: =IF(COUNTRY_INFO!B50=0," ",COUNTRY_INFO!B50) -> Rumonge | C50: =IF(COUNTRY_INFO!C50=0," ",COUNTRY_INFO!C50) -> Bugarama | D50: =IF(OR(COUNTRY_INFO!$T$9:$T$1000="T2 (PZQ)",COUNTRY_INFO!$U$9:$U$1000="T2 (PZQ)"), "T2 (PZQ)", " ") ->  | I50: 0 | M50: 0
A51: =IF(COUNTRY_INFO!A51=0," ",COUNTRY_INFO!A51) -> Burundi | B51: =IF(COUNTRY_INFO!B51=0," ",COUNTRY_INFO!B51) -> Rumonge | C51: =IF(COUNTRY_INFO!C51=0," ",COUNTRY_INFO!C51) -> Rumonge | D51: =IF(OR(COUNTRY_INFO!$T$9:$T$1000="T2 (PZQ)",COUNTRY_INFO!$U$9:$U$1000="T2 (PZQ)"), "T2 (PZQ)", " ") ->  | I51: 0 | M51: 0
A52: =IF(COUNTRY_INFO!A52=0," ",COUNTRY_INFO!A52) -> Burundi | B52: =IF(COUNTRY_INFO!B52=0," ",COUNTRY_INFO!B52) -> Rutana | C52: =IF(COUNTRY_INFO!C52=0," ",COUNTRY_INFO!C52) -> Gihofi | D52: =IF(OR(COUNTRY_INFO!$T$9:$T$1000="T2 (PZQ)",COUNTRY_INFO!$U$9:$U$1000="T2 (PZQ)"), "T2 (PZQ)", " ") ->  | I52: 0 | M52: 0
A53: =IF(COUNTRY_INFO!A53=0," ",COUNTRY_INFO!A53) -> Burundi | B53: =IF(COUNTRY_INFO!B53=0," ",COUNTRY_INFO!B53) -> Rutana | C53: =IF(COUNTRY_INFO!C53=0," ",COUNTRY_INFO!C53) -> Rutana | D53: =IF(OR(COUNTRY_INFO!$T$9:$T$1000="T2 (PZQ)",COUNTRY_INFO!$U$9:$U$1000="T2 (PZQ)"), "T2 (PZQ)", " ") ->  | I53: 0 | M53: 0
A54: =IF(COUNTRY_INFO!A54=0," ",COUNTRY_INFO!A54) -> Burundi | B54: =IF(COUNTRY_INFO!B54=0," ",COUNTRY_INFO!B54) -> Ruyigi | C54: =IF(COUNTRY_INFO!C54=0," ",COUNTRY_INFO!C54) -> Butezi | D54: =IF(OR(COUNTRY_INFO!$T$9:$T$1000="T2 (PZQ)",COUNTRY_INFO!$U$9:$U$1000="T2 (PZQ)"), "T2 (PZQ)", " ") ->  | I54: 0 | M54: 0
A55: =IF(COUNTRY_INFO!A55=0," ",COUNTRY_INFO!A55) -> Burundi | B55: =IF(COUNTRY_INFO!B55=0," ",COUNTRY_INFO!B55) -> Gisuru | C55: =IF(COUNTRY_INFO!C55=0," ",COUNTRY_INFO!C55) -> Gisuru | D55: =IF(OR(COUNTRY_INFO!$T$9:$T$1000="T2 (PZQ)",COUNTRY_INFO!$U$9:$U$1000="T2 (PZQ)"), "T2 (PZQ)", " ") ->  | I55: 0 | M55: 0
A56: =IF(COUNTRY_INFO!A56=0," ",COUNTRY_INFO!A56) -> Burundi | B56: =IF(COUNTRY_INFO!B56=0," ",COUNTRY_INFO!B56) -> Ruyigi | C56: =IF(COUNTRY_INFO!C56=0," ",COUNTRY_INFO!C56) -> Kinyinya | D56: =IF(OR(COUNTRY_INFO!$T$9:$T$1000="T2 (PZQ)",COUNTRY_INFO!$U$9:$U$1000="T2 (PZQ)"), "T2 (PZQ)", " ") ->  | I56: 0 | M56: 0
A57: =IF(COUNTRY_INFO!A57=0," ",COUNTRY_INFO!A57) -> Burundi | B57: =IF(COUNTRY_INFO!B57=0," ",COUNTRY_INFO!B57) -> Ruyigi | C57: =IF(COUNTRY_INFO!C57=0," ",COUNTRY_INFO!C57) -> Ruyigi | D57: =IF(OR(COUNTRY_INFO!$T$9:$T$1000="T2 (PZQ)",COUNTRY_INFO!$U$9:$U$1000="T2 (PZQ)"), "T2 (PZQ)", " ") ->  | I57: 0 | M57: 0

Sheet T3_R1
A1: T 3 - Albendazole (ALB) ou Mebendazole (MBD) - Tournée 1
A2: Structure administrative, population nécessitant une chimioprévention par groupe d'âge, population traitée par groupe d'âge et couverture
A4: TOTAL | G4: =SUM(G$9:G$1000) -> 1367295 | H4: 3434507 | I4: 258701.6 | J4: 5060503.6 | K4: 1158924 | L4: 3155607 | M4: 156740 | N4: 4471271 | O4: =IF(G4<>0, IF(K4/G4*100=0, "-", K4/G4*100), " ") -> 84.76034799 | P4: =IF(H4<>0, IF(L4/H4*100=0, "-", L4/H4*100), " ") -> 91.87947499 | Q4: =IF(I4<>0, IF(M4/I4*100=0, "-", M4/I4*100), " ") -> 60.58717843 | R4: =IF(J4<>0, IF(N4/J4*100=0, "-", N4/J4*100), " ") -> 88.35624581
A6: Structure administrative du pays | D6: Mise en oeuvre de la CP | E6: Médica-ment | F6: Date | G6: Population ciblée pour T3 | K6: Population traitée | O6: Couverture du Programme (%)
A7: Pays | B7: Région/Département | C7: District | G7: EAPréS | H7: EAS | I7: Adultes | J7: Total | K7: EAPréS | L7: EAS | M7: Adultes | N7: Total | O7: EAPréS | P7: EAS | Q7: Adultes | R7: Total
A9: =IF(COUNTRY_INFO!A9=0," ",COUNTRY_INFO!A9) -> Burundi | B9: =IF(COUNTRY_INFO!B9=0," ",COUNTRY_INFO!B9) -> Bubanza | C9: =IF(COUNTRY_INFO!C9=0," ",COUNTRY_INFO!C9) -> Bubanza | D9: =IF(OR(COUNTRY_INFO!$T$9:$T$1000="T3 (ALB/MBD)",COUNTRY_INFO!$U$9:$U$1000="T3 (ALB/MBD)"), "T3 (ALB/MBD)", " ") -> T3 (ALB/MBD) | E9: ALB | F9: Juin 2022 | G9: 31581 | H9: 66325 | I9: 6610.675 | J9: =SUM(G9:I9) -> 104516.675 | K9: 28326 | L9: 66325 | M9: 3157 | N9: =SUM(K9:M9) -> 97808 | O9: =IF(G9<>0, IF(K9/G9*100=0, "-", K9/G9*100), " ") -> 89.69316994 | P9: 100 | Q9: 47.75609147 | R9: 93.58123955 | T9: =COUNTRY_INFO!D9 -> 264427 | U9: =COUNTRY_INFO!E9 -> 31581 | V9: =COUNTRY_INFO!F9 -> 66325 | W9: =COUNTRY_INFO!G9 -> 146493
A10: =IF(COUNTRY_INFO!A10=0," ",COUNTRY_INFO!A10) -> Burundi | B10: =IF(COUNTRY_INFO!B10=0," ",COUNTRY_INFO!B10) -> Bubanza | C10: =IF(COUNTRY_INFO!C10=0," ",COUNTRY_INFO!C10) -> Mpanda | D10: =IF(OR(COUNTRY_INFO!$T$9:$T$1000="T3 (ALB/MBD)",COUNTRY_INFO!$U$9:$U$1000="T3 (ALB/MBD)"), "T3 (ALB/MBD)", " ") -> T3 (ALB/MBD) | E10: ALB | F10: Juin 2022 | G10: 32985 | H10: 63075 | I10: 6859.9 | J10: =SUM(G10:I10) -> 102919.9 | K10: 33929 | L10: 63075 | M10: 4714 | N10: =SUM(K10:M10) -> 101718 | O10: =IF(G10<>0, IF(K10/G10*100=0, "-", K10/G10*100), " ") -> 102.8619069 | P10: =IF(H10<>0, IF(L10/H10*100=0, "-", L10/H10*100), " ") -> 100 | Q10: =IF(I10<>0, IF(M10/I10*100=0, "-", M10/I10*100), " ") -> 68.71820289 | R10: =IF(J10<>0, IF(N10/J10*100=0, "-", N10/J10*100), " ") -> 98.83219863 | T10: =COUNTRY_INFO!D10 -> 274396 | U10: =COUNTRY_INFO!E10 -> 32985 | V10: =COUNTRY_INFO!F10 -> 63075 | W10: =COUNTRY_INFO!G10 -> 152015
A11: =IF(COUNTRY_INFO!A11=0," ",COUNTRY_INFO!A11) -> Burundi | B11: =IF(COUNTRY_INFO!B11=0," ",COUNTRY_INFO!B11) -> Bujumbura Mairie | C11: =IF(COUNTRY_INFO!C11=0," ",COUNTRY_INFO!C11) -> Zone Centre | D11: =IF(OR(COUNTRY_INFO!$T$9:$T$1000="T3 (ALB/MBD)",COUNTRY_INFO!$U$9:$U$1000="T3 (ALB/MBD)"), "T3 (ALB/MBD)", " ") -> T3 (ALB/MBD) | E11: ALB | G11: 12734 | H11: 36072 | J11: 48806 | K11: 1791 | L11: 28126 | M11: 0 | N11: 29917 | O11: 14.06470865 | P11: 77.97183411 | R11: 61.29779126 | T11: =COUNTRY_INFO!D11 -> 196729 | U11: =COUNTRY_INFO!E11 -> 12734 | V11: =COUNTRY_INFO!F11 -> 36072 | W11: =COUNTRY_INFO!G11 -> 108988
A12: =IF(COUNTRY_INFO!A12=0," ",COUNTRY_INFO!A12) -> Burundi | B12: =IF(COUNTRY_INFO!B12=0," ",COUNTRY_INFO!B12) -> Bujumbura Mairie | C12: =IF(COUNTRY_INFO!C12=0," ",COUNTRY_INFO!C12) -> Zone Nord | D12: =IF(OR(COUNTRY_INFO!$T$9:$T$1000="T3 (ALB/MBD)",COUNTRY_INFO!$U$9:$U$1000="T3 (ALB/MBD)"), "T3 (ALB/MBD)", " ") -> T3 (ALB/MBD) | E12: ALB | G12: 36960 | H12: 82386 | J12: 119346 | K12: 6323 | L12: 8899 | M12: 0 | N12: 15222 | O12: 17.10768398 | P12: 10.8015925 | R12: 12.75451209 | T12: =COUNTRY_INFO!D12 -> 396781 | U12: =COUNTRY_INFO!E12 -> 36960 | V12: =COUNTRY_INFO!F12 -> 82386 | W12: =COUNTRY_INFO!G12 -> 219817
A13: =IF(COUNTRY_INFO!A13=0," ",COUNTRY_INFO!A13) -> Burundi | B13: =IF(COUNTRY_INFO!B13=0," ",COUNTRY_INFO!B13) -> Bujumbura Mairie | C13: =IF(COUNTRY_INFO!C13=0," ",COUNTRY_INFO!C13) -> Zone Sud | D13: =IF(OR(COUNTRY_INFO!$T$9:$T$1000="T3 (ALB/MBD)",COUNTRY_INFO!$U$9:$U$1000="T3 (ALB/MBD)"), "T3 (ALB/MBD)", " ") -> T3 (ALB/MBD) | E13: ALB | G13: 16716 | H13: 40910 | J13: 57626 | K13: 5751 | L13: 11342 | M13: 0 | N13: 17093 | O13: 34.40416368 | P13: 27.72427279 | R13: 29.66195814 | T13: =COUNTRY_INFO!D13 -> 198994 | U13: =COUNTRY_INFO!E13 -> 16716 | V13: =COUNTRY_INFO!F13 -> 40910 | W13: =COUNTRY_INFO!G13 -> 110243
A14: =IF(COUNTRY_INFO!A14=0," ",COUNTRY_INFO!A14) -> Burundi | B14: =IF(COUNTRY_INFO!B14=0," ",COUNTRY_INFO!B14) -> Bujumbura Rural | C14: =IF(COUNTRY_INFO!C14=0," ",COUNTRY_INFO!C14) -> Isare | D14: =IF(OR(COUNTRY_INFO!$T$9:$T$1000="T3 (ALB/MBD)",COUNTRY_INFO!$U$9:$U$1000="T3 (ALB/MBD)"), "T3 (ALB/MBD)", " ") -> T3 (ALB/MBD) | E14: ALB | F14: 2022-06-01 | G14: 33360 | H14: 79814 | I14: 7569.875 | J14: 120743.875 | K14: 33397 | L14: 102647 | M14: 4468 | N14: 140512 | O14: 100.1109113 | P14: 128.607763 | Q14: 59.02343169 | R14: 116.3719485 | T14: =COUNTRY_INFO!D14 -> 302795 | U14: =COUNTRY_INFO!E14 -> 33360 | V14: =COUNTRY_INFO!F14 -> 79814 | W14: =COUNTRY_INFO!G14 -> 167748
A15: =IF(COUNTRY_INFO!A15=0," ",COUNTRY_INFO!A15) -> Burundi | B15: =IF(COUNTRY_INFO!B15=0," ",COUNTRY_INFO!B15) -> Bujumbura Rural | C15: =IF(COUNTRY_INFO!C15=0," ",COUNTRY_INFO!C15) -> Kabezi | D15: =IF(OR(COUNTRY_INFO!$T$9:$T$1000="T3 (ALB/MBD)",COUNTRY_INFO!$U$9:$U$1000="T3 (ALB/MBD)"), "T3 (ALB/MBD)", " ") -> T3 (ALB/MBD) | E15: ALB | F15: Juin 2022 | G15: 28480 | H15: 102909 | I15: 6841.025 | J15: 138230.025 | K15: 28480 | L15: 92949 | M15: 4662 | N15: 126091 | O15: 100 | P15: 90.32154622 | Q15: 68.14768255 | R15: 91.21824293 | T15: =COUNTRY_INFO!D15 -> 273641 | U15: =COUNTRY_INFO!E15 -> 28480 | V15: =COUNTRY_INFO!F15 -> 102909 | W15: =COUNTRY_INFO!G15 -> 151597
A16: =IF(COUNTRY_INFO!A16=0," ",COUNTRY_INFO!A16) -> Burundi | B16: =IF(COUNTRY_INFO!B16=0," ",COUNTRY_INFO!B16) -> Bujumbura Rural | C16: =IF(COUNTRY_INFO!C16=0," ",COUNTRY_INFO!C16) -> Rwibaga | D16: =IF(OR(COUNTRY_INFO!$T$9:$T$1000="T3 (ALB/MBD)",COUNTRY_INFO!$U$9:$U$1000="T3 (ALB/MBD)"), "T3 (ALB/MBD)", " ") -> T3 (ALB/MBD) | E16: ALB | F16: Juin 2022 | G16: 15488 | H16: 42236 | I16: 4112.575 | J16: 61836.575 | K16: 14802 | L16: 43204 | M16: 1835 | N16: 59841 | O16: 95.57076446 | P16: 102.2918837 | Q16: 44.61924707 | R16: 96.77282417 | T16: =COUNTRY_INFO!D16 -> 164503 | U16: =COUNTRY_INFO!E16 -> 15488 | V16: =COUNTRY_INFO!F16 -> 42236 | W16: =COUNTRY_INFO!G16 -> 91135
A17: =IF(COUNTRY_INFO!A17=0," ",COUNTRY_INFO!A17) -> Burundi | B17: =IF(COUNTRY_INFO!B17=0," ",COUNTRY_INFO!B17) -> Bururi | C17: =IF(COUNTRY_INFO!C17=0," ",COUNTRY_INFO!C17) -> Bururi | D17: =IF(OR(COUNTRY_INFO!$T$9:$T$1000="T3 (ALB/MBD)",COUNTRY_INFO!$U$9:$U$1000="T3 (ALB/MBD)"), "T3 (ALB/MBD)", " ") -> T3 (ALB/MBD) | E17: ALB | F17: Juin 2022 | G17: 17122 | H17: 50151 | I17: 4515.075 | J17: 71788.075 | K17: 17122 | L17: 60018 | M17: 4539 | N17: 81679 | O17: 100 | P17: 119.6745828 | Q17: 100.5298915 | R17: 113.7779499 | T17: =COUNTRY_INFO!D17 -> 180603 | U17: =COUNTRY_INFO!E17 -> 17122 | V17: =COUNTRY_INFO!F17 -> 50151 | W17: =COUNTRY_INFO!G17 -> 100054
A18: =IF(COUNTRY_INFO!A18=0," ",COUNTRY_INFO!A18) -> Burundi | B18: =IF(COUNTRY_INFO!B18=0," ",COUNTRY_INFO!B18) -> Bururi | C18: =IF(COUNTRY_INFO!C18=0," ",COUNTRY_INFO!C18) -> Matana | D18: =IF(OR(COUNTRY_INFO!$T$9:$T$1000="T3 (ALB/MBD)",COUNTRY_INFO!$U$9:$U$1000="T3 (ALB/MBD)"), "T3 (ALB/MBD)", " ") -> T3 (ALB/MBD) | E18: ALB | F18: Juin 2022 | G18: 15113 | H18: 45961 | I18: 4059.25 | J18: 65133.25 | K18: 14086 | L18: 38564 | M18: 2056 | N18: 54706 | O18: 93.2045259 | P18: 83.90592024 | Q18: 50.64975057 | R18: 83.99089559 | T18: =COUNTRY_INFO!D18 -> 162370 | U18: =COUNTRY_INFO!E18 -> 15113 | V18: =COUNTRY_INFO!F18 -> 45961 | W18: =COUNTRY_INFO!G18 -> 89953
A19: =IF(COUNTRY_INFO!A19=0," ",COUNTRY_INFO!A19) -> Burundi | B19: =IF(COUNTRY_INFO!B19=0," ",COUNTRY_INFO!B19) -> Bururi | C19: =IF(COUNTRY_INFO!C19=0," ",COUNTRY_INFO!C19) -> Rutovu | D19: =IF(OR(COUNTRY_INFO!$T$9:$T$1000="T3 (ALB/MBD)",COUNTRY_INFO!$U$9:$U$1000="T3 (ALB/MBD)"), "T3 (ALB/MBD)", " ") -> T3 (ALB/MBD) | E19: ALB | F19: Juin 2022 | G19: 14741 | H19: 45827 | I19: 3903.1 | J19: 64471.1 | K19: 15887 | L19: 36309 | M19: 1958 | N19: 54154 | O19: 107.7742351 | P19: 79.23058459 | Q19: 50.16525326 | R19: 83.99732593 | T19: =COUNTRY_INFO!D19 -> 156124 | U19: =COUNTRY_INFO!E19 -> 14741 | V19: =COUNTRY_INFO!F19 -> 45827 | W19: =COUNTRY_INFO!G19 -> 86493
A20: =IF(COUNTRY_INFO!A20=0," ",COUNTRY_INFO!A20) -> Burundi | B20: =IF(COUNTRY_INFO!B20=0," ",COUNTRY_INFO!B20) -> Cankuzo | C20: =IF(COUNTRY_INFO!C20=0," ",COUNTRY_INFO!C20) -> Cankuzo | D20: =IF(OR(COUNTRY_INFO!$T$9:$T$1000="T3 (ALB/MBD)",COUNTRY_INFO!$U$9:$U$1000="T3 (ALB/MBD)"), "T3 (ALB/MBD)", " ") -> T3 (ALB/MBD) | E20: ALB | F20: Juin 2022 | G20: 20585 | H20: 52286 | I20: 4830.05 | J20: 77701.05 | K20: 20853 | L20: 54522 | M20: 2301 | N20: 77676 | O20: 101.3019189 | P20: 104.2764794 | Q20: 47.63925839 | R20: 99.96776105 | T20: =COUNTRY_INFO!D20 -> 193202 | U20: =COUNTRY_INFO!E20 -> 20585 | V20: =COUNTRY_INFO!F20 -> 52286 | W20: =COUNTRY_INFO!G20 -> 107034
A21: =IF(COUNTRY_INFO!A21=0," ",COUNTRY_INFO!A21) -> Burundi | B21: =IF(COUNTRY_INFO!B21=0," ",COUNTRY_INFO!B21) -> Cankuzo | C21: =IF(COUNTRY_INFO!C21=0," ",COUNTRY_INFO!C21) -> Murore | D21: =IF(OR(COUNTRY_INFO!$T$9:$T$1000="T3 (ALB/MBD)",COUNTRY_INFO!$U$9:$U$1000="T3 (ALB/MBD)"), "T3 (ALB/MBD)", " ") -> T3 (ALB/MBD) | E21: ALB | F21: Juin 2022 | G21: 19469 | H21: 49108 | I21: 4290.775 | J21: 72867.775 | K21: 20607 | L21: 53153 | M21: 2977 | N21: 76737 | O21: 105.8451898 | P21: 108.2369471 | Q21: 69.38140546 | R21: 105.3099261 | T21: =COUNTRY_INFO!D21 -> 171631 | U21: =COUNTRY_INFO!E21 -> 19469 | V21: =COUNTRY_INFO!F21 -> 49108 | W21: =COUNTRY_INFO!G21 -> 95084
A22: =IF(COUNTRY_INFO!A22=0," ",COUNTRY_INFO!A22) -> Burundi | B22: =IF(COUNTRY_INFO!B22=0," ",COUNTRY_INFO!B22) -> Cibitoke | C22: =IF(COUNTRY_INFO!C22=0," ",COUNTRY_INFO!C22) -> Bukinanyana | D22: =IF(OR(COUNTRY_INFO!$T$9:$T$1000="T3 (ALB/MBD)",COUNTRY_INFO!$U$9:$U$1000="T3 (ALB/MBD)"), "T3 (ALB/MBD)", " ") -> T3 (ALB/MBD) | E22: ALB | F22: Juin 2022 | G22: 30912 | H22: 70387 | I22: 6295.875 | J22: 107594.875 | K22: 24406 | L22: 78388 | M22: 3394 | N22: 106188 | O22: 78.95315735 | P22: 111.3671559 | Q22: 53.90831298 | R22: 98.69243307 | T22: =COUNTRY_INFO!D22 -> 251835 | U22: =COUNTRY_INFO!E22 -> 30912 | V22: =COUNTRY_INFO!F22 -> 70387 | W22: =COUNTRY_INFO!G22 -> 139517
A23: =IF(COUNTRY_INFO!A23=0," ",COUNTRY_INFO!A23) -> Burundi | B23: =IF(COUNTRY_INFO!B23=0," ",COUNTRY_INFO!B23) -> Cibitoke | C23: =IF(COUNTRY_INFO!C23=0," ",COUNTRY_INFO!C23) -> Cibitoke | D23: =IF(OR(COUNTRY_INFO!$T$9:$T$1000="T3 (ALB/MBD)",COUNTRY_INFO!$U$9:$U$1000="T3 (ALB/MBD)"), "T3 (ALB/MBD)", " ") -> T3 (ALB/MBD) | E23: ALB | F23: Juin 2022 | G23: 28257 | H23: 59048 | I23: 5883.3 | J23: 93188.3 | K23: 22093 | L23: 59048 | M23: 2506 | N23: 83647 | O23: 78.18593623 | P23: 100 | Q23: 42.59514218 | R23: 89.76126831 | T23: =COUNTRY_INFO!D23 -> 235332 | U23: =COUNTRY_INFO!E23 -> 28257 | V23: =COUNTRY_INFO!F23 -> 59048 | W23: =COUNTRY_INFO!G23 -> 130374
A24: =IF(COUNTRY_INFO!A24=0," ",COUNTRY_INFO!A24) -> Burundi | B24: =IF(COUNTRY_INFO!B24=0," ",COUNTRY_INFO!B24) -> Cibitoke | C24: =IF(COUNTRY_INFO!C24=0," ",COUNTRY_INFO!C24) -> Mabayi | D24: =IF(OR(COUNTRY_INFO!$T$9:$T$1000="T3 (ALB/MBD)",COUNTRY_INFO!$U$9:$U$1000="T3 (ALB/MBD)"), "T3 (ALB/MBD)", " ") -> T3 (ALB/MBD) | E24: ALB | F24: Juin 2022 | G24: 29707 | H24: 68977 | I24: 6169.675 | J24: 104853.675 | K24: 27250 | L24: 77803 | M24: 3417 | N24: 108470 | O24: 91.72922207 | P24: 112.7955695 | Q24: 55.3837925 | R24: 103.4489254 | T24: =COUNTRY_INFO!D24 -> 246787 | U24: =COUNTRY_INFO!E24 -> 29707 | V24: =COUNTRY_INFO!F24 -> 68977 | W24: =COUNTRY_INFO!G24 -> 136720
A25: =IF(COUNTRY_INFO!A25=0," ",COUNTRY_INFO!A25) -> Burundi | B25: =IF(COUNTRY_INFO!B25=0," ",COUNTRY_INFO!B25) -> Gitega | C25: =IF(COUNTRY_INFO!C25=0," ",COUNTRY_INFO!C25) -> Gitega | D25: =IF(OR(COUNTRY_INFO!$T$9:$T$1000="T3 (ALB/MBD)",COUNTRY_INFO!$U$9:$U$1000="T3 (ALB/MBD)"), "T3 (ALB/MBD)", " ") -> T3 (ALB/MBD) | E25: ALB | F25: Juin 2022 | G25: 34062 | H25: 87135 | I25: 9086.925 | J25: 130283.925 | K25: 34062 | L25: 87135 | M25: 4904 | N25: 126101 | O25: 100 | P25: 100 | Q25: 53.96765132 | R25: 96.78937751 | T25: =COUNTRY_INFO!D25 -> 363477 | U25: =COUNTRY_INFO!E25 -> 34062 | V25: =COUNTRY_INFO!F25 -> 87135 | W25: =COUNTRY_INFO!G25 -> 201366
A26: =IF(COUNTRY_INFO!A26=0," ",COUNTRY_INFO!A26) -> Burundi | B26: =IF(COUNTRY_INFO!B26=0," ",COUNTRY_INFO!B26) -> Gitega | C26: =IF(COUNTRY_INFO!C26=0," ",COUNTRY_INFO!C26) -> Kibuye | D26: =IF(OR(COUNTRY_INFO!$T$9:$T$1000="T3 (ALB/MBD)",COUNTRY_INFO!$U$9:$U$1000="T3 (ALB/MBD)"), "T3 (ALB/MBD)", " ") -> T3 (ALB/MBD) | E26: ALB | F26: Juin 2022 | G26: 29340 | H26: 78880 | I26: 7603.35 | J26: 115823.35 | K26: 29340 | L26: 91189 | M26: 5218 | N26: 125747 | O26: 100 | P26: 115.604716 | Q26: 68.62764439 | R26: 108.5679183 | T26: =COUNTRY_INFO!D26 -> 304134 | U26: =COUNTRY_INFO!E26 -> 29340 | V26: =COUNTRY_INFO!F26 -> 78880 | W26: =COUNTRY_INFO!G26 -> 168490
A27: =IF(COUNTRY_INFO!A27=0," ",COUNTRY_INFO!A27) -> Burundi | B27: =IF(COUNTRY_INFO!B27=0," ",COUNTRY_INFO!B27) -> Gitega | C27: =IF(COUNTRY_INFO!C27=0," ",COUNTRY_INFO!C27) -> Mutaho | D27: =IF(OR(COUNTRY_INFO!$T$9:$T$1000="T3 (ALB/MBD)",COUNTRY_INFO!$U$9:$U$1000="T3 (ALB/MBD)"), "T3 (ALB/MBD)", " ") -> T3 (ALB/MBD) | E27: ALB | F27: Juin 2022 | G27: 26775 | H27: 69354 | I27: 6923.775 | J27: 103052.775 | K27: 26775 | L27: 69354 | M27: 4758 | N27: 100887 | O27: 100 | P27: 100 | Q27: 68.71973743 | R27: 97.89838265 | T27: =COUNTRY_INFO!D27 -> 276951 | U27: =COUNTRY_INFO!E27 -> 26775 | V27: =COUNTRY_INFO!F27 -> 69354 | W27: =COUNTRY_INFO!G27 -> 153431
A28: =IF(COUNTRY_INFO!A28=0," ",COUNTRY_INFO!A28) -> Burundi | B28: =IF(COUNTRY_INFO!B28=0," ",COUNTRY_INFO!B28) -> Gitega | C28: =IF(COUNTRY_INFO!C28=0," ",COUNTRY_INFO!C28) -> Ryansoro | D28: =IF(OR(COUNTRY_INFO!$T$9:$T$1000="T3 (ALB/MBD)",COUNTRY_INFO!$U$9:$U$1000="T3 (ALB/MBD)"), "T3 (ALB/MBD)", " ") -> T3 (ALB/MBD) | E28: ALB | F28: Juin 2022 | G28: 19511 | H28: 57059 | I28: 5286.9 | J28: 81856.9 | K28: 19511 | L28: 58983 | M28: 3608 | N28: 82102 | O28: 100 | P28: 103.3719483 | Q28: 68.24415064 | R28: 100.299425 | T28: =COUNTRY_INFO!D28 -> 211476 | U28: =COUNTRY_INFO!E28 -> 19511 | V28: =COUNTRY_INFO!F28 -> 57059 | W28: =COUNTRY_INFO!G28 -> 117158
A29: =IF(COUNTRY_INFO!A29=0," ",COUNTRY_INFO!A29) -> Burundi | B29: =IF(COUNTRY_INFO!B29=0," ",COUNTRY_INFO!B29) -> Karusi | C29: =IF(COUNTRY_INFO!C29=0," ",COUNTRY_INFO!C29) -> Buhiga | D29: =IF(OR(COUNTRY_INFO!$T$9:$T$1000="T3 (ALB/MBD)",COUNTRY_INFO!$U$9:$U$1000="T3 (ALB/MBD)"), "T3 (ALB/MBD)", " ") -> T3 (ALB/MBD) | E29: ALB | G29: 40901 | H29: 103751 | J29: 144652 | K29: 16832 | L29: 37005 | M29: 0 | N29: 53837 | O29: 41.15302804 | P29: 35.6671261 | R29: 37.21828941 | T29: =COUNTRY_INFO!D29 -> 369073 | U29: =COUNTRY_INFO!E29 -> 40901 | V29: =COUNTRY_INFO!F29 -> 103751 | W29: =COUNTRY_INFO!G29 -> 204466
A30: =IF(COUNTRY_INFO!A30=0," ",COUNTRY_INFO!A30) -> Burundi | B30: =IF(COUNTRY_INFO!B30=0," ",COUNTRY_INFO!B30) -> Karusi | C30: =IF(COUNTRY_INFO!C30=0," ",COUNTRY_INFO!C30) -> Nyabikere | D30: =IF(OR(COUNTRY_INFO!$T$9:$T$1000="T3 (ALB/MBD)",COUNTRY_INFO!$U$9:$U$1000="T3 (ALB/MBD)"), "T3 (ALB/MBD)", " ") -> T3 (ALB/MBD) | E30: ALB | G30: 36570 | H30: 91548 | J30: 128118 | K30: 11008 | L30: 24561 | M30: 0 | N30: 35569 | O30: 30.10117583 | P30: 26.82854896 | R30: 27.76268752 | T30: =COUNTRY_INFO!D30 -> 326637 | U30: =COUNTRY_INFO!E30 -> 36570 | V30: =COUNTRY_INFO!F30 -> 91548 | W30: =COUNTRY_INFO!G30 -> 180957
A31: =IF(COUNTRY_INFO!A31=0," ",COUNTRY_INFO!A31) -> Burundi | B31: =IF(COUNTRY_INFO!B31=0," ",COUNTRY_INFO!B31) -> Kayanza | C31: =IF(COUNTRY_INFO!C31=0," ",COUNTRY_INFO!C31) -> Gahombo | D31: =IF(OR(COUNTRY_INFO!$T$9:$T$1000="T3 (ALB/MBD)",COUNTRY_INFO!$U$9:$U$1000="T3 (ALB/MBD)"), "T3 (ALB/MBD)", " ") -> T3 (ALB/MBD) | E31: ALB | F31: Juin 2022 | G31: 26012 | H31: 75059 | I31: 6703.95 | J31: 107774.95 | K31: 26057 | L31: 69452 | M31: 3268 | N31: 98777 | O31: 100.1729971 | P31: 92.5298765 | Q31: 48.74738028 | R31: 91.65116755 | T31: =COUNTRY_INFO!D31 -> 268158 | U31: =COUNTRY_INFO!E31 -> 26012 | V31: =COUNTRY_INFO!F31 -> 75059 | W31: =COUNTRY_INFO!G31 -> 148560
A32: =IF(COUNTRY_INFO!A32=0," ",COUNTRY_INFO!A32) -> Burundi | B32: =IF(COUNTRY_INFO!B32=0," ",COUNTRY_INFO!B32) -> Kayanza | C32: =IF(COUNTRY_INFO!C32=0," ",COUNTRY_INFO!C32) -> Kayanza | D32: =IF(OR(COUNTRY_INFO!$T$9:$T$1000="T3 (ALB/MBD)",COUNTRY_INFO!$U$9:$U$1000="T3 (ALB/MBD)"), "T3 (ALB/MBD)", " ") -> T3 (ALB/MBD) | E32: ALB | F32: Juin 2022 | G32: 37748 | H32: 95870 | I32: 8665.35 | J32: 142283.35 | K32: 33731 | L32: 100757 | M32: 5263 | N32: 139751 | O32: 89.3583766 | P32: 105.0975279 | Q32: 60.7361503 | R32: 98.22020637 | T32: =COUNTRY_INFO!D32 -> 346614 | U32: =COUNTRY_INFO!E32 -> 37748 | V32: =COUNTRY_INFO!F32 -> 95870 | W32: =COUNTRY_INFO!G32 -> 192024
A33: =IF(COUNTRY_INFO!A33=0," ",COUNTRY_INFO!A33) -> Burundi | B33: =IF(COUNTRY_INFO!B33=0," ",COUNTRY_INFO!B33) -> Kayanza | C33: =IF(COUNTRY_INFO!C33=0," ",COUNTRY_INFO!C33) -> Musema | D33: =IF(OR(COUNTRY_INFO!$T$9:$T$1000="T3 (ALB/MBD)",COUNTRY_INFO!$U$9:$U$1000="T3 (ALB/MBD)"), "T3 (ALB/MBD)", " ") -> T3 (ALB/MBD) | E33: ALB | F33: Juin 2022 | G33: 31673 | H33: 82467 | I33: 7960 | J33: 122100 | K33: 36970 | L33: 93552 | M33: 5096 | N33: 135618 | O33: 116.7240236 | P33: 113.4417403 | Q33: 64.0201005 | R33: 111.0712531 | T33: =COUNTRY_INFO!D33 -> 318400 | U33: =COUNTRY_INFO!E33 -> 31673 | V33: =COUNTRY_INFO!F33 -> 82467 | W33: =COUNTRY_INFO!G33 -> 176394
A34: =IF(COUNTRY_INFO!A34=0," ",COUNTRY_INFO!A34) -> Burundi | B34: =IF(COUNTRY_INFO!B34=0," ",COUNTRY_INFO!B34) -> Kirundo | C34: =IF(COUNTRY_INFO!C34=0," ",COUNTRY_INFO!C34) -> Busoni | D34: =IF(OR(COUNTRY_INFO!$T$9:$T$1000="T3 (ALB/MBD)",COUNTRY_INFO!$U$9:$U$1000="T3 (ALB/MBD)"), "T3 (ALB/MBD)", " ") -> T3 (ALB/MBD) | E34: ALB | G34: 26489 | H34: 64516 | J34: 91005 | K34: 2795 | L34: 7803 | M34: 0 | N34: 10598 | O34: 10.5515497 | P34: 12.09467419 | R34: 11.64551398 | T34: =COUNTRY_INFO!D34 -> 231812 | U34: =COUNTRY_INFO!E34 -> 26489 | V34: =COUNTRY_INFO!F34 -> 64516 | W34: =COUNTRY_INFO!G34 -> 128424
A35: =IF(COUNTRY_INFO!A35=0," ",COUNTRY_INFO!A35) -> Burundi | B35: =IF(COUNTRY_INFO!B35=0," ",COUNTRY_INFO!B35) -> Kirundo | C35: =IF(COUNTRY_INFO!C35=0," ",COUNTRY_INFO!C35) -> Kirundo | D35: =IF(OR(COUNTRY_INFO!$T$9:$T$1000="T3 (ALB/MBD)",COUNTRY_INFO!$U$9:$U$1000="T3 (ALB/MBD)"), "T3 (ALB/MBD)", " ") -> T3 (ALB/MBD) | E35: ALB | G35: 31950 | H35: 79139 | J35: 111089 | K35: 2970 | L35: 63802 | M35: 0 | N35: 66772 | O35: 9.295774648 | P35: 80.62017463 | R35: 60.10676125 | T35: =COUNTRY_INFO!D35 -> 290704 | U35: =COUNTRY_INFO!E35 -> 31950 | V35: =COUNTRY_INFO!F35 -> 79139 | W35: =COUNTRY_INFO!G35 -> 161050
A36: =IF(COUNTRY_INFO!A36=0," ",COUNTRY_INFO!A36) -> Burundi | B36: =IF(COUNTRY_INFO!B36=0," ",COUNTRY_INFO!B36) -> Kirundo | C36: =IF(COUNTRY_INFO!C36=0," ",COUNTRY_INFO!C36) -> Mukenke | D36: =IF(OR(COUNTRY_INFO!$T$9:$T$1000="T3 (ALB/MBD)",COUNTRY_INFO!$U$9:$U$1000="T3 (ALB/MBD)"), "T3 (ALB/MBD)", " ") -> T3 (ALB/MBD) | E36: ALB | G36: 23217 | H36: 51437 | J36: 74654 | K36: 4293 | L36: 9493 | M36: 0 | N36: 13786 | O36: 18.49076108 | P36: 18.45558645 | R36: 18.46652557 | T36: =COUNTRY_INFO!D36 -> 197888 | U36: =COUNTRY_INFO!E36 -> 23217 | V36: =COUNTRY_INFO!F36 -> 51437 | W36: =COUNTRY_INFO!G36 -> 109630
A37: =IF(COUNTRY_INFO!A37=0," ",COUNTRY_INFO!A37) -> Burundi | B37: =IF(COUNTRY_INFO!B37=0," ",COUNTRY_INFO!B37) -> Kirundo | C37: =IF(COUNTRY_INFO!C37=0," ",COUNTRY_INFO!C37) -> Vumbi | D37: =IF(OR(COUNTRY_INFO!$T$9:$T$1000="T3 (ALB/MBD)",COUNTRY_INFO!$U$9:$U$1000="T3 (ALB/MBD)"), "T3 (ALB/MBD)", " ") -> T3 (ALB/MBD) | E37: ALB | G37: 31159 | H37: 72945 | J37: 104104 | K37: 7343 | L37: 21279 | M37: 0 | N37: 28622 | O37: 23.56622485 | P37: 29.17129344 | R37: 27.49366019 | T37: =COUNTRY_INFO!D37 -> 281063 | U37: =COUNTRY_INFO!E37 -> 31159 | V37: =COUNTRY_INFO!F37 -> 72945 | W37: =COUNTRY_INFO!G37 -> 155709
A38: =IF(COUNTRY_INFO!A38=0," ",COUNTRY_INFO!A38) -> Burundi | B38: =IF(COUNTRY_INFO!B38=0," ",COUNTRY_INFO!B38) -> Makamba | C38: =IF(COUNTRY_INFO!C38=0," ",COUNTRY_INFO!C38) -> Makamba | D38: =IF(OR(COUNTRY_INFO!$T$9:$T$1000="T3 (ALB/MBD)",COUNTRY_INFO!$U$9:$U$1000="T3 (ALB/MBD)"), "T3 (ALB/MBD)", " ") -> T3 (ALB/MBD) | E38: ALB | F38: Juin 2022 | G38: 41017 | H38: 103492 | I38: 9049.725 | J38: 153558.725 | K38: 38317 | L38: 112672 | M38: 5726 | N38: 156715 | O38: 93.41736353 | P38: 108.8702508 | Q38: 63.27264088 | R38: 102.0554189 | T38: =COUNTRY_INFO!D38 -> 361989 | U38: =COUNTRY_INFO!E38 -> 41017 | V38: =COUNTRY_INFO!F38 -> 103492 | W38: =COUNTRY_INFO!G38 -> 200542
A39: =IF(COUNTRY_INFO!A39=0," ",COUNTRY_INFO!A39) -> Burundi | B39: =IF(COUNTRY_INFO!B39=0," ",COUNTRY_INFO!B39) -> Makamba | C39: =IF(COUNTRY_INFO!C39=0," ",COUNTRY_INFO!C39) -> Nyanza-Lac | D39: =IF(OR(COUNTRY_INFO!$T$9:$T$1000="T3 (ALB/MBD)",COUNTRY_INFO!$U$9:$U$1000="T3 (ALB/MBD)"), "T3 (ALB/MBD)", " ") -> T3 (ALB/MBD) | E39: ALB | F39: Juin 2022 | G39: 36774 | H39: 91270 | I39: 8122.1 | J39: 136166.1 | K39: 41365 | L39: 91270 | M39: 5338 | N39: 137973 | O39: 112.484364 | P39: 100 | Q39: 65.72191921 | R39: 101.3269823 | T39: =COUNTRY_INFO!D39 -> 324884 | U39: =COUNTRY_INFO!E39 -> 36774 | V39: =COUNTRY_INFO!F39 -> 91270 | W39: =COUNTRY_INFO!G39 -> 179986
A40: =IF(COUNTRY_INFO!A40=0," ",COUNTRY_INFO!A40) -> Burundi | B40: =IF(COUNTRY_INFO!B40=0," ",COUNTRY_INFO!B40) -> Muramvya | C40: =IF(COUNTRY_INFO!C40=0," ",COUNTRY_INFO!C40) -> Kiganda | D40: =IF(OR(COUNTRY_INFO!$T$9:$T$1000="T3 (ALB/MBD)",COUNTRY_INFO!$U$9:$U$1000="T3 (ALB/MBD)"), "T3 (ALB/MBD)", " ") -> T3 (ALB/MBD) | E40: ALB | F40: Juin 2022 | G40: 22393 | H40: 60957 | I40: 5788.05 | J40: 89138.05 | K40: 26800 | L40: 69284 | M40: 3392 | N40: 99476 | O40: 119.6802572 | P40: 113.6604492 | Q40: 58.60350204 | R40: 111.5976847 | T40: =COUNTRY_INFO!D40 -> 231522 | U40: =COUNTRY_INFO!E40 -> 22393 | V40: =COUNTRY_INFO!F40 -> 60957 | W40: =COUNTRY_INFO!G40 -> 128263
A41: =IF(COUNTRY_INFO!A41=0," ",COUNTRY_INFO!A41) -> Burundi | B41: =IF(COUNTRY_INFO!B41=0," ",COUNTRY_INFO!B41) -> Muramvya | C41: =IF(COUNTRY_INFO!C41=0," ",COUNTRY_INFO!C41) -> Muramvya | D41: =IF(OR(COUNTRY_INFO!$T$9:$T$1000="T3 (ALB/MBD)",COUNTRY_INFO!$U$9:$U$1000="T3 (ALB/MBD)"), "T3 (ALB/MBD)", " ") -> T3 (ALB/MBD) | E41: ALB | F41: Juin 2022 | G41: 23510 | H41: 60125 | I41: 5871.925 | J41: 89506.925 | K41: 23510 | L41: 60125 | M41: 3574 | N41: 87209 | O41: 100 | P41: 100 | Q41: 60.86590002 | R41: 97.43268468 | T41: =COUNTRY_INFO!D41 -> 234877 | U41: =COUNTRY_INFO!E41 -> 23510 | V41: =COUNTRY_INFO!F41 -> 60125 | W41: =COUNTRY_INFO!G41 -> 130122
A42: =IF(COUNTRY_INFO!A42=0," ",COUNTRY_INFO!A42) -> Burundi | B42: =IF(COUNTRY_INFO!B42=0," ",COUNTRY_INFO!B42) -> Muyinga | C42: =IF(COUNTRY_INFO!C42=0," ",COUNTRY_INFO!C42) -> Gashoho | D42: =IF(OR(COUNTRY_INFO!$T$9:$T$1000="T3 (ALB/MBD)",COUNTRY_INFO!$U$9:$U$1000="T3 (ALB/MBD)"), "T3 (ALB/MBD)", " ") -> T3 (ALB/MBD) | E42: ALB | F42: Juin 2022 | G42: 26472 | H42: 63333 | I42: 5902.125 | J42: 95707.125 | K42: 28413 | L42: 63333 | M42: 3949 | N42: 95695 | O42: 107.3322756 | P42: 100 | Q42: 66.90810513 | R42: 99.98733114 | T42: =COUNTRY_INFO!D42 -> 236085 | U42: =COUNTRY_INFO!E42 -> 26472 | V42: =COUNTRY_INFO!F42 -> 63333 | W42: =COUNTRY_INFO!G42 -> 130791
A43: =IF(COUNTRY_INFO!A43=0," ",COUNTRY_INFO!A43) -> Burundi | B43: =IF(COUNTRY_INFO!B43=0," ",COUNTRY_INFO!B43) -> Muyinga | C43: =IF(COUNTRY_INFO!C43=0," ",COUNTRY_INFO!C43) -> Giteranyi | D43: =IF(OR(COUNTRY_INFO!$T$9:$T$1000="T3 (ALB/MBD)",COUNTRY_INFO!$U$9:$U$1000="T3 (ALB/MBD)"), "T3 (ALB/MBD)", " ") -> T3 (ALB/MBD) | E43: ALB | F43: Juin 2022 | G43: 47030 | H43: 109797 | I43: 9887.85 | J43: 166714.85 | K43: 40927 | L43: 115015 | M43: 6168 | N43: 162110 | O43: 87.0231767 | P43: 104.7524067 | Q43: 62.37958707 | R43: 97.23788853 | T43: =COUNTRY_INFO!D43 -> 395514 | U43: =COUNTRY_INFO!E43 -> 47030 | V43: =COUNTRY_INFO!F43 -> 109797 | W43: =COUNTRY_INFO!G43 -> 219115
A44: =IF(COUNTRY_INFO!A44=0," ",COUNTRY_INFO!A44) -> Burundi | B44: =IF(COUNTRY_INFO!B44=0," ",COUNTRY_INFO!B44) -> Muyinga | C44: =IF(COUNTRY_INFO!C44=0," ",COUNTRY_INFO!C44) -> Muyinga | D44: =IF(OR(COUNTRY_INFO!$T$9:$T$1000="T3 (ALB/MBD)",COUNTRY_INFO!$U$9:$U$1000="T3 (ALB/MBD)"), "T3 (ALB/MBD)", " ") -> T3 (ALB/MBD) | E44: ALB | F44: Juin 2022 | G44: 45478 | H44: 101847 | I44: 9412.2 | J44: 156737.2 | K44: 38968 | L44: 115355 | M44: 4624 | N44: 158947 | O44: 85.68538634 | P44: 113.2630318 | Q44: 49.12772784 | R44: 101.4098759 | T44: =COUNTRY_INFO!D44 -> 376488 | U44: =COUNTRY_INFO!E44 -> 45478 | V44: =COUNTRY_INFO!F44 -> 101847 | W44: =COUNTRY_INFO!G44 -> 208574
A45: =IF(COUNTRY_INFO!A45=0," ",COUNTRY_INFO!A45) -> Burundi | B45: =IF(COUNTRY_INFO!B45=0," ",COUNTRY_INFO!B45) -> Mwaro | C45: =IF(COUNTRY_INFO!C45=0," ",COUNTRY_INFO!C45) -> Fota | D45: =IF(OR(COUNTRY_INFO!$T$9:$T$1000="T3 (ALB/MBD)",COUNTRY_INFO!$U$9:$U$1000="T3 (ALB/MBD)"), "T3 (ALB/MBD)", " ") -> T3 (ALB/MBD) | E45: ALB | F45: Juin 2022 | G45: 18739 | H45: 54207 | I45: 5161.9 | J45: 78107.9 | K45: 18801 | L45: 49108 | M45: 2158 | N45: 70067 | O45: 100.3308608 | P45: 90.59346579 | Q45: 41.80631163 | R45: 89.70539472 | T45: =COUNTRY_INFO!D45 -> 206476 | U45: =COUNTRY_INFO!E45 -> 18739 | V45: =COUNTRY_INFO!F45 -> 54207 | W45: =COUNTRY_INFO!G45 -> 114388
A46: =IF(COUNTRY_INFO!A46=0," ",COUNTRY_INFO!A46) -> Burundi | B46: =IF(COUNTRY_INFO!B46=0," ",COUNTRY_INFO!B46) -> Mwaro | C46: =IF(COUNTRY_INFO!C46=0," ",COUNTRY_INFO!C46) -> Kibumbu | D46: =IF(OR(COUNTRY_INFO!$T$9:$T$1000="T3 (ALB/MBD)",COUNTRY_INFO!$U$9:$U$1000="T3 (ALB/MBD)"), "T3 (ALB/MBD)", " ") -> T3 (ALB/MBD) | E46: ALB | F46: Juin 2022 | G46: 20794 | H46: 59664 | I46: 5723.125 | J46: 86181.125 | K46: 24791 | L46: 61228 | M46: 4059 | N46: 90078 | O46: 119.2218909 | P46: 102.6213462 | Q46: 70.92279131 | R46: 104.5217268 | T46: =COUNTRY_INFO!D46 -> 228925 | U46: =COUNTRY_INFO!E46 -> 20794 | V46: =COUNTRY_INFO!F46 -> 59664 | W46: =COUNTRY_INFO!G46 -> 126824
A47: =IF(COUNTRY_INFO!A47=0," ",COUNTRY_INFO!A47) -> Burundi | B47: =IF(COUNTRY_INFO!B47=0," ",COUNTRY_INFO!B47) -> Ngozi | C47: =IF(COUNTRY_INFO!C47=0," ",COUNTRY_INFO!C47) -> Buye | D47: =IF(OR(COUNTRY_INFO!$T$9:$T$1000="T3 (ALB/MBD)",COUNTRY_INFO!$U$9:$U$1000="T3 (ALB/MBD)"), "T3 (ALB/MBD)", " ") -> T3 (ALB/MBD) | E47: ALB | F47: Juin 2022 | G47: 30862 | H47: 76124 | I47: 7008.7 | J47: 113994.7 | K47: 25001 | L47: 77501 | M47: 3217 | N47: 105719 | O47: 81.00900784 | P47: 101.8088908 | Q47: 45.9000956 | R47: 92.74027652 | T47: =COUNTRY_INFO!D47 -> 280348 | U47: =COUNTRY_INFO!E47 -> 30862 | V47: =COUNTRY_INFO!F47 -> 76124 | W47: =COUNTRY_INFO!G47 -> 155313
A48: =IF(COUNTRY_INFO!A48=0," ",COUNTRY_INFO!A48) -> Burundi | B48: =IF(COUNTRY_INFO!B48=0," ",COUNTRY_INFO!B48) -> Ngozi | C48: =IF(COUNTRY_INFO!C48=0," ",COUNTRY_INFO!C48) -> Kiremba | D48: =IF(OR(COUNTRY_INFO!$T$9:$T$1000="T3 (ALB/MBD)",COUNTRY_INFO!$U$9:$U$1000="T3 (ALB/MBD)"), "T3 (ALB/MBD)", " ") -> T3 (ALB/MBD) | E48: ALB | F48: Juin 2022 | G48: 41263 | H48: 101451 | I48: 9437.05 | J48: 152151.05 | K48: 39347 | L48: 112821 | M48: 6024 | N48: 158192 | O48: 95.35661489 | P48: 111.2073809 | Q48: 63.83350729 | R48: 103.9703637 | T48: =COUNTRY_INFO!D48 -> 377482 | U48: =COUNTRY_INFO!E48 -> 41263 | V48: =COUNTRY_INFO!F48 -> 101451 | W48: =COUNTRY_INFO!G48 -> 209125
A49: =IF(COUNTRY_INFO!A49=0," ",COUNTRY_INFO!A49) -> Burundi | B49: =IF(COUNTRY_INFO!B49=0," ",COUNTRY_INFO!B49) -> Ngozi | C49: =IF(COUNTRY_INFO!C49=0," ",COUNTRY_INFO!C49) -> Ngozi | D49: =IF(OR(COUNTRY_INFO!$T$9:$T$1000="T3 (ALB/MBD)",COUNTRY_INFO!$U$9:$U$1000="T3 (ALB/MBD)"), "T3 (ALB/MBD)", " ") -> T3 (ALB/MBD) | E49: ALB | F49: Juin 2022 | G49: 39731 | H49: 105248 | I49: 9884.55 | J49: 154863.55 | K49: 45655 | L49: 114530 | M49: 5780 | N49: 165965 | O49: 114.9102716 | P49: 108.81917 | Q49: 58.47509497 | R49: 107.1685364 | T49: =COUNTRY_INFO!D49 -> 395382 | U49: =COUNTRY_INFO!E49 -> 39731 | V49: =COUNTRY_INFO!F49 -> 105248 | W49: =COUNTRY_INFO!G49 -> 219042
A50: =IF(COUNTRY_INFO!A50=0," ",COUNTRY_INFO!A50) -> Burundi | B50: =IF(COUNTRY_INFO!B50=0," ",COUNTRY_INFO!B50) -> Rumonge | C50: =IF(COUNTRY_INFO!C50=0," ",COUNTRY_INFO!C50) -> Bugarama | D50: =IF(OR(COUNTRY_INFO!$T$9:$T$1000="T3 (ALB/MBD)",COUNTRY_INFO!$U$9:$U$1000="T3 (ALB/MBD)"), "T3 (ALB/MBD)", " ") -> T3 (ALB/MBD) | E50: ALB | F50: Juin 2022 | G50: 27026 | H50: 64195 | I50: 5909.225 | J50: 97130.225 | K50: 27099 | L50: 64195 | M50: 3493 | N50: 94787 | O50: 100.2701103 | P50: 100 | Q50: 59.11096633 | R50: 97.58754291 | T50: =COUNTRY_INFO!D50 -> 236369 | U50: =COUNTRY_INFO!E50 -> 27026 | V50: =COUNTRY_INFO!F50 -> 64195 | W50: =COUNTRY_INFO!G50 -> 130948
A51: =IF(COUNTRY_INFO!A51=0," ",COUNTRY_INFO!A51) -> Burundi | B51: =IF(COUNTRY_INFO!B51=0," ",COUNTRY_INFO!B51) -> Rumonge | C51: =IF(COUNTRY_INFO!C51=0," ",COUNTRY_INFO!C51) -> Rumonge | D51: =IF(OR(COUNTRY_INFO!$T$9:$T$1000="T3 (ALB/MBD)",COUNTRY_INFO!$U$9:$U$1000="T3 (ALB/MBD)"), "T3 (ALB/MBD)", " ") -> T3 (ALB/MBD) | E51: ALB | F51: Juin 2022 | G51: 36253 | H51: 87634 | I51: 8119.425 | J51: 132006.425 | K51: 42289 | L51: 104201 | M51: 6187 | N51: 152677 | O51: 116.6496566 | P51: 118.904763 | Q51: 76.19997722 | R51: 115.6587643 | T51: =COUNTRY_INFO!D51 -> 324777 | U51: =COUNTRY_INFO!E51 -> 36253 | V51: =COUNTRY_INFO!F51 -> 87634 | W51: =COUNTRY_INFO!G51 -> 179926
A52: =IF(COUNTRY_INFO!A52=0," ",COUNTRY_INFO!A52) -> Burundi | B52: =IF(COUNTRY_INFO!B52=0," ",COUNTRY_INFO!B52) -> Rutana | C52: =IF(COUNTRY_INFO!C52=0," ",COUNTRY_INFO!C52) -> Gihofi | D52: =IF(OR(COUNTRY_INFO!$T$9:$T$1000="T3 (ALB/MBD)",COUNTRY_INFO!$U$9:$U$1000="T3 (ALB/MBD)"), "T3 (ALB/MBD)", " ") -> T3 (ALB/MBD) | E52: ALB | F52: Juin 2022 | G52: 32794 | H52: 79832 | I52: 6876.825 | J52: 119502.825 | K52: 31143 | L52: 81432 | M52: 4701 | N52: 117276 | O52: 94.96554248 | P52: 102.0042088 | Q52: 68.36003534 | R52: 98.13659217 | T52: =COUNTRY_INFO!D52 -> 275073 | U52: =COUNTRY_INFO!E52 -> 32794 | V52: =COUNTRY_INFO!F52 -> 79832 | W52: =COUNTRY_INFO!G52 -> 152390
A53: =IF(COUNTRY_INFO!A53=0," ",COUNTRY_INFO!A53) -> Burundi | B53: =IF(COUNTRY_INFO!B53=0," ",COUNTRY_INFO!B53) -> Rutana | C53: =IF(COUNTRY_INFO!C53=0," ",COUNTRY_INFO!C53) -> Rutana | D53: =IF(OR(COUNTRY_INFO!$T$9:$T$1000="T3 (ALB/MBD)",COUNTRY_INFO!$U$9:$U$1000="T3 (ALB/MBD)"), "T3 (ALB/MBD)", " ") -> T3 (ALB/MBD) | E53: ALB | F53: Juin 2022 | G53: 25411 | H53: 71296 | I53: 6413.9 | J53: 103120.9 | K53: 26270 | L53: 71246 | M53: 3208 | N53: 100724 | O53: 103.3804258 | P53: 99.92986984 | Q53: 50.01637069 | R53: 97.67564092 | T53: =COUNTRY_INFO!D53 -> 256556 | U53: =COUNTRY_INFO!E53 -> 25411 | V53: =COUNTRY_INFO!F53 -> 71296 | W53: =COUNTRY_INFO!G53 -> 142132
A54: =IF(COUNTRY_INFO!A54=0," ",COUNTRY_INFO!A54) -> Burundi | B54: =IF(COUNTRY_INFO!B54=0," ",COUNTRY_INFO!B54) -> Ruyigi | C54: =IF(COUNTRY_INFO!C54=0," ",COUNTRY_INFO!C54) -> Butezi | D54: =IF(OR(COUNTRY_INFO!$T$9:$T$1000="T3 (ALB/MBD)",COUNTRY_INFO!$U$9:$U$1000="T3 (ALB/MBD)"), "T3 (ALB/MBD)", " ") -> T3 (ALB/MBD) | E54: ALB | F54: Juin 2022 | G54: 17898 | H54: 45697 | I54: 4079.3 | J54: 67674.3 | K54: 17895 | L54: 45691 | M54: 3771 | N54: 67357 | O54: 99.98323835 | P54: 99.98687004 | Q54: 92.44233079 | R54: 99.53113664 | T54: =COUNTRY_INFO!D54 -> 163172 | U54: =COUNTRY_INFO!E54 -> 17898 | V54: =COUNTRY_INFO!F54 -> 45697 | W54: =COUNTRY_INFO!G54 -> 90397
A55: =IF(COUNTRY_INFO!A55=0," ",COUNTRY_INFO!A55) -> Burundi | B55: =IF(COUNTRY_INFO!B55=0," ",COUNTRY_INFO!B55) -> Gisuru | C55: =IF(COUNTRY_INFO!C55=0," ",COUNTRY_INFO!C55) -> Gisuru | D55: =IF(OR(COUNTRY_INFO!$T$9:$T$1000="T3 (ALB/MBD)",COUNTRY_INFO!$U$9:$U$1000="T3 (ALB/MBD)"), "T3 (ALB/MBD)", " ") -> T3 (ALB/MBD) | E55: ALB | F55: Juin 2022 | G55: 18930 | H55: 46457 | I55: 3963.625 | J55: 69350.625 | K55: 19860 | L55: 45317 | M55: 2513 | N55: 67690 | O55: 104.9128368 | P55: 97.54611792 | Q55: 63.40155792 | R55: 97.60546498 | T55: =COUNTRY_INFO!D55 -> 158545 | U55: =COUNTRY_INFO!E55 -> 18930 | V55: =COUNTRY_INFO!F55 -> 46457 | W55: =COUNTRY_INFO!G55 -> 87834
A56: =IF(COUNTRY_INFO!A56=0," ",COUNTRY_INFO!A56) -> Burundi | B56: =IF(COUNTRY_INFO!B56=0," ",COUNTRY_INFO!B56) -> Ruyigi | C56: =IF(COUNTRY_INFO!C56=0," ",COUNTRY_INFO!C56) -> Kinyinya | D56: =IF(OR(COUNTRY_INFO!$T$9:$T$1000="T3 (ALB/MBD)",COUNTRY_INFO!$U$9:$U$1000="T3 (ALB/MBD)"), "T3 (ALB/MBD)", " ") -> T3 (ALB/MBD) | E56: ALB | F56: Juin 2022 | G56: 19710 | H56: 47169 | I56: 4167.3 | J56: 71046.3 | K56: 20090 | L56: 45575 | M56: 2426 | N56: 68091 | O56: 101.9279554 | P56: 96.62066188 | Q56: 58.2151513 | R56: 95.84031822 | T56: =COUNTRY_INFO!D56 -> 166692 | U56: =COUNTRY_INFO!E56 -> 19710 | V56: =COUNTRY_INFO!F56 -> 47169 | W56: =COUNTRY_INFO!G56 -> 92347
A57: =IF(COUNTRY_INFO!A57=0," ",COUNTRY_INFO!A57) -> Burundi | B57: =IF(COUNTRY_INFO!B57=0," ",COUNTRY_INFO!B57) -> Ruyigi | C57: =IF(COUNTRY_INFO!C57=0," ",COUNTRY_INFO!C57) -> Ruyigi | D57: =IF(OR(COUNTRY_INFO!$T$9:$T$1000="T3 (ALB/MBD)",COUNTRY_INFO!$U$9:$U$1000="T3 (ALB/MBD)"), "T3 (ALB/MBD)", " ") -> T3 (ALB/MBD) | E57: ALB | F57: Juin 2022 | G57: 15593 | H57: 40080 | I57: 3751.3 | J57: 59424.3 | K57: 15593 | L57: 46971 | M57: 2333 | N57: 64897 | O57: 100 | P57: 117.1931138 | Q57: 62.19177352 | R57: 109.2095321 | T57: =COUNTRY_INFO!D57 -> 150052 | U57: =COUNTRY_INFO!E57 -> 15593 | V57: =COUNTRY_INFO!F57 -> 40080 | W57: =COUNTRY_INFO!G57 -> 83129

Sheet T3_R2
A1: T 3 - Albendazole (ALB) ou Mebendazole (MBD) - Tournée 2
A2: Structure administrative, population nécessitant une chimioprévention par groupe d'âge, population traitée par groupe d'âge et couverture
A4: TOTAL | G4: =SUM(G$9:G$1000) -> 0 | H4: 0 | I4: 0 | J4: 0 | K4: 0 | L4: 0 | M4: 0 | N4: 0 | O4: =IF(G4<>0, IF(K4/G4*100=0, "-", K4/G4*100), " ") ->  | P4: =IF(H4<>0, IF(L4/H4*100=0, "-", L4/H4*100), " ") ->  | Q4: =IF(I4<>0, IF(M4/I4*100=0, "-", M4/I4*100), " ") ->  | R4: =IF(J4<>0, IF(N4/J4*100=0, "-", N4/J4*100), " ") -> 
A6: Structure administrative du pays | D6: Mise en oeuvre de la CP | E6: Médica-ment | F6: Date | G6: Population ciblée pour T3 | K6: Population traitée | O6: Couverture du Programme (%)
A7: Pays | B7: Région/Département | C7: District | G7: EAPréS | H7: EAS | I7: Adultes | J7: Total | K7: EAPréS | L7: EAS | M7: Adultes | N7: Total | O7: EAPréS | P7: EAS | Q7: Adultes | R7: Total
A9: =IF(COUNTRY_INFO!A9=0," ",COUNTRY_INFO!A9) -> Burundi | B9: =IF(COUNTRY_INFO!B9=0," ",COUNTRY_INFO!B9) -> Bubanza | C9: =IF(COUNTRY_INFO!C9=0," ",COUNTRY_INFO!C9) -> Bubanza | D9: =IF(AND(COUNTRY_INFO!$T$9:$T$1000="T3 (ALB/MBD)",COUNTRY_INFO!$U$9:$U$1000="T3 (ALB/MBD)"), "T3 (ALB/MBD)", " ") ->  | J9: =SUM(G9:I9) -> 0 | N9: =SUM(K9:M9) -> 0 | O9: =IF(G9<>0, IF(K9/G9*100=0, "-", K9/G9*100), " ") ->  | Z9: 31788 | AA9: 65967 | AB9: 6475.175
A10: =IF(COUNTRY_INFO!A10=0," ",COUNTRY_INFO!A10) -> Burundi | B10: =IF(COUNTRY_INFO!B10=0," ",COUNTRY_INFO!B10) -> Bubanza | C10: =IF(COUNTRY_INFO!C10=0," ",COUNTRY_INFO!C10) -> Mpanda | D10: =IF(AND(COUNTRY_INFO!$T$9:$T$1000="T3 (ALB/MBD)",COUNTRY_INFO!$U$9:$U$1000="T3 (ALB/MBD)"), "T3 (ALB/MBD)", " ") ->  | J10: =SUM(G10:I10) -> 0 | N10: =SUM(K10:M10) -> 0 | O10: =IF(G10<>0, IF(K10/G10*100=0, "-", K10/G10*100), " ") ->  | P10: =IF(H10<>0, IF(L10/H10*100=0, "-", L10/H10*100), " ") ->  | Q10: =IF(I10<>0, IF(M10/I10*100=0, "-", M10/I10*100), " ") ->  | R10: =IF(J10<>0, IF(N10/J10*100=0, "-", N10/J10*100), " ") ->  | Z10: 39779 | AA10: 62735 | AB10: 6719.25
A11: =IF(COUNTRY_INFO!A11=0," ",COUNTRY_INFO!A11) -> Burundi | B11: =IF(COUNTRY_INFO!B11=0," ",COUNTRY_INFO!B11) -> Bujumbura Mairie | C11: =IF(COUNTRY_INFO!C11=0," ",COUNTRY_INFO!C11) -> Zone Centre | D11: =IF(AND(COUNTRY_INFO!$T$9:$T$1000="T3 (ALB/MBD)",COUNTRY_INFO!$U$9:$U$1000="T3 (ALB/MBD)"), "T3 (ALB/MBD)", " ") ->  | J11: 0 | N11: 0 | Z11: 12816 | AA11: 35878 | AB11: 4817.4
A12: =IF(COUNTRY_INFO!A12=0," ",COUNTRY_INFO!A12) -> Burundi | B12: =IF(COUNTRY_INFO!B12=0," ",COUNTRY_INFO!B12) -> Bujumbura Mairie | C12: =IF(COUNTRY_INFO!C12=0," ",COUNTRY_INFO!C12) -> Zone Nord | D12: =IF(AND(COUNTRY_INFO!$T$9:$T$1000="T3 (ALB/MBD)",COUNTRY_INFO!$U$9:$U$1000="T3 (ALB/MBD)"), "T3 (ALB/MBD)", " ") ->  | J12: 0 | N12: 0 | Z12: 37201 | AA12: 81940 | AB12: 9716.175
A13: =IF(COUNTRY_INFO!A13=0," ",COUNTRY_INFO!A13) -> Burundi | B13: =IF(COUNTRY_INFO!B13=0," ",COUNTRY_INFO!B13) -> Bujumbura Mairie | C13: =IF(COUNTRY_INFO!C13=0," ",COUNTRY_INFO!C13) -> Zone Sud | D13: =IF(AND(COUNTRY_INFO!$T$9:$T$1000="T3 (ALB/MBD)",COUNTRY_INFO!$U$9:$U$1000="T3 (ALB/MBD)"), "T3 (ALB/MBD)", " ") ->  | J13: 0 | N13: 0 | Z13: 16825 | AA13: 40689 | AB13: 4872.875
A14: =IF(COUNTRY_INFO!A14=0," ",COUNTRY_INFO!A14) -> Burundi | B14: =IF(COUNTRY_INFO!B14=0," ",COUNTRY_INFO!B14) -> Bujumbura Rural | C14: =IF(COUNTRY_INFO!C14=0," ",COUNTRY_INFO!C14) -> Isare | D14: =IF(AND(COUNTRY_INFO!$T$9:$T$1000="T3 (ALB/MBD)",COUNTRY_INFO!$U$9:$U$1000="T3 (ALB/MBD)"), "T3 (ALB/MBD)", " ") ->  | J14: 0 | N14: 0 | Z14: 28663 | AA14: 79383 | AB14: 7414.7
A15: =IF(COUNTRY_INFO!A15=0," ",COUNTRY_INFO!A15) -> Burundi | B15: =IF(COUNTRY_INFO!B15=0," ",COUNTRY_INFO!B15) -> Bujumbura Rural | C15: =IF(COUNTRY_INFO!C15=0," ",COUNTRY_INFO!C15) -> Kabezi | D15: =IF(AND(COUNTRY_INFO!$T$9:$T$1000="T3 (ALB/MBD)",COUNTRY_INFO!$U$9:$U$1000="T3 (ALB/MBD)"), "T3 (ALB/MBD)", " ") ->  | J15: 0 | N15: 0 | Z15: 33577 | AA15: 102354 | AB15: 6700.8
A16: =IF(COUNTRY_INFO!A16=0," ",COUNTRY_INFO!A16) -> Burundi | B16: =IF(COUNTRY_INFO!B16=0," ",COUNTRY_INFO!B16) -> Bujumbura Rural | C16: =IF(COUNTRY_INFO!C16=0," ",COUNTRY_INFO!C16) -> Rwibaga | D16: =IF(AND(COUNTRY_INFO!$T$9:$T$1000="T3 (ALB/MBD)",COUNTRY_INFO!$U$9:$U$1000="T3 (ALB/MBD)"), "T3 (ALB/MBD)", " ") ->  | J16: 0 | N16: 0 | Z16: 15587 | AA16: 42009 | AB16: 4028.275
A17: =IF(COUNTRY_INFO!A17=0," ",COUNTRY_INFO!A17) -> Burundi | B17: =IF(COUNTRY_INFO!B17=0," ",COUNTRY_INFO!B17) -> Bururi | C17: =IF(COUNTRY_INFO!C17=0," ",COUNTRY_INFO!C17) -> Bururi | D17: =IF(AND(COUNTRY_INFO!$T$9:$T$1000="T3 (ALB/MBD)",COUNTRY_INFO!$U$9:$U$1000="T3 (ALB/MBD)"), "T3 (ALB/MBD)", " ") ->  | J17: 0 | N17: 0 | Z17: 17231 | AA17: 49797 | AB17: 4422.525
A18: =IF(COUNTRY_INFO!A18=0," ",COUNTRY_INFO!A18) -> Burundi | B18: =IF(COUNTRY_INFO!B18=0," ",COUNTRY_INFO!B18) -> Bururi | C18: =IF(COUNTRY_INFO!C18=0," ",COUNTRY_INFO!C18) -> Matana | D18: =IF(AND(COUNTRY_INFO!$T$9:$T$1000="T3 (ALB/MBD)",COUNTRY_INFO!$U$9:$U$1000="T3 (ALB/MBD)"), "T3 (ALB/MBD)", " ") ->  | J18: 0 | N18: 0 | Z18: 15536 | AA18: 45426 | AB18: 3976.075
A19: =IF(COUNTRY_INFO!A19=0," ",COUNTRY_INFO!A19) -> Burundi | B19: =IF(COUNTRY_INFO!B19=0," ",COUNTRY_INFO!B19) -> Bururi | C19: =IF(COUNTRY_INFO!C19=0," ",COUNTRY_INFO!C19) -> Rutovu | D19: =IF(AND(COUNTRY_INFO!$T$9:$T$1000="T3 (ALB/MBD)",COUNTRY_INFO!$U$9:$U$1000="T3 (ALB/MBD)"), "T3 (ALB/MBD)", " ") ->  | J19: 0 | N19: 0 | Z19: 14509 | AA19: 45294 | AB19: 3823.075
A20: =IF(COUNTRY_INFO!A20=0," ",COUNTRY_INFO!A20) -> Burundi | B20: =IF(COUNTRY_INFO!B20=0," ",COUNTRY_INFO!B20) -> Cankuzo | C20: =IF(COUNTRY_INFO!C20=0," ",COUNTRY_INFO!C20) -> Cankuzo | D20: =IF(AND(COUNTRY_INFO!$T$9:$T$1000="T3 (ALB/MBD)",COUNTRY_INFO!$U$9:$U$1000="T3 (ALB/MBD)"), "T3 (ALB/MBD)", " ") ->  | J20: 0 | N20: 0 | Z20: 20717 | AA20: 52002 | AB20: 4731.05
A21: =IF(COUNTRY_INFO!A21=0," ",COUNTRY_INFO!A21) -> Burundi | B21: =IF(COUNTRY_INFO!B21=0," ",COUNTRY_INFO!B21) -> Cankuzo | C21: =IF(COUNTRY_INFO!C21=0," ",COUNTRY_INFO!C21) -> Murore | D21: =IF(AND(COUNTRY_INFO!$T$9:$T$1000="T3 (ALB/MBD)",COUNTRY_INFO!$U$9:$U$1000="T3 (ALB/MBD)"), "T3 (ALB/MBD)", " ") ->  | J21: 0 | N21: 0 | Z21: 19597 | AA21: 48843 | AB21: 4202.8
A22: =IF(COUNTRY_INFO!A22=0," ",COUNTRY_INFO!A22) -> Burundi | B22: =IF(COUNTRY_INFO!B22=0," ",COUNTRY_INFO!B22) -> Cibitoke | C22: =IF(COUNTRY_INFO!C22=0," ",COUNTRY_INFO!C22) -> Bukinanyana | D22: =IF(AND(COUNTRY_INFO!$T$9:$T$1000="T3 (ALB/MBD)",COUNTRY_INFO!$U$9:$U$1000="T3 (ALB/MBD)"), "T3 (ALB/MBD)", " ") ->  | J22: 0 | N22: 0 | Z22: 31111 | AA22: 70007 | AB22: 6166.8
A23: =IF(COUNTRY_INFO!A23=0," ",COUNTRY_INFO!A23) -> Burundi | B23: =IF(COUNTRY_INFO!B23=0," ",COUNTRY_INFO!B23) -> Cibitoke | C23: =IF(COUNTRY_INFO!C23=0," ",COUNTRY_INFO!C23) -> Cibitoke | D23: =IF(AND(COUNTRY_INFO!$T$9:$T$1000="T3 (ALB/MBD)",COUNTRY_INFO!$U$9:$U$1000="T3 (ALB/MBD)"), "T3 (ALB/MBD)", " ") ->  | J23: 0 | N23: 0 | Z23: 28439 | AA23: 58729 | AB23: 5762.675
A24: =IF(COUNTRY_INFO!A24=0," ",COUNTRY_INFO!A24) -> Burundi | B24: =IF(COUNTRY_INFO!B24=0," ",COUNTRY_INFO!B24) -> Cibitoke | C24: =IF(COUNTRY_INFO!C24=0," ",COUNTRY_INFO!C24) -> Mabayi | D24: =IF(AND(COUNTRY_INFO!$T$9:$T$1000="T3 (ALB/MBD)",COUNTRY_INFO!$U$9:$U$1000="T3 (ALB/MBD)"), "T3 (ALB/MBD)", " ") ->  | J24: 0 | N24: 0 | Z24: 29899 | AA24: 68604 | AB24: 6043.175
A25: =IF(COUNTRY_INFO!A25=0," ",COUNTRY_INFO!A25) -> Burundi | B25: =IF(COUNTRY_INFO!B25=0," ",COUNTRY_INFO!B25) -> Gitega | C25: =IF(COUNTRY_INFO!C25=0," ",COUNTRY_INFO!C25) -> Gitega | D25: =IF(AND(COUNTRY_INFO!$T$9:$T$1000="T3 (ALB/MBD)",COUNTRY_INFO!$U$9:$U$1000="T3 (ALB/MBD)"), "T3 (ALB/MBD)", " ") ->  | J25: 0 | N25: 0 | Z25: 34285 | AA25: 86121 | AB25: 8900.625
A26: =IF(COUNTRY_INFO!A26=0," ",COUNTRY_INFO!A26) -> Burundi | B26: =IF(COUNTRY_INFO!B26=0," ",COUNTRY_INFO!B26) -> Gitega | C26: =IF(COUNTRY_INFO!C26=0," ",COUNTRY_INFO!C26) -> Kibuye | D26: =IF(AND(COUNTRY_INFO!$T$9:$T$1000="T3 (ALB/MBD)",COUNTRY_INFO!$U$9:$U$1000="T3 (ALB/MBD)"), "T3 (ALB/MBD)", " ") ->  | J26: 0 | N26: 0 | Z26: 29530 | AA26: 78237 | AB26: 7447.5
A27: =IF(COUNTRY_INFO!A27=0," ",COUNTRY_INFO!A27) -> Burundi | B27: =IF(COUNTRY_INFO!B27=0," ",COUNTRY_INFO!B27) -> Gitega | C27: =IF(COUNTRY_INFO!C27=0," ",COUNTRY_INFO!C27) -> Mutaho | D27: =IF(AND(COUNTRY_INFO!$T$9:$T$1000="T3 (ALB/MBD)",COUNTRY_INFO!$U$9:$U$1000="T3 (ALB/MBD)"), "T3 (ALB/MBD)", " ") ->  | J27: 0 | N27: 0 | Z27: 26950 | AA27: 68717 | AB27: 6781.825
A28: =IF(COUNTRY_INFO!A28=0," ",COUNTRY_INFO!A28) -> Burundi | B28: =IF(COUNTRY_INFO!B28=0," ",COUNTRY_INFO!B28) -> Gitega | C28: =IF(COUNTRY_INFO!C28=0," ",COUNTRY_INFO!C28) -> Ryansoro | D28: =IF(AND(COUNTRY_INFO!$T$9:$T$1000="T3 (ALB/MBD)",COUNTRY_INFO!$U$9:$U$1000="T3 (ALB/MBD)"), "T3 (ALB/MBD)", " ") ->  | J28: 0 | N28: 0 | Z28: 19638 | AA28: 56603 | AB28: 5178.5
A29: =IF(COUNTRY_INFO!A29=0," ",COUNTRY_INFO!A29) -> Burundi | B29: =IF(COUNTRY_INFO!B29=0," ",COUNTRY_INFO!B29) -> Karusi | C29: =IF(COUNTRY_INFO!C29=0," ",COUNTRY_INFO!C29) -> Buhiga | D29: =IF(AND(COUNTRY_INFO!$T$9:$T$1000="T3 (ALB/MBD)",COUNTRY_INFO!$U$9:$U$1000="T3 (ALB/MBD)"), "T3 (ALB/MBD)", " ") ->  | J29: 0 | N29: 0 | Z29: 41164 | AA29: 103191 | AB29: 9037.65
A30: =IF(COUNTRY_INFO!A30=0," ",COUNTRY_INFO!A30) -> Burundi | B30: =IF(COUNTRY_INFO!B30=0," ",COUNTRY_INFO!B30) -> Karusi | C30: =IF(COUNTRY_INFO!C30=0," ",COUNTRY_INFO!C30) -> Nyabikere | D30: =IF(AND(COUNTRY_INFO!$T$9:$T$1000="T3 (ALB/MBD)",COUNTRY_INFO!$U$9:$U$1000="T3 (ALB/MBD)"), "T3 (ALB/MBD)", " ") ->  | J30: 0 | N30: 0 | Z30: 36805 | AA30: 91053 | AB30: 7998.5
A31: =IF(COUNTRY_INFO!A31=0," ",COUNTRY_INFO!A31) -> Burundi | B31: =IF(COUNTRY_INFO!B31=0," ",COUNTRY_INFO!B31) -> Kayanza | C31: =IF(COUNTRY_INFO!C31=0," ",COUNTRY_INFO!C31) -> Gahombo | D31: =IF(AND(COUNTRY_INFO!$T$9:$T$1000="T3 (ALB/MBD)",COUNTRY_INFO!$U$9:$U$1000="T3 (ALB/MBD)"), "T3 (ALB/MBD)", " ") ->  | J31: 0 | N31: 0 | Z31: 26182 | AA31: 74654 | AB31: 6566.525
A32: =IF(COUNTRY_INFO!A32=0," ",COUNTRY_INFO!A32) -> Burundi | B32: =IF(COUNTRY_INFO!B32=0," ",COUNTRY_INFO!B32) -> Kayanza | C32: =IF(COUNTRY_INFO!C32=0," ",COUNTRY_INFO!C32) -> Kayanza | D32: =IF(AND(COUNTRY_INFO!$T$9:$T$1000="T3 (ALB/MBD)",COUNTRY_INFO!$U$9:$U$1000="T3 (ALB/MBD)"), "T3 (ALB/MBD)", " ") ->  | J32: 0 | N32: 0 | Z32: 37990 | AA32: 95351 | AB32: 8487.7
A33: =IF(COUNTRY_INFO!A33=0," ",COUNTRY_INFO!A33) -> Burundi | B33: =IF(COUNTRY_INFO!B33=0," ",COUNTRY_INFO!B33) -> Kayanza | C33: =IF(COUNTRY_INFO!C33=0," ",COUNTRY_INFO!C33) -> Musema | D33: =IF(AND(COUNTRY_INFO!$T$9:$T$1000="T3 (ALB/MBD)",COUNTRY_INFO!$U$9:$U$1000="T3 (ALB/MBD)"), "T3 (ALB/MBD)", " ") ->  | J33: 0 | N33: 0 | Z33: 31877 | AA33: 82022 | AB33: 7796.825
A34: =IF(COUNTRY_INFO!A34=0," ",COUNTRY_INFO!A34) -> Burundi | B34: =IF(COUNTRY_INFO!B34=0," ",COUNTRY_INFO!B34) -> Kirundo | C34: =IF(COUNTRY_INFO!C34=0," ",COUNTRY_INFO!C34) -> Busoni | D34: =IF(AND(COUNTRY_INFO!$T$9:$T$1000="T3 (ALB/MBD)",COUNTRY_INFO!$U$9:$U$1000="T3 (ALB/MBD)"), "T3 (ALB/MBD)", " ") ->  | J34: 0 | N34: 0 | Z34: 26666 | AA34: 64168 | AB34: 5676.5
A35: =IF(COUNTRY_INFO!A35=0," ",COUNTRY_INFO!A35) -> Burundi | B35: =IF(COUNTRY_INFO!B35=0," ",COUNTRY_INFO!B35) -> Kirundo | C35: =IF(COUNTRY_INFO!C35=0," ",COUNTRY_INFO!C35) -> Kirundo | D35: =IF(AND(COUNTRY_INFO!$T$9:$T$1000="T3 (ALB/MBD)",COUNTRY_INFO!$U$9:$U$1000="T3 (ALB/MBD)"), "T3 (ALB/MBD)", " ") ->  | J35: 0 | N35: 0 | Z35: 32164 | AA35: 78712 | AB35: 7118.625
A36: =IF(COUNTRY_INFO!A36=0," ",COUNTRY_INFO!A36) -> Burundi | B36: =IF(COUNTRY_INFO!B36=0," ",COUNTRY_INFO!B36) -> Kirundo | C36: =IF(COUNTRY_INFO!C36=0," ",COUNTRY_INFO!C36) -> Mukenke | D36: =IF(AND(COUNTRY_INFO!$T$9:$T$1000="T3 (ALB/MBD)",COUNTRY_INFO!$U$9:$U$1000="T3 (ALB/MBD)"), "T3 (ALB/MBD)", " ") ->  | J36: 0 | N36: 0 | Z36: 23371 | AA36: 51160 | AB36: 4845.775
A37: =IF(COUNTRY_INFO!A37=0," ",COUNTRY_INFO!A37) -> Burundi | B37: =IF(COUNTRY_INFO!B37=0," ",COUNTRY_INFO!B37) -> Kirundo | C37: =IF(COUNTRY_INFO!C37=0," ",COUNTRY_INFO!C37) -> Vumbi | D37: =IF(AND(COUNTRY_INFO!$T$9:$T$1000="T3 (ALB/MBD)",COUNTRY_INFO!$U$9:$U$1000="T3 (ALB/MBD)"), "T3 (ALB/MBD)", " ") ->  | J37: 0 | N37: 0 | Z37: 31364 | AA37: 72552 | AB37: 6882.525
A38: =IF(COUNTRY_INFO!A38=0," ",COUNTRY_INFO!A38) -> Burundi | B38: =IF(COUNTRY_INFO!B38=0," ",COUNTRY_INFO!B38) -> Makamba | C38: =IF(COUNTRY_INFO!C38=0," ",COUNTRY_INFO!C38) -> Makamba | D38: =IF(AND(COUNTRY_INFO!$T$9:$T$1000="T3 (ALB/MBD)",COUNTRY_INFO!$U$9:$U$1000="T3 (ALB/MBD)"), "T3 (ALB/MBD)", " ") ->  | J38: 0 | N38: 0 | Z38: 41282 | AA38: 102933 | AB38: 8864.175
A39: =IF(COUNTRY_INFO!A39=0," ",COUNTRY_INFO!A39) -> Burundi | B39: =IF(COUNTRY_INFO!B39=0," ",COUNTRY_INFO!B39) -> Makamba | C39: =IF(COUNTRY_INFO!C39=0," ",COUNTRY_INFO!C39) -> Nyanza-Lac | D39: =IF(AND(COUNTRY_INFO!$T$9:$T$1000="T3 (ALB/MBD)",COUNTRY_INFO!$U$9:$U$1000="T3 (ALB/MBD)"), "T3 (ALB/MBD)", " ") ->  | J39: 0 | N39: 0 | Z39: 37014 | AA39: 90776 | AB39: 7955.6
A40: =IF(COUNTRY_INFO!A40=0," ",COUNTRY_INFO!A40) -> Burundi | B40: =IF(COUNTRY_INFO!B40=0," ",COUNTRY_INFO!B40) -> Muramvya | C40: =IF(COUNTRY_INFO!C40=0," ",COUNTRY_INFO!C40) -> Kiganda | D40: =IF(AND(COUNTRY_INFO!$T$9:$T$1000="T3 (ALB/MBD)",COUNTRY_INFO!$U$9:$U$1000="T3 (ALB/MBD)"), "T3 (ALB/MBD)", " ") ->  | J40: 0 | N40: 0 | Z40: 22538 | AA40: 60628 | AB40: 5669.375
A41: =IF(COUNTRY_INFO!A41=0," ",COUNTRY_INFO!A41) -> Burundi | B41: =IF(COUNTRY_INFO!B41=0," ",COUNTRY_INFO!B41) -> Muramvya | C41: =IF(COUNTRY_INFO!C41=0," ",COUNTRY_INFO!C41) -> Muramvya | D41: =IF(AND(COUNTRY_INFO!$T$9:$T$1000="T3 (ALB/MBD)",COUNTRY_INFO!$U$9:$U$1000="T3 (ALB/MBD)"), "T3 (ALB/MBD)", " ") ->  | J41: 0 | N41: 0 | Z41: 23661 | AA41: 59801 | AB41: 5751.575
A42: =IF(COUNTRY_INFO!A42=0," ",COUNTRY_INFO!A42) -> Burundi | B42: =IF(COUNTRY_INFO!B42=0," ",COUNTRY_INFO!B42) -> Muyinga | C42: =IF(COUNTRY_INFO!C42=0," ",COUNTRY_INFO!C42) -> Gashoho | D42: =IF(AND(COUNTRY_INFO!$T$9:$T$1000="T3 (ALB/MBD)",COUNTRY_INFO!$U$9:$U$1000="T3 (ALB/MBD)"), "T3 (ALB/MBD)", " ") ->  | J42: 0 | N42: 0 | Z42: 26644 | AA42: 62991 | AB42: 5781.15
A43: =IF(COUNTRY_INFO!A43=0," ",COUNTRY_INFO!A43) -> Burundi | B43: =IF(COUNTRY_INFO!B43=0," ",COUNTRY_INFO!B43) -> Muyinga | C43: =IF(COUNTRY_INFO!C43=0," ",COUNTRY_INFO!C43) -> Giteranyi | D43: =IF(AND(COUNTRY_INFO!$T$9:$T$1000="T3 (ALB/MBD)",COUNTRY_INFO!$U$9:$U$1000="T3 (ALB/MBD)"), "T3 (ALB/MBD)", " ") ->  | J43: 0 | N43: 0 | Z43: 47338 | AA43: 109204 | AB43: 9685.15
A44: =IF(COUNTRY_INFO!A44=0," ",COUNTRY_INFO!A44) -> Burundi | B44: =IF(COUNTRY_INFO!B44=0," ",COUNTRY_INFO!B44) -> Muyinga | C44: =IF(COUNTRY_INFO!C44=0," ",COUNTRY_INFO!C44) -> Muyinga | D44: =IF(AND(COUNTRY_INFO!$T$9:$T$1000="T3 (ALB/MBD)",COUNTRY_INFO!$U$9:$U$1000="T3 (ALB/MBD)"), "T3 (ALB/MBD)", " ") ->  | J44: 0 | N44: 0 | Z44: 52366 | AA44: 101297 | AB44: 9219.225
A45: =IF(COUNTRY_INFO!A45=0," ",COUNTRY_INFO!A45) -> Burundi | B45: =IF(COUNTRY_INFO!B45=0," ",COUNTRY_INFO!B45) -> Mwaro | C45: =IF(COUNTRY_INFO!C45=0," ",COUNTRY_INFO!C45) -> Fota | D45: =IF(AND(COUNTRY_INFO!$T$9:$T$1000="T3 (ALB/MBD)",COUNTRY_INFO!$U$9:$U$1000="T3 (ALB/MBD)"), "T3 (ALB/MBD)", " ") ->  | J45: 0 | N45: 0 | Z45: 18860 | AA45: 53915 | AB45: 5056.075
A46: =IF(COUNTRY_INFO!A46=0," ",COUNTRY_INFO!A46) -> Burundi | B46: =IF(COUNTRY_INFO!B46=0," ",COUNTRY_INFO!B46) -> Mwaro | C46: =IF(COUNTRY_INFO!C46=0," ",COUNTRY_INFO!C46) -> Kibumbu | D46: =IF(AND(COUNTRY_INFO!$T$9:$T$1000="T3 (ALB/MBD)",COUNTRY_INFO!$U$9:$U$1000="T3 (ALB/MBD)"), "T3 (ALB/MBD)", " ") ->  | J46: 0 | N46: 0 | Z46: 20931 | AA46: 59341 | AB46: 5605.825
A47: =IF(COUNTRY_INFO!A47=0," ",COUNTRY_INFO!A47) -> Burundi | B47: =IF(COUNTRY_INFO!B47=0," ",COUNTRY_INFO!B47) -> Ngozi | C47: =IF(COUNTRY_INFO!C47=0," ",COUNTRY_INFO!C47) -> Buye | D47: =IF(AND(COUNTRY_INFO!$T$9:$T$1000="T3 (ALB/MBD)",COUNTRY_INFO!$U$9:$U$1000="T3 (ALB/MBD)"), "T3 (ALB/MBD)", " ") ->  | J47: 0 | N47: 0 | Z47: 31055 | AA47: 75713 | AB47: 6865
A48: =IF(COUNTRY_INFO!A48=0," ",COUNTRY_INFO!A48) -> Burundi | B48: =IF(COUNTRY_INFO!B48=0," ",COUNTRY_INFO!B48) -> Ngozi | C48: =IF(COUNTRY_INFO!C48=0," ",COUNTRY_INFO!C48) -> Kiremba | D48: =IF(AND(COUNTRY_INFO!$T$9:$T$1000="T3 (ALB/MBD)",COUNTRY_INFO!$U$9:$U$1000="T3 (ALB/MBD)"), "T3 (ALB/MBD)", " ") ->  | J48: 0 | N48: 0 | Z48: 41532 | AA48: 100904 | AB48: 9243.625
A49: =IF(COUNTRY_INFO!A49=0," ",COUNTRY_INFO!A49) -> Burundi | B49: =IF(COUNTRY_INFO!B49=0," ",COUNTRY_INFO!B49) -> Ngozi | C49: =IF(COUNTRY_INFO!C49=0," ",COUNTRY_INFO!C49) -> Ngozi | D49: =IF(AND(COUNTRY_INFO!$T$9:$T$1000="T3 (ALB/MBD)",COUNTRY_INFO!$U$9:$U$1000="T3 (ALB/MBD)"), "T3 (ALB/MBD)", " ") ->  | J49: 0 | N49: 0 | Z49: 39990 | AA49: 104679 | AB49: 9681.925
A50: =IF(COUNTRY_INFO!A50=0," ",COUNTRY_INFO!A50) -> Burundi | B50: =IF(COUNTRY_INFO!B50=0," ",COUNTRY_INFO!B50) -> Rumonge | C50: =IF(COUNTRY_INFO!C50=0," ",COUNTRY_INFO!C50) -> Bugarama | D50: =IF(AND(COUNTRY_INFO!$T$9:$T$1000="T3 (ALB/MBD)",COUNTRY_INFO!$U$9:$U$1000="T3 (ALB/MBD)"), "T3 (ALB/MBD)", " ") ->  | J50: 0 | N50: 0 | Z50: 16168 | AA50: 40045 | AB50: 3556.6
A51: =IF(COUNTRY_INFO!A51=0," ",COUNTRY_INFO!A51) -> Burundi | B51: =IF(COUNTRY_INFO!B51=0," ",COUNTRY_INFO!B51) -> Rumonge | C51: =IF(COUNTRY_INFO!C51=0," ",COUNTRY_INFO!C51) -> Rumonge | D51: =IF(AND(COUNTRY_INFO!$T$9:$T$1000="T3 (ALB/MBD)",COUNTRY_INFO!$U$9:$U$1000="T3 (ALB/MBD)"), "T3 (ALB/MBD)", " ") ->  | J51: 0 | N51: 0 | Z51: 47520 | AA51: 110964 | AB51: 10184.425
A52: =IF(COUNTRY_INFO!A52=0," ",COUNTRY_INFO!A52) -> Burundi | B52: =IF(COUNTRY_INFO!B52=0," ",COUNTRY_INFO!B52) -> Rutana | C52: =IF(COUNTRY_INFO!C52=0," ",COUNTRY_INFO!C52) -> Gihofi | D52: =IF(AND(COUNTRY_INFO!$T$9:$T$1000="T3 (ALB/MBD)",COUNTRY_INFO!$U$9:$U$1000="T3 (ALB/MBD)"), "T3 (ALB/MBD)", " ") ->  | J52: 0 | N52: 0 | Z52: 34867 | AA52: 79402 | AB52: 6735.85
A53: =IF(COUNTRY_INFO!A53=0," ",COUNTRY_INFO!A53) -> Burundi | B53: =IF(COUNTRY_INFO!B53=0," ",COUNTRY_INFO!B53) -> Rutana | C53: =IF(COUNTRY_INFO!C53=0," ",COUNTRY_INFO!C53) -> Rutana | D53: =IF(AND(COUNTRY_INFO!$T$9:$T$1000="T3 (ALB/MBD)",COUNTRY_INFO!$U$9:$U$1000="T3 (ALB/MBD)"), "T3 (ALB/MBD)", " ") ->  | J53: 0 | N53: 0 | Z53: 25576 | AA53: 70911 | AB53: 6282.425
A54: =IF(COUNTRY_INFO!A54=0," ",COUNTRY_INFO!A54) -> Burundi | B54: =IF(COUNTRY_INFO!B54=0," ",COUNTRY_INFO!B54) -> Ruyigi | C54: =IF(COUNTRY_INFO!C54=0," ",COUNTRY_INFO!C54) -> Butezi | D54: =IF(AND(COUNTRY_INFO!$T$9:$T$1000="T3 (ALB/MBD)",COUNTRY_INFO!$U$9:$U$1000="T3 (ALB/MBD)"), "T3 (ALB/MBD)", " ") ->  | J54: 0 | N54: 0 | Z54: 18013 | AA54: 45449 | AB54: 3995.675
A55: =IF(COUNTRY_INFO!A55=0," ",COUNTRY_INFO!A55) -> Burundi | B55: =IF(COUNTRY_INFO!B55=0," ",COUNTRY_INFO!B55) -> Gisuru | C55: =IF(COUNTRY_INFO!C55=0," ",COUNTRY_INFO!C55) -> Gisuru | D55: =IF(AND(COUNTRY_INFO!$T$9:$T$1000="T3 (ALB/MBD)",COUNTRY_INFO!$U$9:$U$1000="T3 (ALB/MBD)"), "T3 (ALB/MBD)", " ") ->  | J55: 0 | N55: 0 | AB55: 3882.375
A56: =IF(COUNTRY_INFO!A56=0," ",COUNTRY_INFO!A56) -> Burundi | B56: =IF(COUNTRY_INFO!B56=0," ",COUNTRY_INFO!B56) -> Ruyigi | C56: =IF(COUNTRY_INFO!C56=0," ",COUNTRY_INFO!C56) -> Kinyinya | D56: =IF(AND(COUNTRY_INFO!$T$9:$T$1000="T3 (ALB/MBD)",COUNTRY_INFO!$U$9:$U$1000="T3 (ALB/MBD)"), "T3 (ALB/MBD)", " ") ->  | J56: 0 | N56: 0 | Z56: 19839 | AA56: 46914 | AB56: 4081.875
A57: =IF(COUNTRY_INFO!A57=0," ",COUNTRY_INFO!A57) -> Burundi | B57: =IF(COUNTRY_INFO!B57=0," ",COUNTRY_INFO!B57) -> Ruyigi | C57: =IF(COUNTRY_INFO!C57=0," ",COUNTRY_INFO!C57) -> Ruyigi | D57: =IF(AND(COUNTRY_INFO!$T$9:$T$1000="T3 (ALB/MBD)",COUNTRY_INFO!$U$9:$U$1000="T3 (ALB/MBD)"), "T3 (ALB/MBD)", " ") ->  | J57: 0 | N57: 0 | Z57: 15695 | AA57: 39863 | AB57: 3674.4

Sheet DISTRICT
A1: Nombre d'individus traités
A2: Structure administrative, population traitée par groupe d'âge et sexe
A4: TOTAL | D4: =SUM(D$9:D$1000) -> 0 | E4: =SUM(E$9:E$1000) -> 0 | F4: =SUM(F$9:F$1000) -> 0 | G4: =SUM(G$9:G$1000) -> 0 | H4: =SUM(H$9:H$1000) -> 0 | I4: =IF(D4>0, IF(H4/D4*100<>0, H4/D4*100, "-"),0) -> 0 | J4: =SUM(J$9:J$1000) -> 2125963 | K4: =SUM(K$9:K$1000) -> 864797.57 | L4: =SUM(L$9:L$1000) -> 900095.43 | M4: =SUM(M$9:M$1000) -> 1764893 | N4: =SUM(N$9:N$1000) -> 1764893 | O4: =IF(J4>0, IF(N4/J4*100<>0, N4/J4*100, "-"),0) -> 83.01616726 | P4: =SUM(P$9:P$1000) -> 969250 | Q4: =SUM(Q$9:Q$1000) -> 2152927 | R4: =SUM(R$9:R$1000) -> 2403821 | S4: =SUM(S$9:S$1000) -> 4471271 | T4: =SUM(T$9:T$1000) -> 256654 | V4: 692326 | X4: =SUM(X$9:X$1000) -> 948980 | Y4: =IF(P4>0, IF(X4/P4*100<>0, X4/P4*100, "-"),0) -> 97.90869229 | Z4: =SUM(Z$9:Z$1000) -> 631781.21 | AA4: 0 | AB4: 0 | AC4: 0 | AD4: 0 | AF4: 0 | AH4: 0 | AI4: =IF(Z4>0, IF(AH4/Z4*100<>0, AH4/Z4*100, "-"),0) -> -
A6: Structure administrative du pays | D6: Population nécessitant la CP pour FL | E6: Population traitée pour la filariose lymphatique | J6: Population nécessitant la CP pour ONCHO | K6: Population traitée pour l'onchocercose | P6: Population nécessitant la CP pour STH | Q6: Population traitée pour les géohelminthiases | Z6: Population nécessitant la CP pour SCH | AA6: Population traitée pour la schistosomiase | AP6: =SUM(AP9:AP1000) -> 152988.7472 | AQ6: 496643.509 | AR6: 1538284.23 | AS6: 1213780.912 | AT6: =SUM(AT9:AT1000) -> 3401697.399 | AU6: =COUNTIF(AU9:AU1000,"Y") -> 9 | AV6: =SUM(AV9:AV1000) -> 1158924 | AW6: 3159618.526 | AX6: 1403406.569 | AY6: =SUM(AY9:AY1000) -> 5721949.095 | AZ6: 256654 | BA6: 1163552.431 | BB6: 1293666.569 | BC6: 2693295.796 | BD6: =IF(AT6<>0,BC6/AT6,0) -> 0.7917505528
A7: Pays | B7: Région/Département | C7: District | E7: Masculine | F7: Féminine | G7: Total traité | H7: Total traité ayant besoin de CP | I7: (%) | K7: Masculine | L7: Féminine | M7: Total traité | N7: Total traité ayant besoin de CP | O7: (%) | Q7: Masculine | R7: Féminine | S7: Total traité | T7: EAPréS traité ayant besoin de CP | U7: EAPréS (%) | V7: EAS traité ayant besoin de CP | W7: EAS (%) | X7: Total traité ayant besoin de CP | Y7: (%) | AA7: Masculine | AB7: Féminine | AC7: Total traité | AD7: EAS traité ayant besoin de CP | AE7: EAS (%) | AF7: Adultes traité ayant besoin de CP | AG7: Adultes (%) | AH7: Total traité ayant besoin de CP | AI7: (%) | AK7: LF | AL7: ONCHO | AM7: STH | AN7: SCH-SAC | AO7: SCH_Adults | AP7: <1 | AQ7: PreSAC | AR7: SAC | AS7: Adults | AT7: Total | AU7: Dis | AV7: PreSAC | AW7: SAC | AX7: Adults | AY7: Total | AZ7: PreSAC | BA7: SAC | BB7: Adults | BC7: Total | BD7: Coverage
A9: =IF(COUNTRY_INFO!A9=0," ",COUNTRY_INFO!A9) -> Burundi | B9: =IF(COUNTRY_INFO!B9=0," ",COUNTRY_INFO!B9) -> Bubanza | C9: =IF(COUNTRY_INFO!C9=0," ",COUNTRY_INFO!C9) -> Bubanza | D9: =COUNTRY_INFO!L9 -> 0 | G9: =MAX('MDA1'!M9,'MDA2'!M9) -> 0 | H9: =IF(AND(COUNTRY_INFO!H9>0,COUNTRY_INFO!H9<4),IF(D9>MAX('MDA1'!M9,'MDA2'!M9),MAX('MDA1'!M9,'MDA2'!M9),D9),0) -> 0 | I9: =IF(AND(COUNTRY_INFO!H9>0,COUNTRY_INFO!H9<4), IF(G9/D9*100<>0, IF(G9/D9*100>100,100,G9/D9*100), "-"),0) -> 0 | J9: =COUNTRY_INFO!M9 -> 265574 | K9: 97804.49 | L9: 101796.51 | M9: =MAX('MDA1'!M9,MAX('MDA3'!I9,'MDA3'!L9)+MAX('MDA3'!J9,'MDA3'!M9)) -> 199601 | N9: 199601 | O9: 79.86 | P9: =COUNTRY_INFO!N9 -> 0 | Q9: 56692 | R9: 62736 | S9: =SUM(MAX('MDA2'!J9, 'T1'!L9, MAX(T3_R1!K9, T3_R2!K9)), MAX('MDA1'!K9, 'MDA2'!K9, 'T1'!M9, MAX(T3_R1!L9, T3_R2!L9)), MAX('MDA1'!L9, 'MDA2'!L9, 'T1'!N9, MAX(T3_R1!M9, T3_R2!M9))) -> 97808 | T9: =IF(AND(COUNTRY_INFO!J9>1,COUNTRY_INFO!J9<4),IF(COUNTRY_INFO!E9>MAX('MDA2'!J9,'T1'!L9,MAX(T3_R1!K9,T3_R2!K9)),MAX('MDA2'!J9,'T1'!L9,MAX(T3_R1!K9,T3_R2!K9)),COUNTRY_INFO!E9),0) -> 0 | U9: =IF(AND(COUNTRY_INFO!J9>1,COUNTRY_INFO!J9<4), IF(T9/COUNTRY_INFO!E9*100<>0, IF(T9/COUNTRY_INFO!E9*100>100,100,T9/COUNTRY_INFO!E9*100), "-"),0) -> 0 | V9: =IF(AND(COUNTRY_INFO!J9>1,COUNTRY_INFO!J9<4),IF(COUNTRY_INFO!F9>MAX('MDA1'!K9,'MDA2'!K9,'T1'!M9,MAX(T3_R1!L9,T3_R2!L9)),MAX('MDA1'!K9,'MDA2'!K9,'T1'!M9,MAX(T3_R1!L9,T3_R2!L9)),COUNTRY_INFO!F9),0) -> 0 | W9: =IF(AND(COUNTRY_INFO!J9>1,COUNTRY_INFO!J9<4), IF(V9/COUNTRY_INFO!F9*100<>0, IF(V9/COUNTRY_INFO!F9*100>100,100,V9/COUNTRY_INFO!F9*100), "-"),0) -> 0 | X9: =SUM(T9,V9) -> 0 | Y9: =IF(AND(COUNTRY_INFO!J9>1,COUNTRY_INFO!J9<4), IF(S9/P9*100<>0, IF(X9/P9*100>100,100,X9/P9*100), "-"),0) -> 0 | Z9: =COUNTRY_INFO!O9 -> 21887.25 | AC9: =MAX('T1'!L9,'T2'!J9)+MAX('T1'!M9,'T2'!K9)+MAX('T1'!N9,'T2'!L9) -> 0 | AD9: =IF(COUNTRY_INFO!K9=1,IF(COUNTRY_INFO!F9*0.33>MAX('T1'!M9,'T2'!K9),MAX('T1'!M9,'T2'!K9),COUNTRY_INFO!F9*0.33),IF(COUNTRY_INFO!K9=2,IF(COUNTRY_INFO!F9*0.5>MAX('T1'!M9,'T2'!K9),MAX('T1'!M9,'T2'!K9),COUNTRY_INFO!F9*0.5),IF(COUNTRY_INFO!K9=3,IF(COUNTRY_INFO!F9>MAX('T1'!M9,'T2'!K9),MAX('T1'!M9,'T2'!K9),COUNTRY_INFO!F9),0))) -> 0 | AE9: =IF(AND(COUNTRY_INFO!K9>0,COUNTRY_INFO!K9<4),IF(Z9>0,IF(COUNTRY_INFO!K9=1, AD9/(COUNTRY_INFO!F9*0.33)*100, IF(COUNTRY_INFO!K9=2, AD9/(COUNTRY_INFO!F9*0.5)*100, IF(COUNTRY_INFO!K9=3, AD9/COUNTRY_INFO!F9*100))),"-"),0) -> 0 | AF9: =IF(COUNTRY_INFO!K9=2,IF(COUNTRY_INFO!G9*0.2>MAX('T1'!N9,'T2'!L9),MAX('T1'!N9,'T2'!L9),COUNTRY_INFO!G9*0.2),IF(COUNTRY_INFO!K9=3,IF(COUNTRY_INFO!G9>MAX('T1'!N9,'T2'!L9),MAX('T1'!N9,'T2'!L9),COUNTRY_INFO!G9),0)) -> 0 | AG9: =IF(AND(COUNTRY_INFO!K9>0,COUNTRY_INFO!K9<4),IF(Z9>0,IF(COUNTRY_INFO!K9=1, 0, IF(COUNTRY_INFO!K9=2, AF9/(COUNTRY_INFO!G9*0.2)*100, IF(COUNTRY_INFO!K9=3, AF9/COUNTRY_INFO!G9*100))),"-"),0) -> 0 | AH9: =SUM(AD9,AF9) -> 0 | AI9: =IF(AND(COUNTRY_INFO!K9>0,COUNTRY_INFO!K9<4), IF(AC9/Z9*100<>0, IF(AH9/Z9*100>100,100,AH9/Z9*100), "-"),0) -> - | AK9: =IF(AND(D9<>0, D9<>"Inconnu",D9<>"Interrompu",D9<>"Non requis"),D9/COUNTRY_INFO!D9, 0) -> 0 | AL9: =IF(AND(J9<>0,J9<>"Inconnu",J9<>"Interrompu",J9<>"Non requis"),J9/COUNTRY_INFO!D9, 0) -> 1.004337681 | AM9: =IF(AND(P9<>0,P9<>"Inconnu",P9<>"Non requis"),P9/(COUNTRY_INFO!E9+COUNTRY_INFO!F9), 0) -> 0 | AN9: =IF(AND(Z9<>0,Z9<>"Inconnu",Z9<>"Non requis"),IF(COUNTRY_INFO!K9=1,1,IF(COUNTRY_INFO!K9=2,0.5*COUNTRY_INFO!F9/(0.5*COUNTRY_INFO!F9+0.2*COUNTRY_INFO!G9),IF(COUNTRY_INFO!K9=3,COUNTRY_INFO!F9/(COUNTRY_INFO!F9+COUNTRY_INFO!G9)))),0) -> 1 | AO9: =IF(AND(Z9<>0,Z9<>"Inconnu",Z9<>"Non requis"),IF(COUNTRY_INFO!K9=1,0,IF(COUNTRY_INFO!K9=2,0.2*COUNTRY_INFO!G9/(0.5*COUNTRY_INFO!F9+0.2*COUNTRY_INFO!G9),IF(COUNTRY_INFO!K9=3,COUNTRY_INFO!G9/(COUNTRY_INFO!F9+COUNTRY_INFO!G9)))),0) -> 0 | AP9: =MAX(COUNTRY_INFO!D9*AK9*PROFILE!$G$7,COUNTRY_INFO!D9*AL9*PROFILE!$G$7) -> 19111.26089 | AQ9: =MAX(COUNTRY_INFO!D9*AK9*PROFILE!$G$8,COUNTRY_INFO!D9*AL9*PROFILE!$G$8,COUNTRY_INFO!D9*AM9*PROFILE!$G$8) -> 28285.18578 | AR9: =MAX(COUNTRY_INFO!D9*AK9*PROFILE!$G$9,COUNTRY_INFO!D9*AL9*PROFILE!$G$9,COUNTRY_INFO!D9*AM9*PROFILE!$G$9,IF(AND(DISTRICT!Z9<>"Inconnu",Z9<>"Non requis"),COUNTRY_INFO!O9*DISTRICT!AN9,0)) -> 71049.53105 | AS9: =MAX(COUNTRY_INFO!D9*AK9*PROFILE!$G$10,COUNTRY_INFO!D9*AL9*PROFILE!$G$10,IF(AND(DISTRICT!Z9<>"Inconnu",Z9<>"Non requis"),COUNTRY_INFO!O9*DISTRICT!AO9,0)) -> 147128.0223 | AT9: =SUM(AP9:AS9) -> 265574 | AU9: =IF(COUNTIFS(AK9:AN9,">0")=0,0, IF(COUNTIFS(AK9:AN9,">0")<=IF(AND(OR(D9>=0,D9="Non requis",D9="Inconnu",D9="Interrompu"),D9>0,H9>0),1,0)+IF(AND(OR(J9>=0,J9="Non requis",J9="Inconnu",J9="Interrompu"),J9>0,N9>0),1,0)+IF(AND(OR(P9>=0,P9="Non requis",P9="Inconnu"),P9>0,X9>0),1,0)+IF(AND(OR(Z9>=0,Z9="Non requis",Z9="Inconnu"),Z9>0,AH9>0),1,0),"Y",0)) -> 0 | AV9: =MAX('MDA2'!J9,'T1'!L9,'T2'!J9,T3_R1!K9,T3_R2!K9) -> 28326 | AW9: =MAX('MDA1'!K9,'MDA2'!K9,'MDA3'!I9,'MDA3'!L9,'T1'!M9,'T2'!K9,T3_R1!L9,T3_R2!L9) -> 66325 | AX9: =MAX('MDA1'!L9,'MDA2'!L9,'MDA3'!J9,'MDA3'!M9,'T1'!N9,'T2'!L9,T3_R1!M9,T3_R2!M9) -> 146307.533 | AY9: =SUM(AV9:AX9) -> 240958.533 | AZ9: =MAX('MDA2'!J9,T9) -> 0 | BA9: =MAX('MDA1'!K9,'MDA2'!K9,'MDA3'!I9,'MDA3'!L9,V9,AD9) -> 53293.467 | BB9: =MAX('MDA1'!L9,'MDA2'!L9,'MDA3'!J9,'MDA3'!M9,AF9) -> 146307.533 | BC9: =IF(AT9<SUM(AZ9:BB9), AT9,SUM(AZ9:BB9)) -> 199601 | BD9: =IF(AT9<>0,BC9/AT9*100,0) -> 75.15833628 | BE9: =AC9-AA9-AB9 -> 0
A10: =IF(COUNTRY_INFO!A10=0," ",COUNTRY_INFO!A10) -> Burundi | B10: =IF(COUNTRY_INFO!B10=0," ",COUNTRY_INFO!B10) -> Bubanza | C10: =IF(COUNTRY_INFO!C10=0," ",COUNTRY_INFO!C10) -> Mpanda | D10: =COUNTRY_INFO!L10 -> 0 | G10: =MAX('MDA1'!M10,'MDA2'!M10) -> 0 | H10: =IF(AND(COUNTRY_INFO!H10>0,COUNTRY_INFO!H10<4),IF(D10>MAX('MDA1'!M10,'MDA2'!M10),MAX('MDA1'!M10,'MDA2'!M10),D10),0) -> 0 | I10: =IF(AND(COUNTRY_INFO!H10>0,COUNTRY_INFO!H10<4), IF(G10/D10*100<>0, IF(G10/D10*100>100,100,G10/D10*100), "-"),0) -> 0 | J10: =COUNTRY_INFO!M10 -> 229076 | K10: 92935.85 | L10: 96729.15 | M10: =MAX('MDA1'!M10,MAX('MDA3'!I10,'MDA3'!L10)+MAX('MDA3'!J10,'MDA3'!M10)) -> 189665 | N10: 189665 | O10: 79.36 | P10: =COUNTRY_INFO!N10 -> 0 | Q10: 62224 | R10: 68830 | S10: =SUM(MAX('MDA2'!J10, 'T1'!L10, MAX(T3_R1!K10, T3_R2!K10)), MAX('MDA1'!K10, 'MDA2'!K10, 'T1'!M10, MAX(T3_R1!L10, T3_R2!L10)), MAX('MDA1'!L10, 'MDA2'!L10, 'T1'!N10, MAX(T3_R1!M10, T3_R2!M10))) -> 101718 | T10: =IF(AND(COUNTRY_INFO!J10>1,COUNTRY_INFO!J10<4),IF(COUNTRY_INFO!E10>MAX('MDA2'!J10,'T1'!L10,MAX(T3_R1!K10,T3_R2!K10)),MAX('MDA2'!J10,'T1'!L10,MAX(T3_R1!K10,T3_R2!K10)),COUNTRY_INFO!E10),0) -> 0 | U10: =IF(AND(COUNTRY_INFO!J10>1,COUNTRY_INFO!J10<4), IF(T10/COUNTRY_INFO!E10*100<>0, IF(T10/COUNTRY_INFO!E10*100>100,100,T10/COUNTRY_INFO!E10*100), "-"),0) -> 0 | V10: =IF(AND(COUNTRY_INFO!J10>1,COUNTRY_INFO!J10<4),IF(COUNTRY_INFO!F10>MAX('MDA1'!K10,'MDA2'!K10,'T1'!M10,MAX(T3_R1!L10,T3_R2!L10)),MAX('MDA1'!K10,'MDA2'!K10,'T1'!M10,MAX(T3_R1!L10,T3_R2!L10)),COUNTRY_INFO!F10),0) -> 0 | W10: =IF(AND(COUNTRY_INFO!J10>1,COUNTRY_INFO!J10<4), IF(V10/COUNTRY_INFO!F10*100<>0, IF(V10/COUNTRY_INFO!F10*100>100,100,V10/COUNTRY_INFO!F10*100), "-"),0) -> 0 | X10: =SUM(T10,V10) -> 0 | Y10: =IF(AND(COUNTRY_INFO!J10>1,COUNTRY_INFO!J10<4), IF(S10/P10*100<>0, IF(X10/P10*100>100,100,X10/P10*100), "-"),0) -> 0 | Z10: =COUNTRY_INFO!O10 -> 20814.75 | AC10: =MAX('T1'!L10,'T2'!J10)+MAX('T1'!M10,'T2'!K10)+MAX('T1'!N10,'T2'!L10) -> 0 | AD10: =IF(COUNTRY_INFO!K10=1,IF(COUNTRY_INFO!F10*0.33>MAX('T1'!M10,'T2'!K10),MAX('T1'!M10,'T2'!K10),COUNTRY_INFO!F10*0.33),IF(COUNTRY_INFO!K10=2,IF(COUNTRY_INFO!F10*0.5>MAX('T1'!M10,'T2'!K10),MAX('T1'!M10,'T2'!K10),COUNTRY_INFO!F10*0.5),IF(COUNTRY_INFO!K10=3,IF(COUNTRY_INFO!F10>MAX('T1'!M10,'T2'!K10),MAX('T1'!M10,'T2'!K10),COUNTRY_INFO!F10),0))) -> 0 | AE10: =IF(AND(COUNTRY_INFO!K10>0,COUNTRY_INFO!K10<4),IF(Z10>0,IF(COUNTRY_INFO!K10=1, AD10/(COUNTRY_INFO!F10*0.33)*100, IF(COUNTRY_INFO!K10=2, AD10/(COUNTRY_INFO!F10*0.5)*100, IF(COUNTRY_INFO!K10=3, AD10/COUNTRY_INFO!F10*100))),"-"),0) -> 0 | AF10: =IF(COUNTRY_INFO!K10=2,IF(COUNTRY_INFO!G10*0.2>MAX('T1'!N10,'T2'!L10),MAX('T1'!N10,'T2'!L10),COUNTRY_INFO!G10*0.2),IF(COUNTRY_INFO!K10=3,IF(COUNTRY_INFO!G10>MAX('T1'!N10,'T2'!L10),MAX('T1'!N10,'T2'!L10),COUNTRY_INFO!G10),0)) -> 0 | AG10: =IF(AND(COUNTRY_INFO!K10>0,COUNTRY_INFO!K10<4),IF(Z10>0,IF(COUNTRY_INFO!K10=1, 0, IF(COUNTRY_INFO!K10=2, AF10/(COUNTRY_INFO!G10*0.2)*100, IF(COUNTRY_INFO!K10=3, AF10/COUNTRY_INFO!G10*100))),"-"),0) -> 0 | AH10: =SUM(AD10,AF10) -> 0 | AI10: =IF(AND(COUNTRY_INFO!K10>0,COUNTRY_INFO!K10<4), IF(AC10/Z10*100<>0, IF(AH10/Z10*100>100,100,AH10/Z10*100), "-"),0) -> - | AK10: =IF(AND(D10<>0, D10<>"Inconnu",D10<>"Interrompu",D10<>"Non requis"),D10/COUNTRY_INFO!D10, 0) -> 0 | AL10: =IF(AND(J10<>0,J10<>"Inconnu",J10<>"Interrompu",J10<>"Non requis"),J10/COUNTRY_INFO!D10, 0) -> 0.8348372425 | AM10: =IF(AND(P10<>0,P10<>"Inconnu",P10<>"Non requis"),P10/(COUNTRY_INFO!E10+COUNTRY_INFO!F10), 0) -> 0 | AN10: =IF(AND(Z10<>0,Z10<>"Inconnu",Z10<>"Non requis"),IF(COUNTRY_INFO!K10=1,1,IF(COUNTRY_INFO!K10=2,0.5*COUNTRY_INFO!F10/(0.5*COUNTRY_INFO!F10+0.2*COUNTRY_INFO!G10),IF(COUNTRY_INFO!K10=3,COUNTRY_INFO!F10/(COUNTRY_INFO!F10+COUNTRY_INFO!G10)))),0) -> 1 | AO10: =IF(AND(Z10<>0,Z10<>"Inconnu",Z10<>"Non requis"),IF(COUNTRY_INFO!K10=1,0,IF(COUNTRY_INFO!K10=2,0.2*COUNTRY_INFO!G10/(0.5*COUNTRY_INFO!F10+0.2*COUNTRY_INFO!G10),IF(COUNTRY_INFO!K10=3,COUNTRY_INFO!G10/(COUNTRY_INFO!F10+COUNTRY_INFO!G10)))),0) -> 0 | AP10: =MAX(COUNTRY_INFO!D10*AK10*PROFILE!$G$7,COUNTRY_INFO!D10*AL10*PROFILE!$G$7) -> 16484.78842 | AQ10: =MAX(COUNTRY_INFO!D10*AK10*PROFILE!$G$8,COUNTRY_INFO!D10*AL10*PROFILE!$G$8,COUNTRY_INFO!D10*AM10*PROFILE!$G$8) -> 24397.93511 | AR10: =MAX(COUNTRY_INFO!D10*AK10*PROFILE!$G$9,COUNTRY_INFO!D10*AL10*PROFILE!$G$9,COUNTRY_INFO!D10*AM10*PROFILE!$G$9,IF(AND(DISTRICT!Z10<>"Inconnu",Z10<>"Non requis"),COUNTRY_INFO!O10*DISTRICT!AN10,0)) -> 61285.14981 | AS10: =MAX(COUNTRY_INFO!D10*AK10*PROFILE!$G$10,COUNTRY_INFO!D10*AL10*PROFILE!$G$10,IF(AND(DISTRICT!Z10<>"Inconnu",Z10<>"Non requis"),COUNTRY_INFO!O10*DISTRICT!AO10,0)) -> 126908.1267 | AT10: =SUM(AP10:AS10) -> 229076 | AU10: 0 | AV10: =MAX('MDA2'!J10,'T1'!L10,'T2'!J10,T3_R1!K10,T3_R2!K10) -> 33929 | AW10: =MAX('MDA1'!K10,'MDA2'!K10,'MDA3'!I10,'MDA3'!L10,'T1'!M10,'T2'!K10,T3_R1!L10,T3_R2!L10) -> 63075 | AX10: =MAX('MDA1'!L10,'MDA2'!L10,'MDA3'!J10,'MDA3'!M10,'T1'!N10,'T2'!L10,T3_R1!M10,T3_R2!M10) -> 139024.445 | AY10: =SUM(AV10:AX10) -> 236028.445 | AZ10: =MAX('MDA2'!J10,T10) -> 0 | BA10: =MAX('MDA1'!K10,'MDA2'!K10,'MDA3'!I10,'MDA3'!L10,V10,AD10) -> 50640.555 | BB10: =MAX('MDA1'!L10,'MDA2'!L10,'MDA3'!J10,'MDA3'!M10,AF10) -> 139024.445 | BC10: 189665 | BD10: 82.79566607 | BE10: =AC10-AA10-AB10 -> 0
A11: =IF(COUNTRY_INFO!A11=0," ",COUNTRY_INFO!A11) -> Burundi | B11: =IF(COUNTRY_INFO!B11=0," ",COUNTRY_INFO!B11) -> Bujumbura Mairie | C11: =IF(COUNTRY_INFO!C11=0," ",COUNTRY_INFO!C11) -> Zone Centre | D11: =COUNTRY_INFO!L11 -> 0 | G11: =MAX('MDA1'!M11,'MDA2'!M11) -> 0 | H11: =IF(AND(COUNTRY_INFO!H11>0,COUNTRY_INFO!H11<4),IF(D11>MAX('MDA1'!M11,'MDA2'!M11),MAX('MDA1'!M11,'MDA2'!M11),D11),0) -> 0 | I11: =IF(AND(COUNTRY_INFO!H11>0,COUNTRY_INFO!H11<4), IF(G11/D11*100<>0, IF(G11/D11*100>100,100,G11/D11*100), "-"),0) -> 0 | J11: =COUNTRY_INFO!M11 -> 0 | M11: =MAX('MDA1'!M11,MAX('MDA3'!I11,'MDA3'!L11)+MAX('MDA3'!J11,'MDA3'!M11)) -> 0 | N11: 0 | O11: 0 | P11: =COUNTRY_INFO!N11 -> 0 | Q11: 65879 | R11: 70165 | S11: =SUM(MAX('MDA2'!J11, 'T1'!L11, MAX(T3_R1!K11, T3_R2!K11)), MAX('MDA1'!K11, 'MDA2'!K11, 'T1'!M11, MAX(T3_R1!L11, T3_R2!L11)), MAX('MDA1'!L11, 'MDA2'!L11, 'T1'!N11, MAX(T3_R1!M11, T3_R2!M11))) -> 29917 | T11: =IF(AND(COUNTRY_INFO!J11>1,COUNTRY_INFO!J11<4),IF(COUNTRY_INFO!E11>MAX('MDA2'!J11,'T1'!L11,MAX(T3_R1!K11,T3_R2!K11)),MAX('MDA2'!J11,'T1'!L11,MAX(T3_R1!K11,T3_R2!K11)),COUNTRY_INFO!E11),0) -> 0 | U11: =IF(AND(COUNTRY_INFO!J11>1,COUNTRY_INFO!J11<4), IF(T11/COUNTRY_INFO!E11*100<>0, IF(T11/COUNTRY_INFO!E11*100>100,100,T11/COUNTRY_INFO!E11*100), "-"),0) -> 0 | V11: =IF(AND(COUNTRY_INFO!J11>1,COUNTRY_INFO!J11<4),IF(COUNTRY_INFO!F11>MAX('MDA1'!K11,'MDA2'!K11,'T1'!M11,MAX(T3_R1!L11,T3_R2!L11)),MAX('MDA1'!K11,'MDA2'!K11,'T1'!M11,MAX(T3_R1!L11,T3_R2!L11)),COUNTRY_INFO!F11),0) -> 0 | W11: =IF(AND(COUNTRY_INFO!J11>1,COUNTRY_INFO!J11<4), IF(V11/COUNTRY_INFO!F11*100<>0, IF(V11/COUNTRY_INFO!F11*100>100,100,V11/COUNTRY_INFO!F11*100), "-"),0) -> 0 | X11: 0 | Y11: =IF(AND(COUNTRY_INFO!J11>1,COUNTRY_INFO!J11<4), IF(S11/P11*100<>0, IF(X11/P11*100>100,100,X11/P11*100), "-"),0) -> 0 | Z11: =COUNTRY_INFO!O11 -> 0 | AC11: =MAX('T1'!L11,'T2'!J11)+MAX('T1'!M11,'T2'!K11)+MAX('T1'!N11,'T2'!L11) -> 0 | AD11: =IF(COUNTRY_INFO!K11=1,IF(COUNTRY_INFO!F11*0.33>MAX('T1'!M11,'T2'!K11),MAX('T1'!M11,'T2'!K11),COUNTRY_INFO!F11*0.33),IF(COUNTRY_INFO!K11=2,IF(COUNTRY_INFO!F11*0.5>MAX('T1'!M11,'T2'!K11),MAX('T1'!M11,'T2'!K11),COUNTRY_INFO!F11*0.5),IF(COUNTRY_INFO!K11=3,IF(COUNTRY_INFO!F11>MAX('T1'!M11,'T2'!K11),MAX('T1'!M11,'T2'!K11),COUNTRY_INFO!F11),0))) -> 0 | AE11: =IF(AND(COUNTRY_INFO!K11>0,COUNTRY_INFO!K11<4),IF(Z11>0,IF(COUNTRY_INFO!K11=1, AD11/(COUNTRY_INFO!F11*0.33)*100, IF(COUNTRY_INFO!K11=2, AD11/(COUNTRY_INFO!F11*0.5)*100, IF(COUNTRY_INFO!K11=3, AD11/COUNTRY_INFO!F11*100))),"-"),0) -> 0 | AF11: =IF(COUNTRY_INFO!K11=2,IF(COUNTRY_INFO!G11*0.2>MAX('T1'!N11,'T2'!L11),MAX('T1'!N11,'T2'!L11),COUNTRY_INFO!G11*0.2),IF(COUNTRY_INFO!K11=3,IF(COUNTRY_INFO!G11>MAX('T1'!N11,'T2'!L11),MAX('T1'!N11,'T2'!L11),COUNTRY_INFO!G11),0)) -> 0 | AG11: =IF(AND(COUNTRY_INFO!K11>0,COUNTRY_INFO!K11<4),IF(Z11>0,IF(COUNTRY_INFO!K11=1, 0, IF(COUNTRY_INFO!K11=2, AF11/(COUNTRY_INFO!G11*0.2)*100, IF(COUNTRY_INFO!K11=3, AF11/COUNTRY_INFO!G11*100))),"-"),0) -> 0 | AH11: 0 | AI11: =IF(AND(COUNTRY_INFO!K11>0,COUNTRY_INFO!K11<4), IF(AC11/Z11*100<>0, IF(AH11/Z11*100>100,100,AH11/Z11*100), "-"),0) -> 0 | AK11: =IF(AND(D11<>0, D11<>"Inconnu",D11<>"Interrompu",D11<>"Non requis"),D11/COUNTRY_INFO!D11, 0) -> 0 | AL11: =IF(AND(J11<>0,J11<>"Inconnu",J11<>"Interrompu",J11<>"Non requis"),J11/COUNTRY_INFO!D11, 0) -> 0 | AM11: =IF(AND(P11<>0,P11<>"Inconnu",P11<>"Non requis"),P11/(COUNTRY_INFO!E11+COUNTRY_INFO!F11), 0) -> 0 | AN11: =IF(AND(Z11<>0,Z11<>"Inconnu",Z11<>"Non requis"),IF(COUNTRY_INFO!K11=1,1,IF(COUNTRY_INFO!K11=2,0.5*COUNTRY_INFO!F11/(0.5*COUNTRY_INFO!F11+0.2*COUNTRY_INFO!G11),IF(COUNTRY_INFO!K11=3,COUNTRY_INFO!F11/(COUNTRY_INFO!F11+COUNTRY_INFO!G11)))),0) -> 0 | AO11: =IF(AND(Z11<>0,Z11<>"Inconnu",Z11<>"Non requis"),IF(COUNTRY_INFO!K11=1,0,IF(COUNTRY_INFO!K11=2,0.2*COUNTRY_INFO!G11/(0.5*COUNTRY_INFO!F11+0.2*COUNTRY_INFO!G11),IF(COUNTRY_INFO!K11=3,COUNTRY_INFO!G11/(COUNTRY_INFO!F11+COUNTRY_INFO!G11)))),0) -> 0 | AP11: =MAX(COUNTRY_INFO!D11*AK11*PROFILE!$G$7,COUNTRY_INFO!D11*AL11*PROFILE!$G$7) -> 0 | AQ11: =MAX(COUNTRY_INFO!D11*AK11*PROFILE!$G$8,COUNTRY_INFO!D11*AL11*PROFILE!$G$8,COUNTRY_INFO!D11*AM11*PROFILE!$G$8) -> 0 | AR11: =MAX(COUNTRY_INFO!D11*AK11*PROFILE!$G$9,COUNTRY_INFO!D11*AL11*PROFILE!$G$9,COUNTRY_INFO!D11*AM11*PROFILE!$G$9,IF(AND(DISTRICT!Z11<>"Inconnu",Z11<>"Non requis"),COUNTRY_INFO!O11*DISTRICT!AN11,0)) -> 0 | AS11: =MAX(COUNTRY_INFO!D11*AK11*PROFILE!$G$10,COUNTRY_INFO!D11*AL11*PROFILE!$G$10,IF(AND(DISTRICT!Z11<>"Inconnu",Z11<>"Non requis"),COUNTRY_INFO!O11*DISTRICT!AO11,0)) -> 0 | AT11: 0 | AU11: 0 | AV11: =MAX('MDA2'!J11,'T1'!L11,'T2'!J11,T3_R1!K11,T3_R2!K11) -> 1791 | AW11: =MAX('MDA1'!K11,'MDA2'!K11,'MDA3'!I11,'MDA3'!L11,'T1'!M11,'T2'!K11,T3_R1!L11,T3_R2!L11) -> 28126 | AX11: =MAX('MDA1'!L11,'MDA2'!L11,'MDA3'!J11,'MDA3'!M11,'T1'!N11,'T2'!L11,T3_R1!M11,T3_R2!M11) -> 0 | AY11: 29917 | AZ11: =MAX('MDA2'!J11,T11) -> 0 | BA11: =MAX('MDA1'!K11,'MDA2'!K11,'MDA3'!I11,'MDA3'!L11,V11,AD11) -> 0 | BB11: =MAX('MDA1'!L11,'MDA2'!L11,'MDA3'!J11,'MDA3'!M11,AF11) -> 0 | BC11: 0 | BD11: 0 | BE11: 0
A12: =IF(COUNTRY_INFO!A12=0," ",COUNTRY_INFO!A12) -> Burundi | B12: =IF(COUNTRY_INFO!B12=0," ",COUNTRY_INFO!B12) -> Bujumbura Mairie | C12: =IF(COUNTRY_INFO!C12=0," ",COUNTRY_INFO!C12) -> Zone Nord | D12: =COUNTRY_INFO!L12 -> 0 | G12: =MAX('MDA1'!M12,'MDA2'!M12) -> 0 | H12: =IF(AND(COUNTRY_INFO!H12>0,COUNTRY_INFO!H12<4),IF(D12>MAX('MDA1'!M12,'MDA2'!M12),MAX('MDA1'!M12,'MDA2'!M12),D12),0) -> 0 | I12: =IF(AND(COUNTRY_INFO!H12>0,COUNTRY_INFO!H12<4), IF(G12/D12*100<>0, IF(G12/D12*100>100,100,G12/D12*100), "-"),0) -> 0 | J12: =COUNTRY_INFO!M12 -> 0 | M12: =MAX('MDA1'!M12,MAX('MDA3'!I12,'MDA3'!L12)+MAX('MDA3'!J12,'MDA3'!M12)) -> 0 | N12: 0 | O12: 0 | P12: =COUNTRY_INFO!N12 -> 0 | Q12: 61374 | R12: 69418 | S12: =SUM(MAX('MDA2'!J12, 'T1'!L12, MAX(T3_R1!K12, T3_R2!K12)), MAX('MDA1'!K12, 'MDA2'!K12, 'T1'!M12, MAX(T3_R1!L12, T3_R2!L12)), MAX('MDA1'!L12, 'MDA2'!L12, 'T1'!N12, MAX(T3_R1!M12, T3_R2!M12))) -> 15222 | T12: =IF(AND(COUNTRY_INFO!J12>1,COUNTRY_INFO!J12<4),IF(COUNTRY_INFO!E12>MAX('MDA2'!J12,'T1'!L12,MAX(T3_R1!K12,T3_R2!K12)),MAX('MDA2'!J12,'T1'!L12,MAX(T3_R1!K12,T3_R2!K12)),COUNTRY_INFO!E12),0) -> 0 | U12: =IF(AND(COUNTRY_INFO!J12>1,COUNTRY_INFO!J12<4), IF(T12/COUNTRY_INFO!E12*100<>0, IF(T12/COUNTRY_INFO!E12*100>100,100,T12/COUNTRY_INFO!E12*100), "-"),0) -> 0 | V12: =IF(AND(COUNTRY_INFO!J12>1,COUNTRY_INFO!J12<4),IF(COUNTRY_INFO!F12>MAX('MDA1'!K12,'MDA2'!K12,'T1'!M12,MAX(T3_R1!L12,T3_R2!L12)),MAX('MDA1'!K12,'MDA2'!K12,'T1'!M12,MAX(T3_R1!L12,T3_R2!L12)),COUNTRY_INFO!F12),0) -> 0 | W12: =IF(AND(COUNTRY_INFO!J12>1,COUNTRY_INFO!J12<4), IF(V12/COUNTRY_INFO!F12*100<>0, IF(V12/COUNTRY_INFO!F12*100>100,100,V12/COUNTRY_INFO!F12*100), "-"),0) -> 0 | X12: 0 | Y12: =IF(AND(COUNTRY_INFO!J12>1,COUNTRY_INFO!J12<4), IF(S12/P12*100<>0, IF(X12/P12*100>100,100,X12/P12*100), "-"),0) -> 0 | Z12: =COUNTRY_INFO!O12 -> 27187.38 | AC12: =MAX('T1'!L12,'T2'!J12)+MAX('T1'!M12,'T2'!K12)+MAX('T1'!N12,'T2'!L12) -> 0 | AD12: =IF(COUNTRY_INFO!K12=1,IF(COUNTRY_INFO!F12*0.33>MAX('T1'!M12,'T2'!K12),MAX('T1'!M12,'T2'!K12),COUNTRY_INFO!F12*0.33),IF(COUNTRY_INFO!K12=2,IF(COUNTRY_INFO!F12*0.5>MAX('T1'!M12,'T2'!K12),MAX('T1'!M12,'T2'!K12),COUNTRY_INFO!F12*0.5),IF(COUNTRY_INFO!K12=3,IF(COUNTRY_INFO!F12>MAX('T1'!M12,'T2'!K12),MAX('T1'!M12,'T2'!K12),COUNTRY_INFO!F12),0))) -> 0 | AE12: =IF(AND(COUNTRY_INFO!K12>0,COUNTRY_INFO!K12<4),IF(Z12>0,IF(COUNTRY_INFO!K12=1, AD12/(COUNTRY_INFO!F12*0.33)*100, IF(COUNTRY_INFO!K12=2, AD12/(COUNTRY_INFO!F12*0.5)*100, IF(COUNTRY_INFO!K12=3, AD12/COUNTRY_INFO!F12*100))),"-"),0) -> 0 | AF12: =IF(COUNTRY_INFO!K12=2,IF(COUNTRY_INFO!G12*0.2>MAX('T1'!N12,'T2'!L12),MAX('T1'!N12,'T2'!L12),COUNTRY_INFO!G12*0.2),IF(COUNTRY_INFO!K12=3,IF(COUNTRY_INFO!G12>MAX('T1'!N12,'T2'!L12),MAX('T1'!N12,'T2'!L12),COUNTRY_INFO!G12),0)) -> 0 | AG12: =IF(AND(COUNTRY_INFO!K12>0,COUNTRY_INFO!K12<4),IF(Z12>0,IF(COUNTRY_INFO!K12=1, 0, IF(COUNTRY_INFO!K12=2, AF12/(COUNTRY_INFO!G12*0.2)*100, IF(COUNTRY_INFO!K12=3, AF12/COUNTRY_INFO!G12*100))),"-"),0) -> 0 | AH12: 0 | AI12: =IF(AND(COUNTRY_INFO!K12>0,COUNTRY_INFO!K12<4), IF(AC12/Z12*100<>0, IF(AH12/Z12*100>100,100,AH12/Z12*100), "-"),0) -> - | AK12: =IF(AND(D12<>0, D12<>"Inconnu",D12<>"Interrompu",D12<>"Non requis"),D12/COUNTRY_INFO!D12, 0) -> 0 | AL12: =IF(AND(J12<>0,J12<>"Inconnu",J12<>"Interrompu",J12<>"Non requis"),J12/COUNTRY_INFO!D12, 0) -> 0 | AM12: =IF(AND(P12<>0,P12<>"Inconnu",P12<>"Non requis"),P12/(COUNTRY_INFO!E12+COUNTRY_INFO!F12), 0) -> 0 | AN12: =IF(AND(Z12<>0,Z12<>"Inconnu",Z12<>"Non requis"),IF(COUNTRY_INFO!K12=1,1,IF(COUNTRY_INFO!K12=2,0.5*COUNTRY_INFO!F12/(0.5*COUNTRY_INFO!F12+0.2*COUNTRY_INFO!G12),IF(COUNTRY_INFO!K12=3,COUNTRY_INFO!F12/(COUNTRY_INFO!F12+COUNTRY_INFO!G12)))),0) -> 1 | AO12: =IF(AND(Z12<>0,Z12<>"Inconnu",Z12<>"Non requis"),IF(COUNTRY_INFO!K12=1,0,IF(COUNTRY_INFO!K12=2,0.2*COUNTRY_INFO!G12/(0.5*COUNTRY_INFO!F12+0.2*COUNTRY_INFO!G12),IF(COUNTRY_INFO!K12=3,COUNTRY_INFO!G12/(COUNTRY_INFO!F12+COUNTRY_INFO!G12)))),0) -> 0 | AP12: =MAX(COUNTRY_INFO!D12*AK12*PROFILE!$G$7,COUNTRY_INFO!D12*AL12*PROFILE!$G$7) -> 0 | AQ12: =MAX(COUNTRY_INFO!D12*AK12*PROFILE!$G$8,COUNTRY_INFO!D12*AL12*PROFILE!$G$8,COUNTRY_INFO!D12*AM12*PROFILE!$G$8) -> 0 | AR12: =MAX(COUNTRY_INFO!D12*AK12*PROFILE!$G$9,COUNTRY_INFO!D12*AL12*PROFILE!$G$9,COUNTRY_INFO!D12*AM12*PROFILE!$G$9,IF(AND(DISTRICT!Z12<>"Inconnu",Z12<>"Non requis"),COUNTRY_INFO!O12*DISTRICT!AN12,0)) -> 27187.38 | AS12: =MAX(COUNTRY_INFO!D12*AK12*PROFILE!$G$10,COUNTRY_INFO!D12*AL12*PROFILE!$G$10,IF(AND(DISTRICT!Z12<>"Inconnu",Z12<>"Non requis"),COUNTRY_INFO!O12*DISTRICT!AO12,0)) -> 0 | AT12: 27187.38 | AU12: 0 | AV12: =MAX('MDA2'!J12,'T1'!L12,'T2'!J12,T3_R1!K12,T3_R2!K12) -> 6323 | AW12: =MAX('MDA1'!K12,'MDA2'!K12,'MDA3'!I12,'MDA3'!L12,'T1'!M12,'T2'!K12,T3_R1!L12,T3_R2!L12) -> 8899 | AX12: =MAX('MDA1'!L12,'MDA2'!L12,'MDA3'!J12,'MDA3'!M12,'T1'!N12,'T2'!L12,T3_R1!M12,T3_R2!M12) -> 0 | AY12: 15222 | AZ12: =MAX('MDA2'!J12,T12) -> 0 | BA12: =MAX('MDA1'!K12,'MDA2'!K12,'MDA3'!I12,'MDA3'!L12,V12,AD12) -> 0 | BB12: =MAX('MDA1'!L12,'MDA2'!L12,'MDA3'!J12,'MDA3'!M12,AF12) -> 0 | BC12: 0 | BD12: 0 | BE12: 0
A13: =IF(COUNTRY_INFO!A13=0," ",COUNTRY_INFO!A13) -> Burundi | B13: =IF(COUNTRY_INFO!B13=0," ",COUNTRY_INFO!B13) -> Bujumbura Mairie | C13: =IF(COUNTRY_INFO!C13=0," ",COUNTRY_INFO!C13) -> Zone Sud | D13: =COUNTRY_INFO!L13 -> 0 | G13: =MAX('MDA1'!M13,'MDA2'!M13) -> 0 | H13: =IF(AND(COUNTRY_INFO!H13>0,COUNTRY_INFO!H13<4),IF(D13>MAX('MDA1'!M13,'MDA2'!M13),MAX('MDA1'!M13,'MDA2'!M13),D13),0) -> 0 | I13: =IF(AND(COUNTRY_INFO!H13>0,COUNTRY_INFO!H13<4), IF(G13/D13*100<>0, IF(G13/D13*100>100,100,G13/D13*100), "-"),0) -> 0 | J13: =COUNTRY_INFO!M13 -> 0 | M13: =MAX('MDA1'!M13,MAX('MDA3'!I13,'MDA3'!L13)+MAX('MDA3'!J13,'MDA3'!M13)) -> 0 | N13: 0 | O13: 0 | P13: =COUNTRY_INFO!N13 -> 0 | Q13: 28155 | R13: 29851 | S13: =SUM(MAX('MDA2'!J13, 'T1'!L13, MAX(T3_R1!K13, T3_R2!K13)), MAX('MDA1'!K13, 'MDA2'!K13, 'T1'!M13, MAX(T3_R1!L13, T3_R2!L13)), MAX('MDA1'!L13, 'MDA2'!L13, 'T1'!N13, MAX(T3_R1!M13, T3_R2!M13))) -> 17093 | T13: =IF(AND(COUNTRY_INFO!J13>1,COUNTRY_INFO!J13<4),IF(COUNTRY_INFO!E13>MAX('MDA2'!J13,'T1'!L13,MAX(T3_R1!K13,T3_R2!K13)),MAX('MDA2'!J13,'T1'!L13,MAX(T3_R1!K13,T3_R2!K13)),COUNTRY_INFO!E13),0) -> 0 | U13: =IF(AND(COUNTRY_INFO!J13>1,COUNTRY_INFO!J13<4), IF(T13/COUNTRY_INFO!E13*100<>0, IF(T13/COUNTRY_INFO!E13*100>100,100,T13/COUNTRY_INFO!E13*100), "-"),0) -> 0 | V13: =IF(AND(COUNTRY_INFO!J13>1,COUNTRY_INFO!J13<4),IF(COUNTRY_INFO!F13>MAX('MDA1'!K13,'MDA2'!K13,'T1'!M13,MAX(T3_R1!L13,T3_R2!L13)),MAX('MDA1'!K13,'MDA2'!K13,'T1'!M13,MAX(T3_R1!L13,T3_R2!L13)),COUNTRY_INFO!F13),0) -> 0 | W13: =IF(AND(COUNTRY_INFO!J13>1,COUNTRY_INFO!J13<4), IF(V13/COUNTRY_INFO!F13*100<>0, IF(V13/COUNTRY_INFO!F13*100>100,100,V13/COUNTRY_INFO!F13*100), "-"),0) -> 0 | X13: 0 | Y13: =IF(AND(COUNTRY_INFO!J13>1,COUNTRY_INFO!J13<4), IF(S13/P13*100<>0, IF(X13/P13*100>100,100,X13/P13*100), "-"),0) -> 0 | Z13: =COUNTRY_INFO!O13 -> 0 | AC13: =MAX('T1'!L13,'T2'!J13)+MAX('T1'!M13,'T2'!K13)+MAX('T1'!N13,'T2'!L13) -> 0 | AD13: =IF(COUNTRY_INFO!K13=1,IF(COUNTRY_INFO!F13*0.33>MAX('T1'!M13,'T2'!K13),MAX('T1'!M13,'T2'!K13),COUNTRY_INFO!F13*0.33),IF(COUNTRY_INFO!K13=2,IF(COUNTRY_INFO!F13*0.5>MAX('T1'!M13,'T2'!K13),MAX('T1'!M13,'T2'!K13),COUNTRY_INFO!F13*0.5),IF(COUNTRY_INFO!K13=3,IF(COUNTRY_INFO!F13>MAX('T1'!M13,'T2'!K13),MAX('T1'!M13,'T2'!K13),COUNTRY_INFO!F13),0))) -> 0 | AE13: =IF(AND(COUNTRY_INFO!K13>0,COUNTRY_INFO!K13<4),IF(Z13>0,IF(COUNTRY_INFO!K13=1, AD13/(COUNTRY_INFO!F13*0.33)*100, IF(COUNTRY_INFO!K13=2, AD13/(COUNTRY_INFO!F13*0.5)*100, IF(COUNTRY_INFO!K13=3, AD13/COUNTRY_INFO!F13*100))),"-"),0) -> 0 | AF13: =IF(COUNTRY_INFO!K13=2,IF(COUNTRY_INFO!G13*0.2>MAX('T1'!N13,'T2'!L13),MAX('T1'!N13,'T2'!L13),COUNTRY_INFO!G13*0.2),IF(COUNTRY_INFO!K13=3,IF(COUNTRY_INFO!G13>MAX('T1'!N13,'T2'!L13),MAX('T1'!N13,'T2'!L13),COUNTRY_INFO!G13),0)) -> 0 | AG13: =IF(AND(COUNTRY_INFO!K13>0,COUNTRY_INFO!K13<4),IF(Z13>0,IF(COUNTRY_INFO!K13=1, 0, IF(COUNTRY_INFO!K13=2, AF13/(COUNTRY_INFO!G13*0.2)*100, IF(COUNTRY_INFO!K13=3, AF13/COUNTRY_INFO!G13*100))),"-"),0) -> 0 | AH13: 0 | AI13: =IF(AND(COUNTRY_INFO!K13>0,COUNTRY_INFO!K13<4), IF(AC13/Z13*100<>0, IF(AH13/Z13*100>100,100,AH13/Z13*100), "-"),0) -> 0 | AK13: =IF(AND(D13<>0, D13<>"Inconnu",D13<>"Interrompu",D13<>"Non requis"),D13/COUNTRY_INFO!D13, 0) -> 0 | AL13: =IF(AND(J13<>0,J13<>"Inconnu",J13<>"Interrompu",J13<>"Non requis"),J13/COUNTRY_INFO!D13, 0) -> 0 | AM13: =IF(AND(P13<>0,P13<>"Inconnu",P13<>"Non requis"),P13/(COUNTRY_INFO!E13+COUNTRY_INFO!F13), 0) -> 0 | AN13: =IF(AND(Z13<>0,Z13<>"Inconnu",Z13<>"Non requis"),IF(COUNTRY_INFO!K13=1,1,IF(COUNTRY_INFO!K13=2,0.5*COUNTRY_INFO!F13/(0.5*COUNTRY_INFO!F13+0.2*COUNTRY_INFO!G13),IF(COUNTRY_INFO!K13=3,COUNTRY_INFO!F13/(COUNTRY_INFO!F13+COUNTRY_INFO!G13)))),0) -> 0 | AO13: =IF(AND(Z13<>0,Z13<>"Inconnu",Z13<>"Non requis"),IF(COUNTRY_INFO!K13=1,0,IF(COUNTRY_INFO!K13=2,0.2*COUNTRY_INFO!G13/(0.5*COUNTRY_INFO!F13+0.2*COUNTRY_INFO!G13),IF(COUNTRY_INFO!K13=3,COUNTRY_INFO!G13/(COUNTRY_INFO!F13+COUNTRY_INFO!G13)))),0) -> 0 | AP13: =MAX(COUNTRY_INFO!D13*AK13*PROFILE!$G$7,COUNTRY_INFO!D13*AL13*PROFILE!$G$7) -> 0 | AQ13: =MAX(COUNTRY_INFO!D13*AK13*PROFILE!$G$8,COUNTRY_INFO!D13*AL13*PROFILE!$G$8,COUNTRY_INFO!D13*AM13*PROFILE!$G$8) -> 0 | AR13: =MAX(COUNTRY_INFO!D13*AK13*PROFILE!$G$9,COUNTRY_INFO!D13*AL13*PROFILE!$G$9,COUNTRY_INFO!D13*AM13*PROFILE!$G$9,IF(AND(DISTRICT!Z13<>"Inconnu",Z13<>"Non requis"),COUNTRY_INFO!O13*DISTRICT!AN13,0)) -> 0 | AS13: =MAX(COUNTRY_INFO!D13*AK13*PROFILE!$G$10,COUNTRY_INFO!D13*AL13*PROFILE!$G$10,IF(AND(DISTRICT!Z13<>"Inconnu",Z13<>"Non requis"),COUNTRY_INFO!O13*DISTRICT!AO13,0)) -> 0 | AT13: 0 | AU13: 0 | AV13: =MAX('MDA2'!J13,'T1'!L13,'T2'!J13,T3_R1!K13,T3_R2!K13) -> 5751 | AW13: =MAX('MDA1'!K13,'MDA2'!K13,'MDA3'!I13,'MDA3'!L13,'T1'!M13,'T2'!K13,T3_R1!L13,T3_R2!L13) -> 11342 | AX13: =MAX('MDA1'!L13,'MDA2'!L13,'MDA3'!J13,'MDA3'!M13,'T1'!N13,'T2'!L13,T3_R1!M13,T3_R2!M13) -> 0 | AY13: 17093 | AZ13: =MAX('MDA2'!J13,T13) -> 0 | BA13: =MAX('MDA1'!K13,'MDA2'!K13,'MDA3'!I13,'MDA3'!L13,V13,AD13) -> 0 | BB13: =MAX('MDA1'!L13,'MDA2'!L13,'MDA3'!J13,'MDA3'!M13,AF13) -> 0 | BC13: 0 | BD13: 0 | BE13: 0
A14: =IF(COUNTRY_INFO!A14=0," ",COUNTRY_INFO!A14) -> Burundi | B14: =IF(COUNTRY_INFO!B14=0," ",COUNTRY_INFO!B14) -> Bujumbura Rural | C14: =IF(COUNTRY_INFO!C14=0," ",COUNTRY_INFO!C14) -> Isare | D14: =COUNTRY_INFO!L14 -> 0 | G14: =MAX('MDA1'!M14,'MDA2'!M14) -> 0 | H14: =IF(AND(COUNTRY_INFO!H14>0,COUNTRY_INFO!H14<4),IF(D14>MAX('MDA1'!M14,'MDA2'!M14),MAX('MDA1'!M14,'MDA2'!M14),D14),0) -> 0 | I14: =IF(AND(COUNTRY_INFO!H14>0,COUNTRY_INFO!H14<4), IF(G14/D14*100<>0, IF(G14/D14*100>100,100,G14/D14*100), "-"),0) -> 0 | J14: =COUNTRY_INFO!M14 -> 0 | M14: =MAX('MDA1'!M14,MAX('MDA3'!I14,'MDA3'!L14)+MAX('MDA3'!J14,'MDA3'!M14)) -> 0 | N14: 0 | O14: 0 | P14: =COUNTRY_INFO!N14 -> 113174 | Q14: 10362 | R14: 12435 | S14: =SUM(MAX('MDA2'!J14, 'T1'!L14, MAX(T3_R1!K14, T3_R2!K14)), MAX('MDA1'!K14, 'MDA2'!K14, 'T1'!M14, MAX(T3_R1!L14, T3_R2!L14)), MAX('MDA1'!L14, 'MDA2'!L14, 'T1'!N14, MAX(T3_R1!M14, T3_R2!M14))) -> 140512 | T14: =IF(AND(COUNTRY_INFO!J14>1,COUNTRY_INFO!J14<4),IF(COUNTRY_INFO!E14>MAX('MDA2'!J14,'T1'!L14,MAX(T3_R1!K14,T3_R2!K14)),MAX('MDA2'!J14,'T1'!L14,MAX(T3_R1!K14,T3_R2!K14)),COUNTRY_INFO!E14),0) -> 33360 | U14: =IF(AND(COUNTRY_INFO!J14>1,COUNTRY_INFO!J14<4), IF(T14/COUNTRY_INFO!E14*100<>0, IF(T14/COUNTRY_INFO!E14*100>100,100,T14/COUNTRY_INFO!E14*100), "-"),0) -> 100 | V14: =IF(AND(COUNTRY_INFO!J14>1,COUNTRY_INFO!J14<4),IF(COUNTRY_INFO!F14>MAX('MDA1'!K14,'MDA2'!K14,'T1'!M14,MAX(T3_R1!L14,T3_R2!L14)),MAX('MDA1'!K14,'MDA2'!K14,'T1'!M14,MAX(T3_R1!L14,T3_R2!L14)),COUNTRY_INFO!F14),0) -> 79814 | W14: =IF(AND(COUNTRY_INFO!J14>1,COUNTRY_INFO!J14<4), IF(V14/COUNTRY_INFO!F14*100<>0, IF(V14/COUNTRY_INFO!F14*100>100,100,V14/COUNTRY_INFO!F14*100), "-"),0) -> 100 | X14: 113174 | Y14: =IF(AND(COUNTRY_INFO!J14>1,COUNTRY_INFO!J14<4), IF(S14/P14*100<>0, IF(X14/P14*100>100,100,X14/P14*100), "-"),0) -> 100 | Z14: =COUNTRY_INFO!O14 -> 26338.62 | AC14: =MAX('T1'!L14,'T2'!J14)+MAX('T1'!M14,'T2'!K14)+MAX('T1'!N14,'T2'!L14) -> 0 | AD14: =IF(COUNTRY_INFO!K14=1,IF(COUNTRY_INFO!F14*0.33>MAX('T1'!M14,'T2'!K14),MAX('T1'!M14,'T2'!K14),COUNTRY_INFO!F14*0.33),IF(COUNTRY_INFO!K14=2,IF(COUNTRY_INFO!F14*0.5>MAX('T1'!M14,'T2'!K14),MAX('T1'!M14,'T2'!K14),COUNTRY_INFO!F14*0.5),IF(COUNTRY_INFO!K14=3,IF(COUNTRY_INFO!F14>MAX('T1'!M14,'T2'!K14),MAX('T1'!M14,'T2'!K14),COUNTRY_INFO!F14),0))) -> 0 | AE14: =IF(AND(COUNTRY_INFO!K14>0,COUNTRY_INFO!K14<4),IF(Z14>0,IF(COUNTRY_INFO!K14=1, AD14/(COUNTRY_INFO!F14*0.33)*100, IF(COUNTRY_INFO!K14=2, AD14/(COUNTRY_INFO!F14*0.5)*100, IF(COUNTRY_INFO!K14=3, AD14/COUNTRY_INFO!F14*100))),"-"),0) -> 0 | AF14: =IF(COUNTRY_INFO!K14=2,IF(COUNTRY_INFO!G14*0.2>MAX('T1'!N14,'T2'!L14),MAX('T1'!N14,'T2'!L14),COUNTRY_INFO!G14*0.2),IF(COUNTRY_INFO!K14=3,IF(COUNTRY_INFO!G14>MAX('T1'!N14,'T2'!L14),MAX('T1'!N14,'T2'!L14),COUNTRY_INFO!G14),0)) -> 0 | AG14: =IF(AND(COUNTRY_INFO!K14>0,COUNTRY_INFO!K14<4),IF(Z14>0,IF(COUNTRY_INFO!K14=1, 0, IF(COUNTRY_INFO!K14=2, AF14/(COUNTRY_INFO!G14*0.2)*100, IF(COUNTRY_INFO!K14=3, AF14/COUNTRY_INFO!G14*100))),"-"),0) -> 0 | AH14: 0 | AI14: =IF(AND(COUNTRY_INFO!K14>0,COUNTRY_INFO!K14<4), IF(AC14/Z14*100<>0, IF(AH14/Z14*100>100,100,AH14/Z14*100), "-"),0) -> - | AK14: =IF(AND(D14<>0, D14<>"Inconnu",D14<>"Interrompu",D14<>"Non requis"),D14/COUNTRY_INFO!D14, 0) -> 0 | AL14: =IF(AND(J14<>0,J14<>"Inconnu",J14<>"Interrompu",J14<>"Non requis"),J14/COUNTRY_INFO!D14, 0) -> 0 | AM14: =IF(AND(P14<>0,P14<>"Inconnu",P14<>"Non requis"),P14/(COUNTRY_INFO!E14+COUNTRY_INFO!F14), 0) -> 1 | AN14: =IF(AND(Z14<>0,Z14<>"Inconnu",Z14<>"Non requis"),IF(COUNTRY_INFO!K14=1,1,IF(COUNTRY_INFO!K14=2,0.5*COUNTRY_INFO!F14/(0.5*COUNTRY_INFO!F14+0.2*COUNTRY_INFO!G14),IF(COUNTRY_INFO!K14=3,COUNTRY_INFO!F14/(COUNTRY_INFO!F14+COUNTRY_INFO!G14)))),0) -> 1 | AO14: =IF(AND(Z14<>0,Z14<>"Inconnu",Z14<>"Non requis"),IF(COUNTRY_INFO!K14=1,0,IF(COUNTRY_INFO!K14=2,0.2*COUNTRY_INFO!G14/(0.5*COUNTRY_INFO!F14+0.2*COUNTRY_INFO!G14),IF(COUNTRY_INFO!K14=3,COUNTRY_INFO!G14/(COUNTRY_INFO!F14+COUNTRY_INFO!G14)))),0) -> 0 | AP14: =MAX(COUNTRY_INFO!D14*AK14*PROFILE!$G$7,COUNTRY_INFO!D14*AL14*PROFILE!$G$7) -> 0 | AQ14: =MAX(COUNTRY_INFO!D14*AK14*PROFILE!$G$8,COUNTRY_INFO!D14*AL14*PROFILE!$G$8,COUNTRY_INFO!D14*AM14*PROFILE!$G$8) -> 32249.44019 | AR14: =MAX(COUNTRY_INFO!D14*AK14*PROFILE!$G$9,COUNTRY_INFO!D14*AL14*PROFILE!$G$9,COUNTRY_INFO!D14*AM14*PROFILE!$G$9,IF(AND(DISTRICT!Z14<>"Inconnu",Z14<>"Non requis"),COUNTRY_INFO!O14*DISTRICT!AN14,0)) -> 81007.3379 | AS14: =MAX(COUNTRY_INFO!D14*AK14*PROFILE!$G$10,COUNTRY_INFO!D14*AL14*PROFILE!$G$10,IF(AND(DISTRICT!Z14<>"Inconnu",Z14<>"Non requis"),COUNTRY_INFO!O14*DISTRICT!AO14,0)) -> 0 | AT14: 113256.7781 | AU14: 0 | AV14: =MAX('MDA2'!J14,'T1'!L14,'T2'!J14,T3_R1!K14,T3_R2!K14) -> 33397 | AW14: =MAX('MDA1'!K14,'MDA2'!K14,'MDA3'!I14,'MDA3'!L14,'T1'!M14,'T2'!K14,T3_R1!L14,T3_R2!L14) -> 102647 | AX14: =MAX('MDA1'!L14,'MDA2'!L14,'MDA3'!J14,'MDA3'!M14,'T1'!N14,'T2'!L14,T3_R1!M14,T3_R2!M14) -> 4468 | AY14: 140512 | AZ14: =MAX('MDA2'!J14,T14) -> 33360 | BA14: =MAX('MDA1'!K14,'MDA2'!K14,'MDA3'!I14,'MDA3'!L14,V14,AD14) -> 79814 | BB14: =MAX('MDA1'!L14,'MDA2'!L14,'MDA3'!J14,'MDA3'!M14,AF14) -> 0 | BC14: 113174 | BD14: 99.92691114 | BE14: 0
A15: =IF(COUNTRY_INFO!A15=0," ",COUNTRY_INFO!A15) -> Burundi | B15: =IF(COUNTRY_INFO!B15=0," ",COUNTRY_INFO!B15) -> Bujumbura Rural | C15: =IF(COUNTRY_INFO!C15=0," ",COUNTRY_INFO!C15) -> Kabezi | D15: =COUNTRY_INFO!L15 -> 0 | G15: =MAX('MDA1'!M15,'MDA2'!M15) -> 0 | H15: =IF(AND(COUNTRY_INFO!H15>0,COUNTRY_INFO!H15<4),IF(D15>MAX('MDA1'!M15,'MDA2'!M15),MAX('MDA1'!M15,'MDA2'!M15),D15),0) -> 0 | I15: =IF(AND(COUNTRY_INFO!H15>0,COUNTRY_INFO!H15<4), IF(G15/D15*100<>0, IF(G15/D15*100>100,100,G15/D15*100), "-"),0) -> 0 | J15: =COUNTRY_INFO!M15 -> 0 | M15: =MAX('MDA1'!M15,MAX('MDA3'!I15,'MDA3'!L15)+MAX('MDA3'!J15,'MDA3'!M15)) -> 0 | N15: 0 | O15: 0 | P15: =COUNTRY_INFO!N15 -> 131389 | Q15: 5482 | R15: 6401 | S15: =SUM(MAX('MDA2'!J15, 'T1'!L15, MAX(T3_R1!K15, T3_R2!K15)), MAX('MDA1'!K15, 'MDA2'!K15, 'T1'!M15, MAX(T3_R1!L15, T3_R2!L15)), MAX('MDA1'!L15, 'MDA2'!L15, 'T1'!N15, MAX(T3_R1!M15, T3_R2!M15))) -> 126091 | T15: =IF(AND(COUNTRY_INFO!J15>1,COUNTRY_INFO!J15<4),IF(COUNTRY_INFO!E15>MAX('MDA2'!J15,'T1'!L15,MAX(T3_R1!K15,T3_R2!K15)),MAX('MDA2'!J15,'T1'!L15,MAX(T3_R1!K15,T3_R2!K15)),COUNTRY_INFO!E15),0) -> 28480 | U15: =IF(AND(COUNTRY_INFO!J15>1,COUNTRY_INFO!J15<4), IF(T15/COUNTRY_INFO!E15*100<>0, IF(T15/COUNTRY_INFO!E15*100>100,100,T15/COUNTRY_INFO!E15*100), "-"),0) -> 100 | V15: =IF(AND(COUNTRY_INFO!J15>1,COUNTRY_INFO!J15<4),IF(COUNTRY_INFO!F15>MAX('MDA1'!K15,'MDA2'!K15,'T1'!M15,MAX(T3_R1!L15,T3_R2!L15)),MAX('MDA1'!K15,'MDA2'!K15,'T1'!M15,MAX(T3_R1!L15,T3_R2!L15)),COUNTRY_INFO!F15),0) -> 92949 | W15: =IF(AND(COUNTRY_INFO!J15>1,COUNTRY_INFO!J15<4), IF(V15/COUNTRY_INFO!F15*100<>0, IF(V15/COUNTRY_INFO!F15*100>100,100,V15/COUNTRY_INFO!F15*100), "-"),0) -> 90.32154622 | X15: 121429 | Y15: =IF(AND(COUNTRY_INFO!J15>1,COUNTRY_INFO!J15<4), IF(S15/P15*100<>0, IF(X15/P15*100>100,100,X15/P15*100), "-"),0) -> 92.41945673 | Z15: =COUNTRY_INFO!O15 -> 33959.97 | AC15: =MAX('T1'!L15,'T2'!J15)+MAX('T1'!M15,'T2'!K15)+MAX('T1'!N15,'T2'!L15) -> 0 | AD15: =IF(COUNTRY_INFO!K15=1,IF(COUNTRY_INFO!F15*0.33>MAX('T1'!M15,'T2'!K15),MAX('T1'!M15,'T2'!K15),COUNTRY_INFO!F15*0.33),IF(COUNTRY_INFO!K15=2,IF(COUNTRY_INFO!F15*0.5>MAX('T1'!M15,'T2'!K15),MAX('T1'!M15,'T2'!K15),COUNTRY_INFO!F15*0.5),IF(COUNTRY_INFO!K15=3,IF(COUNTRY_INFO!F15>MAX('T1'!M15,'T2'!K15),MAX('T1'!M15,'T2'!K15),COUNTRY_INFO!F15),0))) -> 0 | AE15: =IF(AND(COUNTRY_INFO!K15>0,COUNTRY_INFO!K15<4),IF(Z15>0,IF(COUNTRY_INFO!K15=1, AD15/(COUNTRY_INFO!F15*0.33)*100, IF(COUNTRY_INFO!K15=2, AD15/(COUNTRY_INFO!F15*0.5)*100, IF(COUNTRY_INFO!K15=3, AD15/COUNTRY_INFO!F15*100))),"-"),0) -> 0 | AF15: =IF(COUNTRY_INFO!K15=2,IF(COUNTRY_INFO!G15*0.2>MAX('T1'!N15,'T2'!L15),MAX('T1'!N15,'T2'!L15),COUNTRY_INFO!G15*0.2),IF(COUNTRY_INFO!K15=3,IF(COUNTRY_INFO!G15>MAX('T1'!N15,'T2'!L15),MAX('T1'!N15,'T2'!L15),COUNTRY_INFO!G15),0)) -> 0 | AG15: =IF(AND(COUNTRY_INFO!K15>0,COUNTRY_INFO!K15<4),IF(Z15>0,IF(COUNTRY_INFO!K15=1, 0, IF(COUNTRY_INFO!K15=2, AF15/(COUNTRY_INFO!G15*0.2)*100, IF(COUNTRY_INFO!K15=3, AF15/COUNTRY_INFO!G15*100))),"-"),0) -> 0 | AH15: 0 | AI15: =IF(AND(COUNTRY_INFO!K15>0,COUNTRY_INFO!K15<4), IF(AC15/Z15*100<>0, IF(AH15/Z15*100>100,100,AH15/Z15*100), "-"),0) -> - | AK15: =IF(AND(D15<>0, D15<>"Inconnu",D15<>"Interrompu",D15<>"Non requis"),D15/COUNTRY_INFO!D15, 0) -> 0 | AL15: =IF(AND(J15<>0,J15<>"Inconnu",J15<>"Interrompu",J15<>"Non requis"),J15/COUNTRY_INFO!D15, 0) -> 0 | AM15: =IF(AND(P15<>0,P15<>"Inconnu",P15<>"Non requis"),P15/(COUNTRY_INFO!E15+COUNTRY_INFO!F15), 0) -> 1 | AN15: =IF(AND(Z15<>0,Z15<>"Inconnu",Z15<>"Non requis"),IF(COUNTRY_INFO!K15=1,1,IF(COUNTRY_INFO!K15=2,0.5*COUNTRY_INFO!F15/(0.5*COUNTRY_INFO!F15+0.2*COUNTRY_INFO!G15),IF(COUNTRY_INFO!K15=3,COUNTRY_INFO!F15/(COUNTRY_INFO!F15+COUNTRY_INFO!G15)))),0) -> 1 | AO15: =IF(AND(Z15<>0,Z15<>"Inconnu",Z15<>"Non requis"),IF(COUNTRY_INFO!K15=1,0,IF(COUNTRY_INFO!K15=2,0.2*COUNTRY_INFO!G15/(0.5*COUNTRY_INFO!F15+0.2*COUNTRY_INFO!G15),IF(COUNTRY_INFO!K15=3,COUNTRY_INFO!G15/(COUNTRY_INFO!F15+COUNTRY_INFO!G15)))),0) -> 0 | AP15: =MAX(COUNTRY_INFO!D15*AK15*PROFILE!$G$7,COUNTRY_INFO!D15*AL15*PROFILE!$G$7) -> 0 | AQ15: =MAX(COUNTRY_INFO!D15*AK15*PROFILE!$G$8,COUNTRY_INFO!D15*AL15*PROFILE!$G$8,COUNTRY_INFO!D15*AM15*PROFILE!$G$8) -> 29144.36851 | AR15: =MAX(COUNTRY_INFO!D15*AK15*PROFILE!$G$9,COUNTRY_INFO!D15*AL15*PROFILE!$G$9,COUNTRY_INFO!D15*AM15*PROFILE!$G$9,IF(AND(DISTRICT!Z15<>"Inconnu",Z15<>"Non requis"),COUNTRY_INFO!O15*DISTRICT!AN15,0)) -> 73207.71132 | AS15: =MAX(COUNTRY_INFO!D15*AK15*PROFILE!$G$10,COUNTRY_INFO!D15*AL15*PROFILE!$G$10,IF(AND(DISTRICT!Z15<>"Inconnu",Z15<>"Non requis"),COUNTRY_INFO!O15*DISTRICT!AO15,0)) -> 0 | AT15: 102352.0798 | AU15: 0 | AV15: =MAX('MDA2'!J15,'T1'!L15,'T2'!J15,T3_R1!K15,T3_R2!K15) -> 28480 | AW15: =MAX('MDA1'!K15,'MDA2'!K15,'MDA3'!I15,'MDA3'!L15,'T1'!M15,'T2'!K15,T3_R1!L15,T3_R2!L15) -> 92949 | AX15: =MAX('MDA1'!L15,'MDA2'!L15,'MDA3'!J15,'MDA3'!M15,'T1'!N15,'T2'!L15,T3_R1!M15,T3_R2!M15) -> 4662 | AY15: 126091 | AZ15: =MAX('MDA2'!J15,T15) -> 28480 | BA15: =MAX('MDA1'!K15,'MDA2'!K15,'MDA3'!I15,'MDA3'!L15,V15,AD15) -> 92949 | BB15: =MAX('MDA1'!L15,'MDA2'!L15,'MDA3'!J15,'MDA3'!M15,AF15) -> 0 | BC15: 102352.0798 | BD15: 100 | BE15: 0
A16: =IF(COUNTRY_INFO!A16=0," ",COUNTRY_INFO!A16) -> Burundi | B16: =IF(COUNTRY_INFO!B16=0," ",COUNTRY_INFO!B16) -> Bujumbura Rural | C16: =IF(COUNTRY_INFO!C16=0," ",COUNTRY_INFO!C16) -> Rwibaga | D16: =COUNTRY_INFO!L16 -> 0 | G16: =MAX('MDA1'!M16,'MDA2'!M16) -> 0 | H16: =IF(AND(COUNTRY_INFO!H16>0,COUNTRY_INFO!H16<4),IF(D16>MAX('MDA1'!M16,'MDA2'!M16),MAX('MDA1'!M16,'MDA2'!M16),D16),0) -> 0 | I16: =IF(AND(COUNTRY_INFO!H16>0,COUNTRY_INFO!H16<4), IF(G16/D16*100<>0, IF(G16/D16*100>100,100,G16/D16*100), "-"),0) -> 0 | J16: =COUNTRY_INFO!M16 -> 0 | M16: =MAX('MDA1'!M16,MAX('MDA3'!I16,'MDA3'!L16)+MAX('MDA3'!J16,'MDA3'!M16)) -> 0 | N16: 0 | O16: 0 | P16: =COUNTRY_INFO!N16 -> 57724 | Q16: 5894 | R16: 8254 | S16: =SUM(MAX('MDA2'!J16, 'T1'!L16, MAX(T3_R1!K16, T3_R2!K16)), MAX('MDA1'!K16, 'MDA2'!K16, 'T1'!M16, MAX(T3_R1!L16, T3_R2!L16)), MAX('MDA1'!L16, 'MDA2'!L16, 'T1'!N16, MAX(T3_R1!M16, T3_R2!M16))) -> 59841 | T16: =IF(AND(COUNTRY_INFO!J16>1,COUNTRY_INFO!J16<4),IF(COUNTRY_INFO!E16>MAX('MDA2'!J16,'T1'!L16,MAX(T3_R1!K16,T3_R2!K16)),MAX('MDA2'!J16,'T1'!L16,MAX(T3_R1!K16,T3_R2!K16)),COUNTRY_INFO!E16),0) -> 14802 | U16: =IF(AND(COUNTRY_INFO!J16>1,COUNTRY_INFO!J16<4), IF(T16/COUNTRY_INFO!E16*100<>0, IF(T16/COUNTRY_INFO!E16*100>100,100,T16/COUNTRY_INFO!E16*100), "-"),0) -> 95.57076446 | V16: =IF(AND(COUNTRY_INFO!J16>1,COUNTRY_INFO!J16<4),IF(COUNTRY_INFO!F16>MAX('MDA1'!K16,'MDA2'!K16,'T1'!M16,MAX(T3_R1!L16,T3_R2!L16)),MAX('MDA1'!K16,'MDA2'!K16,'T1'!M16,MAX(T3_R1!L16,T3_R2!L16)),COUNTRY_INFO!F16),0) -> 42236 | W16: =IF(AND(COUNTRY_INFO!J16>1,COUNTRY_INFO!J16<4), IF(V16/COUNTRY_INFO!F16*100<>0, IF(V16/COUNTRY_INFO!F16*100>100,100,V16/COUNTRY_INFO!F16*100), "-"),0) -> 100 | X16: 57038 | Y16: =IF(AND(COUNTRY_INFO!J16>1,COUNTRY_INFO!J16<4), IF(S16/P16*100<>0, IF(X16/P16*100>100,100,X16/P16*100), "-"),0) -> 98.81158617 | Z16: =COUNTRY_INFO!O16 -> 0 | AC16: =MAX('T1'!L16,'T2'!J16)+MAX('T1'!M16,'T2'!K16)+MAX('T1'!N16,'T2'!L16) -> 0 | AD16: =IF(COUNTRY_INFO!K16=1,IF(COUNTRY_INFO!F16*0.33>MAX('T1'!M16,'T2'!K16),MAX('T1'!M16,'T2'!K16),COUNTRY_INFO!F16*0.33),IF(COUNTRY_INFO!K16=2,IF(COUNTRY_INFO!F16*0.5>MAX('T1'!M16,'T2'!K16),MAX('T1'!M16,'T2'!K16),COUNTRY_INFO!F16*0.5),IF(COUNTRY_INFO!K16=3,IF(COUNTRY_INFO!F16>MAX('T1'!M16,'T2'!K16),MAX('T1'!M16,'T2'!K16),COUNTRY_INFO!F16),0))) -> 0 | AE16: =IF(AND(COUNTRY_INFO!K16>0,COUNTRY_INFO!K16<4),IF(Z16>0,IF(COUNTRY_INFO!K16=1, AD16/(COUNTRY_INFO!F16*0.33)*100, IF(COUNTRY_INFO!K16=2, AD16/(COUNTRY_INFO!F16*0.5)*100, IF(COUNTRY_INFO!K16=3, AD16/COUNTRY_INFO!F16*100))),"-"),0) -> 0 | AF16: =IF(COUNTRY_INFO!K16=2,IF(COUNTRY_INFO!G16*0.2>MAX('T1'!N16,'T2'!L16),MAX('T1'!N16,'T2'!L16),COUNTRY_INFO!G16*0.2),IF(COUNTRY_INFO!K16=3,IF(COUNTRY_INFO!G16>MAX('T1'!N16,'T2'!L16),MAX('T1'!N16,'T2'!L16),COUNTRY_INFO!G16),0)) -> 0 | AG16: =IF(AND(COUNTRY_INFO!K16>0,COUNTRY_INFO!K16<4),IF(Z16>0,IF(COUNTRY_INFO!K16=1, 0, IF(COUNTRY_INFO!K16=2, AF16/(COUNTRY_INFO!G16*0.2)*100, IF(COUNTRY_INFO!K16=3, AF16/COUNTRY_INFO!G16*100))),"-"),0) -> 0 | AH16: 0 | AI16: =IF(AND(COUNTRY_INFO!K16>0,COUNTRY_INFO!K16<4), IF(AC16/Z16*100<>0, IF(AH16/Z16*100>100,100,AH16/Z16*100), "-"),0) -> 0 | AK16: =IF(AND(D16<>0, D16<>"Inconnu",D16<>"Interrompu",D16<>"Non requis"),D16/COUNTRY_INFO!D16, 0) -> 0 | AL16: =IF(AND(J16<>0,J16<>"Inconnu",J16<>"Interrompu",J16<>"Non requis"),J16/COUNTRY_INFO!D16, 0) -> 0 | AM16: =IF(AND(P16<>0,P16<>"Inconnu",P16<>"Non requis"),P16/(COUNTRY_INFO!E16+COUNTRY_INFO!F16), 0) -> 1 | AN16: =IF(AND(Z16<>0,Z16<>"Inconnu",Z16<>"Non requis"),IF(COUNTRY_INFO!K16=1,1,IF(COUNTRY_INFO!K16=2,0.5*COUNTRY_INFO!F16/(0.5*COUNTRY_INFO!F16+0.2*COUNTRY_INFO!G16),IF(COUNTRY_INFO!K16=3,COUNTRY_INFO!F16/(COUNTRY_INFO!F16+COUNTRY_INFO!G16)))),0) -> 0 | AO16: =IF(AND(Z16<>0,Z16<>"Inconnu",Z16<>"Non requis"),IF(COUNTRY_INFO!K16=1,0,IF(COUNTRY_INFO!K16=2,0.2*COUNTRY_INFO!G16/(0.5*COUNTRY_INFO!F16+0.2*COUNTRY_INFO!G16),IF(COUNTRY_INFO!K16=3,COUNTRY_INFO!G16/(COUNTRY_INFO!F16+COUNTRY_INFO!G16)))),0) -> 0 | AP16: =MAX(COUNTRY_INFO!D16*AK16*PROFILE!$G$7,COUNTRY_INFO!D16*AL16*PROFILE!$G$7) -> 0 | AQ16: =MAX(COUNTRY_INFO!D16*AK16*PROFILE!$G$8,COUNTRY_INFO!D16*AL16*PROFILE!$G$8,COUNTRY_INFO!D16*AM16*PROFILE!$G$8) -> 17520.53257 | AR16: =MAX(COUNTRY_INFO!D16*AK16*PROFILE!$G$9,COUNTRY_INFO!D16*AL16*PROFILE!$G$9,COUNTRY_INFO!D16*AM16*PROFILE!$G$9,IF(AND(DISTRICT!Z16<>"Inconnu",Z16<>"Non requis"),COUNTRY_INFO!O16*DISTRICT!AN16,0)) -> 44009.80897 | AS16: =MAX(COUNTRY_INFO!D16*AK16*PROFILE!$G$10,COUNTRY_INFO!D16*AL16*PROFILE!$G$10,IF(AND(DISTRICT!Z16<>"Inconnu",Z16<>"Non requis"),COUNTRY_INFO!O16*DISTRICT!AO16,0)) -> 0 | AT16: 61530.34154 | AU16: Y | AV16: =MAX('MDA2'!J16,'T1'!L16,'T2'!J16,T3_R1!K16,T3_R2!K16) -> 14802 | AW16: =MAX('MDA1'!K16,'MDA2'!K16,'MDA3'!I16,'MDA3'!L16,'T1'!M16,'T2'!K16,T3_R1!L16,T3_R2!L16) -> 43204 | AX16: =MAX('MDA1'!L16,'MDA2'!L16,'MDA3'!J16,'MDA3'!M16,'T1'!N16,'T2'!L16,T3_R1!M16,T3_R2!M16) -> 1835 | AY16: 59841 | AZ16: =MAX('MDA2'!J16,T16) -> 14802 | BA16: =MAX('MDA1'!K16,'MDA2'!K16,'MDA3'!I16,'MDA3'!L16,V16,AD16) -> 42236 | BB16: =MAX('MDA1'!L16,'MDA2'!L16,'MDA3'!J16,'MDA3'!M16,AF16) -> 0 | BC16: 57038 | BD16: 92.69898163 | BE16: 0
A17: =IF(COUNTRY_INFO!A17=0," ",COUNTRY_INFO!A17) -> Burundi | B17: =IF(COUNTRY_INFO!B17=0," ",COUNTRY_INFO!B17) -> Bururi | C17: =IF(COUNTRY_INFO!C17=0," ",COUNTRY_INFO!C17) -> Bururi | D17: =COUNTRY_INFO!L17 -> 0 | G17: =MAX('MDA1'!M17,'MDA2'!M17) -> 0 | H17: =IF(AND(COUNTRY_INFO!H17>0,COUNTRY_INFO!H17<4),IF(D17>MAX('MDA1'!M17,'MDA2'!M17),MAX('MDA1'!M17,'MDA2'!M17),D17),0) -> 0 | I17: =IF(AND(COUNTRY_INFO!H17>0,COUNTRY_INFO!H17<4), IF(G17/D17*100<>0, IF(G17/D17*100>100,100,G17/D17*100), "-"),0) -> 0 | J17: =COUNTRY_INFO!M17 -> 57328 | K17: 23396.52 | L17: 24351.48 | M17: =MAX('MDA1'!M17,MAX('MDA3'!I17,'MDA3'!L17)+MAX('MDA3'!J17,'MDA3'!M17)) -> 47748 | N17: 47748 | O17: 89.93 | P17: =COUNTRY_INFO!N17 -> 0 | Q17: 42694 | R17: 47425 | S17: =SUM(MAX('MDA2'!J17, 'T1'!L17, MAX(T3_R1!K17, T3_R2!K17)), MAX('MDA1'!K17, 'MDA2'!K17, 'T1'!M17, MAX(T3_R1!L17, T3_R2!L17)), MAX('MDA1'!L17, 'MDA2'!L17, 'T1'!N17, MAX(T3_R1!M17, T3_R2!M17))) -> 81679 | T17: =IF(AND(COUNTRY_INFO!J17>1,COUNTRY_INFO!J17<4),IF(COUNTRY_INFO!E17>MAX('MDA2'!J17,'T1'!L17,MAX(T3_R1!K17,T3_R2!K17)),MAX('MDA2'!J17,'T1'!L17,MAX(T3_R1!K17,T3_R2!K17)),COUNTRY_INFO!E17),0) -> 0 | U17: =IF(AND(COUNTRY_INFO!J17>1,COUNTRY_INFO!J17<4), IF(T17/COUNTRY_INFO!E17*100<>0, IF(T17/COUNTRY_INFO!E17*100>100,100,T17/COUNTRY_INFO!E17*100), "-"),0) -> 0 | V17: =IF(AND(COUNTRY_INFO!J17>1,COUNTRY_INFO!J17<4),IF(COUNTRY_INFO!F17>MAX('MDA1'!K17,'MDA2'!K17,'T1'!M17,MAX(T3_R1!L17,T3_R2!L17)),MAX('MDA1'!K17,'MDA2'!K17,'T1'!M17,MAX(T3_R1!L17,T3_R2!L17)),COUNTRY_INFO!F17),0) -> 0 | W17: =IF(AND(COUNTRY_INFO!J17>1,COUNTRY_INFO!J17<4), IF(V17/COUNTRY_INFO!F17*100<>0, IF(V17/COUNTRY_INFO!F17*100>100,100,V17/COUNTRY_INFO!F17*100), "-"),0) -> 0 | X17: 0 | Y17: =IF(AND(COUNTRY_INFO!J17>1,COUNTRY_INFO!J17<4), IF(S17/P17*100<>0, IF(X17/P17*100>100,100,X17/P17*100), "-"),0) -> 0 | Z17: =COUNTRY_INFO!O17 -> 0 | AC17: =MAX('T1'!L17,'T2'!J17)+MAX('T1'!M17,'T2'!K17)+MAX('T1'!N17,'T2'!L17) -> 0 | AD17: =IF(COUNTRY_INFO!K17=1,IF(COUNTRY_INFO!F17*0.33>MAX('T1'!M17,'T2'!K17),MAX('T1'!M17,'T2'!K17),COUNTRY_INFO!F17*0.33),IF(COUNTRY_INFO!K17=2,IF(COUNTRY_INFO!F17*0.5>MAX('T1'!M17,'T2'!K17),MAX('T1'!M17,'T2'!K17),COUNTRY_INFO!F17*0.5),IF(COUNTRY_INFO!K17=3,IF(COUNTRY_INFO!F17>MAX('T1'!M17,'T2'!K17),MAX('T1'!M17,'T2'!K17),COUNTRY_INFO!F17),0))) -> 0 | AE17: =IF(AND(COUNTRY_INFO!K17>0,COUNTRY_INFO!K17<4),IF(Z17>0,IF(COUNTRY_INFO!K17=1, AD17/(COUNTRY_INFO!F17*0.33)*100, IF(COUNTRY_INFO!K17=2, AD17/(COUNTRY_INFO!F17*0.5)*100, IF(COUNTRY_INFO!K17=3, AD17/COUNTRY_INFO!F17*100))),"-"),0) -> 0 | AF17: =IF(COUNTRY_INFO!K17=2,IF(COUNTRY_INFO!G17*0.2>MAX('T1'!N17,'T2'!L17),MAX('T1'!N17,'T2'!L17),COUNTRY_INFO!G17*0.2),IF(COUNTRY_INFO!K17=3,IF(COUNTRY_INFO!G17>MAX('T1'!N17,'T2'!L17),MAX('T1'!N17,'T2'!L17),COUNTRY_INFO!G17),0)) -> 0 | AG17: =IF(AND(COUNTRY_INFO!K17>0,COUNTRY_INFO!K17<4),IF(Z17>0,IF(COUNTRY_INFO!K17=1, 0, IF(COUNTRY_INFO!K17=2, AF17/(COUNTRY_INFO!G17*0.2)*100, IF(COUNTRY_INFO!K17=3, AF17/COUNTRY_INFO!G17*100))),"-"),0) -> 0 | AH17: 0 | AI17: =IF(AND(COUNTRY_INFO!K17>0,COUNTRY_INFO!K17<4), IF(AC17/Z17*100<>0, IF(AH17/Z17*100>100,100,AH17/Z17*100), "-"),0) -> 0 | AK17: =IF(AND(D17<>0, D17<>"Inconnu",D17<>"Interrompu",D17<>"Non requis"),D17/COUNTRY_INFO!D17, 0) -> 0 | AL17: =IF(AND(J17<>0,J17<>"Inconnu",J17<>"Interrompu",J17<>"Non requis"),J17/COUNTRY_INFO!D17, 0) -> 0.3174255134 | AM17: =IF(AND(P17<>0,P17<>"Inconnu",P17<>"Non requis"),P17/(COUNTRY_INFO!E17+COUNTRY_INFO!F17), 0) -> 0 | AN17: =IF(AND(Z17<>0,Z17<>"Inconnu",Z17<>"Non requis"),IF(COUNTRY_INFO!K17=1,1,IF(COUNTRY_INFO!K17=2,0.5*COUNTRY_INFO!F17/(0.5*COUNTRY_INFO!F17+0.2*COUNTRY_INFO!G17),IF(COUNTRY_INFO!K17=3,COUNTRY_INFO!F17/(COUNTRY_INFO!F17+COUNTRY_INFO!G17)))),0) -> 0 | AO17: =IF(AND(Z17<>0,Z17<>"Inconnu",Z17<>"Non requis"),IF(COUNTRY_INFO!K17=1,0,IF(COUNTRY_INFO!K17=2,0.2*COUNTRY_INFO!G17/(0.5*COUNTRY_INFO!F17+0.2*COUNTRY_INFO!G17),IF(COUNTRY_INFO!K17=3,COUNTRY_INFO!G17/(COUNTRY_INFO!F17+COUNTRY_INFO!G17)))),0) -> 0 | AP17: =MAX(COUNTRY_INFO!D17*AK17*PROFILE!$G$7,COUNTRY_INFO!D17*AL17*PROFILE!$G$7) -> 4125.442869 | AQ17: =MAX(COUNTRY_INFO!D17*AK17*PROFILE!$G$8,COUNTRY_INFO!D17*AL17*PROFILE!$G$8,COUNTRY_INFO!D17*AM17*PROFILE!$G$8) -> 6105.767622 | AR17: =MAX(COUNTRY_INFO!D17*AK17*PROFILE!$G$9,COUNTRY_INFO!D17*AL17*PROFILE!$G$9,COUNTRY_INFO!D17*AM17*PROFILE!$G$9,IF(AND(DISTRICT!Z17<>"Inconnu",Z17<>"Non requis"),COUNTRY_INFO!O17*DISTRICT!AN17,0)) -> 15337.07184 | AS17: =MAX(COUNTRY_INFO!D17*AK17*PROFILE!$G$10,COUNTRY_INFO!D17*AL17*PROFILE!$G$10,IF(AND(DISTRICT!Z17<>"Inconnu",Z17<>"Non requis"),COUNTRY_INFO!O17*DISTRICT!AO17,0)) -> 31759.71767 | AT17: 57328 | AU17: Y | AV17: =MAX('MDA2'!J17,'T1'!L17,'T2'!J17,T3_R1!K17,T3_R2!K17) -> 17122 | AW17: =MAX('MDA1'!K17,'MDA2'!K17,'MDA3'!I17,'MDA3'!L17,'T1'!M17,'T2'!K17,T3_R1!L17,T3_R2!L17) -> 60018 | AX17: =MAX('MDA1'!L17,'MDA2'!L17,'MDA3'!J17,'MDA3'!M17,'T1'!N17,'T2'!L17,T3_R1!M17,T3_R2!M17) -> 34999.284 | AY17: 112139.284 | AZ17: =MAX('MDA2'!J17,T17) -> 0 | BA17: =MAX('MDA1'!K17,'MDA2'!K17,'MDA3'!I17,'MDA3'!L17,V17,AD17) -> 12748.716 | BB17: =MAX('MDA1'!L17,'MDA2'!L17,'MDA3'!J17,'MDA3'!M17,AF17) -> 34999.284 | BC17: 47748 | BD17: 83.28914318 | BE17: 0
A18: =IF(COUNTRY_INFO!A18=0," ",COUNTRY_INFO!A18) -> Burundi | B18: =IF(COUNTRY_INFO!B18=0," ",COUNTRY_INFO!B18) -> Bururi | C18: =IF(COUNTRY_INFO!C18=0," ",COUNTRY_INFO!C18) -> Matana | D18: =COUNTRY_INFO!L18 -> 0 | G18: =MAX('MDA1'!M18,'MDA2'!M18) -> 0 | H18: =IF(AND(COUNTRY_INFO!H18>0,COUNTRY_INFO!H18<4),IF(D18>MAX('MDA1'!M18,'MDA2'!M18),MAX('MDA1'!M18,'MDA2'!M18),D18),0) -> 0 | I18: =IF(AND(COUNTRY_INFO!H18>0,COUNTRY_INFO!H18<4), IF(G18/D18*100<>0, IF(G18/D18*100>100,100,G18/D18*100), "-"),0) -> 0 | J18: =COUNTRY_INFO!M18 -> 0 | M18: =MAX('MDA1'!M18,MAX('MDA3'!I18,'MDA3'!L18)+MAX('MDA3'!J18,'MDA3'!M18)) -> 0 | N18: 0 | O18: 0 | P18: =COUNTRY_INFO!N18 -> 0 | Q18: 25404 | R18: 27246 | S18: =SUM(MAX('MDA2'!J18, 'T1'!L18, MAX(T3_R1!K18, T3_R2!K18)), MAX('MDA1'!K18, 'MDA2'!K18, 'T1'!M18, MAX(T3_R1!L18, T3_R2!L18)), MAX('MDA1'!L18, 'MDA2'!L18, 'T1'!N18, MAX(T3_R1!M18, T3_R2!M18))) -> 54706 | T18: =IF(AND(COUNTRY_INFO!J18>1,COUNTRY_INFO!J18<4),IF(COUNTRY_INFO!E18>MAX('MDA2'!J18,'T1'!L18,MAX(T3_R1!K18,T3_R2!K18)),MAX('MDA2'!J18,'T1'!L18,MAX(T3_R1!K18,T3_R2!K18)),COUNTRY_INFO!E18),0) -> 0 | U18: =IF(AND(COUNTRY_INFO!J18>1,COUNTRY_INFO!J18<4), IF(T18/COUNTRY_INFO!E18*100<>0, IF(T18/COUNTRY_INFO!E18*100>100,100,T18/COUNTRY_INFO!E18*100), "-"),0) -> 0 | V18: =IF(AND(COUNTRY_INFO!J18>1,COUNTRY_INFO!J18<4),IF(COUNTRY_INFO!F18>MAX('MDA1'!K18,'MDA2'!K18,'T1'!M18,MAX(T3_R1!L18,T3_R2!L18)),MAX('MDA1'!K18,'MDA2'!K18,'T1'!M18,MAX(T3_R1!L18,T3_R2!L18)),COUNTRY_INFO!F18),0) -> 0 | W18: =IF(AND(COUNTRY_INFO!J18>1,COUNTRY_INFO!J18<4), IF(V18/COUNTRY_INFO!F18*100<>0, IF(V18/COUNTRY_INFO!F18*100>100,100,V18/COUNTRY_INFO!F18*100), "-"),0) -> 0 | X18: 0 | Y18: =IF(AND(COUNTRY_INFO!J18>1,COUNTRY_INFO!J18<4), IF(S18/P18*100<>0, IF(X18/P18*100>100,100,X18/P18*100), "-"),0) -> 0 | Z18: =COUNTRY_INFO!O18 -> 0 | AC18: =MAX('T1'!L18,'T2'!J18)+MAX('T1'!M18,'T2'!K18)+MAX('T1'!N18,'T2'!L18) -> 0 | AD18: =IF(COUNTRY_INFO!K18=1,IF(COUNTRY_INFO!F18*0.33>MAX('T1'!M18,'T2'!K18),MAX('T1'!M18,'T2'!K18),COUNTRY_INFO!F18*0.33),IF(COUNTRY_INFO!K18=2,IF(COUNTRY_INFO!F18*0.5>MAX('T1'!M18,'T2'!K18),MAX('T1'!M18,'T2'!K18),COUNTRY_INFO!F18*0.5),IF(COUNTRY_INFO!K18=3,IF(COUNTRY_INFO!F18>MAX('T1'!M18,'T2'!K18),MAX('T1'!M18,'T2'!K18),COUNTRY_INFO!F18),0))) -> 0 | AE18: =IF(AND(COUNTRY_INFO!K18>0,COUNTRY_INFO!K18<4),IF(Z18>0,IF(COUNTRY_INFO!K18=1, AD18/(COUNTRY_INFO!F18*0.33)*100, IF(COUNTRY_INFO!K18=2, AD18/(COUNTRY_INFO!F18*0.5)*100, IF(COUNTRY_INFO!K18=3, AD18/COUNTRY_INFO!F18*100))),"-"),0) -> 0 | AF18: =IF(COUNTRY_INFO!K18=2,IF(COUNTRY_INFO!G18*0.2>MAX('T1'!N18,'T2'!L18),MAX('T1'!N18,'T2'!L18),COUNTRY_INFO!G18*0.2),IF(COUNTRY_INFO!K18=3,IF(COUNTRY_INFO!G18>MAX('T1'!N18,'T2'!L18),MAX('T1'!N18,'T2'!L18),COUNTRY_INFO!G18),0)) -> 0 | AG18: =IF(AND(COUNTRY_INFO!K18>0,COUNTRY_INFO!K18<4),IF(Z18>0,IF(COUNTRY_INFO!K18=1, 0, IF(COUNTRY_INFO!K18=2, AF18/(COUNTRY_INFO!G18*0.2)*100, IF(COUNTRY_INFO!K18=3, AF18/COUNTRY_INFO!G18*100))),"-"),0) -> 0 | AH18: 0 | AI18: =IF(AND(COUNTRY_INFO!K18>0,COUNTRY_INFO!K18<4), IF(AC18/Z18*100<>0, IF(AH18/Z18*100>100,100,AH18/Z18*100), "-"),0) -> 0 | AK18: =IF(AND(D18<>0, D18<>"Inconnu",D18<>"Interrompu",D18<>"Non requis"),D18/COUNTRY_INFO!D18, 0) -> 0 | AL18: =IF(AND(J18<>0,J18<>"Inconnu",J18<>"Interrompu",J18<>"Non requis"),J18/COUNTRY_INFO!D18, 0) -> 0 | AM18: =IF(AND(P18<>0,P18<>"Inconnu",P18<>"Non requis"),P18/(COUNTRY_INFO!E18+COUNTRY_INFO!F18), 0) -> 0 | AN18: =IF(AND(Z18<>0,Z18<>"Inconnu",Z18<>"Non requis"),IF(COUNTRY_INFO!K18=1,1,IF(COUNTRY_INFO!K18=2,0.5*COUNTRY_INFO!F18/(0.5*COUNTRY_INFO!F18+0.2*COUNTRY_INFO!G18),IF(COUNTRY_INFO!K18=3,COUNTRY_INFO!F18/(COUNTRY_INFO!F18+COUNTRY_INFO!G18)))),0) -> 0 | AO18: =IF(AND(Z18<>0,Z18<>"Inconnu",Z18<>"Non requis"),IF(COUNTRY_INFO!K18=1,0,IF(COUNTRY_INFO!K18=2,0.2*COUNTRY_INFO!G18/(0.5*COUNTRY_INFO!F18+0.2*COUNTRY_INFO!G18),IF(COUNTRY_INFO!K18=3,COUNTRY_INFO!G18/(COUNTRY_INFO!F18+COUNTRY_INFO!G18)))),0) -> 0 | AP18: =MAX(COUNTRY_INFO!D18*AK18*PROFILE!$G$7,COUNTRY_INFO!D18*AL18*PROFILE!$G$7) -> 0 | AQ18: =MAX(COUNTRY_INFO!D18*AK18*PROFILE!$G$8,COUNTRY_INFO!D18*AL18*PROFILE!$G$8,COUNTRY_INFO!D18*AM18*PROFILE!$G$8) -> 0 | AR18: =MAX(COUNTRY_INFO!D18*AK18*PROFILE!$G$9,COUNTRY_INFO!D18*AL18*PROFILE!$G$9,COUNTRY_INFO!D18*AM18*PROFILE!$G$9,IF(AND(DISTRICT!Z18<>"Inconnu",Z18<>"Non requis"),COUNTRY_INFO!O18*DISTRICT!AN18,0)) -> 0 | AS18: =MAX(COUNTRY_INFO!D18*AK18*PROFILE!$G$10,COUNTRY_INFO!D18*AL18*PROFILE!$G$10,IF(AND(DISTRICT!Z18<>"Inconnu",Z18<>"Non requis"),COUNTRY_INFO!O18*DISTRICT!AO18,0)) -> 0 | AT18: 0 | AU18: 0 | AV18: =MAX('MDA2'!J18,'T1'!L18,'T2'!J18,T3_R1!K18,T3_R2!K18) -> 14086 | AW18: =MAX('MDA1'!K18,'MDA2'!K18,'MDA3'!I18,'MDA3'!L18,'T1'!M18,'T2'!K18,T3_R1!L18,T3_R2!L18) -> 38564 | AX18: =MAX('MDA1'!L18,'MDA2'!L18,'MDA3'!J18,'MDA3'!M18,'T1'!N18,'T2'!L18,T3_R1!M18,T3_R2!M18) -> 2056 | AY18: 54706 | AZ18: =MAX('MDA2'!J18,T18) -> 0 | BA18: =MAX('MDA1'!K18,'MDA2'!K18,'MDA3'!I18,'MDA3'!L18,V18,AD18) -> 0 | BB18: =MAX('MDA1'!L18,'MDA2'!L18,'MDA3'!J18,'MDA3'!M18,AF18) -> 0 | BC18: 0 | BD18: 0 | BE18: 0
A19: =IF(COUNTRY_INFO!A19=0," ",COUNTRY_INFO!A19) -> Burundi | B19: =IF(COUNTRY_INFO!B19=0," ",COUNTRY_INFO!B19) -> Bururi | C19: =IF(COUNTRY_INFO!C19=0," ",COUNTRY_INFO!C19) -> Rutovu | D19: =COUNTRY_INFO!L19 -> 0 | G19: =MAX('MDA1'!M19,'MDA2'!M19) -> 0 | H19: =IF(AND(COUNTRY_INFO!H19>0,COUNTRY_INFO!H19<4),IF(D19>MAX('MDA1'!M19,'MDA2'!M19),MAX('MDA1'!M19,'MDA2'!M19),D19),0) -> 0 | I19: =IF(AND(COUNTRY_INFO!H19>0,COUNTRY_INFO!H19<4), IF(G19/D19*100<>0, IF(G19/D19*100>100,100,G19/D19*100), "-"),0) -> 0 | J19: =COUNTRY_INFO!M19 -> 24092 | K19: 9232.09 | L19: 9608.91 | M19: =MAX('MDA1'!M19,MAX('MDA3'!I19,'MDA3'!L19)+MAX('MDA3'!J19,'MDA3'!M19)) -> 18841 | N19: 18841 | O19: 80.76 | P19: =COUNTRY_INFO!N19 -> 0 | Q19: 24382 | R19: 27814 | S19: =SUM(MAX('MDA2'!J19, 'T1'!L19, MAX(T3_R1!K19, T3_R2!K19)), MAX('MDA1'!K19, 'MDA2'!K19, 'T1'!M19, MAX(T3_R1!L19, T3_R2!L19)), MAX('MDA1'!L19, 'MDA2'!L19, 'T1'!N19, MAX(T3_R1!M19, T3_R2!M19))) -> 54154 | T19: =IF(AND(COUNTRY_INFO!J19>1,COUNTRY_INFO!J19<4),IF(COUNTRY_INFO!E19>MAX('MDA2'!J19,'T1'!L19,MAX(T3_R1!K19,T3_R2!K19)),MAX('MDA2'!J19,'T1'!L19,MAX(T3_R1!K19,T3_R2!K19)),COUNTRY_INFO!E19),0) -> 0 | U19: =IF(AND(COUNTRY_INFO!J19>1,COUNTRY_INFO!J19<4), IF(T19/COUNTRY_INFO!E19*100<>0, IF(T19/COUNTRY_INFO!E19*100>100,100,T19/COUNTRY_INFO!E19*100), "-"),0) -> 0 | V19: =IF(AND(COUNTRY_INFO!J19>1,COUNTRY_INFO!J19<4),IF(COUNTRY_INFO!F19>MAX('MDA1'!K19,'MDA2'!K19,'T1'!M19,MAX(T3_R1!L19,T3_R2!L19)),MAX('MDA1'!K19,'MDA2'!K19,'T1'!M19,MAX(T3_R1!L19,T3_R2!L19)),COUNTRY_INFO!F19),0) -> 0 | W19: =IF(AND(COUNTRY_INFO!J19>1,COUNTRY_INFO!J19<4), IF(V19/COUNTRY_INFO!F19*100<>0, IF(V19/COUNTRY_INFO!F19*100>100,100,V19/COUNTRY_INFO!F19*100), "-"),0) -> 0 | X19: 0 | Y19: =IF(AND(COUNTRY_INFO!J19>1,COUNTRY_INFO!J19<4), IF(S19/P19*100<>0, IF(X19/P19*100>100,100,X19/P19*100), "-"),0) -> 0 | Z19: =COUNTRY_INFO!O19 -> 0 | AC19: =MAX('T1'!L19,'T2'!J19)+MAX('T1'!M19,'T2'!K19)+MAX('T1'!N19,'T2'!L19) -> 0 | AD19: =IF(COUNTRY_INFO!K19=1,IF(COUNTRY_INFO!F19*0.33>MAX('T1'!M19,'T2'!K19),MAX('T1'!M19,'T2'!K19),COUNTRY_INFO!F19*0.33),IF(COUNTRY_INFO!K19=2,IF(COUNTRY_INFO!F19*0.5>MAX('T1'!M19,'T2'!K19),MAX('T1'!M19,'T2'!K19),COUNTRY_INFO!F19*0.5),IF(COUNTRY_INFO!K19=3,IF(COUNTRY_INFO!F19>MAX('T1'!M19,'T2'!K19),MAX('T1'!M19,'T2'!K19),COUNTRY_INFO!F19),0))) -> 0 | AE19: =IF(AND(COUNTRY_INFO!K19>0,COUNTRY_INFO!K19<4),IF(Z19>0,IF(COUNTRY_INFO!K19=1, AD19/(COUNTRY_INFO!F19*0.33)*100, IF(COUNTRY_INFO!K19=2, AD19/(COUNTRY_INFO!F19*0.5)*100, IF(COUNTRY_INFO!K19=3, AD19/COUNTRY_INFO!F19*100))),"-"),0) -> 0 | AF19: =IF(COUNTRY_INFO!K19=2,IF(COUNTRY_INFO!G19*0.2>MAX('T1'!N19,'T2'!L19),MAX('T1'!N19,'T2'!L19),COUNTRY_INFO!G19*0.2),IF(COUNTRY_INFO!K19=3,IF(COUNTRY_INFO!G19>MAX('T1'!N19,'T2'!L19),MAX('T1'!N19,'T2'!L19),COUNTRY_INFO!G19),0)) -> 0 | AG19: =IF(AND(COUNTRY_INFO!K19>0,COUNTRY_INFO!K19<4),IF(Z19>0,IF(COUNTRY_INFO!K19=1, 0, IF(COUNTRY_INFO!K19=2, AF19/(COUNTRY_INFO!G19*0.2)*100, IF(COUNTRY_INFO!K19=3, AF19/COUNTRY_INFO!G19*100))),"-"),0) -> 0 | AH19: 0 | AI19: =IF(AND(COUNTRY_INFO!K19>0,COUNTRY_INFO!K19<4), IF(AC19/Z19*100<>0, IF(AH19/Z19*100>100,100,AH19/Z19*100), "-"),0) -> 0 | AK19: =IF(AND(D19<>0, D19<>"Inconnu",D19<>"Interrompu",D19<>"Non requis"),D19/COUNTRY_INFO!D19, 0) -> 0 | AL19: =IF(AND(J19<>0,J19<>"Inconnu",J19<>"Interrompu",J19<>"Non requis"),J19/COUNTRY_INFO!D19, 0) -> 0.1543132382 | AM19: =IF(AND(P19<>0,P19<>"Inconnu",P19<>"Non requis"),P19/(COUNTRY_INFO!E19+COUNTRY_INFO!F19), 0) -> 0 | AN19: =IF(AND(Z19<>0,Z19<>"Inconnu",Z19<>"Non requis"),IF(COUNTRY_INFO!K19=1,1,IF(COUNTRY_INFO!K19=2,0.5*COUNTRY_INFO!F19/(0.5*COUNTRY_INFO!F19+0.2*COUNTRY_INFO!G19),IF(COUNTRY_INFO!K19=3,COUNTRY_INFO!F19/(COUNTRY_INFO!F19+COUNTRY_INFO!G19)))),0) -> 0 | AO19: =IF(AND(Z19<>0,Z19<>"Inconnu",Z19<>"Non requis"),IF(COUNTRY_INFO!K19=1,0,IF(COUNTRY_INFO!K19=2,0.2*COUNTRY_INFO!G19/(0.5*COUNTRY_INFO!F19+0.2*COUNTRY_INFO!G19),IF(COUNTRY_INFO!K19=3,COUNTRY_INFO!G19/(COUNTRY_INFO!F19+COUNTRY_INFO!G19)))),0) -> 0 | AP19: =MAX(COUNTRY_INFO!D19*AK19*PROFILE!$G$7,COUNTRY_INFO!D19*AL19*PROFILE!$G$7) -> 1733.710745 | AQ19: =MAX(COUNTRY_INFO!D19*AK19*PROFILE!$G$8,COUNTRY_INFO!D19*AL19*PROFILE!$G$8,COUNTRY_INFO!D19*AM19*PROFILE!$G$8) -> 2565.939045 | AR19: =MAX(COUNTRY_INFO!D19*AK19*PROFILE!$G$9,COUNTRY_INFO!D19*AL19*PROFILE!$G$9,COUNTRY_INFO!D19*AM19*PROFILE!$G$9,IF(AND(DISTRICT!Z19<>"Inconnu",Z19<>"Non requis"),COUNTRY_INFO!O19*DISTRICT!AN19,0)) -> 6445.379827 | AS19: =MAX(COUNTRY_INFO!D19*AK19*PROFILE!$G$10,COUNTRY_INFO!D19*AL19*PROFILE!$G$10,IF(AND(DISTRICT!Z19<>"Inconnu",Z19<>"Non requis"),COUNTRY_INFO!O19*DISTRICT!AO19,0)) -> 13346.97038 | AT19: 24092 | AU19: Y | AV19: =MAX('MDA2'!J19,'T1'!L19,'T2'!J19,T3_R1!K19,T3_R2!K19) -> 15887 | AW19: =MAX('MDA1'!K19,'MDA2'!K19,'MDA3'!I19,'MDA3'!L19,'T1'!M19,'T2'!K19,T3_R1!L19,T3_R2!L19) -> 36309 | AX19: =MAX('MDA1'!L19,'MDA2'!L19,'MDA3'!J19,'MDA3'!M19,'T1'!N19,'T2'!L19,T3_R1!M19,T3_R2!M19) -> 13810.453 | AY19: 66006.453 | AZ19: =MAX('MDA2'!J19,T19) -> 0 | BA19: =MAX('MDA1'!K19,'MDA2'!K19,'MDA3'!I19,'MDA3'!L19,V19,AD19) -> 5030.547 | BB19: =MAX('MDA1'!L19,'MDA2'!L19,'MDA3'!J19,'MDA3'!M19,AF19) -> 13810.453 | BC19: 18841 | BD19: 78.2043832 | BE19: 0
A20: =IF(COUNTRY_INFO!A20=0," ",COUNTRY_INFO!A20) -> Burundi | B20: =IF(COUNTRY_INFO!B20=0," ",COUNTRY_INFO!B20) -> Cankuzo | C20: =IF(COUNTRY_INFO!C20=0," ",COUNTRY_INFO!C20) -> Cankuzo | D20: =COUNTRY_INFO!L20 -> 0 | G20: =MAX('MDA1'!M20,'MDA2'!M20) -> 0 | H20: =IF(AND(COUNTRY_INFO!H20>0,COUNTRY_INFO!H20<4),IF(D20>MAX('MDA1'!M20,'MDA2'!M20),MAX('MDA1'!M20,'MDA2'!M20),D20),0) -> 0 | I20: =IF(AND(COUNTRY_INFO!H20>0,COUNTRY_INFO!H20<4), IF(G20/D20*100<>0, IF(G20/D20*100>100,100,G20/D20*100), "-"),0) -> 0 | J20: =COUNTRY_INFO!M20 -> 0 | M20: =MAX('MDA1'!M20,MAX('MDA3'!I20,'MDA3'!L20)+MAX('MDA3'!J20,'MDA3'!M20)) -> 0 | N20: 0 | O20: 0 | P20: =COUNTRY_INFO!N20 -> 0 | Q20: 36176 | R20: 39199 | S20: =SUM(MAX('MDA2'!J20, 'T1'!L20, MAX(T3_R1!K20, T3_R2!K20)), MAX('MDA1'!K20, 'MDA2'!K20, 'T1'!M20, MAX(T3_R1!L20, T3_R2!L20)), MAX('MDA1'!L20, 'MDA2'!L20, 'T1'!N20, MAX(T3_R1!M20, T3_R2!M20))) -> 77676 | T20: =IF(AND(COUNTRY_INFO!J20>1,COUNTRY_INFO!J20<4),IF(COUNTRY_INFO!E20>MAX('MDA2'!J20,'T1'!L20,MAX(T3_R1!K20,T3_R2!K20)),MAX('MDA2'!J20,'T1'!L20,MAX(T3_R1!K20,T3_R2!K20)),COUNTRY_INFO!E20),0) -> 0 | U20: =IF(AND(COUNTRY_INFO!J20>1,COUNTRY_INFO!J20<4), IF(T20/COUNTRY_INFO!E20*100<>0, IF(T20/COUNTRY_INFO!E20*100>100,100,T20/COUNTRY_INFO!E20*100), "-"),0) -> 0 | V20: =IF(AND(COUNTRY_INFO!J20>1,COUNTRY_INFO!J20<4),IF(COUNTRY_INFO!F20>MAX('MDA1'!K20,'MDA2'!K20,'T1'!M20,MAX(T3_R1!L20,T3_R2!L20)),MAX('MDA1'!K20,'MDA2'!K20,'T1'!M20,MAX(T3_R1!L20,T3_R2!L20)),COUNTRY_INFO!F20),0) -> 0 | W20: =IF(AND(COUNTRY_INFO!J20>1,COUNTRY_INFO!J20<4), IF(V20/COUNTRY_INFO!F20*100<>0, IF(V20/COUNTRY_INFO!F20*100>100,100,V20/COUNTRY_INFO!F20*100), "-"),0) -> 0 | X20: 0 | Y20: =IF(AND(COUNTRY_INFO!J20>1,COUNTRY_INFO!J20<4), IF(S20/P20*100<>0, IF(X20/P20*100>100,100,X20/P20*100), "-"),0) -> 0 | Z20: =COUNTRY_INFO!O20 -> 0 | AC20: =MAX('T1'!L20,'T2'!J20)+MAX('T1'!M20,'T2'!K20)+MAX('T1'!N20,'T2'!L20) -> 0 | AD20: =IF(COUNTRY_INFO!K20=1,IF(COUNTRY_INFO!F20*0.33>MAX('T1'!M20,'T2'!K20),MAX('T1'!M20,'T2'!K20),COUNTRY_INFO!F20*0.33),IF(COUNTRY_INFO!K20=2,IF(COUNTRY_INFO!F20*0.5>MAX('T1'!M20,'T2'!K20),MAX('T1'!M20,'T2'!K20),COUNTRY_INFO!F20*0.5),IF(COUNTRY_INFO!K20=3,IF(COUNTRY_INFO!F20>MAX('T1'!M20,'T2'!K20),MAX('T1'!M20,'T2'!K20),COUNTRY_INFO!F20),0))) -> 0 | AE20: =IF(AND(COUNTRY_INFO!K20>0,COUNTRY_INFO!K20<4),IF(Z20>0,IF(COUNTRY_INFO!K20=1, AD20/(COUNTRY_INFO!F20*0.33)*100, IF(COUNTRY_INFO!K20=2, AD20/(COUNTRY_INFO!F20*0.5)*100, IF(COUNTRY_INFO!K20=3, AD20/COUNTRY_INFO!F20*100))),"-"),0) -> 0 | AF20: =IF(COUNTRY_INFO!K20=2,IF(COUNTRY_INFO!G20*0.2>MAX('T1'!N20,'T2'!L20),MAX('T1'!N20,'T2'!L20),COUNTRY_INFO!G20*0.2),IF(COUNTRY_INFO!K20=3,IF(COUNTRY_INFO!G20>MAX('T1'!N20,'T2'!L20),MAX('T1'!N20,'T2'!L20),COUNTRY_INFO!G20),0)) -> 0 | AG20: =IF(AND(COUNTRY_INFO!K20>0,COUNTRY_INFO!K20<4),IF(Z20>0,IF(COUNTRY_INFO!K20=1, 0, IF(COUNTRY_INFO!K20=2, AF20/(COUNTRY_INFO!G20*0.2)*100, IF(COUNTRY_INFO!K20=3, AF20/COUNTRY_INFO!G20*100))),"-"),0) -> 0 | AH20: 0 | AI20: =IF(AND(COUNTRY_INFO!K20>0,COUNTRY_INFO!K20<4), IF(AC20/Z20*100<>0, IF(AH20/Z20*100>100,100,AH20/Z20*100), "-"),0) -> 0 | AK20: =IF(AND(D20<>0, D20<>"Inconnu",D20<>"Interrompu",D20<>"Non requis"),D20/COUNTRY_INFO!D20, 0) -> 0 | AL20: =IF(AND(J20<>0,J20<>"Inconnu",J20<>"Interrompu",J20<>"Non requis"),J20/COUNTRY_INFO!D20, 0) -> 0 | AM20: =IF(AND(P20<>0,P20<>"Inconnu",P20<>"Non requis"),P20/(COUNTRY_INFO!E20+COUNTRY_INFO!F20), 0) -> 0 | AN20: =IF(AND(Z20<>0,Z20<>"Inconnu",Z20<>"Non requis"),IF(COUNTRY_INFO!K20=1,1,IF(COUNTRY_INFO!K20=2,0.5*COUNTRY_INFO!F20/(0.5*COUNTRY_INFO!F20+0.2*COUNTRY_INFO!G20),IF(COUNTRY_INFO!K20=3,COUNTRY_INFO!F20/(COUNTRY_INFO!F20+COUNTRY_INFO!G20)))),0) -> 0 | AO20: =IF(AND(Z20<>0,Z20<>"Inconnu",Z20<>"Non requis"),IF(COUNTRY_INFO!K20=1,0,IF(COUNTRY_INFO!K20=2,0.2*COUNTRY_INFO!G20/(0.5*COUNTRY_INFO!F20+0.2*COUNTRY_INFO!G20),IF(COUNTRY_INFO!K20=3,COUNTRY_INFO!G20/(COUNTRY_INFO!F20+COUNTRY_INFO!G20)))),0) -> 0 | AP20: =MAX(COUNTRY_INFO!D20*AK20*PROFILE!$G$7,COUNTRY_INFO!D20*AL20*PROFILE!$G$7) -> 0 | AQ20: =MAX(COUNTRY_INFO!D20*AK20*PROFILE!$G$8,COUNTRY_INFO!D20*AL20*PROFILE!$G$8,COUNTRY_INFO!D20*AM20*PROFILE!$G$8) -> 0 | AR20: =MAX(COUNTRY_INFO!D20*AK20*PROFILE!$G$9,COUNTRY_INFO!D20*AL20*PROFILE!$G$9,COUNTRY_INFO!D20*AM20*PROFILE!$G$9,IF(AND(DISTRICT!Z20<>"Inconnu",Z20<>"Non requis"),COUNTRY_INFO!O20*DISTRICT!AN20,0)) -> 0 | AS20: =MAX(COUNTRY_INFO!D20*AK20*PROFILE!$G$10,COUNTRY_INFO!D20*AL20*PROFILE!$G$10,IF(AND(DISTRICT!Z20<>"Inconnu",Z20<>"Non requis"),COUNTRY_INFO!O20*DISTRICT!AO20,0)) -> 0 | AT20: 0 | AU20: 0 | AV20: =MAX('MDA2'!J20,'T1'!L20,'T2'!J20,T3_R1!K20,T3_R2!K20) -> 20853 | AW20: =MAX('MDA1'!K20,'MDA2'!K20,'MDA3'!I20,'MDA3'!L20,'T1'!M20,'T2'!K20,T3_R1!L20,T3_R2!L20) -> 54522 | AX20: =MAX('MDA1'!L20,'MDA2'!L20,'MDA3'!J20,'MDA3'!M20,'T1'!N20,'T2'!L20,T3_R1!M20,T3_R2!M20) -> 2301 | AY20: 77676 | AZ20: =MAX('MDA2'!J20,T20) -> 0 | BA20: =MAX('MDA1'!K20,'MDA2'!K20,'MDA3'!I20,'MDA3'!L20,V20,AD20) -> 0 | BB20: =MAX('MDA1'!L20,'MDA2'!L20,'MDA3'!J20,'MDA3'!M20,AF20) -> 0 | BC20: 0 | BD20: 0 | BE20: 0
A21: =IF(COUNTRY_INFO!A21=0," ",COUNTRY_INFO!A21) -> Burundi | B21: =IF(COUNTRY_INFO!B21=0," ",COUNTRY_INFO!B21) -> Cankuzo | C21: =IF(COUNTRY_INFO!C21=0," ",COUNTRY_INFO!C21) -> Murore | D21: =COUNTRY_INFO!L21 -> 0 | G21: =MAX('MDA1'!M21,'MDA2'!M21) -> 0 | H21: =IF(AND(COUNTRY_INFO!H21>0,COUNTRY_INFO!H21<4),IF(D21>MAX('MDA1'!M21,'MDA2'!M21),MAX('MDA1'!M21,'MDA2'!M21),D21),0) -> 0 | I21: =IF(AND(COUNTRY_INFO!H21>0,COUNTRY_INFO!H21<4), IF(G21/D21*100<>0, IF(G21/D21*100>100,100,G21/D21*100), "-"),0) -> 0 | J21: =COUNTRY_INFO!M21 -> 0 | M21: =MAX('MDA1'!M21,MAX('MDA3'!I21,'MDA3'!L21)+MAX('MDA3'!J21,'MDA3'!M21)) -> 0 | N21: 0 | O21: 0 | P21: =COUNTRY_INFO!N21 -> 0 | Q21: 35368 | R21: 38392 | S21: =SUM(MAX('MDA2'!J21, 'T1'!L21, MAX(T3_R1!K21, T3_R2!K21)), MAX('MDA1'!K21, 'MDA2'!K21, 'T1'!M21, MAX(T3_R1!L21, T3_R2!L21)), MAX('MDA1'!L21, 'MDA2'!L21, 'T1'!N21, MAX(T3_R1!M21, T3_R2!M21))) -> 76737 | T21: =IF(AND(COUNTRY_INFO!J21>1,COUNTRY_INFO!J21<4),IF(COUNTRY_INFO!E21>MAX('MDA2'!J21,'T1'!L21,MAX(T3_R1!K21,T3_R2!K21)),MAX('MDA2'!J21,'T1'!L21,MAX(T3_R1!K21,T3_R2!K21)),COUNTRY_INFO!E21),0) -> 0 | U21: =IF(AND(COUNTRY_INFO!J21>1,COUNTRY_INFO!J21<4), IF(T21/COUNTRY_INFO!E21*100<>0, IF(T21/COUNTRY_INFO!E21*100>100,100,T21/COUNTRY_INFO!E21*100), "-"),0) -> 0 | V21: =IF(AND(COUNTRY_INFO!J21>1,COUNTRY_INFO!J21<4),IF(COUNTRY_INFO!F21>MAX('MDA1'!K21,'MDA2'!K21,'T1'!M21,MAX(T3_R1!L21,T3_R2!L21)),MAX('MDA1'!K21,'MDA2'!K21,'T1'!M21,MAX(T3_R1!L21,T3_R2!L21)),COUNTRY_INFO!F21),0) -> 0 | W21: =IF(AND(COUNTRY_INFO!J21>1,COUNTRY_INFO!J21<4), IF(V21/COUNTRY_INFO!F21*100<>0, IF(V21/COUNTRY_INFO!F21*100>100,100,V21/COUNTRY_INFO!F21*100), "-"),0) -> 0 | X21: 0 | Y21: =IF(AND(COUNTRY_INFO!J21>1,COUNTRY_INFO!J21<4), IF(S21/P21*100<>0, IF(X21/P21*100>100,100,X21/P21*100), "-"),0) -> 0 | Z21: =COUNTRY_INFO!O21 -> 16205.64 | AC21: =MAX('T1'!L21,'T2'!J21)+MAX('T1'!M21,'T2'!K21)+MAX('T1'!N21,'T2'!L21) -> 0 | AD21: =IF(COUNTRY_INFO!K21=1,IF(COUNTRY_INFO!F21*0.33>MAX('T1'!M21,'T2'!K21),MAX('T1'!M21,'T2'!K21),COUNTRY_INFO!F21*0.33),IF(COUNTRY_INFO!K21=2,IF(COUNTRY_INFO!F21*0.5>MAX('T1'!M21,'T2'!K21),MAX('T1'!M21,'T2'!K21),COUNTRY_INFO!F21*0.5),IF(COUNTRY_INFO!K21=3,IF(COUNTRY_INFO!F21>MAX('T1'!M21,'T2'!K21),MAX('T1'!M21,'T2'!K21),COUNTRY_INFO!F21),0))) -> 0 | AE21: =IF(AND(COUNTRY_INFO!K21>0,COUNTRY_INFO!K21<4),IF(Z21>0,IF(COUNTRY_INFO!K21=1, AD21/(COUNTRY_INFO!F21*0.33)*100, IF(COUNTRY_INFO!K21=2, AD21/(COUNTRY_INFO!F21*0.5)*100, IF(COUNTRY_INFO!K21=3, AD21/COUNTRY_INFO!F21*100))),"-"),0) -> 0 | AF21: =IF(COUNTRY_INFO!K21=2,IF(COUNTRY_INFO!G21*0.2>MAX('T1'!N21,'T2'!L21),MAX('T1'!N21,'T2'!L21),COUNTRY_INFO!G21*0.2),IF(COUNTRY_INFO!K21=3,IF(COUNTRY_INFO!G21>MAX('T1'!N21,'T2'!L21),MAX('T1'!N21,'T2'!L21),COUNTRY_INFO!G21),0)) -> 0 | AG21: =IF(AND(COUNTRY_INFO!K21>0,COUNTRY_INFO!K21<4),IF(Z21>0,IF(COUNTRY_INFO!K21=1, 0, IF(COUNTRY_INFO!K21=2, AF21/(COUNTRY_INFO!G21*0.2)*100, IF(COUNTRY_INFO!K21=3, AF21/COUNTRY_INFO!G21*100))),"-"),0) -> 0 | AH21: 0 | AI21: =IF(AND(COUNTRY_INFO!K21>0,COUNTRY_INFO!K21<4), IF(AC21/Z21*100<>0, IF(AH21/Z21*100>100,100,AH21/Z21*100), "-"),0) -> - | AK21: =IF(AND(D21<>0, D21<>"Inconnu",D21<>"Interrompu",D21<>"Non requis"),D21/COUNTRY_INFO!D21, 0) -> 0 | AL21: =IF(AND(J21<>0,J21<>"Inconnu",J21<>"Interrompu",J21<>"Non requis"),J21/COUNTRY_INFO!D21, 0) -> 0 | AM21: =IF(AND(P21<>0,P21<>"Inconnu",P21<>"Non requis"),P21/(COUNTRY_INFO!E21+COUNTRY_INFO!F21), 0) -> 0 | AN21: =IF(AND(Z21<>0,Z21<>"Inconnu",Z21<>"Non requis"),IF(COUNTRY_INFO!K21=1,1,IF(COUNTRY_INFO!K21=2,0.5*COUNTRY_INFO!F21/(0.5*COUNTRY_INFO!F21+0.2*COUNTRY_INFO!G21),IF(COUNTRY_INFO!K21=3,COUNTRY_INFO!F21/(COUNTRY_INFO!F21+COUNTRY_INFO!G21)))),0) -> 1 | AO21: =IF(AND(Z21<>0,Z21<>"Inconnu",Z21<>"Non requis"),IF(COUNTRY_INFO!K21=1,0,IF(COUNTRY_INFO!K21=2,0.2*COUNTRY_INFO!G21/(0.5*COUNTRY_INFO!F21+0.2*COUNTRY_INFO!G21),IF(COUNTRY_INFO!K21=3,COUNTRY_INFO!G21/(COUNTRY_INFO!F21+COUNTRY_INFO!G21)))),0) -> 0 | AP21: =MAX(COUNTRY_INFO!D21*AK21*PROFILE!$G$7,COUNTRY_INFO!D21*AL21*PROFILE!$G$7) -> 0 | AQ21: =MAX(COUNTRY_INFO!D21*AK21*PROFILE!$G$8,COUNTRY_INFO!D21*AL21*PROFILE!$G$8,COUNTRY_INFO!D21*AM21*PROFILE!$G$8) -> 0 | AR21: =MAX(COUNTRY_INFO!D21*AK21*PROFILE!$G$9,COUNTRY_INFO!D21*AL21*PROFILE!$G$9,COUNTRY_INFO!D21*AM21*PROFILE!$G$9,IF(AND(DISTRICT!Z21<>"Inconnu",Z21<>"Non requis"),COUNTRY_INFO!O21*DISTRICT!AN21,0)) -> 16205.64 | AS21: =MAX(COUNTRY_INFO!D21*AK21*PROFILE!$G$10,COUNTRY_INFO!D21*AL21*PROFILE!$G$10,IF(AND(DISTRICT!Z21<>"Inconnu",Z21<>"Non requis"),COUNTRY_INFO!O21*DISTRICT!AO21,0)) -> 0 | AT21: 16205.64 | AU21: 0 | AV21: =MAX('MDA2'!J21,'T1'!L21,'T2'!J21,T3_R1!K21,T3_R2!K21) -> 20607 | AW21: =MAX('MDA1'!K21,'MDA2'!K21,'MDA3'!I21,'MDA3'!L21,'T1'!M21,'T2'!K21,T3_R1!L21,T3_R2!L21) -> 53153 | AX21: =MAX('MDA1'!L21,'MDA2'!L21,'MDA3'!J21,'MDA3'!M21,'T1'!N21,'T2'!L21,T3_R1!M21,T3_R2!M21) -> 2977 | AY21: 76737 | AZ21: =MAX('MDA2'!J21,T21) -> 0 | BA21: =MAX('MDA1'!K21,'MDA2'!K21,'MDA3'!I21,'MDA3'!L21,V21,AD21) -> 0 | BB21: =MAX('MDA1'!L21,'MDA2'!L21,'MDA3'!J21,'MDA3'!M21,AF21) -> 0 | BC21: 0 | BD21: 0 | BE21: 0
A22: =IF(COUNTRY_INFO!A22=0," ",COUNTRY_INFO!A22) -> Burundi | B22: =IF(COUNTRY_INFO!B22=0," ",COUNTRY_INFO!B22) -> Cibitoke | C22: =IF(COUNTRY_INFO!C22=0," ",COUNTRY_INFO!C22) -> Bukinanyana | D22: =COUNTRY_INFO!L22 -> 0 | G22: =MAX('MDA1'!M22,'MDA2'!M22) -> 0 | H22: =IF(AND(COUNTRY_INFO!H22>0,COUNTRY_INFO!H22<4),IF(D22>MAX('MDA1'!M22,'MDA2'!M22),MAX('MDA1'!M22,'MDA2'!M22),D22),0) -> 0 | I22: =IF(AND(COUNTRY_INFO!H22>0,COUNTRY_INFO!H22<4), IF(G22/D22*100<>0, IF(G22/D22*100>100,100,G22/D22*100), "-"),0) -> 0 | J22: =COUNTRY_INFO!M22 -> 238543 | K22: 98351.33 | L22: 102365.67 | M22: =MAX('MDA1'!M22,MAX('MDA3'!I22,'MDA3'!L22)+MAX('MDA3'!J22,'MDA3'!M22)) -> 200717 | N22: 200717 | O22: 81.99 | P22: =COUNTRY_INFO!N22 -> 0 | Q22: 49801 | R22: 52993 | S22: =SUM(MAX('MDA2'!J22, 'T1'!L22, MAX(T3_R1!K22, T3_R2!K22)), MAX('MDA1'!K22, 'MDA2'!K22, 'T1'!M22, MAX(T3_R1!L22, T3_R2!L22)), MAX('MDA1'!L22, 'MDA2'!L22, 'T1'!N22, MAX(T3_R1!M22, T3_R2!M22))) -> 106188 | T22: =IF(AND(COUNTRY_INFO!J22>1,COUNTRY_INFO!J22<4),IF(COUNTRY_INFO!E22>MAX('MDA2'!J22,'T1'!L22,MAX(T3_R1!K22,T3_R2!K22)),MAX('MDA2'!J22,'T1'!L22,MAX(T3_R1!K22,T3_R2!K22)),COUNTRY_INFO!E22),0) -> 0 | U22: =IF(AND(COUNTRY_INFO!J22>1,COUNTRY_INFO!J22<4), IF(T22/COUNTRY_INFO!E22*100<>0, IF(T22/COUNTRY_INFO!E22*100>100,100,T22/COUNTRY_INFO!E22*100), "-"),0) -> 0 | V22: =IF(AND(COUNTRY_INFO!J22>1,COUNTRY_INFO!J22<4),IF(COUNTRY_INFO!F22>MAX('MDA1'!K22,'MDA2'!K22,'T1'!M22,MAX(T3_R1!L22,T3_R2!L22)),MAX('MDA1'!K22,'MDA2'!K22,'T1'!M22,MAX(T3_R1!L22,T3_R2!L22)),COUNTRY_INFO!F22),0) -> 0 | W22: =IF(AND(COUNTRY_INFO!J22>1,COUNTRY_INFO!J22<4), IF(V22/COUNTRY_INFO!F22*100<>0, IF(V22/COUNTRY_INFO!F22*100>100,100,V22/COUNTRY_INFO!F22*100), "-"),0) -> 0 | X22: 0 | Y22: =IF(AND(COUNTRY_INFO!J22>1,COUNTRY_INFO!J22<4), IF(S22/P22*100<>0, IF(X22/P22*100>100,100,X22/P22*100), "-"),0) -> 0 | Z22: =COUNTRY_INFO!O22 -> 23227.71 | AC22: =MAX('T1'!L22,'T2'!J22)+MAX('T1'!M22,'T2'!K22)+MAX('T1'!N22,'T2'!L22) -> 0 | AD22: =IF(COUNTRY_INFO!K22=1,IF(COUNTRY_INFO!F22*0.33>MAX('T1'!M22,'T2'!K22),MAX('T1'!M22,'T2'!K22),COUNTRY_INFO!F22*0.33),IF(COUNTRY_INFO!K22=2,IF(COUNTRY_INFO!F22*0.5>MAX('T1'!M22,'T2'!K22),MAX('T1'!M22,'T2'!K22),COUNTRY_INFO!F22*0.5),IF(COUNTRY_INFO!K22=3,IF(COUNTRY_INFO!F22>MAX('T1'!M22,'T2'!K22),MAX('T1'!M22,'T2'!K22),COUNTRY_INFO!F22),0))) -> 0 | AE22: =IF(AND(COUNTRY_INFO!K22>0,COUNTRY_INFO!K22<4),IF(Z22>0,IF(COUNTRY_INFO!K22=1, AD22/(COUNTRY_INFO!F22*0.33)*100, IF(COUNTRY_INFO!K22=2, AD22/(COUNTRY_INFO!F22*0.5)*100, IF(COUNTRY_INFO!K22=3, AD22/COUNTRY_INFO!F22*100))),"-"),0) -> 0 | AF22: =IF(COUNTRY_INFO!K22=2,IF(COUNTRY_INFO!G22*0.2>MAX('T1'!N22,'T2'!L22),MAX('T1'!N22,'T2'!L22),COUNTRY_INFO!G22*0.2),IF(COUNTRY_INFO!K22=3,IF(COUNTRY_INFO!G22>MAX('T1'!N22,'T2'!L22),MAX('T1'!N22,'T2'!L22),COUNTRY_INFO!G22),0)) -> 0 | AG22: =IF(AND(COUNTRY_INFO!K22>0,COUNTRY_INFO!K22<4),IF(Z22>0,IF(COUNTRY_INFO!K22=1, 0, IF(COUNTRY_INFO!K22=2, AF22/(COUNTRY_INFO!G22*0.2)*100, IF(COUNTRY_INFO!K22=3, AF22/COUNTRY_INFO!G22*100))),"-"),0) -> 0 | AH22: 0 | AI22: =IF(AND(COUNTRY_INFO!K22>0,COUNTRY_INFO!K22<4), IF(AC22/Z22*100<>0, IF(AH22/Z22*100>100,100,AH22/Z22*100), "-"),0) -> - | AK22: =IF(AND(D22<>0, D22<>"Inconnu",D22<>"Interrompu",D22<>"Non requis"),D22/COUNTRY_INFO!D22, 0) -> 0 | AL22: =IF(AND(J22<>0,J22<>"Inconnu",J22<>"Interrompu",J22<>"Non requis"),J22/COUNTRY_INFO!D22, 0) -> 0.9472194095 | AM22: =IF(AND(P22<>0,P22<>"Inconnu",P22<>"Non requis"),P22/(COUNTRY_INFO!E22+COUNTRY_INFO!F22), 0) -> 0 | AN22: =IF(AND(Z22<>0,Z22<>"Inconnu",Z22<>"Non requis"),IF(COUNTRY_INFO!K22=1,1,IF(COUNTRY_INFO!K22=2,0.5*COUNTRY_INFO!F22/(0.5*COUNTRY_INFO!F22+0.2*COUNTRY_INFO!G22),IF(COUNTRY_INFO!K22=3,COUNTRY_INFO!F22/(COUNTRY_INFO!F22+COUNTRY_INFO!G22)))),0) -> 1 | AO22: =IF(AND(Z22<>0,Z22<>"Inconnu",Z22<>"Non requis"),IF(COUNTRY_INFO!K22=1,0,IF(COUNTRY_INFO!K22=2,0.2*COUNTRY_INFO!G22/(0.5*COUNTRY_INFO!F22+0.2*COUNTRY_INFO!G22),IF(COUNTRY_INFO!K22=3,COUNTRY_INFO!G22/(COUNTRY_INFO!F22+COUNTRY_INFO!G22)))),0) -> 0 | AP22: =MAX(COUNTRY_INFO!D22*AK22*PROFILE!$G$7,COUNTRY_INFO!D22*AL22*PROFILE!$G$7) -> 17166.05356 | AQ22: =MAX(COUNTRY_INFO!D22*AK22*PROFILE!$G$8,COUNTRY_INFO!D22*AL22*PROFILE!$G$8,COUNTRY_INFO!D22*AM22*PROFILE!$G$8) -> 25406.22603 | AR22: =MAX(COUNTRY_INFO!D22*AK22*PROFILE!$G$9,COUNTRY_INFO!D22*AL22*PROFILE!$G$9,COUNTRY_INFO!D22*AM22*PROFILE!$G$9,IF(AND(DISTRICT!Z22<>"Inconnu",Z22<>"Non requis"),COUNTRY_INFO!O22*DISTRICT!AN22,0)) -> 63817.87481 | AS22: =MAX(COUNTRY_INFO!D22*AK22*PROFILE!$G$10,COUNTRY_INFO!D22*AL22*PROFILE!$G$10,IF(AND(DISTRICT!Z22<>"Inconnu",Z22<>"Non requis"),COUNTRY_INFO!O22*DISTRICT!AO22,0)) -> 132152.8456 | AT22: 238543 | AU22: 0 | AV22: =MAX('MDA2'!J22,'T1'!L22,'T2'!J22,T3_R1!K22,T3_R2!K22) -> 24406 | AW22: =MAX('MDA1'!K22,'MDA2'!K22,'MDA3'!I22,'MDA3'!L22,'T1'!M22,'T2'!K22,T3_R1!L22,T3_R2!L22) -> 78388 | AX22: =MAX('MDA1'!L22,'MDA2'!L22,'MDA3'!J22,'MDA3'!M22,'T1'!N22,'T2'!L22,T3_R1!M22,T3_R2!M22) -> 147125.561 | AY22: 249919.561 | AZ22: =MAX('MDA2'!J22,T22) -> 0 | BA22: =MAX('MDA1'!K22,'MDA2'!K22,'MDA3'!I22,'MDA3'!L22,V22,AD22) -> 53591.439 | BB22: =MAX('MDA1'!L22,'MDA2'!L22,'MDA3'!J22,'MDA3'!M22,AF22) -> 147125.561 | BC22: 200717 | BD22: 84.14290086 | BE22: 0
A23: =IF(COUNTRY_INFO!A23=0," ",COUNTRY_INFO!A23) -> Burundi | B23: =IF(COUNTRY_INFO!B23=0," ",COUNTRY_INFO!B23) -> Cibitoke | C23: =IF(COUNTRY_INFO!C23=0," ",COUNTRY_INFO!C23) -> Cibitoke | D23: =COUNTRY_INFO!L23 -> 0 | G23: =MAX('MDA1'!M23,'MDA2'!M23) -> 0 | H23: =IF(AND(COUNTRY_INFO!H23>0,COUNTRY_INFO!H23<4),IF(D23>MAX('MDA1'!M23,'MDA2'!M23),MAX('MDA1'!M23,'MDA2'!M23),D23),0) -> 0 | I23: =IF(AND(COUNTRY_INFO!H23>0,COUNTRY_INFO!H23<4), IF(G23/D23*100<>0, IF(G23/D23*100>100,100,G23/D23*100), "-"),0) -> 0 | J23: =COUNTRY_INFO!M23 -> 264125 | K23: 115727.22 | L23: 120450.78 | M23: =MAX('MDA1'!M23,MAX('MDA3'!I23,'MDA3'!L23)+MAX('MDA3'!J23,'MDA3'!M23)) -> 236178 | N23: 236178 | O23: 82.08 | P23: =COUNTRY_INFO!N23 -> 0 | Q23: 49325 | R23: 53724 | S23: =SUM(MAX('MDA2'!J23, 'T1'!L23, MAX(T3_R1!K23, T3_R2!K23)), MAX('MDA1'!K23, 'MDA2'!K23, 'T1'!M23, MAX(T3_R1!L23, T3_R2!L23)), MAX('MDA1'!L23, 'MDA2'!L23, 'T1'!N23, MAX(T3_R1!M23, T3_R2!M23))) -> 83647 | T23: =IF(AND(COUNTRY_INFO!J23>1,COUNTRY_INFO!J23<4),IF(COUNTRY_INFO!E23>MAX('MDA2'!J23,'T1'!L23,MAX(T3_R1!K23,T3_R2!K23)),MAX('MDA2'!J23,'T1'!L23,MAX(T3_R1!K23,T3_R2!K23)),COUNTRY_INFO!E23),0) -> 0 | U23: =IF(AND(COUNTRY_INFO!J23>1,COUNTRY_INFO!J23<4), IF(T23/COUNTRY_INFO!E23*100<>0, IF(T23/COUNTRY_INFO!E23*100>100,100,T23/COUNTRY_INFO!E23*100), "-"),0) -> 0 | V23: =IF(AND(COUNTRY_INFO!J23>1,COUNTRY_INFO!J23<4),IF(COUNTRY_INFO!F23>MAX('MDA1'!K23,'MDA2'!K23,'T1'!M23,MAX(T3_R1!L23,T3_R2!L23)),MAX('MDA1'!K23,'MDA2'!K23,'T1'!M23,MAX(T3_R1!L23,T3_R2!L23)),COUNTRY_INFO!F23),0) -> 0 | W23: =IF(AND(COUNTRY_INFO!J23>1,COUNTRY_INFO!J23<4), IF(V23/COUNTRY_INFO!F23*100<>0, IF(V23/COUNTRY_INFO!F23*100>100,100,V23/COUNTRY_INFO!F23*100), "-"),0) -> 0 | X23: 0 | Y23: =IF(AND(COUNTRY_INFO!J23>1,COUNTRY_INFO!J23<4), IF(S23/P23*100<>0, IF(X23/P23*100>100,100,X23/P23*100), "-"),0) -> 0 | Z23: =COUNTRY_INFO!O23 -> 55598.8 | AC23: =MAX('T1'!L23,'T2'!J23)+MAX('T1'!M23,'T2'!K23)+MAX('T1'!N23,'T2'!L23) -> 0 | AD23: =IF(COUNTRY_INFO!K23=1,IF(COUNTRY_INFO!F23*0.33>MAX('T1'!M23,'T2'!K23),MAX('T1'!M23,'T2'!K23),COUNTRY_INFO!F23*0.33),IF(COUNTRY_INFO!K23=2,IF(COUNTRY_INFO!F23*0.5>MAX('T1'!M23,'T2'!K23),MAX('T1'!M23,'T2'!K23),COUNTRY_INFO!F23*0.5),IF(COUNTRY_INFO!K23=3,IF(COUNTRY_INFO!F23>MAX('T1'!M23,'T2'!K23),MAX('T1'!M23,'T2'!K23),COUNTRY_INFO!F23),0))) -> 0 | AE23: =IF(AND(COUNTRY_INFO!K23>0,COUNTRY_INFO!K23<4),IF(Z23>0,IF(COUNTRY_INFO!K23=1, AD23/(COUNTRY_INFO!F23*0.33)*100, IF(COUNTRY_INFO!K23=2, AD23/(COUNTRY_INFO!F23*0.5)*100, IF(COUNTRY_INFO!K23=3, AD23/COUNTRY_INFO!F23*100))),"-"),0) -> 0 | AF23: =IF(COUNTRY_INFO!K23=2,IF(COUNTRY_INFO!G23*0.2>MAX('T1'!N23,'T2'!L23),MAX('T1'!N23,'T2'!L23),COUNTRY_INFO!G23*0.2),IF(COUNTRY_INFO!K23=3,IF(COUNTRY_INFO!G23>MAX('T1'!N23,'T2'!L23),MAX('T1'!N23,'T2'!L23),COUNTRY_INFO!G23),0)) -> 0 | AG23: =IF(AND(COUNTRY_INFO!K23>0,COUNTRY_INFO!K23<4),IF(Z23>0,IF(COUNTRY_INFO!K23=1, 0, IF(COUNTRY_INFO!K23=2, AF23/(COUNTRY_INFO!G23*0.2)*100, IF(COUNTRY_INFO!K23=3, AF23/COUNTRY_INFO!G23*100))),"-"),0) -> 0 | AH23: 0 | AI23: =IF(AND(COUNTRY_INFO!K23>0,COUNTRY_INFO!K23<4), IF(AC23/Z23*100<>0, IF(AH23/Z23*100>100,100,AH23/Z23*100), "-"),0) -> - | AK23: =IF(AND(D23<>0, D23<>"Inconnu",D23<>"Interrompu",D23<>"Non requis"),D23/COUNTRY_INFO!D23, 0) -> 0 | AL23: =IF(AND(J23<>0,J23<>"Inconnu",J23<>"Interrompu",J23<>"Non requis"),J23/COUNTRY_INFO!D23, 0) -> 1.122350552 | AM23: =IF(AND(P23<>0,P23<>"Inconnu",P23<>"Non requis"),P23/(COUNTRY_INFO!E23+COUNTRY_INFO!F23), 0) -> 0 | AN23: =IF(AND(Z23<>0,Z23<>"Inconnu",Z23<>"Non requis"),IF(COUNTRY_INFO!K23=1,1,IF(COUNTRY_INFO!K23=2,0.5*COUNTRY_INFO!F23/(0.5*COUNTRY_INFO!F23+0.2*COUNTRY_INFO!G23),IF(COUNTRY_INFO!K23=3,COUNTRY_INFO!F23/(COUNTRY_INFO!F23+COUNTRY_INFO!G23)))),0) -> 0.5310186551 | AO23: =IF(AND(Z23<>0,Z23<>"Inconnu",Z23<>"Non requis"),IF(COUNTRY_INFO!K23=1,0,IF(COUNTRY_INFO!K23=2,0.2*COUNTRY_INFO!G23/(0.5*COUNTRY_INFO!F23+0.2*COUNTRY_INFO!G23),IF(COUNTRY_INFO!K23=3,COUNTRY_INFO!G23/(COUNTRY_INFO!F23+COUNTRY_INFO!G23)))),0) -> 0.4689813449 | AP23: =MAX(COUNTRY_INFO!D23*AK23*PROFILE!$G$7,COUNTRY_INFO!D23*AL23*PROFILE!$G$7) -> 19006.98782 | AQ23: =MAX(COUNTRY_INFO!D23*AK23*PROFILE!$G$8,COUNTRY_INFO!D23*AL23*PROFILE!$G$8,COUNTRY_INFO!D23*AM23*PROFILE!$G$8) -> 28130.8588 | AR23: =MAX(COUNTRY_INFO!D23*AK23*PROFILE!$G$9,COUNTRY_INFO!D23*AL23*PROFILE!$G$9,COUNTRY_INFO!D23*AM23*PROFILE!$G$9,IF(AND(DISTRICT!Z23<>"Inconnu",Z23<>"Non requis"),COUNTRY_INFO!O23*DISTRICT!AN23,0)) -> 70661.87725 | AS23: =MAX(COUNTRY_INFO!D23*AK23*PROFILE!$G$10,COUNTRY_INFO!D23*AL23*PROFILE!$G$10,IF(AND(DISTRICT!Z23<>"Inconnu",Z23<>"Non requis"),COUNTRY_INFO!O23*DISTRICT!AO23,0)) -> 146325.2761 | AT23: 264125 | AU23: 0 | AV23: =MAX('MDA2'!J23,'T1'!L23,'T2'!J23,T3_R1!K23,T3_R2!K23) -> 22093 | AW23: =MAX('MDA1'!K23,'MDA2'!K23,'MDA3'!I23,'MDA3'!L23,'T1'!M23,'T2'!K23,T3_R1!L23,T3_R2!L23) -> 63059.526 | AX23: =MAX('MDA1'!L23,'MDA2'!L23,'MDA3'!J23,'MDA3'!M23,'T1'!N23,'T2'!L23,T3_R1!M23,T3_R2!M23) -> 173118.474 | AY23: 258271 | AZ23: =MAX('MDA2'!J23,T23) -> 0 | BA23: =MAX('MDA1'!K23,'MDA2'!K23,'MDA3'!I23,'MDA3'!L23,V23,AD23) -> 63059.526 | BB23: =MAX('MDA1'!L23,'MDA2'!L23,'MDA3'!J23,'MDA3'!M23,AF23) -> 173118.474 | BC23: 236178 | BD23: 89.41902508 | BE23: 0
A24: =IF(COUNTRY_INFO!A24=0," ",COUNTRY_INFO!A24) -> Burundi | B24: =IF(COUNTRY_INFO!B24=0," ",COUNTRY_INFO!B24) -> Cibitoke | C24: =IF(COUNTRY_INFO!C24=0," ",COUNTRY_INFO!C24) -> Mabayi | D24: =COUNTRY_INFO!L24 -> 0 | G24: =MAX('MDA1'!M24,'MDA2'!M24) -> 0 | H24: =IF(AND(COUNTRY_INFO!H24>0,COUNTRY_INFO!H24<4),IF(D24>MAX('MDA1'!M24,'MDA2'!M24),MAX('MDA1'!M24,'MDA2'!M24),D24),0) -> 0 | I24: =IF(AND(COUNTRY_INFO!H24>0,COUNTRY_INFO!H24<4), IF(G24/D24*100<>0, IF(G24/D24*100>100,100,G24/D24*100), "-"),0) -> 0 | J24: =COUNTRY_INFO!M24 -> 232899 | K24: 96858.3 | L24: 100811.7 | M24: =MAX('MDA1'!M24,MAX('MDA3'!I24,'MDA3'!L24)+MAX('MDA3'!J24,'MDA3'!M24)) -> 197670 | N24: 197670 | O24: 81.98 | P24: =COUNTRY_INFO!N24 -> 0 | Q24: 49760 | R24: 55293 | S24: =SUM(MAX('MDA2'!J24, 'T1'!L24, MAX(T3_R1!K24, T3_R2!K24)), MAX('MDA1'!K24, 'MDA2'!K24, 'T1'!M24, MAX(T3_R1!L24, T3_R2!L24)), MAX('MDA1'!L24, 'MDA2'!L24, 'T1'!N24, MAX(T3_R1!M24, T3_R2!M24))) -> 108470 | T24: =IF(AND(COUNTRY_INFO!J24>1,COUNTRY_INFO!J24<4),IF(COUNTRY_INFO!E24>MAX('MDA2'!J24,'T1'!L24,MAX(T3_R1!K24,T3_R2!K24)),MAX('MDA2'!J24,'T1'!L24,MAX(T3_R1!K24,T3_R2!K24)),COUNTRY_INFO!E24),0) -> 0 | U24: =IF(AND(COUNTRY_INFO!J24>1,COUNTRY_INFO!J24<4), IF(T24/COUNTRY_INFO!E24*100<>0, IF(T24/COUNTRY_INFO!E24*100>100,100,T24/COUNTRY_INFO!E24*100), "-"),0) -> 0 | V24: =IF(AND(COUNTRY_INFO!J24>1,COUNTRY_INFO!J24<4),IF(COUNTRY_INFO!F24>MAX('MDA1'!K24,'MDA2'!K24,'T1'!M24,MAX(T3_R1!L24,T3_R2!L24)),MAX('MDA1'!K24,'MDA2'!K24,'T1'!M24,MAX(T3_R1!L24,T3_R2!L24)),COUNTRY_INFO!F24),0) -> 0 | W24: =IF(AND(COUNTRY_INFO!J24>1,COUNTRY_INFO!J24<4), IF(V24/COUNTRY_INFO!F24*100<>0, IF(V24/COUNTRY_INFO!F24*100>100,100,V24/COUNTRY_INFO!F24*100), "-"),0) -> 0 | X24: 0 | Y24: =IF(AND(COUNTRY_INFO!J24>1,COUNTRY_INFO!J24<4), IF(S24/P24*100<>0, IF(X24/P24*100>100,100,X24/P24*100), "-"),0) -> 0 | Z24: =COUNTRY_INFO!O24 -> 22762.41 | AC24: =MAX('T1'!L24,'T2'!J24)+MAX('T1'!M24,'T2'!K24)+MAX('T1'!N24,'T2'!L24) -> 0 | AD24: =IF(COUNTRY_INFO!K24=1,IF(COUNTRY_INFO!F24*0.33>MAX('T1'!M24,'T2'!K24),MAX('T1'!M24,'T2'!K24),COUNTRY_INFO!F24*0.33),IF(COUNTRY_INFO!K24=2,IF(COUNTRY_INFO!F24*0.5>MAX('T1'!M24,'T2'!K24),MAX('T1'!M24,'T2'!K24),COUNTRY_INFO!F24*0.5),IF(COUNTRY_INFO!K24=3,IF(COUNTRY_INFO!F24>MAX('T1'!M24,'T2'!K24),MAX('T1'!M24,'T2'!K24),COUNTRY_INFO!F24),0))) -> 0 | AE24: =IF(AND(COUNTRY_INFO!K24>0,COUNTRY_INFO!K24<4),IF(Z24>0,IF(COUNTRY_INFO!K24=1, AD24/(COUNTRY_INFO!F24*0.33)*100, IF(COUNTRY_INFO!K24=2, AD24/(COUNTRY_INFO!F24*0.5)*100, IF(COUNTRY_INFO!K24=3, AD24/COUNTRY_INFO!F24*100))),"-"),0) -> 0 | AF24: =IF(COUNTRY_INFO!K24=2,IF(COUNTRY_INFO!G24*0.2>MAX('T1'!N24,'T2'!L24),MAX('T1'!N24,'T2'!L24),COUNTRY_INFO!G24*0.2),IF(COUNTRY_INFO!K24=3,IF(COUNTRY_INFO!G24>MAX('T1'!N24,'T2'!L24),MAX('T1'!N24,'T2'!L24),COUNTRY_INFO!G24),0)) -> 0 | AG24: =IF(AND(COUNTRY_INFO!K24>0,COUNTRY_INFO!K24<4),IF(Z24>0,IF(COUNTRY_INFO!K24=1, 0, IF(COUNTRY_INFO!K24=2, AF24/(COUNTRY_INFO!G24*0.2)*100, IF(COUNTRY_INFO!K24=3, AF24/COUNTRY_INFO!G24*100))),"-"),0) -> 0 | AH24: 0 | AI24: =IF(AND(COUNTRY_INFO!K24>0,COUNTRY_INFO!K24<4), IF(AC24/Z24*100<>0, IF(AH24/Z24*100>100,100,AH24/Z24*100), "-"),0) -> - | AK24: =IF(AND(D24<>0, D24<>"Inconnu",D24<>"Interrompu",D24<>"Non requis"),D24/COUNTRY_INFO!D24, 0) -> 0 | AL24: =IF(AND(J24<>0,J24<>"Inconnu",J24<>"Interrompu",J24<>"Non requis"),J24/COUNTRY_INFO!D24, 0) -> 0.9437247505 | AM24: =IF(AND(P24<>0,P24<>"Inconnu",P24<>"Non requis"),P24/(COUNTRY_INFO!E24+COUNTRY_INFO!F24), 0) -> 0 | AN24: =IF(AND(Z24<>0,Z24<>"Inconnu",Z24<>"Non requis"),IF(COUNTRY_INFO!K24=1,1,IF(COUNTRY_INFO!K24=2,0.5*COUNTRY_INFO!F24/(0.5*COUNTRY_INFO!F24+0.2*COUNTRY_INFO!G24),IF(COUNTRY_INFO!K24=3,COUNTRY_INFO!F24/(COUNTRY_INFO!F24+COUNTRY_INFO!G24)))),0) -> 1 | AO24: =IF(AND(Z24<>0,Z24<>"Inconnu",Z24<>"Non requis"),IF(COUNTRY_INFO!K24=1,0,IF(COUNTRY_INFO!K24=2,0.2*COUNTRY_INFO!G24/(0.5*COUNTRY_INFO!F24+0.2*COUNTRY_INFO!G24),IF(COUNTRY_INFO!K24=3,COUNTRY_INFO!G24/(COUNTRY_INFO!F24+COUNTRY_INFO!G24)))),0) -> 0 | AP24: =MAX(COUNTRY_INFO!D24*AK24*PROFILE!$G$7,COUNTRY_INFO!D24*AL24*PROFILE!$G$7) -> 16759.8995 | AQ24: =MAX(COUNTRY_INFO!D24*AK24*PROFILE!$G$8,COUNTRY_INFO!D24*AL24*PROFILE!$G$8,COUNTRY_INFO!D24*AM24*PROFILE!$G$8) -> 24805.10699 | AR24: =MAX(COUNTRY_INFO!D24*AK24*PROFILE!$G$9,COUNTRY_INFO!D24*AL24*PROFILE!$G$9,COUNTRY_INFO!D24*AM24*PROFILE!$G$9,IF(AND(DISTRICT!Z24<>"Inconnu",Z24<>"Non requis"),COUNTRY_INFO!O24*DISTRICT!AN24,0)) -> 62307.92447 | AS24: =MAX(COUNTRY_INFO!D24*AK24*PROFILE!$G$10,COUNTRY_INFO!D24*AL24*PROFILE!$G$10,IF(AND(DISTRICT!Z24<>"Inconnu",Z24<>"Non requis"),COUNTRY_INFO!O24*DISTRICT!AO24,0)) -> 129026.069 | AT24: 232899 | AU24: 0 | AV24: =MAX('MDA2'!J24,'T1'!L24,'T2'!J24,T3_R1!K24,T3_R2!K24) -> 27250 | AW24: =MAX('MDA1'!K24,'MDA2'!K24,'MDA3'!I24,'MDA3'!L24,'T1'!M24,'T2'!K24,T3_R1!L24,T3_R2!L24) -> 77803 | AX24: =MAX('MDA1'!L24,'MDA2'!L24,'MDA3'!J24,'MDA3'!M24,'T1'!N24,'T2'!L24,T3_R1!M24,T3_R2!M24) -> 144892.11 | AY24: 249945.11 | AZ24: =MAX('MDA2'!J24,T24) -> 0 | BA24: =MAX('MDA1'!K24,'MDA2'!K24,'MDA3'!I24,'MDA3'!L24,V24,AD24) -> 52777.89 | BB24: =MAX('MDA1'!L24,'MDA2'!L24,'MDA3'!J24,'MDA3'!M24,AF24) -> 144892.11 | BC24: 197670 | BD24: 84.87370062 | BE24: 0
A25: =IF(COUNTRY_INFO!A25=0," ",COUNTRY_INFO!A25) -> Burundi | B25: =IF(COUNTRY_INFO!B25=0," ",COUNTRY_INFO!B25) -> Gitega | C25: =IF(COUNTRY_INFO!C25=0," ",COUNTRY_INFO!C25) -> Gitega | D25: =COUNTRY_INFO!L25 -> 0 | G25: =MAX('MDA1'!M25,'MDA2'!M25) -> 0 | H25: =IF(AND(COUNTRY_INFO!H25>0,COUNTRY_INFO!H25<4),IF(D25>MAX('MDA1'!M25,'MDA2'!M25),MAX('MDA1'!M25,'MDA2'!M25),D25),0) -> 0 | I25: =IF(AND(COUNTRY_INFO!H25>0,COUNTRY_INFO!H25<4), IF(G25/D25*100<>0, IF(G25/D25*100>100,100,G25/D25*100), "-"),0) -> 0 | J25: =COUNTRY_INFO!M25 -> 0 | M25: =MAX('MDA1'!M25,MAX('MDA3'!I25,'MDA3'!L25)+MAX('MDA3'!J25,'MDA3'!M25)) -> 0 | N25: 0 | O25: 0 | P25: =COUNTRY_INFO!N25 -> 0 | Q25: 70893 | R25: 78190 | S25: =SUM(MAX('MDA2'!J25, 'T1'!L25, MAX(T3_R1!K25, T3_R2!K25)), MAX('MDA1'!K25, 'MDA2'!K25, 'T1'!M25, MAX(T3_R1!L25, T3_R2!L25)), MAX('MDA1'!L25, 'MDA2'!L25, 'T1'!N25, MAX(T3_R1!M25, T3_R2!M25))) -> 126101 | T25: =IF(AND(COUNTRY_INFO!J25>1,COUNTRY_INFO!J25<4),IF(COUNTRY_INFO!E25>MAX('MDA2'!J25,'T1'!L25,MAX(T3_R1!K25,T3_R2!K25)),MAX('MDA2'!J25,'T1'!L25,MAX(T3_R1!K25,T3_R2!K25)),COUNTRY_INFO!E25),0) -> 0 | U25: =IF(AND(COUNTRY_INFO!J25>1,COUNTRY_INFO!J25<4), IF(T25/COUNTRY_INFO!E25*100<>0, IF(T25/COUNTRY_INFO!E25*100>100,100,T25/COUNTRY_INFO!E25*100), "-"),0) -> 0 | V25: =IF(AND(COUNTRY_INFO!J25>1,COUNTRY_INFO!J25<4),IF(COUNTRY_INFO!F25>MAX('MDA1'!K25,'MDA2'!K25,'T1'!M25,MAX(T3_R1!L25,T3_R2!L25)),MAX('MDA1'!K25,'MDA2'!K25,'T1'!M25,MAX(T3_R1!L25,T3_R2!L25)),COUNTRY_INFO!F25),0) -> 0 | W25: =IF(AND(COUNTRY_INFO!J25>1,COUNTRY_INFO!J25<4), IF(V25/COUNTRY_INFO!F25*100<>0, IF(V25/COUNTRY_INFO!F25*100>100,100,V25/COUNTRY_INFO!F25*100), "-"),0) -> 0 | X25: 0 | Y25: =IF(AND(COUNTRY_INFO!J25>1,COUNTRY_INFO!J25<4), IF(S25/P25*100<>0, IF(X25/P25*100>100,100,X25/P25*100), "-"),0) -> 0 | Z25: =COUNTRY_INFO!O25 -> 0 | AC25: =MAX('T1'!L25,'T2'!J25)+MAX('T1'!M25,'T2'!K25)+MAX('T1'!N25,'T2'!L25) -> 0 | AD25: =IF(COUNTRY_INFO!K25=1,IF(COUNTRY_INFO!F25*0.33>MAX('T1'!M25,'T2'!K25),MAX('T1'!M25,'T2'!K25),COUNTRY_INFO!F25*0.33),IF(COUNTRY_INFO!K25=2,IF(COUNTRY_INFO!F25*0.5>MAX('T1'!M25,'T2'!K25),MAX('T1'!M25,'T2'!K25),COUNTRY_INFO!F25*0.5),IF(COUNTRY_INFO!K25=3,IF(COUNTRY_INFO!F25>MAX('T1'!M25,'T2'!K25),MAX('T1'!M25,'T2'!K25),COUNTRY_INFO!F25),0))) -> 0 | AE25: =IF(AND(COUNTRY_INFO!K25>0,COUNTRY_INFO!K25<4),IF(Z25>0,IF(COUNTRY_INFO!K25=1, AD25/(COUNTRY_INFO!F25*0.33)*100, IF(COUNTRY_INFO!K25=2, AD25/(COUNTRY_INFO!F25*0.5)*100, IF(COUNTRY_INFO!K25=3, AD25/COUNTRY_INFO!F25*100))),"-"),0) -> 0 | AF25: =IF(COUNTRY_INFO!K25=2,IF(COUNTRY_INFO!G25*0.2>MAX('T1'!N25,'T2'!L25),MAX('T1'!N25,'T2'!L25),COUNTRY_INFO!G25*0.2),IF(COUNTRY_INFO!K25=3,IF(COUNTRY_INFO!G25>MAX('T1'!N25,'T2'!L25),MAX('T1'!N25,'T2'!L25),COUNTRY_INFO!G25),0)) -> 0 | AG25: =IF(AND(COUNTRY_INFO!K25>0,COUNTRY_INFO!K25<4),IF(Z25>0,IF(COUNTRY_INFO!K25=1, 0, IF(COUNTRY_INFO!K25=2, AF25/(COUNTRY_INFO!G25*0.2)*100, IF(COUNTRY_INFO!K25=3, AF25/COUNTRY_INFO!G25*100))),"-"),0) -> 0 | AH25: 0 | AI25: =IF(AND(COUNTRY_INFO!K25>0,COUNTRY_INFO!K25<4), IF(AC25/Z25*100<>0, IF(AH25/Z25*100>100,100,AH25/Z25*100), "-"),0) -> 0 | AK25: =IF(AND(D25<>0, D25<>"Inconnu",D25<>"Interrompu",D25<>"Non requis"),D25/COUNTRY_INFO!D25, 0) -> 0 | AL25: =IF(AND(J25<>0,J25<>"Inconnu",J25<>"Interrompu",J25<>"Non requis"),J25/COUNTRY_INFO!D25, 0) -> 0 | AM25: =IF(AND(P25<>0,P25<>"Inconnu",P25<>"Non requis"),P25/(COUNTRY_INFO!E25+COUNTRY_INFO!F25), 0) -> 0 | AN25: =IF(AND(Z25<>0,Z25<>"Inconnu",Z25<>"Non requis"),IF(COUNTRY_INFO!K25=1,1,IF(COUNTRY_INFO!K25=2,0.5*COUNTRY_INFO!F25/(0.5*COUNTRY_INFO!F25+0.2*COUNTRY_INFO!G25),IF(COUNTRY_INFO!K25=3,COUNTRY_INFO!F25/(COUNTRY_INFO!F25+COUNTRY_INFO!G25)))),0) -> 0 | AO25: =IF(AND(Z25<>0,Z25<>"Inconnu",Z25<>"Non requis"),IF(COUNTRY_INFO!K25=1,0,IF(COUNTRY_INFO!K25=2,0.2*COUNTRY_INFO!G25/(0.5*COUNTRY_INFO!F25+0.2*COUNTRY_INFO!G25),IF(COUNTRY_INFO!K25=3,COUNTRY_INFO!G25/(COUNTRY_INFO!F25+COUNTRY_INFO!G25)))),0) -> 0 | AP25: =MAX(COUNTRY_INFO!D25*AK25*PROFILE!$G$7,COUNTRY_INFO!D25*AL25*PROFILE!$G$7) -> 0 | AQ25: =MAX(COUNTRY_INFO!D25*AK25*PROFILE!$G$8,COUNTRY_INFO!D25*AL25*PROFILE!$G$8,COUNTRY_INFO!D25*AM25*PROFILE!$G$8) -> 0 | AR25: =MAX(COUNTRY_INFO!D25*AK25*PROFILE!$G$9,COUNTRY_INFO!D25*AL25*PROFILE!$G$9,COUNTRY_INFO!D25*AM25*PROFILE!$G$9,IF(AND(DISTRICT!Z25<>"Inconnu",Z25<>"Non requis"),COUNTRY_INFO!O25*DISTRICT!AN25,0)) -> 0 | AS25: =MAX(COUNTRY_INFO!D25*AK25*PROFILE!$G$10,COUNTRY_INFO!D25*AL25*PROFILE!$G$10,IF(AND(DISTRICT!Z25<>"Inconnu",Z25<>"Non requis"),COUNTRY_INFO!O25*DISTRICT!AO25,0)) -> 0 | AT25: 0 | AU25: 0 | AV25: =MAX('MDA2'!J25,'T1'!L25,'T2'!J25,T3_R1!K25,T3_R2!K25) -> 34062 | AW25: =MAX('MDA1'!K25,'MDA2'!K25,'MDA3'!I25,'MDA3'!L25,'T1'!M25,'T2'!K25,T3_R1!L25,T3_R2!L25) -> 87135 | AX25: =MAX('MDA1'!L25,'MDA2'!L25,'MDA3'!J25,'MDA3'!M25,'T1'!N25,'T2'!L25,T3_R1!M25,T3_R2!M25) -> 4904 | AY25: 126101 | AZ25: =MAX('MDA2'!J25,T25) -> 0 | BA25: =MAX('MDA1'!K25,'MDA2'!K25,'MDA3'!I25,'MDA3'!L25,V25,AD25) -> 0 | BB25: =MAX('MDA1'!L25,'MDA2'!L25,'MDA3'!J25,'MDA3'!M25,AF25) -> 0 | BC25: 0 | BD25: 0 | BE25: 0
A26: =IF(COUNTRY_INFO!A26=0," ",COUNTRY_INFO!A26) -> Burundi | B26: =IF(COUNTRY_INFO!B26=0," ",COUNTRY_INFO!B26) -> Gitega | C26: =IF(COUNTRY_INFO!C26=0," ",COUNTRY_INFO!C26) -> Kibuye | D26: =COUNTRY_INFO!L26 -> 0 | G26: =MAX('MDA1'!M26,'MDA2'!M26) -> 0 | H26: =IF(AND(COUNTRY_INFO!H26>0,COUNTRY_INFO!H26<4),IF(D26>MAX('MDA1'!M26,'MDA2'!M26),MAX('MDA1'!M26,'MDA2'!M26),D26),0) -> 0 | I26: =IF(AND(COUNTRY_INFO!H26>0,COUNTRY_INFO!H26<4), IF(G26/D26*100<>0, IF(G26/D26*100>100,100,G26/D26*100), "-"),0) -> 0 | J26: =COUNTRY_INFO!M26 -> 0 | M26: =MAX('MDA1'!M26,MAX('MDA3'!I26,'MDA3'!L26)+MAX('MDA3'!J26,'MDA3'!M26)) -> 0 | N26: 0 | O26: 0 | P26: =COUNTRY_INFO!N26 -> 0 | Q26: 63188 | R26: 68564 | S26: =SUM(MAX('MDA2'!J26, 'T1'!L26, MAX(T3_R1!K26, T3_R2!K26)), MAX('MDA1'!K26, 'MDA2'!K26, 'T1'!M26, MAX(T3_R1!L26, T3_R2!L26)), MAX('MDA1'!L26, 'MDA2'!L26, 'T1'!N26, MAX(T3_R1!M26, T3_R2!M26))) -> 125747 | T26: =IF(AND(COUNTRY_INFO!J26>1,COUNTRY_INFO!J26<4),IF(COUNTRY_INFO!E26>MAX('MDA2'!J26,'T1'!L26,MAX(T3_R1!K26,T3_R2!K26)),MAX('MDA2'!J26,'T1'!L26,MAX(T3_R1!K26,T3_R2!K26)),COUNTRY_INFO!E26),0) -> 0 | U26: =IF(AND(COUNTRY_INFO!J26>1,COUNTRY_INFO!J26<4), IF(T26/COUNTRY_INFO!E26*100<>0, IF(T26/COUNTRY_INFO!E26*100>100,100,T26/COUNTRY_INFO!E26*100), "-"),0) -> 0 | V26: =IF(AND(COUNTRY_INFO!J26>1,COUNTRY_INFO!J26<4),IF(COUNTRY_INFO!F26>MAX('MDA1'!K26,'MDA2'!K26,'T1'!M26,MAX(T3_R1!L26,T3_R2!L26)),MAX('MDA1'!K26,'MDA2'!K26,'T1'!M26,MAX(T3_R1!L26,T3_R2!L26)),COUNTRY_INFO!F26),0) -> 0 | W26: =IF(AND(COUNTRY_INFO!J26>1,COUNTRY_INFO!J26<4), IF(V26/COUNTRY_INFO!F26*100<>0, IF(V26/COUNTRY_INFO!F26*100>100,100,V26/COUNTRY_INFO!F26*100), "-"),0) -> 0 | X26: 0 | Y26: =IF(AND(COUNTRY_INFO!J26>1,COUNTRY_INFO!J26<4), IF(S26/P26*100<>0, IF(X26/P26*100>100,100,X26/P26*100), "-"),0) -> 0 | Z26: =COUNTRY_INFO!O26 -> 0 | AC26: =MAX('T1'!L26,'T2'!J26)+MAX('T1'!M26,'T2'!K26)+MAX('T1'!N26,'T2'!L26) -> 0 | AD26: =IF(COUNTRY_INFO!K26=1,IF(COUNTRY_INFO!F26*0.33>MAX('T1'!M26,'T2'!K26),MAX('T1'!M26,'T2'!K26),COUNTRY_INFO!F26*0.33),IF(COUNTRY_INFO!K26=2,IF(COUNTRY_INFO!F26*0.5>MAX('T1'!M26,'T2'!K26),MAX('T1'!M26,'T2'!K26),COUNTRY_INFO!F26*0.5),IF(COUNTRY_INFO!K26=3,IF(COUNTRY_INFO!F26>MAX('T1'!M26,'T2'!K26),MAX('T1'!M26,'T2'!K26),COUNTRY_INFO!F26),0))) -> 0 | AE26: =IF(AND(COUNTRY_INFO!K26>0,COUNTRY_INFO!K26<4),IF(Z26>0,IF(COUNTRY_INFO!K26=1, AD26/(COUNTRY_INFO!F26*0.33)*100, IF(COUNTRY_INFO!K26=2, AD26/(COUNTRY_INFO!F26*0.5)*100, IF(COUNTRY_INFO!K26=3, AD26/COUNTRY_INFO!F26*100))),"-"),0) -> 0 | AF26: =IF(COUNTRY_INFO!K26=2,IF(COUNTRY_INFO!G26*0.2>MAX('T1'!N26,'T2'!L26),MAX('T1'!N26,'T2'!L26),COUNTRY_INFO!G26*0.2),IF(COUNTRY_INFO!K26=3,IF(COUNTRY_INFO!G26>MAX('T1'!N26,'T2'!L26),MAX('T1'!N26,'T2'!L26),COUNTRY_INFO!G26),0)) -> 0 | AG26: =IF(AND(COUNTRY_INFO!K26>0,COUNTRY_INFO!K26<4),IF(Z26>0,IF(COUNTRY_INFO!K26=1, 0, IF(COUNTRY_INFO!K26=2, AF26/(COUNTRY_INFO!G26*0.2)*100, IF(COUNTRY_INFO!K26=3, AF26/COUNTRY_INFO!G26*100))),"-"),0) -> 0 | AH26: 0 | AI26: =IF(AND(COUNTRY_INFO!K26>0,COUNTRY_INFO!K26<4), IF(AC26/Z26*100<>0, IF(AH26/Z26*100>100,100,AH26/Z26*100), "-"),0) -> 0 | AK26: =IF(AND(D26<>0, D26<>"Inconnu",D26<>"Interrompu",D26<>"Non requis"),D26/COUNTRY_INFO!D26, 0) -> 0 | AL26: =IF(AND(J26<>0,J26<>"Inconnu",J26<>"Interrompu",J26<>"Non requis"),J26/COUNTRY_INFO!D26, 0) -> 0 | AM26: =IF(AND(P26<>0,P26<>"Inconnu",P26<>"Non requis"),P26/(COUNTRY_INFO!E26+COUNTRY_INFO!F26), 0) -> 0 | AN26: =IF(AND(Z26<>0,Z26<>"Inconnu",Z26<>"Non requis"),IF(COUNTRY_INFO!K26=1,1,IF(COUNTRY_INFO!K26=2,0.5*COUNTRY_INFO!F26/(0.5*COUNTRY_INFO!F26+0.2*COUNTRY_INFO!G26),IF(COUNTRY_INFO!K26=3,COUNTRY_INFO!F26/(COUNTRY_INFO!F26+COUNTRY_INFO!G26)))),0) -> 0 | AO26: =IF(AND(Z26<>0,Z26<>"Inconnu",Z26<>"Non requis"),IF(COUNTRY_INFO!K26=1,0,IF(COUNTRY_INFO!K26=2,0.2*COUNTRY_INFO!G26/(0.5*COUNTRY_INFO!F26+0.2*COUNTRY_INFO!G26),IF(COUNTRY_INFO!K26=3,COUNTRY_INFO!G26/(COUNTRY_INFO!F26+COUNTRY_INFO!G26)))),0) -> 0 | AP26: =MAX(COUNTRY_INFO!D26*AK26*PROFILE!$G$7,COUNTRY_INFO!D26*AL26*PROFILE!$G$7) -> 0 | AQ26: =MAX(COUNTRY_INFO!D26*AK26*PROFILE!$G$8,COUNTRY_INFO!D26*AL26*PROFILE!$G$8,COUNTRY_INFO!D26*AM26*PROFILE!$G$8) -> 0 | AR26: =MAX(COUNTRY_INFO!D26*AK26*PROFILE!$G$9,COUNTRY_INFO!D26*AL26*PROFILE!$G$9,COUNTRY_INFO!D26*AM26*PROFILE!$G$9,IF(AND(DISTRICT!Z26<>"Inconnu",Z26<>"Non requis"),COUNTRY_INFO!O26*DISTRICT!AN26,0)) -> 0 | AS26: =MAX(COUNTRY_INFO!D26*AK26*PROFILE!$G$10,COUNTRY_INFO!D26*AL26*PROFILE!$G$10,IF(AND(DISTRICT!Z26<>"Inconnu",Z26<>"Non requis"),COUNTRY_INFO!O26*DISTRICT!AO26,0)) -> 0 | AT26: 0 | AU26: 0 | AV26: =MAX('MDA2'!J26,'T1'!L26,'T2'!J26,T3_R1!K26,T3_R2!K26) -> 29340 | AW26: =MAX('MDA1'!K26,'MDA2'!K26,'MDA3'!I26,'MDA3'!L26,'T1'!M26,'T2'!K26,T3_R1!L26,T3_R2!L26) -> 91189 | AX26: =MAX('MDA1'!L26,'MDA2'!L26,'MDA3'!J26,'MDA3'!M26,'T1'!N26,'T2'!L26,T3_R1!M26,T3_R2!M26) -> 5218 | AY26: 125747 | AZ26: =MAX('MDA2'!J26,T26) -> 0 | BA26: =MAX('MDA1'!K26,'MDA2'!K26,'MDA3'!I26,'MDA3'!L26,V26,AD26) -> 0 | BB26: =MAX('MDA1'!L26,'MDA2'!L26,'MDA3'!J26,'MDA3'!M26,AF26) -> 0 | BC26: 0 | BD26: 0 | BE26: 0
A27: =IF(COUNTRY_INFO!A27=0," ",COUNTRY_INFO!A27) -> Burundi | B27: =IF(COUNTRY_INFO!B27=0," ",COUNTRY_INFO!B27) -> Gitega | C27: =IF(COUNTRY_INFO!C27=0," ",COUNTRY_INFO!C27) -> Mutaho | D27: =COUNTRY_INFO!L27 -> 0 | G27: =MAX('MDA1'!M27,'MDA2'!M27) -> 0 | H27: =IF(AND(COUNTRY_INFO!H27>0,COUNTRY_INFO!H27<4),IF(D27>MAX('MDA1'!M27,'MDA2'!M27),MAX('MDA1'!M27,'MDA2'!M27),D27),0) -> 0 | I27: =IF(AND(COUNTRY_INFO!H27>0,COUNTRY_INFO!H27<4), IF(G27/D27*100<>0, IF(G27/D27*100>100,100,G27/D27*100), "-"),0) -> 0 | J27: =COUNTRY_INFO!M27 -> 0 | M27: =MAX('MDA1'!M27,MAX('MDA3'!I27,'MDA3'!L27)+MAX('MDA3'!J27,'MDA3'!M27)) -> 0 | N27: 0 | O27: 0 | P27: =COUNTRY_INFO!N27 -> 0 | Q27: 56666 | R27: 63747 | S27: =SUM(MAX('MDA2'!J27, 'T1'!L27, MAX(T3_R1!K27, T3_R2!K27)), MAX('MDA1'!K27, 'MDA2'!K27, 'T1'!M27, MAX(T3_R1!L27, T3_R2!L27)), MAX('MDA1'!L27, 'MDA2'!L27, 'T1'!N27, MAX(T3_R1!M27, T3_R2!M27))) -> 100887 | T27: =IF(AND(COUNTRY_INFO!J27>1,COUNTRY_INFO!J27<4),IF(COUNTRY_INFO!E27>MAX('MDA2'!J27,'T1'!L27,MAX(T3_R1!K27,T3_R2!K27)),MAX('MDA2'!J27,'T1'!L27,MAX(T3_R1!K27,T3_R2!K27)),COUNTRY_INFO!E27),0) -> 0 | U27: =IF(AND(COUNTRY_INFO!J27>1,COUNTRY_INFO!J27<4), IF(T27/COUNTRY_INFO!E27*100<>0, IF(T27/COUNTRY_INFO!E27*100>100,100,T27/COUNTRY_INFO!E27*100), "-"),0) -> 0 | V27: =IF(AND(COUNTRY_INFO!J27>1,COUNTRY_INFO!J27<4),IF(COUNTRY_INFO!F27>MAX('MDA1'!K27,'MDA2'!K27,'T1'!M27,MAX(T3_R1!L27,T3_R2!L27)),MAX('MDA1'!K27,'MDA2'!K27,'T1'!M27,MAX(T3_R1!L27,T3_R2!L27)),COUNTRY_INFO!F27),0) -> 0 | W27: =IF(AND(COUNTRY_INFO!J27>1,COUNTRY_INFO!J27<4), IF(V27/COUNTRY_INFO!F27*100<>0, IF(V27/COUNTRY_INFO!F27*100>100,100,V27/COUNTRY_INFO!F27*100), "-"),0) -> 0 | X27: 0 | Y27: =IF(AND(COUNTRY_INFO!J27>1,COUNTRY_INFO!J27<4), IF(S27/P27*100<>0, IF(X27/P27*100>100,100,X27/P27*100), "-"),0) -> 0 | Z27: =COUNTRY_INFO!O27 -> 0 | AC27: =MAX('T1'!L27,'T2'!J27)+MAX('T1'!M27,'T2'!K27)+MAX('T1'!N27,'T2'!L27) -> 0 | AD27: =IF(COUNTRY_INFO!K27=1,IF(COUNTRY_INFO!F27*0.33>MAX('T1'!M27,'T2'!K27),MAX('T1'!M27,'T2'!K27),COUNTRY_INFO!F27*0.33),IF(COUNTRY_INFO!K27=2,IF(COUNTRY_INFO!F27*0.5>MAX('T1'!M27,'T2'!K27),MAX('T1'!M27,'T2'!K27),COUNTRY_INFO!F27*0.5),IF(COUNTRY_INFO!K27=3,IF(COUNTRY_INFO!F27>MAX('T1'!M27,'T2'!K27),MAX('T1'!M27,'T2'!K27),COUNTRY_INFO!F27),0))) -> 0 | AE27: =IF(AND(COUNTRY_INFO!K27>0,COUNTRY_INFO!K27<4),IF(Z27>0,IF(COUNTRY_INFO!K27=1, AD27/(COUNTRY_INFO!F27*0.33)*100, IF(COUNTRY_INFO!K27=2, AD27/(COUNTRY_INFO!F27*0.5)*100, IF(COUNTRY_INFO!K27=3, AD27/COUNTRY_INFO!F27*100))),"-"),0) -> 0 | AF27: =IF(COUNTRY_INFO!K27=2,IF(COUNTRY_INFO!G27*0.2>MAX('T1'!N27,'T2'!L27),MAX('T1'!N27,'T2'!L27),COUNTRY_INFO!G27*0.2),IF(COUNTRY_INFO!K27=3,IF(COUNTRY_INFO!G27>MAX('T1'!N27,'T2'!L27),MAX('T1'!N27,'T2'!L27),COUNTRY_INFO!G27),0)) -> 0 | AG27: =IF(AND(COUNTRY_INFO!K27>0,COUNTRY_INFO!K27<4),IF(Z27>0,IF(COUNTRY_INFO!K27=1, 0, IF(COUNTRY_INFO!K27=2, AF27/(COUNTRY_INFO!G27*0.2)*100, IF(COUNTRY_INFO!K27=3, AF27/COUNTRY_INFO!G27*100))),"-"),0) -> 0 | AH27: 0 | AI27: =IF(AND(COUNTRY_INFO!K27>0,COUNTRY_INFO!K27<4), IF(AC27/Z27*100<>0, IF(AH27/Z27*100>100,100,AH27/Z27*100), "-"),0) -> 0 | AK27: =IF(AND(D27<>0, D27<>"Inconnu",D27<>"Interrompu",D27<>"Non requis"),D27/COUNTRY_INFO!D27, 0) -> 0 | AL27: =IF(AND(J27<>0,J27<>"Inconnu",J27<>"Interrompu",J27<>"Non requis"),J27/COUNTRY_INFO!D27, 0) -> 0 | AM27: =IF(AND(P27<>0,P27<>"Inconnu",P27<>"Non requis"),P27/(COUNTRY_INFO!E27+COUNTRY_INFO!F27), 0) -> 0 | AN27: =IF(AND(Z27<>0,Z27<>"Inconnu",Z27<>"Non requis"),IF(COUNTRY_INFO!K27=1,1,IF(COUNTRY_INFO!K27=2,0.5*COUNTRY_INFO!F27/(0.5*COUNTRY_INFO!F27+0.2*COUNTRY_INFO!G27),IF(COUNTRY_INFO!K27=3,COUNTRY_INFO!F27/(COUNTRY_INFO!F27+COUNTRY_INFO!G27)))),0) -> 0 | AO27: =IF(AND(Z27<>0,Z27<>"Inconnu",Z27<>"Non requis"),IF(COUNTRY_INFO!K27=1,0,IF(COUNTRY_INFO!K27=2,0.2*COUNTRY_INFO!G27/(0.5*COUNTRY_INFO!F27+0.2*COUNTRY_INFO!G27),IF(COUNTRY_INFO!K27=3,COUNTRY_INFO!G27/(COUNTRY_INFO!F27+COUNTRY_INFO!G27)))),0) -> 0 | AP27: =MAX(COUNTRY_INFO!D27*AK27*PROFILE!$G$7,COUNTRY_INFO!D27*AL27*PROFILE!$G$7) -> 0 | AQ27: =MAX(COUNTRY_INFO!D27*AK27*PROFILE!$G$8,COUNTRY_INFO!D27*AL27*PROFILE!$G$8,COUNTRY_INFO!D27*AM27*PROFILE!$G$8) -> 0 | AR27: =MAX(COUNTRY_INFO!D27*AK27*PROFILE!$G$9,COUNTRY_INFO!D27*AL27*PROFILE!$G$9,COUNTRY_INFO!D27*AM27*PROFILE!$G$9,IF(AND(DISTRICT!Z27<>"Inconnu",Z27<>"Non requis"),COUNTRY_INFO!O27*DISTRICT!AN27,0)) -> 0 | AS27: =MAX(COUNTRY_INFO!D27*AK27*PROFILE!$G$10,COUNTRY_INFO!D27*AL27*PROFILE!$G$10,IF(AND(DISTRICT!Z27<>"Inconnu",Z27<>"Non requis"),COUNTRY_INFO!O27*DISTRICT!AO27,0)) -> 0 | AT27: 0 | AU27: 0 | AV27: =MAX('MDA2'!J27,'T1'!L27,'T2'!J27,T3_R1!K27,T3_R2!K27) -> 26775 | AW27: =MAX('MDA1'!K27,'MDA2'!K27,'MDA3'!I27,'MDA3'!L27,'T1'!M27,'T2'!K27,T3_R1!L27,T3_R2!L27) -> 69354 | AX27: =MAX('MDA1'!L27,'MDA2'!L27,'MDA3'!J27,'MDA3'!M27,'T1'!N27,'T2'!L27,T3_R1!M27,T3_R2!M27) -> 4758 | AY27: 100887 | AZ27: =MAX('MDA2'!J27,T27) -> 0 | BA27: =MAX('MDA1'!K27,'MDA2'!K27,'MDA3'!I27,'MDA3'!L27,V27,AD27) -> 0 | BB27: =MAX('MDA1'!L27,'MDA2'!L27,'MDA3'!J27,'MDA3'!M27,AF27) -> 0 | BC27: 0 | BD27: 0 | BE27: 0
A28: =IF(COUNTRY_INFO!A28=0," ",COUNTRY_INFO!A28) -> Burundi | B28: =IF(COUNTRY_INFO!B28=0," ",COUNTRY_INFO!B28) -> Gitega | C28: =IF(COUNTRY_INFO!C28=0," ",COUNTRY_INFO!C28) -> Ryansoro | D28: =COUNTRY_INFO!L28 -> 0 | G28: =MAX('MDA1'!M28,'MDA2'!M28) -> 0 | H28: =IF(AND(COUNTRY_INFO!H28>0,COUNTRY_INFO!H28<4),IF(D28>MAX('MDA1'!M28,'MDA2'!M28),MAX('MDA1'!M28,'MDA2'!M28),D28),0) -> 0 | I28: =IF(AND(COUNTRY_INFO!H28>0,COUNTRY_INFO!H28<4), IF(G28/D28*100<>0, IF(G28/D28*100>100,100,G28/D28*100), "-"),0) -> 0 | J28: =COUNTRY_INFO!M28 -> 0 | M28: =MAX('MDA1'!M28,MAX('MDA3'!I28,'MDA3'!L28)+MAX('MDA3'!J28,'MDA3'!M28)) -> 0 | N28: 0 | O28: 0 | P28: =COUNTRY_INFO!N28 -> 0 | Q28: 39748 | R28: 44711 | S28: =SUM(MAX('MDA2'!J28, 'T1'!L28, MAX(T3_R1!K28, T3_R2!K28)), MAX('MDA1'!K28, 'MDA2'!K28, 'T1'!M28, MAX(T3_R1!L28, T3_R2!L28)), MAX('MDA1'!L28, 'MDA2'!L28, 'T1'!N28, MAX(T3_R1!M28, T3_R2!M28))) -> 82102 | T28: =IF(AND(COUNTRY_INFO!J28>1,COUNTRY_INFO!J28<4),IF(COUNTRY_INFO!E28>MAX('MDA2'!J28,'T1'!L28,MAX(T3_R1!K28,T3_R2!K28)),MAX('MDA2'!J28,'T1'!L28,MAX(T3_R1!K28,T3_R2!K28)),COUNTRY_INFO!E28),0) -> 0 | U28: =IF(AND(COUNTRY_INFO!J28>1,COUNTRY_INFO!J28<4), IF(T28/COUNTRY_INFO!E28*100<>0, IF(T28/COUNTRY_INFO!E28*100>100,100,T28/COUNTRY_INFO!E28*100), "-"),0) -> 0 | V28: =IF(AND(COUNTRY_INFO!J28>1,COUNTRY_INFO!J28<4),IF(COUNTRY_INFO!F28>MAX('MDA1'!K28,'MDA2'!K28,'T1'!M28,MAX(T3_R1!L28,T3_R2!L28)),MAX('MDA1'!K28,'MDA2'!K28,'T1'!M28,MAX(T3_R1!L28,T3_R2!L28)),COUNTRY_INFO!F28),0) -> 0 | W28: =IF(AND(COUNTRY_INFO!J28>1,COUNTRY_INFO!J28<4), IF(V28/COUNTRY_INFO!F28*100<>0, IF(V28/COUNTRY_INFO!F28*100>100,100,V28/COUNTRY_INFO!F28*100), "-"),0) -> 0 | X28: 0 | Y28: =IF(AND(COUNTRY_INFO!J28>1,COUNTRY_INFO!J28<4), IF(S28/P28*100<>0, IF(X28/P28*100>100,100,X28/P28*100), "-"),0) -> 0 | Z28: =COUNTRY_INFO!O28 -> 0 | AC28: =MAX('T1'!L28,'T2'!J28)+MAX('T1'!M28,'T2'!K28)+MAX('T1'!N28,'T2'!L28) -> 0 | AD28: =IF(COUNTRY_INFO!K28=1,IF(COUNTRY_INFO!F28*0.33>MAX('T1'!M28,'T2'!K28),MAX('T1'!M28,'T2'!K28),COUNTRY_INFO!F28*0.33),IF(COUNTRY_INFO!K28=2,IF(COUNTRY_INFO!F28*0.5>MAX('T1'!M28,'T2'!K28),MAX('T1'!M28,'T2'!K28),COUNTRY_INFO!F28*0.5),IF(COUNTRY_INFO!K28=3,IF(COUNTRY_INFO!F28>MAX('T1'!M28,'T2'!K28),MAX('T1'!M28,'T2'!K28),COUNTRY_INFO!F28),0))) -> 0 | AE28: =IF(AND(COUNTRY_INFO!K28>0,COUNTRY_INFO!K28<4),IF(Z28>0,IF(COUNTRY_INFO!K28=1, AD28/(COUNTRY_INFO!F28*0.33)*100, IF(COUNTRY_INFO!K28=2, AD28/(COUNTRY_INFO!F28*0.5)*100, IF(COUNTRY_INFO!K28=3, AD28/COUNTRY_INFO!F28*100))),"-"),0) -> 0 | AF28: =IF(COUNTRY_INFO!K28=2,IF(COUNTRY_INFO!G28*0.2>MAX('T1'!N28,'T2'!L28),MAX('T1'!N28,'T2'!L28),COUNTRY_INFO!G28*0.2),IF(COUNTRY_INFO!K28=3,IF(COUNTRY_INFO!G28>MAX('T1'!N28,'T2'!L28),MAX('T1'!N28,'T2'!L28),COUNTRY_INFO!G28),0)) -> 0 | AG28: =IF(AND(COUNTRY_INFO!K28>0,COUNTRY_INFO!K28<4),IF(Z28>0,IF(COUNTRY_INFO!K28=1, 0, IF(COUNTRY_INFO!K28=2, AF28/(COUNTRY_INFO!G28*0.2)*100, IF(COUNTRY_INFO!K28=3, AF28/COUNTRY_INFO!G28*100))),"-"),0) -> 0 | AH28: 0 | AI28: =IF(AND(COUNTRY_INFO!K28>0,COUNTRY_INFO!K28<4), IF(AC28/Z28*100<>0, IF(AH28/Z28*100>100,100,AH28/Z28*100), "-"),0) -> 0 | AK28: =IF(AND(D28<>0, D28<>"Inconnu",D28<>"Interrompu",D28<>"Non requis"),D28/COUNTRY_INFO!D28, 0) -> 0 | AL28: =IF(AND(J28<>0,J28<>"Inconnu",J28<>"Interrompu",J28<>"Non requis"),J28/COUNTRY_INFO!D28, 0) -> 0 | AM28: =IF(AND(P28<>0,P28<>"Inconnu",P28<>"Non requis"),P28/(COUNTRY_INFO!E28+COUNTRY_INFO!F28), 0) -> 0 | AN28: =IF(AND(Z28<>0,Z28<>"Inconnu",Z28<>"Non requis"),IF(COUNTRY_INFO!K28=1,1,IF(COUNTRY_INFO!K28=2,0.5*COUNTRY_INFO!F28/(0.5*COUNTRY_INFO!F28+0.2*COUNTRY_INFO!G28),IF(COUNTRY_INFO!K28=3,COUNTRY_INFO!F28/(COUNTRY_INFO!F28+COUNTRY_INFO!G28)))),0) -> 0 | AO28: =IF(AND(Z28<>0,Z28<>"Inconnu",Z28<>"Non requis"),IF(COUNTRY_INFO!K28=1,0,IF(COUNTRY_INFO!K28=2,0.2*COUNTRY_INFO!G28/(0.5*COUNTRY_INFO!F28+0.2*COUNTRY_INFO!G28),IF(COUNTRY_INFO!K28=3,COUNTRY_INFO!G28/(COUNTRY_INFO!F28+COUNTRY_INFO!G28)))),0) -> 0 | AP28: =MAX(COUNTRY_INFO!D28*AK28*PROFILE!$G$7,COUNTRY_INFO!D28*AL28*PROFILE!$G$7) -> 0 | AQ28: =MAX(COUNTRY_INFO!D28*AK28*PROFILE!$G$8,COUNTRY_INFO!D28*AL28*PROFILE!$G$8,COUNTRY_INFO!D28*AM28*PROFILE!$G$8) -> 0 | AR28: =MAX(COUNTRY_INFO!D28*AK28*PROFILE!$G$9,COUNTRY_INFO!D28*AL28*PROFILE!$G$9,COUNTRY_INFO!D28*AM28*PROFILE!$G$9,IF(AND(DISTRICT!Z28<>"Inconnu",Z28<>"Non requis"),COUNTRY_INFO!O28*DISTRICT!AN28,0)) -> 0 | AS28: =MAX(COUNTRY_INFO!D28*AK28*PROFILE!$G$10,COUNTRY_INFO!D28*AL28*PROFILE!$G$10,IF(AND(DISTRICT!Z28<>"Inconnu",Z28<>"Non requis"),COUNTRY_INFO!O28*DISTRICT!AO28,0)) -> 0 | AT28: 0 | AU28: 0 | AV28: =MAX('MDA2'!J28,'T1'!L28,'T2'!J28,T3_R1!K28,T3_R2!K28) -> 19511 | AW28: =MAX('MDA1'!K28,'MDA2'!K28,'MDA3'!I28,'MDA3'!L28,'T1'!M28,'T2'!K28,T3_R1!L28,T3_R2!L28) -> 58983 | AX28: =MAX('MDA1'!L28,'MDA2'!L28,'MDA3'!J28,'MDA3'!M28,'T1'!N28,'T2'!L28,T3_R1!M28,T3_R2!M28) -> 3608 | AY28: 82102 | AZ28: =MAX('MDA2'!J28,T28) -> 0 | BA28: =MAX('MDA1'!K28,'MDA2'!K28,'MDA3'!I28,'MDA3'!L28,V28,AD28) -> 0 | BB28: =MAX('MDA1'!L28,'MDA2'!L28,'MDA3'!J28,'MDA3'!M28,AF28) -> 0 | BC28: 0 | BD28: 0 | BE28: 0
A29: =IF(COUNTRY_INFO!A29=0," ",COUNTRY_INFO!A29) -> Burundi | B29: =IF(COUNTRY_INFO!B29=0," ",COUNTRY_INFO!B29) -> Karusi | C29: =IF(COUNTRY_INFO!C29=0," ",COUNTRY_INFO!C29) -> Buhiga | D29: =COUNTRY_INFO!L29 -> 0 | G29: =MAX('MDA1'!M29,'MDA2'!M29) -> 0 | H29: =IF(AND(COUNTRY_INFO!H29>0,COUNTRY_INFO!H29<4),IF(D29>MAX('MDA1'!M29,'MDA2'!M29),MAX('MDA1'!M29,'MDA2'!M29),D29),0) -> 0 | I29: =IF(AND(COUNTRY_INFO!H29>0,COUNTRY_INFO!H29<4), IF(G29/D29*100<>0, IF(G29/D29*100>100,100,G29/D29*100), "-"),0) -> 0 | J29: =COUNTRY_INFO!M29 -> 0 | M29: =MAX('MDA1'!M29,MAX('MDA3'!I29,'MDA3'!L29)+MAX('MDA3'!J29,'MDA3'!M29)) -> 0 | N29: 0 | O29: 0 | P29: =COUNTRY_INFO!N29 -> 0 | Q29: 20656 | R29: 24791 | S29: =SUM(MAX('MDA2'!J29, 'T1'!L29, MAX(T3_R1!K29, T3_R2!K29)), MAX('MDA1'!K29, 'MDA2'!K29, 'T1'!M29, MAX(T3_R1!L29, T3_R2!L29)), MAX('MDA1'!L29, 'MDA2'!L29, 'T1'!N29, MAX(T3_R1!M29, T3_R2!M29))) -> 53837 | T29: =IF(AND(COUNTRY_INFO!J29>1,COUNTRY_INFO!J29<4),IF(COUNTRY_INFO!E29>MAX('MDA2'!J29,'T1'!L29,MAX(T3_R1!K29,T3_R2!K29)),MAX('MDA2'!J29,'T1'!L29,MAX(T3_R1!K29,T3_R2!K29)),COUNTRY_INFO!E29),0) -> 0 | U29: =IF(AND(COUNTRY_INFO!J29>1,COUNTRY_INFO!J29<4), IF(T29/COUNTRY_INFO!E29*100<>0, IF(T29/COUNTRY_INFO!E29*100>100,100,T29/COUNTRY_INFO!E29*100), "-"),0) -> 0 | V29: =IF(AND(COUNTRY_INFO!J29>1,COUNTRY_INFO!J29<4),IF(COUNTRY_INFO!F29>MAX('MDA1'!K29,'MDA2'!K29,'T1'!M29,MAX(T3_R1!L29,T3_R2!L29)),MAX('MDA1'!K29,'MDA2'!K29,'T1'!M29,MAX(T3_R1!L29,T3_R2!L29)),COUNTRY_INFO!F29),0) -> 0 | W29: =IF(AND(COUNTRY_INFO!J29>1,COUNTRY_INFO!J29<4), IF(V29/COUNTRY_INFO!F29*100<>0, IF(V29/COUNTRY_INFO!F29*100>100,100,V29/COUNTRY_INFO!F29*100), "-"),0) -> 0 | X29: 0 | Y29: =IF(AND(COUNTRY_INFO!J29>1,COUNTRY_INFO!J29<4), IF(S29/P29*100<>0, IF(X29/P29*100>100,100,X29/P29*100), "-"),0) -> 0 | Z29: =COUNTRY_INFO!O29 -> 0 | AC29: =MAX('T1'!L29,'T2'!J29)+MAX('T1'!M29,'T2'!K29)+MAX('T1'!N29,'T2'!L29) -> 0 | AD29: =IF(COUNTRY_INFO!K29=1,IF(COUNTRY_INFO!F29*0.33>MAX('T1'!M29,'T2'!K29),MAX('T1'!M29,'T2'!K29),COUNTRY_INFO!F29*0.33),IF(COUNTRY_INFO!K29=2,IF(COUNTRY_INFO!F29*0.5>MAX('T1'!M29,'T2'!K29),MAX('T1'!M29,'T2'!K29),COUNTRY_INFO!F29*0.5),IF(COUNTRY_INFO!K29=3,IF(COUNTRY_INFO!F29>MAX('T1'!M29,'T2'!K29),MAX('T1'!M29,'T2'!K29),COUNTRY_INFO!F29),0))) -> 0 | AE29: =IF(AND(COUNTRY_INFO!K29>0,COUNTRY_INFO!K29<4),IF(Z29>0,IF(COUNTRY_INFO!K29=1, AD29/(COUNTRY_INFO!F29*0.33)*100, IF(COUNTRY_INFO!K29=2, AD29/(COUNTRY_INFO!F29*0.5)*100, IF(COUNTRY_INFO!K29=3, AD29/COUNTRY_INFO!F29*100))),"-"),0) -> 0 | AF29: =IF(COUNTRY_INFO!K29=2,IF(COUNTRY_INFO!G29*0.2>MAX('T1'!N29,'T2'!L29),MAX('T1'!N29,'T2'!L29),COUNTRY_INFO!G29*0.2),IF(COUNTRY_INFO!K29=3,IF(COUNTRY_INFO!G29>MAX('T1'!N29,'T2'!L29),MAX('T1'!N29,'T2'!L29),COUNTRY_INFO!G29),0)) -> 0 | AG29: =IF(AND(COUNTRY_INFO!K29>0,COUNTRY_INFO!K29<4),IF(Z29>0,IF(COUNTRY_INFO!K29=1, 0, IF(COUNTRY_INFO!K29=2, AF29/(COUNTRY_INFO!G29*0.2)*100, IF(COUNTRY_INFO!K29=3, AF29/COUNTRY_INFO!G29*100))),"-"),0) -> 0 | AH29: 0 | AI29: =IF(AND(COUNTRY_INFO!K29>0,COUNTRY_INFO!K29<4), IF(AC29/Z29*100<>0, IF(AH29/Z29*100>100,100,AH29/Z29*100), "-"),0) -> 0 | AK29: =IF(AND(D29<>0, D29<>"Inconnu",D29<>"Interrompu",D29<>"Non requis"),D29/COUNTRY_INFO!D29, 0) -> 0 | AL29: =IF(AND(J29<>0,J29<>"Inconnu",J29<>"Interrompu",J29<>"Non requis"),J29/COUNTRY_INFO!D29, 0) -> 0 | AM29: =IF(AND(P29<>0,P29<>"Inconnu",P29<>"Non requis"),P29/(COUNTRY_INFO!E29+COUNTRY_INFO!F29), 0) -> 0 | AN29: =IF(AND(Z29<>0,Z29<>"Inconnu",Z29<>"Non requis"),IF(COUNTRY_INFO!K29=1,1,IF(COUNTRY_INFO!K29=2,0.5*COUNTRY_INFO!F29/(0.5*COUNTRY_INFO!F29+0.2*COUNTRY_INFO!G29),IF(COUNTRY_INFO!K29=3,COUNTRY_INFO!F29/(COUNTRY_INFO!F29+COUNTRY_INFO!G29)))),0) -> 0 | AO29: =IF(AND(Z29<>0,Z29<>"Inconnu",Z29<>"Non requis"),IF(COUNTRY_INFO!K29=1,0,IF(COUNTRY_INFO!K29=2,0.2*COUNTRY_INFO!G29/(0.5*COUNTRY_INFO!F29+0.2*COUNTRY_INFO!G29),IF(COUNTRY_INFO!K29=3,COUNTRY_INFO!G29/(COUNTRY_INFO!F29+COUNTRY_INFO!G29)))),0) -> 0 | AP29: =MAX(COUNTRY_INFO!D29*AK29*PROFILE!$G$7,COUNTRY_INFO!D29*AL29*PROFILE!$G$7) -> 0 | AQ29: =MAX(COUNTRY_INFO!D29*AK29*PROFILE!$G$8,COUNTRY_INFO!D29*AL29*PROFILE!$G$8,COUNTRY_INFO!D29*AM29*PROFILE!$G$8) -> 0 | AR29: =MAX(COUNTRY_INFO!D29*AK29*PROFILE!$G$9,COUNTRY_INFO!D29*AL29*PROFILE!$G$9,COUNTRY_INFO!D29*AM29*PROFILE!$G$9,IF(AND(DISTRICT!Z29<>"Inconnu",Z29<>"Non requis"),COUNTRY_INFO!O29*DISTRICT!AN29,0)) -> 0 | AS29: =MAX(COUNTRY_INFO!D29*AK29*PROFILE!$G$10,COUNTRY_INFO!D29*AL29*PROFILE!$G$10,IF(AND(DISTRICT!Z29<>"Inconnu",Z29<>"Non requis"),COUNTRY_INFO!O29*DISTRICT!AO29,0)) -> 0 | AT29: 0 | AU29: 0 | AV29: =MAX('MDA2'!J29,'T1'!L29,'T2'!J29,T3_R1!K29,T3_R2!K29) -> 16832 | AW29: =MAX('MDA1'!K29,'MDA2'!K29,'MDA3'!I29,'MDA3'!L29,'T1'!M29,'T2'!K29,T3_R1!L29,T3_R2!L29) -> 37005 | AX29: =MAX('MDA1'!L29,'MDA2'!L29,'MDA3'!J29,'MDA3'!M29,'T1'!N29,'T2'!L29,T3_R1!M29,T3_R2!M29) -> 0 | AY29: 53837 | AZ29: =MAX('MDA2'!J29,T29) -> 0 | BA29: =MAX('MDA1'!K29,'MDA2'!K29,'MDA3'!I29,'MDA3'!L29,V29,AD29) -> 0 | BB29: =MAX('MDA1'!L29,'MDA2'!L29,'MDA3'!J29,'MDA3'!M29,AF29) -> 0 | BC29: 0 | BD29: 0 | BE29: 0
